Workbook

Sheet Freight PASS
A1: Freight PASS (Productivity and Safety / Sustainability Tool) | Version: BETA (8 January 2024) | AE1: User Guide | AN1: Reference material
AJ3: =CONCATENATE("Accessed on: ", TEXT(TODAY(), "dd/mm/yyyy")) -> Accessed on: 08/01/2024
C4: =CONCATENATE("For assistance in vehicle selection options, refer to: ", HYPERLINK("https://www.nhvr.gov.au/files/201707-0577-common-heavy-freight-vehicles-combinations.pdf", "Common conventional vehicles chart"), " or ", HYPERLINK("https://www.nhvr.gov.au/files/201810-0923-pbs-vehicle-configurations.pdf", "Common PBS vehicles chart")) -> For assistance in vehicle selection options, refer to: Common conventional vehicles chart or Common PBS vehicles chart
A5: Vehicle selection and ranking | B5: Step 1. Vehicle selection | J5: Vehicle A | V5: Vehicle classification | AB5: Vehicle mass | AF5: Productivity | AH5: Safety | AJ5: Sustainability | AL5: Overall | AN5: Vehicle configuration code | AO5: Image
J7: Reference vehicle | M7: Combination | S7: Mass scheme | V7: Axles | W7: Config. | X7: ATAP | Y7: Austroads | Z7: NTC | AB7: GCM (t) | AC7: Load (t) | AD7: Tare (t) | AF7: =_xlfn.XLOOKUP(J5,_xlfn.ANCHORARRAY('Scenario rankings'!$N$5),'Scenario rankings'!$Q$5:$Q$8,"",0) -> 4 | AH7: =_xlfn.XLOOKUP(J5,_xlfn.ANCHORARRAY('Scenario rankings'!$N$13),'Scenario rankings'!$Q$13:$Q$16,"",0) -> 4 | AJ7: =_xlfn.XLOOKUP(J5,_xlfn.ANCHORARRAY('Scenario rankings'!$N$21),'Scenario rankings'!$Q$21:$Q$24,"",0) -> 4 | AL7: =_xlfn.XLOOKUP(J5,'Scenario rankings'!$N$28:$N$31,'Scenario rankings'!$Q$28:$Q$31,"",0) -> 4 | AN7: A111
J8: Common General Access Vehicle | M8: 6-Axle Semitrailer | S8: GML | V8: =_xlfn.SINGLE(_xlfn.XLOOKUP($M$8&$S$8,Fleet_Data[Description]&Fleet_Data[Mass Scheme],Fleet_Data[Axles],"Does not exist",0)) -> 6 | W8: =_xlfn.SINGLE(_xlfn.XLOOKUP($M$8&$S$8,Fleet_Data[Description]&Fleet_Data[Mass Scheme],Fleet_Data[Configuration Code],"",0)) -> A123 | X8: =_xlfn.SINGLE(_xlfn.XLOOKUP($M$8&$S$8,Fleet_Data[Description]&Fleet_Data[Mass Scheme],Fleet_Data[ATAP Vehicle Equivalent],"",0)) -> Artic 6 Axle | Y8: =_xlfn.SINGLE(_xlfn.XLOOKUP($M$8&$S$8,Fleet_Data[Description]&Fleet_Data[Mass Scheme],Fleet_Data[Austroads Vehicle Equivalent],"",0)) -> Class 9 | Z8: =_xlfn.SINGLE(_xlfn.XLOOKUP($M$8&$S$8,Fleet_Data[Description]&Fleet_Data[Mass Scheme],Fleet_Data[NTC Vehicle Equivalent],"",0)) -> 16b | AB8: =_xlfn.SINGLE(_xlfn.XLOOKUP($M$8&$S$8,Fleet_Data[Description]&Fleet_Data[Mass Scheme],Fleet_Data[GCM (t) (100% load)],"",0)) -> 42.5 | AC8: =_xlfn.SINGLE(_xlfn.XLOOKUP($M$8&$S$8,Fleet_Data[Description]&Fleet_Data[Mass Scheme],Fleet_Data[Load (t)],"",0)) -> 24.46858051 | AD8: =_xlfn.SINGLE(_xlfn.XLOOKUP($M$8&$S$8,Fleet_Data[Description]&Fleet_Data[Mass Scheme],Fleet_Data[Tare (t)],"",0)) -> 18.03141949 | AN8: A112
AF9: Rank | AH9: Rank | AJ9: Rank | AL9: Rank | AN9: A113
M10: Reference vehicle cannot be modified. | AN10: A1213
AN11: A121B21
J12: Vehicle B | AN12: A122
AN13: A1221
J14: Reference vehicle | M14: Combination | S14: Mass scheme | V14: Axles | W14: Config. | X14: ATAP | Y14: Austroads | Z14: NTC | AB14: GCM (t) | AC14: Load (t) | AD14: Tare (t) | AF14: =_xlfn.XLOOKUP(J12,_xlfn.ANCHORARRAY('Scenario rankings'!$N$5),'Scenario rankings'!$Q$5:$Q$8,"",0) -> 3 | AH14: =_xlfn.XLOOKUP(J12,_xlfn.ANCHORARRAY('Scenario rankings'!$N$13),'Scenario rankings'!$Q$13:$Q$16,"",0) -> 3 | AJ14: =_xlfn.XLOOKUP(J12,_xlfn.ANCHORARRAY('Scenario rankings'!$N$21),'Scenario rankings'!$Q$21:$Q$24,"",0) -> 3 | AL14: =_xlfn.XLOOKUP(J12,'Scenario rankings'!$N$28:$N$31,'Scenario rankings'!$Q$28:$Q$31,"",0) -> 3 | AN14: A122T22
J15: Common Restricted Access Vehicle | M15: 9-Axle B-Double | S15: GML | V15: =_xlfn.SINGLE(_xlfn.XLOOKUP($M$15&$S$15,Fleet_Data[Description]&Fleet_Data[Mass Scheme],Fleet_Data[Axles],"Does not exist",0)) -> 9 | W15: =_xlfn.SINGLE(_xlfn.XLOOKUP($M$15&$S$15,Fleet_Data[Description]&Fleet_Data[Mass Scheme],Fleet_Data[Configuration Code],"",0)) -> B1233 | X15: =_xlfn.SINGLE(_xlfn.XLOOKUP($M$15&$S$15,Fleet_Data[Description]&Fleet_Data[Mass Scheme],Fleet_Data[ATAP Vehicle Equivalent],"",0)) -> B-Double | Y15: =_xlfn.SINGLE(_xlfn.XLOOKUP($M$15&$S$15,Fleet_Data[Description]&Fleet_Data[Mass Scheme],Fleet_Data[Austroads Vehicle Equivalent],"",0)) -> Class 10 | Z15: =_xlfn.SINGLE(_xlfn.XLOOKUP($M$15&$S$15,Fleet_Data[Description]&Fleet_Data[Mass Scheme],Fleet_Data[NTC Vehicle Equivalent],"",0)) -> 18b | AB15: =_xlfn.SINGLE(_xlfn.XLOOKUP($M$15&$S$15,Fleet_Data[Description]&Fleet_Data[Mass Scheme],Fleet_Data[GCM (t) (100% load)],"",0)) -> 62.5 | AC15: =_xlfn.SINGLE(_xlfn.XLOOKUP($M$15&$S$15,Fleet_Data[Description]&Fleet_Data[Mass Scheme],Fleet_Data[Load (t)],"",0)) -> 37.28093699 | AD15: =_xlfn.SINGLE(_xlfn.XLOOKUP($M$15&$S$15,Fleet_Data[Description]&Fleet_Data[Mass Scheme],Fleet_Data[Tare (t)],"",0)) -> 25.21906301 | AN15: A123
AF16: Rank | AH16: Rank | AJ16: Rank | AL16: Rank | AN16: A123T23
M17: Reference vehicle cannot be modified. | AN17: A123T23T23
AN18: A123T2B33
J19: Vehicle C | P19: For assistance in vehicle selection options, refer to: | S19: Conventional vehicles | T19: PBS vehicles | AN19: A123T2B333
J20: Step I | M20: Step II | P20: Step III | S20: Step IV | AN20: A123T33
J21: Fleet | M21: Combination | P21: Mass scheme | S21: PBS Level | V21: Axles | W21: Config. | X21: ATAP | Y21: Austroads | Z21: NTC | AB21: GCM (t) | AC21: Load (t) | AD21: Tare (t) | AF21: =_xlfn.XLOOKUP(J19,_xlfn.ANCHORARRAY('Scenario rankings'!$N$5),'Scenario rankings'!$Q$5:$Q$8,"",0) -> 2 | AH21: =_xlfn.XLOOKUP(J19,_xlfn.ANCHORARRAY('Scenario rankings'!$N$13),'Scenario rankings'!$Q$13:$Q$16,"",0) -> 2 | AJ21: =_xlfn.XLOOKUP(J19,_xlfn.ANCHORARRAY('Scenario rankings'!$N$21),'Scenario rankings'!$Q$21:$Q$24,"",0) -> 2 | AL21: =_xlfn.XLOOKUP(J19,'Scenario rankings'!$N$28:$N$31,'Scenario rankings'!$Q$28:$Q$31,"",0) -> 2 | AN21: A123T33T33
J22: Conventional | M22: 9-Axle B-Double | P22: CML | S22: n/a | V22: =_xlfn.SINGLE(_xlfn.XLOOKUP(J22&M22&P22&S22,Fleet_Data[Fleet]&Fleet_Data[Description]&Fleet_Data[Mass Scheme]&Fleet_Data[PBS Level],Fleet_Data[Axles],"",0)) -> 9 | W22: =_xlfn.SINGLE(_xlfn.XLOOKUP(J22&M22&P22&S22,Fleet_Data[Fleet]&Fleet_Data[Description]&Fleet_Data[Mass Scheme]&Fleet_Data[PBS Level],Fleet_Data[Configuration Code],"Nil.",0)) -> B1233 | X22: =_xlfn.SINGLE(_xlfn.XLOOKUP(J22&M22&P22&S22,Fleet_Data[Fleet]&Fleet_Data[Description]&Fleet_Data[Mass Scheme]&Fleet_Data[PBS Level],Fleet_Data[ATAP Vehicle Equivalent],"",0)) -> B-Double | Y22: =_xlfn.SINGLE(_xlfn.XLOOKUP(J22&M22&P22&S22,Fleet_Data[Fleet]&Fleet_Data[Description]&Fleet_Data[Mass Scheme]&Fleet_Data[PBS Level],Fleet_Data[Austroads Vehicle Equivalent],"",0)) -> Class 10 | Z22: =_xlfn.SINGLE(_xlfn.XLOOKUP($J22&M22&P22&S22,Fleet_Data[Fleet]&Fleet_Data[Description]&Fleet_Data[Mass Scheme]&Fleet_Data[PBS Level],Fleet_Data[NTC Vehicle Equivalent],"",0)) -> 18b | AB22: =_xlfn.SINGLE(_xlfn.XLOOKUP(J22&M22&P22&S22,Fleet_Data[Fleet]&Fleet_Data[Description]&Fleet_Data[Mass Scheme]&Fleet_Data[PBS Level],Fleet_Data[GCM (t) (100% load)],"",0)) -> 64.5 | AC22: =_xlfn.SINGLE(_xlfn.XLOOKUP(J22&M22&P22&S22,Fleet_Data[Fleet]&Fleet_Data[Description]&Fleet_Data[Mass Scheme]&Fleet_Data[PBS Level],Fleet_Data[Load (t)],"",0)) -> 39.28093699 | AD22: =_xlfn.SINGLE(_xlfn.XLOOKUP(J22&M22&P22&S22,Fleet_Data[Fleet]&Fleet_Data[Description]&Fleet_Data[Mass Scheme]&Fleet_Data[PBS Level],Fleet_Data[Tare (t)],"",0)) -> 25.21906301 | AN22: A123T3B33
AF23: Rank | AH23: Rank | AJ23: Rank | AL23: Rank | AN23: A123T3B333
J24: =IFERROR(_xlfn.IFS(J22="No selection", "'No selection' has been identified. To select a vehicle, please use the drop down menus from left to right (Step I to IV)",V22="","Vehicle does not exist in the NHVR common configuration charts. To select a vehicle, please use the drop down menus from left to right (Step I to IV). Refer to the NHVR common configuration charts for vehicle selection options."),"Please select vehicle using the drop down menus in order from left to right (Step I to IV). Alternatively, select 'No selection' under the 'Fleet' drop down menu.") -> Please select vehicle using the drop down menus in order from left to right (Step I to IV). Alternatively, select 'No selection' under the 'Fleet' drop down menu. | AN24: A124
AN25: A1333333
J26: Vehicle D | P26: For assistance in vehicle selection options, refer to: | S26: Conventional vehicles | T26: PBS vehicles | AN26: A223
J27: Step I | M27: Step II | P27: Step III | S27: Step IV | AN27: A224
J28: Fleet | M28: Combination | P28: Mass scheme | S28: PBS Level | V28: Axles | W28: Config. | X28: ATAP | Y28: Austroads | Z28: NTC | AB28: GCM (t) | AC28: Load (t) | AD28: Tare (t) | AF28: =_xlfn.XLOOKUP(J26,_xlfn.ANCHORARRAY('Scenario rankings'!$N$5),'Scenario rankings'!$Q$5:$Q$8,"",0) -> 1 | AH28: =_xlfn.XLOOKUP(J26,_xlfn.ANCHORARRAY('Scenario rankings'!$N$13),'Scenario rankings'!$Q$13:$Q$16,"",0) -> 1 | AJ28: =_xlfn.XLOOKUP(J26,_xlfn.ANCHORARRAY('Scenario rankings'!$N$21),'Scenario rankings'!$Q$21:$Q$24,"",0) -> 1 | AL28: =_xlfn.XLOOKUP(J26,'Scenario rankings'!$N$28:$N$31,'Scenario rankings'!$Q$28:$Q$31,"",0) -> 1 | AN28: B1222
J29: PBS | M29: 3-axle prime mover A-double (3-2-3) | P29: HML | S29: 3 | V29: =_xlfn.SINGLE(_xlfn.XLOOKUP(J29&M29&P29&S29,Fleet_Data[Fleet]&Fleet_Data[Description]&Fleet_Data[Mass Scheme]&Fleet_Data[PBS Level],Fleet_Data[Axles],"",0)) -> 11 | W29: =_xlfn.SINGLE(_xlfn.XLOOKUP(J29&M29&P29&S29,Fleet_Data[Fleet]&Fleet_Data[Description]&Fleet_Data[Mass Scheme]&Fleet_Data[PBS Level],Fleet_Data[Configuration Code],"Nil.",0)) -> A123T23 | X29: =_xlfn.SINGLE(_xlfn.XLOOKUP(J29&M29&P29&S29,Fleet_Data[Fleet]&Fleet_Data[Description]&Fleet_Data[Mass Scheme]&Fleet_Data[PBS Level],Fleet_Data[ATAP Vehicle Equivalent],"",0)) -> A-Double | Y29: =_xlfn.SINGLE(_xlfn.XLOOKUP(J29&M29&P29&S29,Fleet_Data[Fleet]&Fleet_Data[Description]&Fleet_Data[Mass Scheme]&Fleet_Data[PBS Level],Fleet_Data[Austroads Vehicle Equivalent],"",0)) -> Class 11 | Z29: =_xlfn.SINGLE(_xlfn.XLOOKUP($J29&M29&P29&S29,Fleet_Data[Fleet]&Fleet_Data[Description]&Fleet_Data[Mass Scheme]&Fleet_Data[PBS Level],Fleet_Data[NTC Vehicle Equivalent],"",0)) -> 20 | AB29: =_xlfn.SINGLE(_xlfn.XLOOKUP(J29&M29&P29&S29,Fleet_Data[Fleet]&Fleet_Data[Description]&Fleet_Data[Mass Scheme]&Fleet_Data[PBS Level],Fleet_Data[GCM (t) (100% load)],"",0)) -> 85.5 | AC29: =_xlfn.SINGLE(_xlfn.XLOOKUP(J29&M29&P29&S29,Fleet_Data[Fleet]&Fleet_Data[Description]&Fleet_Data[Mass Scheme]&Fleet_Data[PBS Level],Fleet_Data[Load (t)],"",0)) -> 56.59122358 | AD29: =_xlfn.SINGLE(_xlfn.XLOOKUP(J29&M29&P29&S29,Fleet_Data[Fleet]&Fleet_Data[Description]&Fleet_Data[Mass Scheme]&Fleet_Data[PBS Level],Fleet_Data[Tare (t)],"",0)) -> 28.90877642 | AN29: B1223
AF30: Rank | AH30: Rank | AJ30: Rank | AL30: Rank | AN30: B1232
J31: =IFERROR(_xlfn.IFS(J29="No selection", "'No selection' has been identified. To select a vehicle, please use the drop down menus from left to right (Step I to IV)",V29="","Vehicle does not exist in the NHVR common configuration charts. To select a vehicle, please use the drop down menus from left to right (Step I to IV). Refer to the NHVR common configuration charts for vehicle selection options."),"Please select vehicle using the drop down menus in order from left to right (Step I to IV). Alternatively, select 'No selection' under the 'Fleet' drop down menu.") -> Please select vehicle using the drop down menus in order from left to right (Step I to IV). Alternatively, select 'No selection' under the 'Fleet' drop down menu. | AF31: Ranking based on scenario inputs (Step 2). To modify weightings, refer to Step 4. | AN31: B1233
H32: Images not to scale | AN32: B12333
AN33: B1233T2B33
A34: Scenario inputs and productivity, safety and sustainability outputs | B34: Step 2. Scenario inputs | J34: =IFERROR(IF(J38<>0,"",""),"ERROR. Please ensure all vehicles in Step 1 are aligned with the NHVR common configuration charts. Please follow the instructions and prompts in Step 1.") ->  | AE34: Step 4. Criteria weightings (optional) | AN34: B1233T3B33
AN35: B123A3T33
C36: Journey length (km) (single direction) | F36: 100 | J36: Fewest return trips | M36: Quickest time | P36: Least likely to be in a fatal crash | S36: Least likely to be in a crash resulting in a hospitalisation | V36: Lowest fuel consumption | Y36: Lowest CO2 emission | AB36: Lowest air pollution impact cost | AF36: Criteria 1 | AG36: Criteria 2 | AH36: Criteria 3 | AI36: Criteria 4 | AJ36: Criteria 5 | AK36: Criteria 6 | AN36: B1243
AE37: Productivity | AF37: Trips | AG37: Time | AH37: Kilometers | AI37: Road occupancy | AL37: =_xlfn.IFS(AL38>100%,"Exceeds 100%. Review weightings.",AL38<100%,"Under 100%. Review weightings",AL38=100%,"") ->  | AN37: B1244
F38: Enter value | J38: =MIN('Scenario outputs'!C21:F21) -> 18 | M38: =MIN('Scenario outputs'!C28:F28) -> 45 | P38: =MIN('Scenario outputs'!C49:F49) -> 1.005136364e-05 | S38: =MIN('Scenario outputs'!C56:F56) -> 9.697909091e-05 | V38: =MIN('Scenario outputs'!C77:F77) -> 2488.232933 | Y38: =MIN('Scenario outputs'!C84:F84) -> 6646.56781 | AB38: =MIN('Scenario outputs'!C91:F91) -> 29.40932517 | AF38: 0.1 | AG38: 0.1 | AH38: 0.5 | AI38: 0.3 | AL38: =SUM(AF38:AI38) -> 1 | AN38: R11
C39: Total load (t) | F39: 1000 | AF39: Enter values. Total to equal 100% | AN39: R11T11
J40: Return trips | M40: Hours | P40: Per cent likelihood | S40: Per cent likelihood | V40: Litres | Y40: Kilograms | AB40: Dollars | AE40: Safety | AF40: Fatalities | AG40: Hospitalisation | AH40: Non-hospitalisation | AI40: Property damage | AL40: =_xlfn.IFS(AL41>100%,"Exceeds 100%. Review weightings.",AL41<100%,"Under 100%. Review weightings",AL41=100%,"") ->  | AN40: R11T2
F41: Enter value | J41: =_xlfn.XLOOKUP(1,'Scenario outputs'!$C$24:$F$24,'Scenario outputs'!$C$13:$F$13,_xlfn.XLOOKUP(1,'Scenario outputs'!$C$25:$F$25,'Scenario outputs'!$C$13:$F$13,"",0,1),0,1) -> 3-axle prime mover A-double (3-2-3) (HML): PBS, 3 | M41: =_xlfn.XLOOKUP(1,'Scenario outputs'!C31:F31,'Scenario outputs'!$C$13:$F$13,_xlfn.XLOOKUP(1,'Scenario outputs'!C32:F32,'Scenario outputs'!$C$13:$F$13,"",0,1),0,1) -> 3-axle prime mover A-double (3-2-3) (HML): PBS, 3 | P41: =_xlfn.XLOOKUP(1,'Scenario outputs'!C52:F52,'Scenario outputs'!$C$13:$F$13,_xlfn.XLOOKUP(1,'Scenario outputs'!C53:F53,'Scenario outputs'!$C$13:$F$13,"",0,1),0,1) -> 3-axle prime mover A-double (3-2-3) (HML): PBS, 3 | S41: =_xlfn.XLOOKUP(1,'Scenario outputs'!$C59:$F59,'Scenario outputs'!$C$13:$F$13,_xlfn.XLOOKUP(1,'Scenario outputs'!$C60:$F60,'Scenario outputs'!$C$13:$F$13,"",0,1),0,1) -> 3-axle prime mover A-double (3-2-3) (HML): PBS, 3 | V41: =_xlfn.XLOOKUP(1,'Scenario outputs'!$C80:$F80,'Scenario outputs'!$C$13:$F$13,_xlfn.XLOOKUP(1,'Scenario outputs'!$C81:$F81,'Scenario outputs'!$C$13:$F$13,"",0,1),0,1) -> 3-axle prime mover A-double (3-2-3) (HML): PBS, 3 | Y41: =_xlfn.XLOOKUP(1,'Scenario outputs'!$C87:$F87,'Scenario outputs'!$C$13:$F$13,_xlfn.XLOOKUP(1,'Scenario outputs'!$C88:$F88,'Scenario outputs'!$C$13:$F$13,"",0,1),0,1) -> 3-axle prime mover A-double (3-2-3) (HML): PBS, 3 | AB41: =_xlfn.XLOOKUP(1,'Scenario outputs'!$C94:$F94,'Scenario outputs'!$C$13:$F$13,_xlfn.XLOOKUP(1,'Scenario outputs'!$C95:$F95,'Scenario outputs'!$C$13:$F$13,"",0,1),0,1) -> 3-axle prime mover A-double (3-2-3) (HML): PBS, 3 | AF41: 0.7 | AG41: 0.15 | AH41: 0.1 | AI41: 0.05 | AL41: =SUM(AF41:AI42) -> 1 | AN41: R12
C42: Average speed (km/h) | F42: 80 | AF42: Enter values. Total to equal 100% | AN42: R12T11
J43: Number of trips based on a payload of 100% load delivery and 0% load return | M43: Consecutive non-stop return trips (e.g. excluding designated rest stops, loading and unloading) | P43: Probability calculated based on transporting the entire freight task (i.e. not a probability per trip) | S43: Probability calculated based on transporting the entire freight task (i.e. not a probability per trip) | Y43: Calculation based on emission conversion factor from the ATAP road parameter values | AE43: Sustainability | AF43: Fuel consumption | AG43: CO2 emission | AH43: Air pollution cost | AI43: Noise pollution cost | AJ43: Biodiversity cost | AK43: Water and soil cost | AL43: =_xlfn.IFS(AL44>100%,"Exceeds 100%. Review weightings.",AL44<100%,"Under 100%. Review weightings",AL44=100%,"") ->  | AN43: R12T12
F44: Enter value | V44: Calculation based on the ATAP fuel consumption formula | AB44: Calculation based on the ATAP environmental parameter values | AF44: 0.3 | AG44: 0.3 | AH44: 0.1 | AI44: 0.1 | AJ44: 0.1 | AK44: 0.1 | AL44: =SUM(AF44:AI44,AJ44:AK44) -> 1 | AN44: R12T2
C45: Commodity | F45: Apples | AH45: Enter values. Total to equal 100% | AN45: R12T22
AE46: Overall | AF46: Productivity | AG46: Safety | AH46: Sustainability | AL46: =_xlfn.IFS(AL47>100%,"Exceeds 100%. Review weightings.",AL47<100%,"Under 100%. Review weightings",AL47=100%,"") ->  | AN46: R12T22T22
F47: Select from drop down menu | AF47: 0.35 | AG47: 0.5 | AH47: 0.15 | AL47: =SUM(AF47:AH47) -> 1 | AN47: R12T23
C48: Journey length where vehicle pollutants impacts biodiversity (km) (single direction) | AE48: Enter values. Total to equal 100% | AN48: R12T23T23
AN49: R12T3
C50: =IF($F$48>$F$36,"Value must be less than journey length","Enter value") -> Enter value | AE50: Legend | AI50: Glossary | AN50: R12T33
C51: Journey length where vehicle run-off impacts water and/or soil quality (km) (single direction) | AE51: User input required | AI51: ATAP | AJ51: Australian Transport Assessment and Planning Guidelines | AN51: R13
AE52: Productivity related information | AI52: CML | AJ52: Concessional Mass Limit | AN52: R22
C53: =IF($F$51>$F$36,"Value must be less than journey length","Enter value") -> Enter value | AE53: Safety related information | AI53: Config. | AJ53: Configuration Code | AN53: R22T12
AE54: Sustainability related information | AI54: GCM | AJ54: Gross Combination Mass | AN54: R22T2
B55: Step 3. Commodity calculator (optional) | J55: Fewest kilometers | M55: Lowest road space occupancy | P55: Least likely to be in a crash resulting in a non-hospitalisation injury | S55: Least likely to be in a crash resulting in property damage only | V55: Lowest noise pollution cost | Y55: Lowest biodiversity impact cost | AB55: Lowest water and soil impact cost | AE55: Instructions | AG55: red text | AI55: GML | AJ55: General Mass Limit | AN55: R22T22
AE56: Assumptions | AI56: HML | AJ56: Higher Mass Limit | AN56: R22T23
C57: =CONCATENATE("Average cost to transport ",UPPER($F$45)) -> Average cost to transport APPLES | J57: =MIN('Scenario outputs'!C35:F35) -> 3600 | M57: =MIN('Scenario outputs'!C42:F42) -> 657 | P57: =MIN('Scenario outputs'!C63:F63) -> 0.0001335395455 | S57: =MIN('Scenario outputs'!C70:F70) -> 0.0007792568182 | V57: =MIN('Scenario outputs'!C98:F98) -> 1.851230769 | Y57: =MIN('Scenario outputs'!C105:F105) -> 0 | AB57: =MIN('Scenario outputs'!C112:F112) -> 0 | AE57: Present year | AF57: 2023 | AG57: Crash rate (Property damage only) per 1 million km | AH57: 0.7055 | AI57: km | AJ57: Kilometer | AN57: R22T33
C58: Average cost to transport commodity for the entire freight task under the scenario (i.e. accummulative cost of all laden trips) | G58: =($F$36*$F$39)*$E$71 -> 20300 | AE58: Commodity data (September 2023) | AF58: CSIRO Supply Chain Transport and Logistics Dashboard | AG58: Crash reduction factor for PBS rigid trucks | AH58: 0.5269461078 | AI58: km/h | AJ58: Kilometers per hour | AN58: R23
J59: Kilometers | M59: Meters | P59: Per cent likelihood | S59: Per cent likelihood | V59: Dollars | Y59: Dollars | AB59: Dollars | AE59: Tare mass (July 2023) | AF59: Average registered tare mass (t) | AG59: Crash reduction factor for PBS articulated trucks | AH59: 0.3068181818 | AI59: NTC | AJ59: National Transport Commission | AN59: Nil.
J60: =_xlfn.XLOOKUP(1,'Scenario outputs'!$C$38:$F$38,'Scenario outputs'!$C$13:$F$13,_xlfn.XLOOKUP(1,'Scenario outputs'!$C$39:$F$39,'Scenario outputs'!$C$13:$F$13,"",0,1),0,1) -> 3-axle prime mover A-double (3-2-3) (HML): PBS, 3 | M60: =_xlfn.XLOOKUP(1,'Scenario outputs'!C45:F45,'Scenario outputs'!$C$13:$F$13,_xlfn.XLOOKUP(1,'Scenario outputs'!C46:F46,'Scenario outputs'!$C$13:$F$13,"",0,1),0,1) -> 3-axle prime mover A-double (3-2-3) (HML): PBS, 3 | P60: =_xlfn.XLOOKUP(1,'Scenario outputs'!C66:F66,'Scenario outputs'!$C$13:$F$13,_xlfn.XLOOKUP(1,'Scenario outputs'!C67:F67,'Scenario outputs'!$C$13:$F$13,"",0,1),0,1) -> 3-axle prime mover A-double (3-2-3) (HML): PBS, 3 | S60: =_xlfn.XLOOKUP(1,'Scenario outputs'!C73:F73,'Scenario outputs'!$C$13:$F$13,_xlfn.XLOOKUP(1,'Scenario outputs'!C74:F74,'Scenario outputs'!$C$13:$F$13,"",0,1),0,1) -> 3-axle prime mover A-double (3-2-3) (HML): PBS, 3 | V60: =_xlfn.XLOOKUP(1,'Scenario outputs'!$C101:$F101,'Scenario outputs'!$C$13:$F$13,_xlfn.XLOOKUP(1,'Scenario outputs'!$C102:$F102,'Scenario outputs'!$C$13:$F$13,"",0,1),0,1) -> 3-axle prime mover A-double (3-2-3) (HML): PBS, 3 | Y60: =_xlfn.XLOOKUP(1,'Scenario outputs'!$C108:$F108,'Scenario outputs'!$C$13:$F$13,_xlfn.XLOOKUP(1,'Scenario outputs'!$C109:$F109,'Scenario outputs'!$C$13:$F$13,"",0,1),0,1) -> 3-axle prime mover A-double (3-2-3) (HML): PBS, 3 | AB60: =_xlfn.XLOOKUP(1,'Scenario outputs'!$C115:$F115,'Scenario outputs'!$C$13:$F$13,_xlfn.XLOOKUP(1,'Scenario outputs'!$C116:$F116,'Scenario outputs'!$C$13:$F$13,"",0,1),0,1) -> 3-axle prime mover A-double (3-2-3) (HML): PBS, 3 | AE60: IRI road roughness index | AF60: 2 | AG60: Diesel (L) to CO2 (kg) conversion rates | AH60: 2.6712 | AI60: PBS | AJ60: Performance Based Standards
C61: =CONCATENATE("Estimated change in total cost to transport ",UPPER($F$45)," if distance changed") -> Estimated change in total cost to transport APPLES if distance changed | AE61: Rise and fall of road | AF61: Zero | AG61: Freight transport air pollution cost (rural) ($/km) | AH61: 0.00699 | AI61: t | AJ61: Tonne
C62: Reduce | E62: the distance of the scenario by | G62: 10 | H62: Kilometers | M62: Length of road space occupied if the total number of vehicles to transport the freight task were positioned end-to-end | P62: Probability calculated based on transporting the entire freight task (i.e. not a probability per trip) | S62: Probability calculated based on transporting the entire freight task (i.e. not a probability per trip) | AE62: Curvature of road (degrees per km) | AF62: 20 | AG62: Freight transport noise cose (rural) ($/km) | AH62: 0.00044 | AI62: TKM | AJ62: Tonne kilometers
C63: New average cost to transport commodity for the entire freight task (i.e. accummulative cost of all trips) | G63: =IF($C$62="Increase",(($F$36+$G$62)*$F$39)*$E$71,(($F$36-$G$62)*$F$39)*$E$71) -> 18270 | J63: Distance travelled for all return trips | V63: Calculation based on the ATAP environmental parameter values | Y63: Calculation based on the ATAP environmental parameter values | AB63: Calculation based on the ATAP environmental parameter values | AE63: Crash rate (Fatal) per 1 million km | AF63: 0.0091 | AG63: Freight transport soil and water cost (rural) ($/km) | AH63: 0.01083
AE64: Crash rate (Hospitalised) per 1 million km | AF64: 0.0878 | AG64: Freight transport bodiversity cost (rural) ($/km) | AH64: 0.0315
C65: Estimated savings to transport commodity | G65: =G58-G63 -> 2030 | AE65: Crash rate (Non-hospitalised injury) per 1 million km | AF65: 0.1209
C66: Vehicle agnostic cost based on CSIRO data on average cost to transport different commodities ($/TKM). Cost is for the laden part of the trip only. CSIRO data is representative and may not represent real world costs. | AE66: Right click on tab ribbon and select 'unhide' to view all backend assumptions, calculations and sources.
C67: Source: | E67: CSIRO Supply Chain Transport and Logistics Dashboard | AE67: Note: a) Externality costs have been escalated to present year $. b) Commodity costs are as per the source material which is regularly updated by CSIRO in the Supply Chain Transport and Logistics Dashboard. c) Where a PBS vehicle and conventional vehicle perform the same for a specific criteria, the PBS vehicle will be recognised in the score card. Where two vehicles of the same fleet perform the same, the score card will recognise the first vehicle in the order identified in the vehicle selection. The graph provides the performance of all vehicles in context.
C68: =CONCATENATE("Commodity summary (national averages for ", UPPER($F$45),")") -> Commodity summary (national averages for APPLES)
C69: Average payload (t) | E69: =_xlfn.XLOOKUP($F$45,Commodity[Commodity Type],Commodity[Avg payload (t)],"",0) -> 20 | F69: Average trip distance (km) | H69: =_xlfn.XLOOKUP($F$45,Commodity[Commodity Type],Commodity[Avg trip distance (km)],"",0) -> 396.5 | AE69: Disclaimer: The National Heavy Vehicle Regulator (NHVR) provides the Freight PASS tool, and all related and associated documents (including guidelines, websites, presentations, etc.) (collectively, ‘the materials’) to assist a person make decisions about heavy vehicle combinations on roads. By using the materials, you agree that (1) the NHVR makes no representations or warranties whatsoever in relation to the currency, accuracy, reliability, and useability of the materials or any outputs from them (2) you will undertake all due diligence that may be required in relation to any decision(s) about heavy vehicle combinations on roads and you will not solely rely upon the materials or any outputs from them (3) you will release and fully indemnify the NHVR in relation to any liability whatsoever arising from your use or reliance on the materials (4) any and all intellectual property rights in the materials vests with, or is owned by, the NHVR and all such rights are reserved and you will not publish, modify, replicate, or distribute the materials without the NHVR’s express permission and (5) these terms are governed by the law of Queensland and you submit to the exclusive jurisdiction of the courts of Queensland.
C70: Average trip duration (h) | E70: =_xlfn.XLOOKUP($F$45,Commodity[Commodity Type],Commodity[Avg trip duration (hrs)],"",0) -> 5.61 | F70: Average speed (km/h) | H70: =_xlfn.XLOOKUP($F$45,Commodity[Commodity Type],Commodity[Avg speed (km/h)],"",0) -> 70.67736185
C71: Average transport cost ($/TKM) | E71: =_xlfn.XLOOKUP($F$45,Commodity[Commodity Type],Commodity[Cost per tonne km ($)],"",0) -> 0.203 | F71: Cost per payload tonne ($) | H71: =_xlfn.XLOOKUP($F$45,Commodity[Commodity Type],Commodity[Cost per payload tonne ($)],"",0) -> 141.4
C72: Annual trailers | E72: =_xlfn.XLOOKUP($F$45,Commodity[Commodity Type],Commodity[Annual trailers],"",0) -> 16225.263 | F72: Annual tonnes (t) | H72: =_xlfn.XLOOKUP($F$45,Commodity[Commodity Type],Commodity[Annual tonnes],"",0) -> 324505.84
C73: Ensure that a commodity is selected in Step 2.

Sheet Architecture
B2: Freight PASS architecture
B32: To view assumptions and calculations right click on tab ribbon and select 'unhide'.

Sheet Vehicle descriptions (hidden)
B1: Vehicle description | M1: Crash rates | N1: Vehicle mass
A2: Formula | B2: n/a | C2: n/a | D2: n/a | E2: n/a | F2: n/a | G2: n/a | H2: n/a | I2: n/a | J2: n/a | K2: n/a | L2: n/a | M2: n/a | N2: GCM = Tare Mass + Load | O2: Combination mass @ 75% load = Tare Mass + (0.75 * Load) | P2: Combination mass @ 50% load = Tare Mass + (0.5 * Load) | Q2: Refer to Tare and Mass ~ Calcs Tab. | R2: Load = GCM – Tare Mass | S2: n/a
A3: Comments | B3: Unique NHVR vehicle configurations based on description, mass scheme and fleet. | C3: Conventional Fleet vehicles are sourced from the NHVR: Common Heavy Freight Vehicle Configurations Chart. PBS Fleet vehicles are sourced from the NHVR: PBS Vehicle Configurations Chart. | D3: Information on GML can be found at https://www.nhvr.gov.au/road-access/mass-dimension-and-loading/general-mass-and-dimension-limits Information on CML can be found at https://www.nhvr.gov.au/road-access/mass-dimension-and-loading/concessional-mass-limits Information on HML can be found at https://www.nhvr.gov.au/road-access/mass-dimension-and-loading/higher-mass-limits Masses for specific combinations were sourced from the NHVR: Common Heavy Freight Vehicle Configurations Chart and PBS Vehicle Configurations Chart. | E3: Conventional fleet refers to non-PBS freight vehicles. Conventional Fleet vehicles are sourced from the NHVR: Common Heavy Freight Vehicle Configurations Chart. PBS fleet refers to PBS freight vehicles. PBS Fleet vehicles are sourced from the NHVR: PBS Vehicle Configurations Chart. | F3: PBS levels are sourced from the NHVR: PBS Vehicle Configurations Chart. For more information on PBS levels refer to Performance Based Standards – A guide for road managers. | G3: Axle group means one or more shafts positioned in a line across a vehicle, on which one or more wheels intended to support the vehicle turn. Axle groups include single axle group, tandem axle group, twinsteer axle group, tri-axle group or quad-axle group. | H3: Conventional Fleet vehicle lengths are sourced from the NHVR: Common Heavy Freight Vehicle Configurations Chart. PBS Fleet vehicle lengths are sourced from the NHVR: PBS Vehicle Configurations Chart. | I3: The configuration code describes a vehicle combination based on its component units, the order of those units, and the number of axles for each of those units. A – Articulated unit R – Rigid unit T – Trailer unit B – B trailer # – Numbers refer to the number of axles in a axle group for the respective unit Examples: R22T12 describes a 7-axle truck and dog. It is a rigid unit with twin steer, tandem drive, pulling a 3-axle dog trailer. B1244 describes a 11-axle B-double. It is an articulated unit, single steer, tandem drive prime mover pulling two quad-axle trailers in a B configuration. | J3: Vehicle equivalencies were used to align the NHVR common configurations with third party datasets. The vehicle equivalencies are an NHVR ‘best-fit’ assumption. The descriptions summary assist to better understand and standardise differences in vehicle descriptions across different data sources. For example, a 9-axle B-double is linked to data on vehicle kilometers from the NTC Operator Cost Model. The NHVR best-fit from the NTC vehicle classification scheme is NTC vehicle 18b. | M3: The likelihood of a crash is dependent on 3 sources of information: 1. The average annual kilometers travelled, sourced from the NTC Operator Cost Model. 2. Crash rates per 1 million kilometers, sourced from The National Heavy Vehicle Drive Competency Framework Consultation RIS. 3. PBS crash factors, derived from the Review of Major Crash Rates for Australian Higher Productivity Vehicles: 2015-2019. These rates are applied to PBS vehicle combinations only. | N3: GCM (Gross Combination Mass) means the total maximum loaded mass of a vehicle and any vehicles it may lawfully tow at any given time. GCM is sourced from the NHVR: Common Heavy Freight Vehicle Configurations Chart and PBS Vehicle Configurations Chart. | O3: Combination mass with 75% load | P3: Combination mass with 50% load | Q3: Tare mass means the unladen mass of the vehicle. Source: Registration data. Tare mass of combinations are built using the sum of the average registered tare mass of component units in that combination. | R3: Load means: • all the goods, passengers, drivers and other persons in the vehicle; and • all fuel, water, lubricants and readily removable equipment carried in the vehicle and required for its normal use; and • personal items used by the vehicle’s driver or someone else necessary for the normal use of the vehicle; and • anything that is normally removed from the vehicle when not in use. | S3: The average annual kilometers travelled is sourced from the NTC Operator Cost Model and is based on the NTC vehicle equivalent. If there is a NTC vehicle with multiple options (e.g., a = low value, b = middle value, c = high value), the middle value has been selected. For example, NTC vehicle 18b refers to a B-double where the distance travelled has been selected to be the middle value.
B6: Unique ID | C6: Description | D6: Mass Scheme | E6: Fleet | F6: PBS Level | G6: Axles | H6: Overall length (m) | I6: Configuration Code | J6: Austroads Vehicle Equivalent | K6: ATAP Vehicle Equivalent | L6: NTC Vehicle Equivalent | M6: Cohort for crash rates | N6: GCM (t) (100% load) | O6: Combination Mass (t) (75% load) | P6: Combination Mass (t) (50% load) | Q6: Tare (t) | R6: Load (t) | S6: Average annual kilometers (km)
B7: =CONCATENATE(Fleet_Data[[#This Row],[Description]]," (",Fleet_Data[[#This Row],[Mass Scheme]],")",": ",Fleet_Data[[#This Row],[Fleet]],", ", Fleet_Data[[#This Row],[PBS Level]]) -> 3-axle truck and 3-axle dog trailer (GML): PBS, 1 | C7: 3-axle truck and 3-axle dog trailer | D7: GML | E7: PBS | F7: 1 | G7: 6 | H7: 20 | I7: R12T12 | J7: Class 9 | K7: Artic 6 Axle | L7: 11 | M7: Rigid | N7: =_xlfn.XLOOKUP(Fleet_Data[[#This Row],[Description]]&Fleet_Data[[#This Row],[Mass Scheme]]&Fleet_Data[[#This Row],[PBS Level]]&Fleet_Data[[#This Row],[Configuration Code]],Tare[Description]&Tare[Mass Scheme]&Tare[PBS Level]&Tare[Configuration Code],Tare[GCM (t) (100% load)],"",0) -> 48.5 | O7: =_xlfn.XLOOKUP(Fleet_Data[[#This Row],[Description]]&Fleet_Data[[#This Row],[Mass Scheme]]&Fleet_Data[[#This Row],[PBS Level]]&Fleet_Data[[#This Row],[Configuration Code]],Tare[Description]&Tare[Mass Scheme]&Tare[PBS Level]&Tare[Configuration Code],Tare[GCM (t) (75% load)],"",0) -> 40.38282514 | P7: =_xlfn.XLOOKUP(Fleet_Data[[#This Row],[Description]]&Fleet_Data[[#This Row],[Mass Scheme]]&Fleet_Data[[#This Row],[PBS Level]]&Fleet_Data[[#This Row],[Configuration Code]],Tare[Description]&Tare[Mass Scheme]&Tare[PBS Level]&Tare[Configuration Code],Tare[GCM (t) (50% load)],"",0) -> 32.26565027 | Q7: =_xlfn.XLOOKUP(Fleet_Data[[#This Row],[Description]]&Fleet_Data[[#This Row],[Mass Scheme]]&Fleet_Data[[#This Row],[PBS Level]]&Fleet_Data[[#This Row],[Configuration Code]],Tare[Description]&Tare[Mass Scheme]&Tare[PBS Level]&Tare[Configuration Code],Tare[Tare (t)],"",0) -> 16.03130054 | R7: =_xlfn.XLOOKUP(Fleet_Data[[#This Row],[Description]]&Fleet_Data[[#This Row],[Mass Scheme]]&Fleet_Data[[#This Row],[PBS Level]]&Fleet_Data[[#This Row],[Configuration Code]],Tare[Description]&Tare[Mass Scheme]&Tare[PBS Level]&Tare[Configuration Code],Tare[Payload (t)],"",0) -> 32.46869946 | S7: =_xlfn.XLOOKUP(Fleet_Data[[#This Row],[NTC Vehicle Equivalent]],NTC_Values[NTC vehicle],NTC_Values[Avg annual km],"",0) -> 75000
B8: =CONCATENATE(Fleet_Data[[#This Row],[Description]]," (",Fleet_Data[[#This Row],[Mass Scheme]],")",": ",Fleet_Data[[#This Row],[Fleet]],", ", Fleet_Data[[#This Row],[PBS Level]]) -> 3-axle truck and 3-axle dog trailer (GML): PBS, 2 | C8: 3-axle truck and 3-axle dog trailer | D8: GML | E8: PBS | F8: 2 | G8: 6 | H8: 20 | I8: R12T12 | J8: Class 9 | K8: Artic 6 Axle | L8: 11 | M8: Rigid | N8: =_xlfn.XLOOKUP(Fleet_Data[[#This Row],[Description]]&Fleet_Data[[#This Row],[Mass Scheme]]&Fleet_Data[[#This Row],[PBS Level]]&Fleet_Data[[#This Row],[Configuration Code]],Tare[Description]&Tare[Mass Scheme]&Tare[PBS Level]&Tare[Configuration Code],Tare[GCM (t) (100% load)],"",0) -> 48.5 | O8: =_xlfn.XLOOKUP(Fleet_Data[[#This Row],[Description]]&Fleet_Data[[#This Row],[Mass Scheme]]&Fleet_Data[[#This Row],[PBS Level]]&Fleet_Data[[#This Row],[Configuration Code]],Tare[Description]&Tare[Mass Scheme]&Tare[PBS Level]&Tare[Configuration Code],Tare[GCM (t) (75% load)],"",0) -> 40.38282514 | P8: =_xlfn.XLOOKUP(Fleet_Data[[#This Row],[Description]]&Fleet_Data[[#This Row],[Mass Scheme]]&Fleet_Data[[#This Row],[PBS Level]]&Fleet_Data[[#This Row],[Configuration Code]],Tare[Description]&Tare[Mass Scheme]&Tare[PBS Level]&Tare[Configuration Code],Tare[GCM (t) (50% load)],"",0) -> 32.26565027 | Q8: =_xlfn.XLOOKUP(Fleet_Data[[#This Row],[Description]]&Fleet_Data[[#This Row],[Mass Scheme]]&Fleet_Data[[#This Row],[PBS Level]]&Fleet_Data[[#This Row],[Configuration Code]],Tare[Description]&Tare[Mass Scheme]&Tare[PBS Level]&Tare[Configuration Code],Tare[Tare (t)],"",0) -> 16.03130054 | R8: =_xlfn.XLOOKUP(Fleet_Data[[#This Row],[Description]]&Fleet_Data[[#This Row],[Mass Scheme]]&Fleet_Data[[#This Row],[PBS Level]]&Fleet_Data[[#This Row],[Configuration Code]],Tare[Description]&Tare[Mass Scheme]&Tare[PBS Level]&Tare[Configuration Code],Tare[Payload (t)],"",0) -> 32.46869946 | S8: =_xlfn.XLOOKUP(Fleet_Data[[#This Row],[NTC Vehicle Equivalent]],NTC_Values[NTC vehicle],NTC_Values[Avg annual km],"",0) -> 75000
B9: =CONCATENATE(Fleet_Data[[#This Row],[Description]]," (",Fleet_Data[[#This Row],[Mass Scheme]],")",": ",Fleet_Data[[#This Row],[Fleet]],", ", Fleet_Data[[#This Row],[PBS Level]]) -> 3-axle truck and 3-axle dog trailer (CML): PBS, 2 | C9: 3-axle truck and 3-axle dog trailer | D9: CML | E9: PBS | F9: 2 | G9: 6 | H9: 20 | I9: R12T12 | J9: Class 9 | K9: Artic 6 Axle | L9: 11 | M9: Rigid | N9: =_xlfn.XLOOKUP(Fleet_Data[[#This Row],[Description]]&Fleet_Data[[#This Row],[Mass Scheme]]&Fleet_Data[[#This Row],[PBS Level]]&Fleet_Data[[#This Row],[Configuration Code]],Tare[Description]&Tare[Mass Scheme]&Tare[PBS Level]&Tare[Configuration Code],Tare[GCM (t) (100% load)],"",0) -> 49.5 | O9: =_xlfn.XLOOKUP(Fleet_Data[[#This Row],[Description]]&Fleet_Data[[#This Row],[Mass Scheme]]&Fleet_Data[[#This Row],[PBS Level]]&Fleet_Data[[#This Row],[Configuration Code]],Tare[Description]&Tare[Mass Scheme]&Tare[PBS Level]&Tare[Configuration Code],Tare[GCM (t) (75% load)],"",0) -> 41.13282514 | P9: =_xlfn.XLOOKUP(Fleet_Data[[#This Row],[Description]]&Fleet_Data[[#This Row],[Mass Scheme]]&Fleet_Data[[#This Row],[PBS Level]]&Fleet_Data[[#This Row],[Configuration Code]],Tare[Description]&Tare[Mass Scheme]&Tare[PBS Level]&Tare[Configuration Code],Tare[GCM (t) (50% load)],"",0) -> 32.76565027 | Q9: =_xlfn.XLOOKUP(Fleet_Data[[#This Row],[Description]]&Fleet_Data[[#This Row],[Mass Scheme]]&Fleet_Data[[#This Row],[PBS Level]]&Fleet_Data[[#This Row],[Configuration Code]],Tare[Description]&Tare[Mass Scheme]&Tare[PBS Level]&Tare[Configuration Code],Tare[Tare (t)],"",0) -> 16.03130054 | R9: =_xlfn.XLOOKUP(Fleet_Data[[#This Row],[Description]]&Fleet_Data[[#This Row],[Mass Scheme]]&Fleet_Data[[#This Row],[PBS Level]]&Fleet_Data[[#This Row],[Configuration Code]],Tare[Description]&Tare[Mass Scheme]&Tare[PBS Level]&Tare[Configuration Code],Tare[Payload (t)],"",0) -> 33.46869946 | S9: =_xlfn.XLOOKUP(Fleet_Data[[#This Row],[NTC Vehicle Equivalent]],NTC_Values[NTC vehicle],NTC_Values[Avg annual km],"",0) -> 75000
B10: =CONCATENATE(Fleet_Data[[#This Row],[Description]]," (",Fleet_Data[[#This Row],[Mass Scheme]],")",": ",Fleet_Data[[#This Row],[Fleet]],", ", Fleet_Data[[#This Row],[PBS Level]]) -> 3-axle truck and 3-axle dog trailer (HML): PBS, 2 | C10: 3-axle truck and 3-axle dog trailer | D10: HML | E10: PBS | F10: 2 | G10: 6 | H10: 20 | I10: R12T12 | J10: Class 9 | K10: Artic 6 Axle | L10: 11 | M10: Rigid | N10: =_xlfn.XLOOKUP(Fleet_Data[[#This Row],[Description]]&Fleet_Data[[#This Row],[Mass Scheme]]&Fleet_Data[[#This Row],[PBS Level]]&Fleet_Data[[#This Row],[Configuration Code]],Tare[Description]&Tare[Mass Scheme]&Tare[PBS Level]&Tare[Configuration Code],Tare[GCM (t) (100% load)],"",0) -> 49.5 | O10: =_xlfn.XLOOKUP(Fleet_Data[[#This Row],[Description]]&Fleet_Data[[#This Row],[Mass Scheme]]&Fleet_Data[[#This Row],[PBS Level]]&Fleet_Data[[#This Row],[Configuration Code]],Tare[Description]&Tare[Mass Scheme]&Tare[PBS Level]&Tare[Configuration Code],Tare[GCM (t) (75% load)],"",0) -> 41.13282514 | P10: =_xlfn.XLOOKUP(Fleet_Data[[#This Row],[Description]]&Fleet_Data[[#This Row],[Mass Scheme]]&Fleet_Data[[#This Row],[PBS Level]]&Fleet_Data[[#This Row],[Configuration Code]],Tare[Description]&Tare[Mass Scheme]&Tare[PBS Level]&Tare[Configuration Code],Tare[GCM (t) (50% load)],"",0) -> 32.76565027 | Q10: =_xlfn.XLOOKUP(Fleet_Data[[#This Row],[Description]]&Fleet_Data[[#This Row],[Mass Scheme]]&Fleet_Data[[#This Row],[PBS Level]]&Fleet_Data[[#This Row],[Configuration Code]],Tare[Description]&Tare[Mass Scheme]&Tare[PBS Level]&Tare[Configuration Code],Tare[Tare (t)],"",0) -> 16.03130054 | R10: =_xlfn.XLOOKUP(Fleet_Data[[#This Row],[Description]]&Fleet_Data[[#This Row],[Mass Scheme]]&Fleet_Data[[#This Row],[PBS Level]]&Fleet_Data[[#This Row],[Configuration Code]],Tare[Description]&Tare[Mass Scheme]&Tare[PBS Level]&Tare[Configuration Code],Tare[Payload (t)],"",0) -> 33.46869946 | S10: =_xlfn.XLOOKUP(Fleet_Data[[#This Row],[NTC Vehicle Equivalent]],NTC_Values[NTC vehicle],NTC_Values[Avg annual km],"",0) -> 75000
B11: =CONCATENATE(Fleet_Data[[#This Row],[Description]]," (",Fleet_Data[[#This Row],[Mass Scheme]],")",": ",Fleet_Data[[#This Row],[Fleet]],", ", Fleet_Data[[#This Row],[PBS Level]]) -> 3-axle truck and 4-axle dog trailer (GML): PBS, 1 | C11: 3-axle truck and 4-axle dog trailer | D11: GML | E11: PBS | F11: 1 | G11: 7 | H11: 20 | I11: R12T22 | J11: Class 10 | K11: Rigid + 5 Axle Dog | L11: 11 | M11: Rigid | N11: =_xlfn.XLOOKUP(Fleet_Data[[#This Row],[Description]]&Fleet_Data[[#This Row],[Mass Scheme]]&Fleet_Data[[#This Row],[PBS Level]]&Fleet_Data[[#This Row],[Configuration Code]],Tare[Description]&Tare[Mass Scheme]&Tare[PBS Level]&Tare[Configuration Code],Tare[GCM (t) (100% load)],"",0) -> 50.5 | O11: =_xlfn.XLOOKUP(Fleet_Data[[#This Row],[Description]]&Fleet_Data[[#This Row],[Mass Scheme]]&Fleet_Data[[#This Row],[PBS Level]]&Fleet_Data[[#This Row],[Configuration Code]],Tare[Description]&Tare[Mass Scheme]&Tare[PBS Level]&Tare[Configuration Code],Tare[GCM (t) (75% load)],"",0) -> 42.32477136 | P11: =_xlfn.XLOOKUP(Fleet_Data[[#This Row],[Description]]&Fleet_Data[[#This Row],[Mass Scheme]]&Fleet_Data[[#This Row],[PBS Level]]&Fleet_Data[[#This Row],[Configuration Code]],Tare[Description]&Tare[Mass Scheme]&Tare[PBS Level]&Tare[Configuration Code],Tare[GCM (t) (50% load)],"",0) -> 34.14954271 | Q11: =_xlfn.XLOOKUP(Fleet_Data[[#This Row],[Description]]&Fleet_Data[[#This Row],[Mass Scheme]]&Fleet_Data[[#This Row],[PBS Level]]&Fleet_Data[[#This Row],[Configuration Code]],Tare[Description]&Tare[Mass Scheme]&Tare[PBS Level]&Tare[Configuration Code],Tare[Tare (t)],"",0) -> 17.79908543 | R11: =_xlfn.XLOOKUP(Fleet_Data[[#This Row],[Description]]&Fleet_Data[[#This Row],[Mass Scheme]]&Fleet_Data[[#This Row],[PBS Level]]&Fleet_Data[[#This Row],[Configuration Code]],Tare[Description]&Tare[Mass Scheme]&Tare[PBS Level]&Tare[Configuration Code],Tare[Payload (t)],"",0) -> 32.70091457 | S11: =_xlfn.XLOOKUP(Fleet_Data[[#This Row],[NTC Vehicle Equivalent]],NTC_Values[NTC vehicle],NTC_Values[Avg annual km],"",0) -> 75000
B12: =CONCATENATE(Fleet_Data[[#This Row],[Description]]," (",Fleet_Data[[#This Row],[Mass Scheme]],")",": ",Fleet_Data[[#This Row],[Fleet]],", ", Fleet_Data[[#This Row],[PBS Level]]) -> 3-axle truck and 4-axle dog trailer (GML): PBS, 2 | C12: 3-axle truck and 4-axle dog trailer | D12: GML | E12: PBS | F12: 2 | G12: 7 | H12: 20 | I12: R12T22 | J12: Class 10 | K12: Rigid + 5 Axle Dog | L12: 11 | M12: Rigid | N12: =_xlfn.XLOOKUP(Fleet_Data[[#This Row],[Description]]&Fleet_Data[[#This Row],[Mass Scheme]]&Fleet_Data[[#This Row],[PBS Level]]&Fleet_Data[[#This Row],[Configuration Code]],Tare[Description]&Tare[Mass Scheme]&Tare[PBS Level]&Tare[Configuration Code],Tare[GCM (t) (100% load)],"",0) -> 56 | O12: =_xlfn.XLOOKUP(Fleet_Data[[#This Row],[Description]]&Fleet_Data[[#This Row],[Mass Scheme]]&Fleet_Data[[#This Row],[PBS Level]]&Fleet_Data[[#This Row],[Configuration Code]],Tare[Description]&Tare[Mass Scheme]&Tare[PBS Level]&Tare[Configuration Code],Tare[GCM (t) (75% load)],"",0) -> 46.44977136 | P12: =_xlfn.XLOOKUP(Fleet_Data[[#This Row],[Description]]&Fleet_Data[[#This Row],[Mass Scheme]]&Fleet_Data[[#This Row],[PBS Level]]&Fleet_Data[[#This Row],[Configuration Code]],Tare[Description]&Tare[Mass Scheme]&Tare[PBS Level]&Tare[Configuration Code],Tare[GCM (t) (50% load)],"",0) -> 36.89954271 | Q12: =_xlfn.XLOOKUP(Fleet_Data[[#This Row],[Description]]&Fleet_Data[[#This Row],[Mass Scheme]]&Fleet_Data[[#This Row],[PBS Level]]&Fleet_Data[[#This Row],[Configuration Code]],Tare[Description]&Tare[Mass Scheme]&Tare[PBS Level]&Tare[Configuration Code],Tare[Tare (t)],"",0) -> 17.79908543 | R12: =_xlfn.XLOOKUP(Fleet_Data[[#This Row],[Description]]&Fleet_Data[[#This Row],[Mass Scheme]]&Fleet_Data[[#This Row],[PBS Level]]&Fleet_Data[[#This Row],[Configuration Code]],Tare[Description]&Tare[Mass Scheme]&Tare[PBS Level]&Tare[Configuration Code],Tare[Payload (t)],"",0) -> 38.20091457 | S12: =_xlfn.XLOOKUP(Fleet_Data[[#This Row],[NTC Vehicle Equivalent]],NTC_Values[NTC vehicle],NTC_Values[Avg annual km],"",0) -> 75000
B13: =CONCATENATE(Fleet_Data[[#This Row],[Description]]," (",Fleet_Data[[#This Row],[Mass Scheme]],")",": ",Fleet_Data[[#This Row],[Fleet]],", ", Fleet_Data[[#This Row],[PBS Level]]) -> 3-axle truck and 4-axle dog trailer (CML): PBS, 2 | C13: 3-axle truck and 4-axle dog trailer | D13: CML | E13: PBS | F13: 2 | G13: 7 | H13: 20 | I13: R12T22 | J13: Class 10 | K13: Rigid + 5 Axle Dog | L13: 11 | M13: Rigid | N13: =_xlfn.XLOOKUP(Fleet_Data[[#This Row],[Description]]&Fleet_Data[[#This Row],[Mass Scheme]]&Fleet_Data[[#This Row],[PBS Level]]&Fleet_Data[[#This Row],[Configuration Code]],Tare[Description]&Tare[Mass Scheme]&Tare[PBS Level]&Tare[Configuration Code],Tare[GCM (t) (100% load)],"",0) -> 57.5 | O13: =_xlfn.XLOOKUP(Fleet_Data[[#This Row],[Description]]&Fleet_Data[[#This Row],[Mass Scheme]]&Fleet_Data[[#This Row],[PBS Level]]&Fleet_Data[[#This Row],[Configuration Code]],Tare[Description]&Tare[Mass Scheme]&Tare[PBS Level]&Tare[Configuration Code],Tare[GCM (t) (75% load)],"",0) -> 47.57477136 | P13: =_xlfn.XLOOKUP(Fleet_Data[[#This Row],[Description]]&Fleet_Data[[#This Row],[Mass Scheme]]&Fleet_Data[[#This Row],[PBS Level]]&Fleet_Data[[#This Row],[Configuration Code]],Tare[Description]&Tare[Mass Scheme]&Tare[PBS Level]&Tare[Configuration Code],Tare[GCM (t) (50% load)],"",0) -> 37.64954271 | Q13: =_xlfn.XLOOKUP(Fleet_Data[[#This Row],[Description]]&Fleet_Data[[#This Row],[Mass Scheme]]&Fleet_Data[[#This Row],[PBS Level]]&Fleet_Data[[#This Row],[Configuration Code]],Tare[Description]&Tare[Mass Scheme]&Tare[PBS Level]&Tare[Configuration Code],Tare[Tare (t)],"",0) -> 17.79908543 | R13: =_xlfn.XLOOKUP(Fleet_Data[[#This Row],[Description]]&Fleet_Data[[#This Row],[Mass Scheme]]&Fleet_Data[[#This Row],[PBS Level]]&Fleet_Data[[#This Row],[Configuration Code]],Tare[Description]&Tare[Mass Scheme]&Tare[PBS Level]&Tare[Configuration Code],Tare[Payload (t)],"",0) -> 39.70091457 | S13: =_xlfn.XLOOKUP(Fleet_Data[[#This Row],[NTC Vehicle Equivalent]],NTC_Values[NTC vehicle],NTC_Values[Avg annual km],"",0) -> 75000
B14: =CONCATENATE(Fleet_Data[[#This Row],[Description]]," (",Fleet_Data[[#This Row],[Mass Scheme]],")",": ",Fleet_Data[[#This Row],[Fleet]],", ", Fleet_Data[[#This Row],[PBS Level]]) -> 3-axle truck and 4-axle dog trailer (HML): PBS, 2 | C14: 3-axle truck and 4-axle dog trailer | D14: HML | E14: PBS | F14: 2 | G14: 7 | H14: 20 | I14: R12T22 | J14: Class 10 | K14: Rigid + 5 Axle Dog | L14: 11 | M14: Rigid | N14: =_xlfn.XLOOKUP(Fleet_Data[[#This Row],[Description]]&Fleet_Data[[#This Row],[Mass Scheme]]&Fleet_Data[[#This Row],[PBS Level]]&Fleet_Data[[#This Row],[Configuration Code]],Tare[Description]&Tare[Mass Scheme]&Tare[PBS Level]&Tare[Configuration Code],Tare[GCM (t) (100% load)],"",0) -> 57.5 | O14: =_xlfn.XLOOKUP(Fleet_Data[[#This Row],[Description]]&Fleet_Data[[#This Row],[Mass Scheme]]&Fleet_Data[[#This Row],[PBS Level]]&Fleet_Data[[#This Row],[Configuration Code]],Tare[Description]&Tare[Mass Scheme]&Tare[PBS Level]&Tare[Configuration Code],Tare[GCM (t) (75% load)],"",0) -> 47.57477136 | P14: =_xlfn.XLOOKUP(Fleet_Data[[#This Row],[Description]]&Fleet_Data[[#This Row],[Mass Scheme]]&Fleet_Data[[#This Row],[PBS Level]]&Fleet_Data[[#This Row],[Configuration Code]],Tare[Description]&Tare[Mass Scheme]&Tare[PBS Level]&Tare[Configuration Code],Tare[GCM (t) (50% load)],"",0) -> 37.64954271 | Q14: =_xlfn.XLOOKUP(Fleet_Data[[#This Row],[Description]]&Fleet_Data[[#This Row],[Mass Scheme]]&Fleet_Data[[#This Row],[PBS Level]]&Fleet_Data[[#This Row],[Configuration Code]],Tare[Description]&Tare[Mass Scheme]&Tare[PBS Level]&Tare[Configuration Code],Tare[Tare (t)],"",0) -> 17.79908543 | R14: =_xlfn.XLOOKUP(Fleet_Data[[#This Row],[Description]]&Fleet_Data[[#This Row],[Mass Scheme]]&Fleet_Data[[#This Row],[PBS Level]]&Fleet_Data[[#This Row],[Configuration Code]],Tare[Description]&Tare[Mass Scheme]&Tare[PBS Level]&Tare[Configuration Code],Tare[Payload (t)],"",0) -> 39.70091457 | S14: =_xlfn.XLOOKUP(Fleet_Data[[#This Row],[NTC Vehicle Equivalent]],NTC_Values[NTC vehicle],NTC_Values[Avg annual km],"",0) -> 75000
B15: =CONCATENATE(Fleet_Data[[#This Row],[Description]]," (",Fleet_Data[[#This Row],[Mass Scheme]],")",": ",Fleet_Data[[#This Row],[Fleet]],", ", Fleet_Data[[#This Row],[PBS Level]]) -> 3-axle truck and 5-axle dog trailer (GML): PBS, 2 | C15: 3-axle truck and 5-axle dog trailer | D15: GML | E15: PBS | F15: 2 | G15: 8 | H15: 26 | I15: R12T23 | J15: Class 10 | K15: Rigid + 5 Axle Dog | L15: 11 | M15: Rigid | N15: =_xlfn.XLOOKUP(Fleet_Data[[#This Row],[Description]]&Fleet_Data[[#This Row],[Mass Scheme]]&Fleet_Data[[#This Row],[PBS Level]]&Fleet_Data[[#This Row],[Configuration Code]],Tare[Description]&Tare[Mass Scheme]&Tare[PBS Level]&Tare[Configuration Code],Tare[GCM (t) (100% load)],"",0) -> 59.5 | O15: =_xlfn.XLOOKUP(Fleet_Data[[#This Row],[Description]]&Fleet_Data[[#This Row],[Mass Scheme]]&Fleet_Data[[#This Row],[PBS Level]]&Fleet_Data[[#This Row],[Configuration Code]],Tare[Description]&Tare[Mass Scheme]&Tare[PBS Level]&Tare[Configuration Code],Tare[GCM (t) (75% load)],"",0) -> 49.21992534 | P15: =_xlfn.XLOOKUP(Fleet_Data[[#This Row],[Description]]&Fleet_Data[[#This Row],[Mass Scheme]]&Fleet_Data[[#This Row],[PBS Level]]&Fleet_Data[[#This Row],[Configuration Code]],Tare[Description]&Tare[Mass Scheme]&Tare[PBS Level]&Tare[Configuration Code],Tare[GCM (t) (50% load)],"",0) -> 38.93985067 | Q15: =_xlfn.XLOOKUP(Fleet_Data[[#This Row],[Description]]&Fleet_Data[[#This Row],[Mass Scheme]]&Fleet_Data[[#This Row],[PBS Level]]&Fleet_Data[[#This Row],[Configuration Code]],Tare[Description]&Tare[Mass Scheme]&Tare[PBS Level]&Tare[Configuration Code],Tare[Tare (t)],"",0) -> 18.37970135 | R15: =_xlfn.XLOOKUP(Fleet_Data[[#This Row],[Description]]&Fleet_Data[[#This Row],[Mass Scheme]]&Fleet_Data[[#This Row],[PBS Level]]&Fleet_Data[[#This Row],[Configuration Code]],Tare[Description]&Tare[Mass Scheme]&Tare[PBS Level]&Tare[Configuration Code],Tare[Payload (t)],"",0) -> 41.12029865 | S15: =_xlfn.XLOOKUP(Fleet_Data[[#This Row],[NTC Vehicle Equivalent]],NTC_Values[NTC vehicle],NTC_Values[Avg annual km],"",0) -> 75000
B16: =CONCATENATE(Fleet_Data[[#This Row],[Description]]," (",Fleet_Data[[#This Row],[Mass Scheme]],")",": ",Fleet_Data[[#This Row],[Fleet]],", ", Fleet_Data[[#This Row],[PBS Level]]) -> 3-axle truck and 5-axle dog trailer (CML): PBS, 2 | C16: 3-axle truck and 5-axle dog trailer | D16: CML | E16: PBS | F16: 2 | G16: 8 | H16: 26 | I16: R12T23 | J16: Class 10 | K16: Rigid + 5 Axle Dog | L16: 11 | M16: Rigid | N16: =_xlfn.XLOOKUP(Fleet_Data[[#This Row],[Description]]&Fleet_Data[[#This Row],[Mass Scheme]]&Fleet_Data[[#This Row],[PBS Level]]&Fleet_Data[[#This Row],[Configuration Code]],Tare[Description]&Tare[Mass Scheme]&Tare[PBS Level]&Tare[Configuration Code],Tare[GCM (t) (100% load)],"",0) -> 61.5 | O16: =_xlfn.XLOOKUP(Fleet_Data[[#This Row],[Description]]&Fleet_Data[[#This Row],[Mass Scheme]]&Fleet_Data[[#This Row],[PBS Level]]&Fleet_Data[[#This Row],[Configuration Code]],Tare[Description]&Tare[Mass Scheme]&Tare[PBS Level]&Tare[Configuration Code],Tare[GCM (t) (75% load)],"",0) -> 50.71992534 | P16: =_xlfn.XLOOKUP(Fleet_Data[[#This Row],[Description]]&Fleet_Data[[#This Row],[Mass Scheme]]&Fleet_Data[[#This Row],[PBS Level]]&Fleet_Data[[#This Row],[Configuration Code]],Tare[Description]&Tare[Mass Scheme]&Tare[PBS Level]&Tare[Configuration Code],Tare[GCM (t) (50% load)],"",0) -> 39.93985067 | Q16: =_xlfn.XLOOKUP(Fleet_Data[[#This Row],[Description]]&Fleet_Data[[#This Row],[Mass Scheme]]&Fleet_Data[[#This Row],[PBS Level]]&Fleet_Data[[#This Row],[Configuration Code]],Tare[Description]&Tare[Mass Scheme]&Tare[PBS Level]&Tare[Configuration Code],Tare[Tare (t)],"",0) -> 18.37970135 | R16: =_xlfn.XLOOKUP(Fleet_Data[[#This Row],[Description]]&Fleet_Data[[#This Row],[Mass Scheme]]&Fleet_Data[[#This Row],[PBS Level]]&Fleet_Data[[#This Row],[Configuration Code]],Tare[Description]&Tare[Mass Scheme]&Tare[PBS Level]&Tare[Configuration Code],Tare[Payload (t)],"",0) -> 43.12029865 | S16: =_xlfn.XLOOKUP(Fleet_Data[[#This Row],[NTC Vehicle Equivalent]],NTC_Values[NTC vehicle],NTC_Values[Avg annual km],"",0) -> 75000
B17: =CONCATENATE(Fleet_Data[[#This Row],[Description]]," (",Fleet_Data[[#This Row],[Mass Scheme]],")",": ",Fleet_Data[[#This Row],[Fleet]],", ", Fleet_Data[[#This Row],[PBS Level]]) -> 3-axle truck and 5-axle dog trailer (HML): PBS, 2 | C17: 3-axle truck and 5-axle dog trailer | D17: HML | E17: PBS | F17: 2 | G17: 8 | H17: 26 | I17: R12T23 | J17: Class 10 | K17: Rigid + 5 Axle Dog | L17: 11 | M17: Rigid | N17: =_xlfn.XLOOKUP(Fleet_Data[[#This Row],[Description]]&Fleet_Data[[#This Row],[Mass Scheme]]&Fleet_Data[[#This Row],[PBS Level]]&Fleet_Data[[#This Row],[Configuration Code]],Tare[Description]&Tare[Mass Scheme]&Tare[PBS Level]&Tare[Configuration Code],Tare[GCM (t) (100% load)],"",0) -> 63 | O17: =_xlfn.XLOOKUP(Fleet_Data[[#This Row],[Description]]&Fleet_Data[[#This Row],[Mass Scheme]]&Fleet_Data[[#This Row],[PBS Level]]&Fleet_Data[[#This Row],[Configuration Code]],Tare[Description]&Tare[Mass Scheme]&Tare[PBS Level]&Tare[Configuration Code],Tare[GCM (t) (75% load)],"",0) -> 51.84492534 | P17: =_xlfn.XLOOKUP(Fleet_Data[[#This Row],[Description]]&Fleet_Data[[#This Row],[Mass Scheme]]&Fleet_Data[[#This Row],[PBS Level]]&Fleet_Data[[#This Row],[Configuration Code]],Tare[Description]&Tare[Mass Scheme]&Tare[PBS Level]&Tare[Configuration Code],Tare[GCM (t) (50% load)],"",0) -> 40.68985067 | Q17: =_xlfn.XLOOKUP(Fleet_Data[[#This Row],[Description]]&Fleet_Data[[#This Row],[Mass Scheme]]&Fleet_Data[[#This Row],[PBS Level]]&Fleet_Data[[#This Row],[Configuration Code]],Tare[Description]&Tare[Mass Scheme]&Tare[PBS Level]&Tare[Configuration Code],Tare[Tare (t)],"",0) -> 18.37970135 | R17: =_xlfn.XLOOKUP(Fleet_Data[[#This Row],[Description]]&Fleet_Data[[#This Row],[Mass Scheme]]&Fleet_Data[[#This Row],[PBS Level]]&Fleet_Data[[#This Row],[Configuration Code]],Tare[Description]&Tare[Mass Scheme]&Tare[PBS Level]&Tare[Configuration Code],Tare[Payload (t)],"",0) -> 44.62029865 | S17: =_xlfn.XLOOKUP(Fleet_Data[[#This Row],[NTC Vehicle Equivalent]],NTC_Values[NTC vehicle],NTC_Values[Avg annual km],"",0) -> 75000
B18: =CONCATENATE(Fleet_Data[[#This Row],[Description]]," (",Fleet_Data[[#This Row],[Mass Scheme]],")",": ",Fleet_Data[[#This Row],[Fleet]],", ", Fleet_Data[[#This Row],[PBS Level]]) -> 3-axle truck and 6-axle dog trailer (GML): PBS, 2 | C18: 3-axle truck and 6-axle dog trailer | D18: GML | E18: PBS | F18: 2 | G18: 9 | H18: 26 | I18: R12T33 | J18: Class 10 | K18: Rigid + 5 Axle Dog | L18: 11 | M18: Rigid | N18: =_xlfn.XLOOKUP(Fleet_Data[[#This Row],[Description]]&Fleet_Data[[#This Row],[Mass Scheme]]&Fleet_Data[[#This Row],[PBS Level]]&Fleet_Data[[#This Row],[Configuration Code]],Tare[Description]&Tare[Mass Scheme]&Tare[PBS Level]&Tare[Configuration Code],Tare[GCM (t) (100% load)],"",0) -> 63 | O18: =_xlfn.XLOOKUP(Fleet_Data[[#This Row],[Description]]&Fleet_Data[[#This Row],[Mass Scheme]]&Fleet_Data[[#This Row],[PBS Level]]&Fleet_Data[[#This Row],[Configuration Code]],Tare[Description]&Tare[Mass Scheme]&Tare[PBS Level]&Tare[Configuration Code],Tare[GCM (t) (75% load)],"",0) -> 52.24086244 | P18: =_xlfn.XLOOKUP(Fleet_Data[[#This Row],[Description]]&Fleet_Data[[#This Row],[Mass Scheme]]&Fleet_Data[[#This Row],[PBS Level]]&Fleet_Data[[#This Row],[Configuration Code]],Tare[Description]&Tare[Mass Scheme]&Tare[PBS Level]&Tare[Configuration Code],Tare[GCM (t) (50% load)],"",0) -> 41.48172488 | Q18: =_xlfn.XLOOKUP(Fleet_Data[[#This Row],[Description]]&Fleet_Data[[#This Row],[Mass Scheme]]&Fleet_Data[[#This Row],[PBS Level]]&Fleet_Data[[#This Row],[Configuration Code]],Tare[Description]&Tare[Mass Scheme]&Tare[PBS Level]&Tare[Configuration Code],Tare[Tare (t)],"",0) -> 19.96344976 | R18: =_xlfn.XLOOKUP(Fleet_Data[[#This Row],[Description]]&Fleet_Data[[#This Row],[Mass Scheme]]&Fleet_Data[[#This Row],[PBS Level]]&Fleet_Data[[#This Row],[Configuration Code]],Tare[Description]&Tare[Mass Scheme]&Tare[PBS Level]&Tare[Configuration Code],Tare[Payload (t)],"",0) -> 43.03655024 | S18: =_xlfn.XLOOKUP(Fleet_Data[[#This Row],[NTC Vehicle Equivalent]],NTC_Values[NTC vehicle],NTC_Values[Avg annual km],"",0) -> 75000
B19: =CONCATENATE(Fleet_Data[[#This Row],[Description]]," (",Fleet_Data[[#This Row],[Mass Scheme]],")",": ",Fleet_Data[[#This Row],[Fleet]],", ", Fleet_Data[[#This Row],[PBS Level]]) -> 3-axle truck and 6-axle dog trailer (CML): PBS, 2 | C19: 3-axle truck and 6-axle dog trailer | D19: CML | E19: PBS | F19: 2 | G19: 9 | H19: 26 | I19: R12T33 | J19: Class 10 | K19: Rigid + 5 Axle Dog | L19: 11 | M19: Rigid | N19: =_xlfn.XLOOKUP(Fleet_Data[[#This Row],[Description]]&Fleet_Data[[#This Row],[Mass Scheme]]&Fleet_Data[[#This Row],[PBS Level]]&Fleet_Data[[#This Row],[Configuration Code]],Tare[Description]&Tare[Mass Scheme]&Tare[PBS Level]&Tare[Configuration Code],Tare[GCM (t) (100% load)],"",0) -> 65 | O19: =_xlfn.XLOOKUP(Fleet_Data[[#This Row],[Description]]&Fleet_Data[[#This Row],[Mass Scheme]]&Fleet_Data[[#This Row],[PBS Level]]&Fleet_Data[[#This Row],[Configuration Code]],Tare[Description]&Tare[Mass Scheme]&Tare[PBS Level]&Tare[Configuration Code],Tare[GCM (t) (75% load)],"",0) -> 53.74086244 | P19: =_xlfn.XLOOKUP(Fleet_Data[[#This Row],[Description]]&Fleet_Data[[#This Row],[Mass Scheme]]&Fleet_Data[[#This Row],[PBS Level]]&Fleet_Data[[#This Row],[Configuration Code]],Tare[Description]&Tare[Mass Scheme]&Tare[PBS Level]&Tare[Configuration Code],Tare[GCM (t) (50% load)],"",0) -> 42.48172488 | Q19: =_xlfn.XLOOKUP(Fleet_Data[[#This Row],[Description]]&Fleet_Data[[#This Row],[Mass Scheme]]&Fleet_Data[[#This Row],[PBS Level]]&Fleet_Data[[#This Row],[Configuration Code]],Tare[Description]&Tare[Mass Scheme]&Tare[PBS Level]&Tare[Configuration Code],Tare[Tare (t)],"",0) -> 19.96344976 | R19: =_xlfn.XLOOKUP(Fleet_Data[[#This Row],[Description]]&Fleet_Data[[#This Row],[Mass Scheme]]&Fleet_Data[[#This Row],[PBS Level]]&Fleet_Data[[#This Row],[Configuration Code]],Tare[Description]&Tare[Mass Scheme]&Tare[PBS Level]&Tare[Configuration Code],Tare[Payload (t)],"",0) -> 45.03655024 | S19: =_xlfn.XLOOKUP(Fleet_Data[[#This Row],[NTC Vehicle Equivalent]],NTC_Values[NTC vehicle],NTC_Values[Avg annual km],"",0) -> 75000
B20: =CONCATENATE(Fleet_Data[[#This Row],[Description]]," (",Fleet_Data[[#This Row],[Mass Scheme]],")",": ",Fleet_Data[[#This Row],[Fleet]],", ", Fleet_Data[[#This Row],[PBS Level]]) -> 3-axle truck and 6-axle dog trailer (HML): PBS, 2 | C20: 3-axle truck and 6-axle dog trailer | D20: HML | E20: PBS | F20: 2 | G20: 9 | H20: 26 | I20: R12T33 | J20: Class 10 | K20: Rigid + 5 Axle Dog | L20: 11 | M20: Rigid | N20: =_xlfn.XLOOKUP(Fleet_Data[[#This Row],[Description]]&Fleet_Data[[#This Row],[Mass Scheme]]&Fleet_Data[[#This Row],[PBS Level]]&Fleet_Data[[#This Row],[Configuration Code]],Tare[Description]&Tare[Mass Scheme]&Tare[PBS Level]&Tare[Configuration Code],Tare[GCM (t) (100% load)],"",0) -> 68.5 | O20: =_xlfn.XLOOKUP(Fleet_Data[[#This Row],[Description]]&Fleet_Data[[#This Row],[Mass Scheme]]&Fleet_Data[[#This Row],[PBS Level]]&Fleet_Data[[#This Row],[Configuration Code]],Tare[Description]&Tare[Mass Scheme]&Tare[PBS Level]&Tare[Configuration Code],Tare[GCM (t) (75% load)],"",0) -> 56.36586244 | P20: =_xlfn.XLOOKUP(Fleet_Data[[#This Row],[Description]]&Fleet_Data[[#This Row],[Mass Scheme]]&Fleet_Data[[#This Row],[PBS Level]]&Fleet_Data[[#This Row],[Configuration Code]],Tare[Description]&Tare[Mass Scheme]&Tare[PBS Level]&Tare[Configuration Code],Tare[GCM (t) (50% load)],"",0) -> 44.23172488 | Q20: =_xlfn.XLOOKUP(Fleet_Data[[#This Row],[Description]]&Fleet_Data[[#This Row],[Mass Scheme]]&Fleet_Data[[#This Row],[PBS Level]]&Fleet_Data[[#This Row],[Configuration Code]],Tare[Description]&Tare[Mass Scheme]&Tare[PBS Level]&Tare[Configuration Code],Tare[Tare (t)],"",0) -> 19.96344976 | R20: =_xlfn.XLOOKUP(Fleet_Data[[#This Row],[Description]]&Fleet_Data[[#This Row],[Mass Scheme]]&Fleet_Data[[#This Row],[PBS Level]]&Fleet_Data[[#This Row],[Configuration Code]],Tare[Description]&Tare[Mass Scheme]&Tare[PBS Level]&Tare[Configuration Code],Tare[Payload (t)],"",0) -> 48.53655024 | S20: =_xlfn.XLOOKUP(Fleet_Data[[#This Row],[NTC Vehicle Equivalent]],NTC_Values[NTC vehicle],NTC_Values[Avg annual km],"",0) -> 75000
B21: =CONCATENATE(Fleet_Data[[#This Row],[Description]]," (",Fleet_Data[[#This Row],[Mass Scheme]],")",": ",Fleet_Data[[#This Row],[Fleet]],", ", Fleet_Data[[#This Row],[PBS Level]]) -> 4-axle truck and 3-axle dog trailer (GML): PBS, 1 | C21: 4-axle truck and 3-axle dog trailer | D21: GML | E21: PBS | F21: 1 | G21: 7 | H21: 20 | I21: R22T12 | J21: Class 10 | K21: Twin steer + 5 Axle Dog | L21: 11 | M21: Rigid | N21: =_xlfn.XLOOKUP(Fleet_Data[[#This Row],[Description]]&Fleet_Data[[#This Row],[Mass Scheme]]&Fleet_Data[[#This Row],[PBS Level]]&Fleet_Data[[#This Row],[Configuration Code]],Tare[Description]&Tare[Mass Scheme]&Tare[PBS Level]&Tare[Configuration Code],Tare[GCM (t) (100% load)],"",0) -> 50 | O21: =_xlfn.XLOOKUP(Fleet_Data[[#This Row],[Description]]&Fleet_Data[[#This Row],[Mass Scheme]]&Fleet_Data[[#This Row],[PBS Level]]&Fleet_Data[[#This Row],[Configuration Code]],Tare[Description]&Tare[Mass Scheme]&Tare[PBS Level]&Tare[Configuration Code],Tare[GCM (t) (75% load)],"",0) -> 42.34309993 | P21: =_xlfn.XLOOKUP(Fleet_Data[[#This Row],[Description]]&Fleet_Data[[#This Row],[Mass Scheme]]&Fleet_Data[[#This Row],[PBS Level]]&Fleet_Data[[#This Row],[Configuration Code]],Tare[Description]&Tare[Mass Scheme]&Tare[PBS Level]&Tare[Configuration Code],Tare[GCM (t) (50% load)],"",0) -> 34.68619987 | Q21: =_xlfn.XLOOKUP(Fleet_Data[[#This Row],[Description]]&Fleet_Data[[#This Row],[Mass Scheme]]&Fleet_Data[[#This Row],[PBS Level]]&Fleet_Data[[#This Row],[Configuration Code]],Tare[Description]&Tare[Mass Scheme]&Tare[PBS Level]&Tare[Configuration Code],Tare[Tare (t)],"",0) -> 19.37239973 | R21: =_xlfn.XLOOKUP(Fleet_Data[[#This Row],[Description]]&Fleet_Data[[#This Row],[Mass Scheme]]&Fleet_Data[[#This Row],[PBS Level]]&Fleet_Data[[#This Row],[Configuration Code]],Tare[Description]&Tare[Mass Scheme]&Tare[PBS Level]&Tare[Configuration Code],Tare[Payload (t)],"",0) -> 30.62760027 | S21: =_xlfn.XLOOKUP(Fleet_Data[[#This Row],[NTC Vehicle Equivalent]],NTC_Values[NTC vehicle],NTC_Values[Avg annual km],"",0) -> 75000
B22: =CONCATENATE(Fleet_Data[[#This Row],[Description]]," (",Fleet_Data[[#This Row],[Mass Scheme]],")",": ",Fleet_Data[[#This Row],[Fleet]],", ", Fleet_Data[[#This Row],[PBS Level]]) -> 4-axle truck and 3-axle dog trailer (GML): PBS, 2 | C22: 4-axle truck and 3-axle dog trailer | D22: GML | E22: PBS | F22: 2 | G22: 7 | H22: 20 | I22: R22T12 | J22: Class 10 | K22: Twin steer + 5 Axle Dog | L22: 11 | M22: Rigid | N22: =_xlfn.XLOOKUP(Fleet_Data[[#This Row],[Description]]&Fleet_Data[[#This Row],[Mass Scheme]]&Fleet_Data[[#This Row],[PBS Level]]&Fleet_Data[[#This Row],[Configuration Code]],Tare[Description]&Tare[Mass Scheme]&Tare[PBS Level]&Tare[Configuration Code],Tare[GCM (t) (100% load)],"",0) -> 53 | O22: =_xlfn.XLOOKUP(Fleet_Data[[#This Row],[Description]]&Fleet_Data[[#This Row],[Mass Scheme]]&Fleet_Data[[#This Row],[PBS Level]]&Fleet_Data[[#This Row],[Configuration Code]],Tare[Description]&Tare[Mass Scheme]&Tare[PBS Level]&Tare[Configuration Code],Tare[GCM (t) (75% load)],"",0) -> 44.59309993 | P22: =_xlfn.XLOOKUP(Fleet_Data[[#This Row],[Description]]&Fleet_Data[[#This Row],[Mass Scheme]]&Fleet_Data[[#This Row],[PBS Level]]&Fleet_Data[[#This Row],[Configuration Code]],Tare[Description]&Tare[Mass Scheme]&Tare[PBS Level]&Tare[Configuration Code],Tare[GCM (t) (50% load)],"",0) -> 36.18619987 | Q22: =_xlfn.XLOOKUP(Fleet_Data[[#This Row],[Description]]&Fleet_Data[[#This Row],[Mass Scheme]]&Fleet_Data[[#This Row],[PBS Level]]&Fleet_Data[[#This Row],[Configuration Code]],Tare[Description]&Tare[Mass Scheme]&Tare[PBS Level]&Tare[Configuration Code],Tare[Tare (t)],"",0) -> 19.37239973 | R22: =_xlfn.XLOOKUP(Fleet_Data[[#This Row],[Description]]&Fleet_Data[[#This Row],[Mass Scheme]]&Fleet_Data[[#This Row],[PBS Level]]&Fleet_Data[[#This Row],[Configuration Code]],Tare[Description]&Tare[Mass Scheme]&Tare[PBS Level]&Tare[Configuration Code],Tare[Payload (t)],"",0) -> 33.62760027 | S22: =_xlfn.XLOOKUP(Fleet_Data[[#This Row],[NTC Vehicle Equivalent]],NTC_Values[NTC vehicle],NTC_Values[Avg annual km],"",0) -> 75000
B23: =CONCATENATE(Fleet_Data[[#This Row],[Description]]," (",Fleet_Data[[#This Row],[Mass Scheme]],")",": ",Fleet_Data[[#This Row],[Fleet]],", ", Fleet_Data[[#This Row],[PBS Level]]) -> 4-axle truck and 3-axle dog trailer (CML): PBS, 2 | C23: 4-axle truck and 3-axle dog trailer | D23: CML | E23: PBS | F23: 2 | G23: 7 | H23: 20 | I23: R22T12 | J23: Class 10 | K23: Twin steer + 5 Axle Dog | L23: 11 | M23: Rigid | N23: =_xlfn.XLOOKUP(Fleet_Data[[#This Row],[Description]]&Fleet_Data[[#This Row],[Mass Scheme]]&Fleet_Data[[#This Row],[PBS Level]]&Fleet_Data[[#This Row],[Configuration Code]],Tare[Description]&Tare[Mass Scheme]&Tare[PBS Level]&Tare[Configuration Code],Tare[GCM (t) (100% load)],"",0) -> 54 | O23: =_xlfn.XLOOKUP(Fleet_Data[[#This Row],[Description]]&Fleet_Data[[#This Row],[Mass Scheme]]&Fleet_Data[[#This Row],[PBS Level]]&Fleet_Data[[#This Row],[Configuration Code]],Tare[Description]&Tare[Mass Scheme]&Tare[PBS Level]&Tare[Configuration Code],Tare[GCM (t) (75% load)],"",0) -> 45.34309993 | P23: =_xlfn.XLOOKUP(Fleet_Data[[#This Row],[Description]]&Fleet_Data[[#This Row],[Mass Scheme]]&Fleet_Data[[#This Row],[PBS Level]]&Fleet_Data[[#This Row],[Configuration Code]],Tare[Description]&Tare[Mass Scheme]&Tare[PBS Level]&Tare[Configuration Code],Tare[GCM (t) (50% load)],"",0) -> 36.68619987 | Q23: =_xlfn.XLOOKUP(Fleet_Data[[#This Row],[Description]]&Fleet_Data[[#This Row],[Mass Scheme]]&Fleet_Data[[#This Row],[PBS Level]]&Fleet_Data[[#This Row],[Configuration Code]],Tare[Description]&Tare[Mass Scheme]&Tare[PBS Level]&Tare[Configuration Code],Tare[Tare (t)],"",0) -> 19.37239973 | R23: =_xlfn.XLOOKUP(Fleet_Data[[#This Row],[Description]]&Fleet_Data[[#This Row],[Mass Scheme]]&Fleet_Data[[#This Row],[PBS Level]]&Fleet_Data[[#This Row],[Configuration Code]],Tare[Description]&Tare[Mass Scheme]&Tare[PBS Level]&Tare[Configuration Code],Tare[Payload (t)],"",0) -> 34.62760027 | S23: =_xlfn.XLOOKUP(Fleet_Data[[#This Row],[NTC Vehicle Equivalent]],NTC_Values[NTC vehicle],NTC_Values[Avg annual km],"",0) -> 75000
B24: =CONCATENATE(Fleet_Data[[#This Row],[Description]]," (",Fleet_Data[[#This Row],[Mass Scheme]],")",": ",Fleet_Data[[#This Row],[Fleet]],", ", Fleet_Data[[#This Row],[PBS Level]]) -> 4-axle truck and 3-axle dog trailer (HML): PBS, 2 | C24: 4-axle truck and 3-axle dog trailer | D24: HML | E24: PBS | F24: 2 | G24: 7 | H24: 20 | I24: R22T12 | J24: Class 10 | K24: Twin steer + 5 Axle Dog | L24: 11 | M24: Rigid | N24: =_xlfn.XLOOKUP(Fleet_Data[[#This Row],[Description]]&Fleet_Data[[#This Row],[Mass Scheme]]&Fleet_Data[[#This Row],[PBS Level]]&Fleet_Data[[#This Row],[Configuration Code]],Tare[Description]&Tare[Mass Scheme]&Tare[PBS Level]&Tare[Configuration Code],Tare[GCM (t) (100% load)],"",0) -> 54 | O24: =_xlfn.XLOOKUP(Fleet_Data[[#This Row],[Description]]&Fleet_Data[[#This Row],[Mass Scheme]]&Fleet_Data[[#This Row],[PBS Level]]&Fleet_Data[[#This Row],[Configuration Code]],Tare[Description]&Tare[Mass Scheme]&Tare[PBS Level]&Tare[Configuration Code],Tare[GCM (t) (75% load)],"",0) -> 45.34309993 | P24: =_xlfn.XLOOKUP(Fleet_Data[[#This Row],[Description]]&Fleet_Data[[#This Row],[Mass Scheme]]&Fleet_Data[[#This Row],[PBS Level]]&Fleet_Data[[#This Row],[Configuration Code]],Tare[Description]&Tare[Mass Scheme]&Tare[PBS Level]&Tare[Configuration Code],Tare[GCM (t) (50% load)],"",0) -> 36.68619987 | Q24: =_xlfn.XLOOKUP(Fleet_Data[[#This Row],[Description]]&Fleet_Data[[#This Row],[Mass Scheme]]&Fleet_Data[[#This Row],[PBS Level]]&Fleet_Data[[#This Row],[Configuration Code]],Tare[Description]&Tare[Mass Scheme]&Tare[PBS Level]&Tare[Configuration Code],Tare[Tare (t)],"",0) -> 19.37239973 | R24: =_xlfn.XLOOKUP(Fleet_Data[[#This Row],[Description]]&Fleet_Data[[#This Row],[Mass Scheme]]&Fleet_Data[[#This Row],[PBS Level]]&Fleet_Data[[#This Row],[Configuration Code]],Tare[Description]&Tare[Mass Scheme]&Tare[PBS Level]&Tare[Configuration Code],Tare[Payload (t)],"",0) -> 34.62760027 | S24: =_xlfn.XLOOKUP(Fleet_Data[[#This Row],[NTC Vehicle Equivalent]],NTC_Values[NTC vehicle],NTC_Values[Avg annual km],"",0) -> 75000
B25: =CONCATENATE(Fleet_Data[[#This Row],[Description]]," (",Fleet_Data[[#This Row],[Mass Scheme]],")",": ",Fleet_Data[[#This Row],[Fleet]],", ", Fleet_Data[[#This Row],[PBS Level]]) -> 4-axle truck and 4-axle dog trailer (GML): PBS, 1 | C25: 4-axle truck and 4-axle dog trailer | D25: GML | E25: PBS | F25: 1 | G25: 8 | H25: 20 | I25: R22T22 | J25: Class 10 | K25: Twin steer + 5 Axle Dog | L25: 11 | M25: Rigid | N25: =_xlfn.XLOOKUP(Fleet_Data[[#This Row],[Description]]&Fleet_Data[[#This Row],[Mass Scheme]]&Fleet_Data[[#This Row],[PBS Level]]&Fleet_Data[[#This Row],[Configuration Code]],Tare[Description]&Tare[Mass Scheme]&Tare[PBS Level]&Tare[Configuration Code],Tare[GCM (t) (100% load)],"",0) -> 50 | O25: =_xlfn.XLOOKUP(Fleet_Data[[#This Row],[Description]]&Fleet_Data[[#This Row],[Mass Scheme]]&Fleet_Data[[#This Row],[PBS Level]]&Fleet_Data[[#This Row],[Configuration Code]],Tare[Description]&Tare[Mass Scheme]&Tare[PBS Level]&Tare[Configuration Code],Tare[GCM (t) (75% load)],"",0) -> 42.78504615 | P25: =_xlfn.XLOOKUP(Fleet_Data[[#This Row],[Description]]&Fleet_Data[[#This Row],[Mass Scheme]]&Fleet_Data[[#This Row],[PBS Level]]&Fleet_Data[[#This Row],[Configuration Code]],Tare[Description]&Tare[Mass Scheme]&Tare[PBS Level]&Tare[Configuration Code],Tare[GCM (t) (50% load)],"",0) -> 35.57009231 | Q25: =_xlfn.XLOOKUP(Fleet_Data[[#This Row],[Description]]&Fleet_Data[[#This Row],[Mass Scheme]]&Fleet_Data[[#This Row],[PBS Level]]&Fleet_Data[[#This Row],[Configuration Code]],Tare[Description]&Tare[Mass Scheme]&Tare[PBS Level]&Tare[Configuration Code],Tare[Tare (t)],"",0) -> 21.14018462 | R25: =_xlfn.XLOOKUP(Fleet_Data[[#This Row],[Description]]&Fleet_Data[[#This Row],[Mass Scheme]]&Fleet_Data[[#This Row],[PBS Level]]&Fleet_Data[[#This Row],[Configuration Code]],Tare[Description]&Tare[Mass Scheme]&Tare[PBS Level]&Tare[Configuration Code],Tare[Payload (t)],"",0) -> 28.85981538 | S25: =_xlfn.XLOOKUP(Fleet_Data[[#This Row],[NTC Vehicle Equivalent]],NTC_Values[NTC vehicle],NTC_Values[Avg annual km],"",0) -> 75000
B26: =CONCATENATE(Fleet_Data[[#This Row],[Description]]," (",Fleet_Data[[#This Row],[Mass Scheme]],")",": ",Fleet_Data[[#This Row],[Fleet]],", ", Fleet_Data[[#This Row],[PBS Level]]) -> 4-axle truck and 4-axle dog trailer (GML): PBS, 2 | C26: 4-axle truck and 4-axle dog trailer | D26: GML | E26: PBS | F26: 2 | G26: 8 | H26: 20 | I26: R22T22 | J26: Class 10 | K26: Twin steer + 5 Axle Dog | L26: 11 | M26: Rigid | N26: =_xlfn.XLOOKUP(Fleet_Data[[#This Row],[Description]]&Fleet_Data[[#This Row],[Mass Scheme]]&Fleet_Data[[#This Row],[PBS Level]]&Fleet_Data[[#This Row],[Configuration Code]],Tare[Description]&Tare[Mass Scheme]&Tare[PBS Level]&Tare[Configuration Code],Tare[GCM (t) (100% load)],"",0) -> 60.5 | O26: =_xlfn.XLOOKUP(Fleet_Data[[#This Row],[Description]]&Fleet_Data[[#This Row],[Mass Scheme]]&Fleet_Data[[#This Row],[PBS Level]]&Fleet_Data[[#This Row],[Configuration Code]],Tare[Description]&Tare[Mass Scheme]&Tare[PBS Level]&Tare[Configuration Code],Tare[GCM (t) (75% load)],"",0) -> 50.66004615 | P26: =_xlfn.XLOOKUP(Fleet_Data[[#This Row],[Description]]&Fleet_Data[[#This Row],[Mass Scheme]]&Fleet_Data[[#This Row],[PBS Level]]&Fleet_Data[[#This Row],[Configuration Code]],Tare[Description]&Tare[Mass Scheme]&Tare[PBS Level]&Tare[Configuration Code],Tare[GCM (t) (50% load)],"",0) -> 40.82009231 | Q26: =_xlfn.XLOOKUP(Fleet_Data[[#This Row],[Description]]&Fleet_Data[[#This Row],[Mass Scheme]]&Fleet_Data[[#This Row],[PBS Level]]&Fleet_Data[[#This Row],[Configuration Code]],Tare[Description]&Tare[Mass Scheme]&Tare[PBS Level]&Tare[Configuration Code],Tare[Tare (t)],"",0) -> 21.14018462 | R26: =_xlfn.XLOOKUP(Fleet_Data[[#This Row],[Description]]&Fleet_Data[[#This Row],[Mass Scheme]]&Fleet_Data[[#This Row],[PBS Level]]&Fleet_Data[[#This Row],[Configuration Code]],Tare[Description]&Tare[Mass Scheme]&Tare[PBS Level]&Tare[Configuration Code],Tare[Payload (t)],"",0) -> 39.35981538 | S26: =_xlfn.XLOOKUP(Fleet_Data[[#This Row],[NTC Vehicle Equivalent]],NTC_Values[NTC vehicle],NTC_Values[Avg annual km],"",0) -> 75000
B27: =CONCATENATE(Fleet_Data[[#This Row],[Description]]," (",Fleet_Data[[#This Row],[Mass Scheme]],")",": ",Fleet_Data[[#This Row],[Fleet]],", ", Fleet_Data[[#This Row],[PBS Level]]) -> 4-axle truck and 4-axle dog trailer (CML): PBS, 2 | C27: 4-axle truck and 4-axle dog trailer | D27: CML | E27: PBS | F27: 2 | G27: 8 | H27: 20 | I27: R22T22 | J27: Class 10 | K27: Twin steer + 5 Axle Dog | L27: 11 | M27: Rigid | N27: =_xlfn.XLOOKUP(Fleet_Data[[#This Row],[Description]]&Fleet_Data[[#This Row],[Mass Scheme]]&Fleet_Data[[#This Row],[PBS Level]]&Fleet_Data[[#This Row],[Configuration Code]],Tare[Description]&Tare[Mass Scheme]&Tare[PBS Level]&Tare[Configuration Code],Tare[GCM (t) (100% load)],"",0) -> 62 | O27: =_xlfn.XLOOKUP(Fleet_Data[[#This Row],[Description]]&Fleet_Data[[#This Row],[Mass Scheme]]&Fleet_Data[[#This Row],[PBS Level]]&Fleet_Data[[#This Row],[Configuration Code]],Tare[Description]&Tare[Mass Scheme]&Tare[PBS Level]&Tare[Configuration Code],Tare[GCM (t) (75% load)],"",0) -> 51.78504615 | P27: =_xlfn.XLOOKUP(Fleet_Data[[#This Row],[Description]]&Fleet_Data[[#This Row],[Mass Scheme]]&Fleet_Data[[#This Row],[PBS Level]]&Fleet_Data[[#This Row],[Configuration Code]],Tare[Description]&Tare[Mass Scheme]&Tare[PBS Level]&Tare[Configuration Code],Tare[GCM (t) (50% load)],"",0) -> 41.57009231 | Q27: =_xlfn.XLOOKUP(Fleet_Data[[#This Row],[Description]]&Fleet_Data[[#This Row],[Mass Scheme]]&Fleet_Data[[#This Row],[PBS Level]]&Fleet_Data[[#This Row],[Configuration Code]],Tare[Description]&Tare[Mass Scheme]&Tare[PBS Level]&Tare[Configuration Code],Tare[Tare (t)],"",0) -> 21.14018462 | R27: =_xlfn.XLOOKUP(Fleet_Data[[#This Row],[Description]]&Fleet_Data[[#This Row],[Mass Scheme]]&Fleet_Data[[#This Row],[PBS Level]]&Fleet_Data[[#This Row],[Configuration Code]],Tare[Description]&Tare[Mass Scheme]&Tare[PBS Level]&Tare[Configuration Code],Tare[Payload (t)],"",0) -> 40.85981538 | S27: =_xlfn.XLOOKUP(Fleet_Data[[#This Row],[NTC Vehicle Equivalent]],NTC_Values[NTC vehicle],NTC_Values[Avg annual km],"",0) -> 75000
B28: =CONCATENATE(Fleet_Data[[#This Row],[Description]]," (",Fleet_Data[[#This Row],[Mass Scheme]],")",": ",Fleet_Data[[#This Row],[Fleet]],", ", Fleet_Data[[#This Row],[PBS Level]]) -> 4-axle truck and 4-axle dog trailer (HML): PBS, 2 | C28: 4-axle truck and 4-axle dog trailer | D28: HML | E28: PBS | F28: 2 | G28: 8 | H28: 20 | I28: R22T22 | J28: Class 10 | K28: Twin steer + 5 Axle Dog | L28: 11 | M28: Rigid | N28: =_xlfn.XLOOKUP(Fleet_Data[[#This Row],[Description]]&Fleet_Data[[#This Row],[Mass Scheme]]&Fleet_Data[[#This Row],[PBS Level]]&Fleet_Data[[#This Row],[Configuration Code]],Tare[Description]&Tare[Mass Scheme]&Tare[PBS Level]&Tare[Configuration Code],Tare[GCM (t) (100% load)],"",0) -> 62 | O28: =_xlfn.XLOOKUP(Fleet_Data[[#This Row],[Description]]&Fleet_Data[[#This Row],[Mass Scheme]]&Fleet_Data[[#This Row],[PBS Level]]&Fleet_Data[[#This Row],[Configuration Code]],Tare[Description]&Tare[Mass Scheme]&Tare[PBS Level]&Tare[Configuration Code],Tare[GCM (t) (75% load)],"",0) -> 51.78504615 | P28: =_xlfn.XLOOKUP(Fleet_Data[[#This Row],[Description]]&Fleet_Data[[#This Row],[Mass Scheme]]&Fleet_Data[[#This Row],[PBS Level]]&Fleet_Data[[#This Row],[Configuration Code]],Tare[Description]&Tare[Mass Scheme]&Tare[PBS Level]&Tare[Configuration Code],Tare[GCM (t) (50% load)],"",0) -> 41.57009231 | Q28: =_xlfn.XLOOKUP(Fleet_Data[[#This Row],[Description]]&Fleet_Data[[#This Row],[Mass Scheme]]&Fleet_Data[[#This Row],[PBS Level]]&Fleet_Data[[#This Row],[Configuration Code]],Tare[Description]&Tare[Mass Scheme]&Tare[PBS Level]&Tare[Configuration Code],Tare[Tare (t)],"",0) -> 21.14018462 | R28: =_xlfn.XLOOKUP(Fleet_Data[[#This Row],[Description]]&Fleet_Data[[#This Row],[Mass Scheme]]&Fleet_Data[[#This Row],[PBS Level]]&Fleet_Data[[#This Row],[Configuration Code]],Tare[Description]&Tare[Mass Scheme]&Tare[PBS Level]&Tare[Configuration Code],Tare[Payload (t)],"",0) -> 40.85981538 | S28: =_xlfn.XLOOKUP(Fleet_Data[[#This Row],[NTC Vehicle Equivalent]],NTC_Values[NTC vehicle],NTC_Values[Avg annual km],"",0) -> 75000
B29: =CONCATENATE(Fleet_Data[[#This Row],[Description]]," (",Fleet_Data[[#This Row],[Mass Scheme]],")",": ",Fleet_Data[[#This Row],[Fleet]],", ", Fleet_Data[[#This Row],[PBS Level]]) -> 4-axle truck and 5-axle dog trailer (GML): PBS, 2 | C29: 4-axle truck and 5-axle dog trailer | D29: GML | E29: PBS | F29: 2 | G29: 9 | H29: 26 | I29: R22T23 | J29: Class 10 | K29: Twin steer + 5 Axle Dog | L29: 11 | M29: Rigid | N29: =_xlfn.XLOOKUP(Fleet_Data[[#This Row],[Description]]&Fleet_Data[[#This Row],[Mass Scheme]]&Fleet_Data[[#This Row],[PBS Level]]&Fleet_Data[[#This Row],[Configuration Code]],Tare[Description]&Tare[Mass Scheme]&Tare[PBS Level]&Tare[Configuration Code],Tare[GCM (t) (100% load)],"",0) -> 64 | O29: =_xlfn.XLOOKUP(Fleet_Data[[#This Row],[Description]]&Fleet_Data[[#This Row],[Mass Scheme]]&Fleet_Data[[#This Row],[PBS Level]]&Fleet_Data[[#This Row],[Configuration Code]],Tare[Description]&Tare[Mass Scheme]&Tare[PBS Level]&Tare[Configuration Code],Tare[GCM (t) (75% load)],"",0) -> 53.43020013 | P29: =_xlfn.XLOOKUP(Fleet_Data[[#This Row],[Description]]&Fleet_Data[[#This Row],[Mass Scheme]]&Fleet_Data[[#This Row],[PBS Level]]&Fleet_Data[[#This Row],[Configuration Code]],Tare[Description]&Tare[Mass Scheme]&Tare[PBS Level]&Tare[Configuration Code],Tare[GCM (t) (50% load)],"",0) -> 42.86040027 | Q29: =_xlfn.XLOOKUP(Fleet_Data[[#This Row],[Description]]&Fleet_Data[[#This Row],[Mass Scheme]]&Fleet_Data[[#This Row],[PBS Level]]&Fleet_Data[[#This Row],[Configuration Code]],Tare[Description]&Tare[Mass Scheme]&Tare[PBS Level]&Tare[Configuration Code],Tare[Tare (t)],"",0) -> 21.72080054 | R29: =_xlfn.XLOOKUP(Fleet_Data[[#This Row],[Description]]&Fleet_Data[[#This Row],[Mass Scheme]]&Fleet_Data[[#This Row],[PBS Level]]&Fleet_Data[[#This Row],[Configuration Code]],Tare[Description]&Tare[Mass Scheme]&Tare[PBS Level]&Tare[Configuration Code],Tare[Payload (t)],"",0) -> 42.27919946 | S29: =_xlfn.XLOOKUP(Fleet_Data[[#This Row],[NTC Vehicle Equivalent]],NTC_Values[NTC vehicle],NTC_Values[Avg annual km],"",0) -> 75000
B30: =CONCATENATE(Fleet_Data[[#This Row],[Description]]," (",Fleet_Data[[#This Row],[Mass Scheme]],")",": ",Fleet_Data[[#This Row],[Fleet]],", ", Fleet_Data[[#This Row],[PBS Level]]) -> 4-axle truck and 5-axle dog trailer (CML): PBS, 2 | C30: 4-axle truck and 5-axle dog trailer | D30: CML | E30: PBS | F30: 2 | G30: 9 | H30: 26 | I30: R22T23 | J30: Class 10 | K30: Twin steer + 5 Axle Dog | L30: 11 | M30: Rigid | N30: =_xlfn.XLOOKUP(Fleet_Data[[#This Row],[Description]]&Fleet_Data[[#This Row],[Mass Scheme]]&Fleet_Data[[#This Row],[PBS Level]]&Fleet_Data[[#This Row],[Configuration Code]],Tare[Description]&Tare[Mass Scheme]&Tare[PBS Level]&Tare[Configuration Code],Tare[GCM (t) (100% load)],"",0) -> 66 | O30: =_xlfn.XLOOKUP(Fleet_Data[[#This Row],[Description]]&Fleet_Data[[#This Row],[Mass Scheme]]&Fleet_Data[[#This Row],[PBS Level]]&Fleet_Data[[#This Row],[Configuration Code]],Tare[Description]&Tare[Mass Scheme]&Tare[PBS Level]&Tare[Configuration Code],Tare[GCM (t) (75% load)],"",0) -> 54.93020013 | P30: =_xlfn.XLOOKUP(Fleet_Data[[#This Row],[Description]]&Fleet_Data[[#This Row],[Mass Scheme]]&Fleet_Data[[#This Row],[PBS Level]]&Fleet_Data[[#This Row],[Configuration Code]],Tare[Description]&Tare[Mass Scheme]&Tare[PBS Level]&Tare[Configuration Code],Tare[GCM (t) (50% load)],"",0) -> 43.86040027 | Q30: =_xlfn.XLOOKUP(Fleet_Data[[#This Row],[Description]]&Fleet_Data[[#This Row],[Mass Scheme]]&Fleet_Data[[#This Row],[PBS Level]]&Fleet_Data[[#This Row],[Configuration Code]],Tare[Description]&Tare[Mass Scheme]&Tare[PBS Level]&Tare[Configuration Code],Tare[Tare (t)],"",0) -> 21.72080054 | R30: =_xlfn.XLOOKUP(Fleet_Data[[#This Row],[Description]]&Fleet_Data[[#This Row],[Mass Scheme]]&Fleet_Data[[#This Row],[PBS Level]]&Fleet_Data[[#This Row],[Configuration Code]],Tare[Description]&Tare[Mass Scheme]&Tare[PBS Level]&Tare[Configuration Code],Tare[Payload (t)],"",0) -> 44.27919946 | S30: =_xlfn.XLOOKUP(Fleet_Data[[#This Row],[NTC Vehicle Equivalent]],NTC_Values[NTC vehicle],NTC_Values[Avg annual km],"",0) -> 75000
B31: =CONCATENATE(Fleet_Data[[#This Row],[Description]]," (",Fleet_Data[[#This Row],[Mass Scheme]],")",": ",Fleet_Data[[#This Row],[Fleet]],", ", Fleet_Data[[#This Row],[PBS Level]]) -> 4-axle truck and 5-axle dog trailer (HML): PBS, 2 | C31: 4-axle truck and 5-axle dog trailer | D31: HML | E31: PBS | F31: 2 | G31: 9 | H31: 26 | I31: R22T23 | J31: Class 10 | K31: Twin steer + 5 Axle Dog | L31: 11 | M31: Rigid | N31: =_xlfn.XLOOKUP(Fleet_Data[[#This Row],[Description]]&Fleet_Data[[#This Row],[Mass Scheme]]&Fleet_Data[[#This Row],[PBS Level]]&Fleet_Data[[#This Row],[Configuration Code]],Tare[Description]&Tare[Mass Scheme]&Tare[PBS Level]&Tare[Configuration Code],Tare[GCM (t) (100% load)],"",0) -> 67.5 | O31: =_xlfn.XLOOKUP(Fleet_Data[[#This Row],[Description]]&Fleet_Data[[#This Row],[Mass Scheme]]&Fleet_Data[[#This Row],[PBS Level]]&Fleet_Data[[#This Row],[Configuration Code]],Tare[Description]&Tare[Mass Scheme]&Tare[PBS Level]&Tare[Configuration Code],Tare[GCM (t) (75% load)],"",0) -> 56.05520013 | P31: =_xlfn.XLOOKUP(Fleet_Data[[#This Row],[Description]]&Fleet_Data[[#This Row],[Mass Scheme]]&Fleet_Data[[#This Row],[PBS Level]]&Fleet_Data[[#This Row],[Configuration Code]],Tare[Description]&Tare[Mass Scheme]&Tare[PBS Level]&Tare[Configuration Code],Tare[GCM (t) (50% load)],"",0) -> 44.61040027 | Q31: =_xlfn.XLOOKUP(Fleet_Data[[#This Row],[Description]]&Fleet_Data[[#This Row],[Mass Scheme]]&Fleet_Data[[#This Row],[PBS Level]]&Fleet_Data[[#This Row],[Configuration Code]],Tare[Description]&Tare[Mass Scheme]&Tare[PBS Level]&Tare[Configuration Code],Tare[Tare (t)],"",0) -> 21.72080054 | R31: =_xlfn.XLOOKUP(Fleet_Data[[#This Row],[Description]]&Fleet_Data[[#This Row],[Mass Scheme]]&Fleet_Data[[#This Row],[PBS Level]]&Fleet_Data[[#This Row],[Configuration Code]],Tare[Description]&Tare[Mass Scheme]&Tare[PBS Level]&Tare[Configuration Code],Tare[Payload (t)],"",0) -> 45.77919946 | S31: =_xlfn.XLOOKUP(Fleet_Data[[#This Row],[NTC Vehicle Equivalent]],NTC_Values[NTC vehicle],NTC_Values[Avg annual km],"",0) -> 75000
B32: =CONCATENATE(Fleet_Data[[#This Row],[Description]]," (",Fleet_Data[[#This Row],[Mass Scheme]],")",": ",Fleet_Data[[#This Row],[Fleet]],", ", Fleet_Data[[#This Row],[PBS Level]]) -> 4-axle truck and 6-axle dog trailer (GML): PBS, 2 | C32: 4-axle truck and 6-axle dog trailer | D32: GML | E32: PBS | F32: 2 | G32: 10 | H32: 26 | I32: R22T33 | J32: Class 10 | K32: Twin steer + 5 Axle Dog | L32: 11 | M32: Rigid | N32: =_xlfn.XLOOKUP(Fleet_Data[[#This Row],[Description]]&Fleet_Data[[#This Row],[Mass Scheme]]&Fleet_Data[[#This Row],[PBS Level]]&Fleet_Data[[#This Row],[Configuration Code]],Tare[Description]&Tare[Mass Scheme]&Tare[PBS Level]&Tare[Configuration Code],Tare[GCM (t) (100% load)],"",0) -> 67.5 | O32: =_xlfn.XLOOKUP(Fleet_Data[[#This Row],[Description]]&Fleet_Data[[#This Row],[Mass Scheme]]&Fleet_Data[[#This Row],[PBS Level]]&Fleet_Data[[#This Row],[Configuration Code]],Tare[Description]&Tare[Mass Scheme]&Tare[PBS Level]&Tare[Configuration Code],Tare[GCM (t) (75% load)],"",0) -> 56.45113724 | P32: =_xlfn.XLOOKUP(Fleet_Data[[#This Row],[Description]]&Fleet_Data[[#This Row],[Mass Scheme]]&Fleet_Data[[#This Row],[PBS Level]]&Fleet_Data[[#This Row],[Configuration Code]],Tare[Description]&Tare[Mass Scheme]&Tare[PBS Level]&Tare[Configuration Code],Tare[GCM (t) (50% load)],"",0) -> 45.40227448 | Q32: =_xlfn.XLOOKUP(Fleet_Data[[#This Row],[Description]]&Fleet_Data[[#This Row],[Mass Scheme]]&Fleet_Data[[#This Row],[PBS Level]]&Fleet_Data[[#This Row],[Configuration Code]],Tare[Description]&Tare[Mass Scheme]&Tare[PBS Level]&Tare[Configuration Code],Tare[Tare (t)],"",0) -> 23.30454895 | R32: =_xlfn.XLOOKUP(Fleet_Data[[#This Row],[Description]]&Fleet_Data[[#This Row],[Mass Scheme]]&Fleet_Data[[#This Row],[PBS Level]]&Fleet_Data[[#This Row],[Configuration Code]],Tare[Description]&Tare[Mass Scheme]&Tare[PBS Level]&Tare[Configuration Code],Tare[Payload (t)],"",0) -> 44.19545105 | S32: =_xlfn.XLOOKUP(Fleet_Data[[#This Row],[NTC Vehicle Equivalent]],NTC_Values[NTC vehicle],NTC_Values[Avg annual km],"",0) -> 75000
B33: =CONCATENATE(Fleet_Data[[#This Row],[Description]]," (",Fleet_Data[[#This Row],[Mass Scheme]],")",": ",Fleet_Data[[#This Row],[Fleet]],", ", Fleet_Data[[#This Row],[PBS Level]]) -> 4-axle truck and 6-axle dog trailer (CML): PBS, 2 | C33: 4-axle truck and 6-axle dog trailer | D33: CML | E33: PBS | F33: 2 | G33: 10 | H33: 26 | I33: R22T33 | J33: Class 10 | K33: Twin steer + 5 Axle Dog | L33: 11 | M33: Rigid | N33: =_xlfn.XLOOKUP(Fleet_Data[[#This Row],[Description]]&Fleet_Data[[#This Row],[Mass Scheme]]&Fleet_Data[[#This Row],[PBS Level]]&Fleet_Data[[#This Row],[Configuration Code]],Tare[Description]&Tare[Mass Scheme]&Tare[PBS Level]&Tare[Configuration Code],Tare[GCM (t) (100% load)],"",0) -> 69.5 | O33: =_xlfn.XLOOKUP(Fleet_Data[[#This Row],[Description]]&Fleet_Data[[#This Row],[Mass Scheme]]&Fleet_Data[[#This Row],[PBS Level]]&Fleet_Data[[#This Row],[Configuration Code]],Tare[Description]&Tare[Mass Scheme]&Tare[PBS Level]&Tare[Configuration Code],Tare[GCM (t) (75% load)],"",0) -> 57.95113724 | P33: =_xlfn.XLOOKUP(Fleet_Data[[#This Row],[Description]]&Fleet_Data[[#This Row],[Mass Scheme]]&Fleet_Data[[#This Row],[PBS Level]]&Fleet_Data[[#This Row],[Configuration Code]],Tare[Description]&Tare[Mass Scheme]&Tare[PBS Level]&Tare[Configuration Code],Tare[GCM (t) (50% load)],"",0) -> 46.40227448 | Q33: =_xlfn.XLOOKUP(Fleet_Data[[#This Row],[Description]]&Fleet_Data[[#This Row],[Mass Scheme]]&Fleet_Data[[#This Row],[PBS Level]]&Fleet_Data[[#This Row],[Configuration Code]],Tare[Description]&Tare[Mass Scheme]&Tare[PBS Level]&Tare[Configuration Code],Tare[Tare (t)],"",0) -> 23.30454895 | R33: =_xlfn.XLOOKUP(Fleet_Data[[#This Row],[Description]]&Fleet_Data[[#This Row],[Mass Scheme]]&Fleet_Data[[#This Row],[PBS Level]]&Fleet_Data[[#This Row],[Configuration Code]],Tare[Description]&Tare[Mass Scheme]&Tare[PBS Level]&Tare[Configuration Code],Tare[Payload (t)],"",0) -> 46.19545105 | S33: =_xlfn.XLOOKUP(Fleet_Data[[#This Row],[NTC Vehicle Equivalent]],NTC_Values[NTC vehicle],NTC_Values[Avg annual km],"",0) -> 75000
B34: =CONCATENATE(Fleet_Data[[#This Row],[Description]]," (",Fleet_Data[[#This Row],[Mass Scheme]],")",": ",Fleet_Data[[#This Row],[Fleet]],", ", Fleet_Data[[#This Row],[PBS Level]]) -> 4-axle truck and 6-axle dog trailer (HML): PBS, 2 | C34: 4-axle truck and 6-axle dog trailer | D34: HML | E34: PBS | F34: 2 | G34: 10 | H34: 26 | I34: R22T33 | J34: Class 10 | K34: Twin steer + 5 Axle Dog | L34: 11 | M34: Rigid | N34: =_xlfn.XLOOKUP(Fleet_Data[[#This Row],[Description]]&Fleet_Data[[#This Row],[Mass Scheme]]&Fleet_Data[[#This Row],[PBS Level]]&Fleet_Data[[#This Row],[Configuration Code]],Tare[Description]&Tare[Mass Scheme]&Tare[PBS Level]&Tare[Configuration Code],Tare[GCM (t) (100% load)],"",0) -> 73 | O34: =_xlfn.XLOOKUP(Fleet_Data[[#This Row],[Description]]&Fleet_Data[[#This Row],[Mass Scheme]]&Fleet_Data[[#This Row],[PBS Level]]&Fleet_Data[[#This Row],[Configuration Code]],Tare[Description]&Tare[Mass Scheme]&Tare[PBS Level]&Tare[Configuration Code],Tare[GCM (t) (75% load)],"",0) -> 60.57613724 | P34: =_xlfn.XLOOKUP(Fleet_Data[[#This Row],[Description]]&Fleet_Data[[#This Row],[Mass Scheme]]&Fleet_Data[[#This Row],[PBS Level]]&Fleet_Data[[#This Row],[Configuration Code]],Tare[Description]&Tare[Mass Scheme]&Tare[PBS Level]&Tare[Configuration Code],Tare[GCM (t) (50% load)],"",0) -> 48.15227448 | Q34: =_xlfn.XLOOKUP(Fleet_Data[[#This Row],[Description]]&Fleet_Data[[#This Row],[Mass Scheme]]&Fleet_Data[[#This Row],[PBS Level]]&Fleet_Data[[#This Row],[Configuration Code]],Tare[Description]&Tare[Mass Scheme]&Tare[PBS Level]&Tare[Configuration Code],Tare[Tare (t)],"",0) -> 23.30454895 | R34: =_xlfn.XLOOKUP(Fleet_Data[[#This Row],[Description]]&Fleet_Data[[#This Row],[Mass Scheme]]&Fleet_Data[[#This Row],[PBS Level]]&Fleet_Data[[#This Row],[Configuration Code]],Tare[Description]&Tare[Mass Scheme]&Tare[PBS Level]&Tare[Configuration Code],Tare[Payload (t)],"",0) -> 49.69545105 | S34: =_xlfn.XLOOKUP(Fleet_Data[[#This Row],[NTC Vehicle Equivalent]],NTC_Values[NTC vehicle],NTC_Values[Avg annual km],"",0) -> 75000
B35: =CONCATENATE(Fleet_Data[[#This Row],[Description]]," (",Fleet_Data[[#This Row],[Mass Scheme]],")",": ",Fleet_Data[[#This Row],[Fleet]],", ", Fleet_Data[[#This Row],[PBS Level]]) -> 2-axle prime mover and 2-axle semitrailer (GML): PBS, 1 | C35: 2-axle prime mover and 2-axle semitrailer | D35: GML | E35: PBS | F35: 1 | G35: 4 | H35: 20 | I35: A112 | J35: Class 7 | K35: Artic 4 Axle | L35: 13 | M35: Articulated | N35: =_xlfn.XLOOKUP(Fleet_Data[[#This Row],[Description]]&Fleet_Data[[#This Row],[Mass Scheme]]&Fleet_Data[[#This Row],[PBS Level]]&Fleet_Data[[#This Row],[Configuration Code]],Tare[Description]&Tare[Mass Scheme]&Tare[PBS Level]&Tare[Configuration Code],Tare[GCM (t) (100% load)],"",0) -> 32 | O35: =_xlfn.XLOOKUP(Fleet_Data[[#This Row],[Description]]&Fleet_Data[[#This Row],[Mass Scheme]]&Fleet_Data[[#This Row],[PBS Level]]&Fleet_Data[[#This Row],[Configuration Code]],Tare[Description]&Tare[Mass Scheme]&Tare[PBS Level]&Tare[Configuration Code],Tare[GCM (t) (75% load)],"",0) -> 27.68458403 | P35: =_xlfn.XLOOKUP(Fleet_Data[[#This Row],[Description]]&Fleet_Data[[#This Row],[Mass Scheme]]&Fleet_Data[[#This Row],[PBS Level]]&Fleet_Data[[#This Row],[Configuration Code]],Tare[Description]&Tare[Mass Scheme]&Tare[PBS Level]&Tare[Configuration Code],Tare[GCM (t) (50% load)],"",0) -> 23.36916806 | Q35: =_xlfn.XLOOKUP(Fleet_Data[[#This Row],[Description]]&Fleet_Data[[#This Row],[Mass Scheme]]&Fleet_Data[[#This Row],[PBS Level]]&Fleet_Data[[#This Row],[Configuration Code]],Tare[Description]&Tare[Mass Scheme]&Tare[PBS Level]&Tare[Configuration Code],Tare[Tare (t)],"",0) -> 14.73833612 | R35: =_xlfn.XLOOKUP(Fleet_Data[[#This Row],[Description]]&Fleet_Data[[#This Row],[Mass Scheme]]&Fleet_Data[[#This Row],[PBS Level]]&Fleet_Data[[#This Row],[Configuration Code]],Tare[Description]&Tare[Mass Scheme]&Tare[PBS Level]&Tare[Configuration Code],Tare[Payload (t)],"",0) -> 17.26166388 | S35: =_xlfn.XLOOKUP(Fleet_Data[[#This Row],[NTC Vehicle Equivalent]],NTC_Values[NTC vehicle],NTC_Values[Avg annual km],"",0) -> 75000
B36: =CONCATENATE(Fleet_Data[[#This Row],[Description]]," (",Fleet_Data[[#This Row],[Mass Scheme]],")",": ",Fleet_Data[[#This Row],[Fleet]],", ", Fleet_Data[[#This Row],[PBS Level]]) -> 2-axle prime mover and 2-axle semitrailer (CML): PBS, 1 | C36: 2-axle prime mover and 2-axle semitrailer | D36: CML | E36: PBS | F36: 1 | G36: 4 | H36: 20 | I36: A112 | J36: Class 7 | K36: Artic 4 Axle | L36: 13 | M36: Articulated | N36: =_xlfn.XLOOKUP(Fleet_Data[[#This Row],[Description]]&Fleet_Data[[#This Row],[Mass Scheme]]&Fleet_Data[[#This Row],[PBS Level]]&Fleet_Data[[#This Row],[Configuration Code]],Tare[Description]&Tare[Mass Scheme]&Tare[PBS Level]&Tare[Configuration Code],Tare[GCM (t) (100% load)],"",0) -> 32.5 | O36: =_xlfn.XLOOKUP(Fleet_Data[[#This Row],[Description]]&Fleet_Data[[#This Row],[Mass Scheme]]&Fleet_Data[[#This Row],[PBS Level]]&Fleet_Data[[#This Row],[Configuration Code]],Tare[Description]&Tare[Mass Scheme]&Tare[PBS Level]&Tare[Configuration Code],Tare[GCM (t) (75% load)],"",0) -> 28.05958403 | P36: =_xlfn.XLOOKUP(Fleet_Data[[#This Row],[Description]]&Fleet_Data[[#This Row],[Mass Scheme]]&Fleet_Data[[#This Row],[PBS Level]]&Fleet_Data[[#This Row],[Configuration Code]],Tare[Description]&Tare[Mass Scheme]&Tare[PBS Level]&Tare[Configuration Code],Tare[GCM (t) (50% load)],"",0) -> 23.61916806 | Q36: =_xlfn.XLOOKUP(Fleet_Data[[#This Row],[Description]]&Fleet_Data[[#This Row],[Mass Scheme]]&Fleet_Data[[#This Row],[PBS Level]]&Fleet_Data[[#This Row],[Configuration Code]],Tare[Description]&Tare[Mass Scheme]&Tare[PBS Level]&Tare[Configuration Code],Tare[Tare (t)],"",0) -> 14.73833612 | R36: =_xlfn.XLOOKUP(Fleet_Data[[#This Row],[Description]]&Fleet_Data[[#This Row],[Mass Scheme]]&Fleet_Data[[#This Row],[PBS Level]]&Fleet_Data[[#This Row],[Configuration Code]],Tare[Description]&Tare[Mass Scheme]&Tare[PBS Level]&Tare[Configuration Code],Tare[Payload (t)],"",0) -> 17.76166388 | S36: =_xlfn.XLOOKUP(Fleet_Data[[#This Row],[NTC Vehicle Equivalent]],NTC_Values[NTC vehicle],NTC_Values[Avg annual km],"",0) -> 75000
B37: =CONCATENATE(Fleet_Data[[#This Row],[Description]]," (",Fleet_Data[[#This Row],[Mass Scheme]],")",": ",Fleet_Data[[#This Row],[Fleet]],", ", Fleet_Data[[#This Row],[PBS Level]]) -> 2-axle prime mover and 2-axle semitrailer (HML): PBS, 1 | C37: 2-axle prime mover and 2-axle semitrailer | D37: HML | E37: PBS | F37: 1 | G37: 4 | H37: 20 | I37: A112 | J37: Class 7 | K37: Artic 4 Axle | L37: 13 | M37: Articulated | N37: =_xlfn.XLOOKUP(Fleet_Data[[#This Row],[Description]]&Fleet_Data[[#This Row],[Mass Scheme]]&Fleet_Data[[#This Row],[PBS Level]]&Fleet_Data[[#This Row],[Configuration Code]],Tare[Description]&Tare[Mass Scheme]&Tare[PBS Level]&Tare[Configuration Code],Tare[GCM (t) (100% load)],"",0) -> 32.5 | O37: =_xlfn.XLOOKUP(Fleet_Data[[#This Row],[Description]]&Fleet_Data[[#This Row],[Mass Scheme]]&Fleet_Data[[#This Row],[PBS Level]]&Fleet_Data[[#This Row],[Configuration Code]],Tare[Description]&Tare[Mass Scheme]&Tare[PBS Level]&Tare[Configuration Code],Tare[GCM (t) (75% load)],"",0) -> 28.05958403 | P37: =_xlfn.XLOOKUP(Fleet_Data[[#This Row],[Description]]&Fleet_Data[[#This Row],[Mass Scheme]]&Fleet_Data[[#This Row],[PBS Level]]&Fleet_Data[[#This Row],[Configuration Code]],Tare[Description]&Tare[Mass Scheme]&Tare[PBS Level]&Tare[Configuration Code],Tare[GCM (t) (50% load)],"",0) -> 23.61916806 | Q37: =_xlfn.XLOOKUP(Fleet_Data[[#This Row],[Description]]&Fleet_Data[[#This Row],[Mass Scheme]]&Fleet_Data[[#This Row],[PBS Level]]&Fleet_Data[[#This Row],[Configuration Code]],Tare[Description]&Tare[Mass Scheme]&Tare[PBS Level]&Tare[Configuration Code],Tare[Tare (t)],"",0) -> 14.73833612 | R37: =_xlfn.XLOOKUP(Fleet_Data[[#This Row],[Description]]&Fleet_Data[[#This Row],[Mass Scheme]]&Fleet_Data[[#This Row],[PBS Level]]&Fleet_Data[[#This Row],[Configuration Code]],Tare[Description]&Tare[Mass Scheme]&Tare[PBS Level]&Tare[Configuration Code],Tare[Payload (t)],"",0) -> 17.76166388 | S37: =_xlfn.XLOOKUP(Fleet_Data[[#This Row],[NTC Vehicle Equivalent]],NTC_Values[NTC vehicle],NTC_Values[Avg annual km],"",0) -> 75000
B38: =CONCATENATE(Fleet_Data[[#This Row],[Description]]," (",Fleet_Data[[#This Row],[Mass Scheme]],")",": ",Fleet_Data[[#This Row],[Fleet]],", ", Fleet_Data[[#This Row],[PBS Level]]) -> 3-axle prime mover and 2-axle semitrailer (GML): PBS, 1 | C38: 3-axle prime mover and 2-axle semitrailer | D38: GML | E38: PBS | F38: 1 | G38: 5 | H38: 20 | I38: A122 | J38: Class 8 | K38: Artic 5 Axle | L38: 15 | M38: Articulated | N38: =_xlfn.XLOOKUP(Fleet_Data[[#This Row],[Description]]&Fleet_Data[[#This Row],[Mass Scheme]]&Fleet_Data[[#This Row],[PBS Level]]&Fleet_Data[[#This Row],[Configuration Code]],Tare[Description]&Tare[Mass Scheme]&Tare[PBS Level]&Tare[Configuration Code],Tare[GCM (t) (100% load)],"",0) -> 39.5 | O38: =_xlfn.XLOOKUP(Fleet_Data[[#This Row],[Description]]&Fleet_Data[[#This Row],[Mass Scheme]]&Fleet_Data[[#This Row],[PBS Level]]&Fleet_Data[[#This Row],[Configuration Code]],Tare[Description]&Tare[Mass Scheme]&Tare[PBS Level]&Tare[Configuration Code],Tare[GCM (t) (75% load)],"",0) -> 34.12816585 | P38: =_xlfn.XLOOKUP(Fleet_Data[[#This Row],[Description]]&Fleet_Data[[#This Row],[Mass Scheme]]&Fleet_Data[[#This Row],[PBS Level]]&Fleet_Data[[#This Row],[Configuration Code]],Tare[Description]&Tare[Mass Scheme]&Tare[PBS Level]&Tare[Configuration Code],Tare[GCM (t) (50% load)],"",0) -> 28.7563317 | Q38: =_xlfn.XLOOKUP(Fleet_Data[[#This Row],[Description]]&Fleet_Data[[#This Row],[Mass Scheme]]&Fleet_Data[[#This Row],[PBS Level]]&Fleet_Data[[#This Row],[Configuration Code]],Tare[Description]&Tare[Mass Scheme]&Tare[PBS Level]&Tare[Configuration Code],Tare[Tare (t)],"",0) -> 18.01266341 | R38: =_xlfn.XLOOKUP(Fleet_Data[[#This Row],[Description]]&Fleet_Data[[#This Row],[Mass Scheme]]&Fleet_Data[[#This Row],[PBS Level]]&Fleet_Data[[#This Row],[Configuration Code]],Tare[Description]&Tare[Mass Scheme]&Tare[PBS Level]&Tare[Configuration Code],Tare[Payload (t)],"",0) -> 21.48733659 | S38: =_xlfn.XLOOKUP(Fleet_Data[[#This Row],[NTC Vehicle Equivalent]],NTC_Values[NTC vehicle],NTC_Values[Avg annual km],"",0) -> 85000
B39: =CONCATENATE(Fleet_Data[[#This Row],[Description]]," (",Fleet_Data[[#This Row],[Mass Scheme]],")",": ",Fleet_Data[[#This Row],[Fleet]],", ", Fleet_Data[[#This Row],[PBS Level]]) -> 3-axle prime mover and 2-axle semitrailer (CML): PBS, 1 | C39: 3-axle prime mover and 2-axle semitrailer | D39: CML | E39: PBS | F39: 1 | G39: 5 | H39: 20 | I39: A122 | J39: Class 8 | K39: Artic 5 Axle | L39: 15 | M39: Articulated | N39: =_xlfn.XLOOKUP(Fleet_Data[[#This Row],[Description]]&Fleet_Data[[#This Row],[Mass Scheme]]&Fleet_Data[[#This Row],[PBS Level]]&Fleet_Data[[#This Row],[Configuration Code]],Tare[Description]&Tare[Mass Scheme]&Tare[PBS Level]&Tare[Configuration Code],Tare[GCM (t) (100% load)],"",0) -> 40.5 | O39: =_xlfn.XLOOKUP(Fleet_Data[[#This Row],[Description]]&Fleet_Data[[#This Row],[Mass Scheme]]&Fleet_Data[[#This Row],[PBS Level]]&Fleet_Data[[#This Row],[Configuration Code]],Tare[Description]&Tare[Mass Scheme]&Tare[PBS Level]&Tare[Configuration Code],Tare[GCM (t) (75% load)],"",0) -> 34.87816585 | P39: =_xlfn.XLOOKUP(Fleet_Data[[#This Row],[Description]]&Fleet_Data[[#This Row],[Mass Scheme]]&Fleet_Data[[#This Row],[PBS Level]]&Fleet_Data[[#This Row],[Configuration Code]],Tare[Description]&Tare[Mass Scheme]&Tare[PBS Level]&Tare[Configuration Code],Tare[GCM (t) (50% load)],"",0) -> 29.2563317 | Q39: =_xlfn.XLOOKUP(Fleet_Data[[#This Row],[Description]]&Fleet_Data[[#This Row],[Mass Scheme]]&Fleet_Data[[#This Row],[PBS Level]]&Fleet_Data[[#This Row],[Configuration Code]],Tare[Description]&Tare[Mass Scheme]&Tare[PBS Level]&Tare[Configuration Code],Tare[Tare (t)],"",0) -> 18.01266341 | R39: =_xlfn.XLOOKUP(Fleet_Data[[#This Row],[Description]]&Fleet_Data[[#This Row],[Mass Scheme]]&Fleet_Data[[#This Row],[PBS Level]]&Fleet_Data[[#This Row],[Configuration Code]],Tare[Description]&Tare[Mass Scheme]&Tare[PBS Level]&Tare[Configuration Code],Tare[Payload (t)],"",0) -> 22.48733659 | S39: =_xlfn.XLOOKUP(Fleet_Data[[#This Row],[NTC Vehicle Equivalent]],NTC_Values[NTC vehicle],NTC_Values[Avg annual km],"",0) -> 85000
B40: =CONCATENATE(Fleet_Data[[#This Row],[Description]]," (",Fleet_Data[[#This Row],[Mass Scheme]],")",": ",Fleet_Data[[#This Row],[Fleet]],", ", Fleet_Data[[#This Row],[PBS Level]]) -> 3-axle prime mover and 2-axle semitrailer (HML): PBS, 1 | C40: 3-axle prime mover and 2-axle semitrailer | D40: HML | E40: PBS | F40: 1 | G40: 5 | H40: 20 | I40: A122 | J40: Class 8 | K40: Artic 5 Axle | L40: 15 | M40: Articulated | N40: =_xlfn.XLOOKUP(Fleet_Data[[#This Row],[Description]]&Fleet_Data[[#This Row],[Mass Scheme]]&Fleet_Data[[#This Row],[PBS Level]]&Fleet_Data[[#This Row],[Configuration Code]],Tare[Description]&Tare[Mass Scheme]&Tare[PBS Level]&Tare[Configuration Code],Tare[GCM (t) (100% load)],"",0) -> 40.5 | O40: =_xlfn.XLOOKUP(Fleet_Data[[#This Row],[Description]]&Fleet_Data[[#This Row],[Mass Scheme]]&Fleet_Data[[#This Row],[PBS Level]]&Fleet_Data[[#This Row],[Configuration Code]],Tare[Description]&Tare[Mass Scheme]&Tare[PBS Level]&Tare[Configuration Code],Tare[GCM (t) (75% load)],"",0) -> 34.87816585 | P40: =_xlfn.XLOOKUP(Fleet_Data[[#This Row],[Description]]&Fleet_Data[[#This Row],[Mass Scheme]]&Fleet_Data[[#This Row],[PBS Level]]&Fleet_Data[[#This Row],[Configuration Code]],Tare[Description]&Tare[Mass Scheme]&Tare[PBS Level]&Tare[Configuration Code],Tare[GCM (t) (50% load)],"",0) -> 29.2563317 | Q40: =_xlfn.XLOOKUP(Fleet_Data[[#This Row],[Description]]&Fleet_Data[[#This Row],[Mass Scheme]]&Fleet_Data[[#This Row],[PBS Level]]&Fleet_Data[[#This Row],[Configuration Code]],Tare[Description]&Tare[Mass Scheme]&Tare[PBS Level]&Tare[Configuration Code],Tare[Tare (t)],"",0) -> 18.01266341 | R40: =_xlfn.XLOOKUP(Fleet_Data[[#This Row],[Description]]&Fleet_Data[[#This Row],[Mass Scheme]]&Fleet_Data[[#This Row],[PBS Level]]&Fleet_Data[[#This Row],[Configuration Code]],Tare[Description]&Tare[Mass Scheme]&Tare[PBS Level]&Tare[Configuration Code],Tare[Payload (t)],"",0) -> 22.48733659 | S40: =_xlfn.XLOOKUP(Fleet_Data[[#This Row],[NTC Vehicle Equivalent]],NTC_Values[NTC vehicle],NTC_Values[Avg annual km],"",0) -> 85000
B41: =CONCATENATE(Fleet_Data[[#This Row],[Description]]," (",Fleet_Data[[#This Row],[Mass Scheme]],")",": ",Fleet_Data[[#This Row],[Fleet]],", ", Fleet_Data[[#This Row],[PBS Level]]) -> 3-axle prime mover and 3-axle semitrailer (GML): PBS, 1 | C41: 3-axle prime mover and 3-axle semitrailer | D41: GML | E41: PBS | F41: 1 | G41: 6 | H41: 20 | I41: A123 | J41: Class 9 | K41: Artic 6 Axle | L41: 16b | M41: Articulated | N41: =_xlfn.XLOOKUP(Fleet_Data[[#This Row],[Description]]&Fleet_Data[[#This Row],[Mass Scheme]]&Fleet_Data[[#This Row],[PBS Level]]&Fleet_Data[[#This Row],[Configuration Code]],Tare[Description]&Tare[Mass Scheme]&Tare[PBS Level]&Tare[Configuration Code],Tare[GCM (t) (100% load)],"",0) -> 43 | O41: =_xlfn.XLOOKUP(Fleet_Data[[#This Row],[Description]]&Fleet_Data[[#This Row],[Mass Scheme]]&Fleet_Data[[#This Row],[PBS Level]]&Fleet_Data[[#This Row],[Configuration Code]],Tare[Description]&Tare[Mass Scheme]&Tare[PBS Level]&Tare[Configuration Code],Tare[GCM (t) (75% load)],"",0) -> 36.75785487 | P41: =_xlfn.XLOOKUP(Fleet_Data[[#This Row],[Description]]&Fleet_Data[[#This Row],[Mass Scheme]]&Fleet_Data[[#This Row],[PBS Level]]&Fleet_Data[[#This Row],[Configuration Code]],Tare[Description]&Tare[Mass Scheme]&Tare[PBS Level]&Tare[Configuration Code],Tare[GCM (t) (50% load)],"",0) -> 30.51570974 | Q41: =_xlfn.XLOOKUP(Fleet_Data[[#This Row],[Description]]&Fleet_Data[[#This Row],[Mass Scheme]]&Fleet_Data[[#This Row],[PBS Level]]&Fleet_Data[[#This Row],[Configuration Code]],Tare[Description]&Tare[Mass Scheme]&Tare[PBS Level]&Tare[Configuration Code],Tare[Tare (t)],"",0) -> 18.03141949 | R41: =_xlfn.XLOOKUP(Fleet_Data[[#This Row],[Description]]&Fleet_Data[[#This Row],[Mass Scheme]]&Fleet_Data[[#This Row],[PBS Level]]&Fleet_Data[[#This Row],[Configuration Code]],Tare[Description]&Tare[Mass Scheme]&Tare[PBS Level]&Tare[Configuration Code],Tare[Payload (t)],"",0) -> 24.96858051 | S41: =_xlfn.XLOOKUP(Fleet_Data[[#This Row],[NTC Vehicle Equivalent]],NTC_Values[NTC vehicle],NTC_Values[Avg annual km],"",0) -> 200000
B42: =CONCATENATE(Fleet_Data[[#This Row],[Description]]," (",Fleet_Data[[#This Row],[Mass Scheme]],")",": ",Fleet_Data[[#This Row],[Fleet]],", ", Fleet_Data[[#This Row],[PBS Level]]) -> 3-axle prime mover and 3-axle semitrailer (CML): PBS, 1 | C42: 3-axle prime mover and 3-axle semitrailer | D42: CML | E42: PBS | F42: 1 | G42: 6 | H42: 20 | I42: A123 | J42: Class 9 | K42: Artic 6 Axle | L42: 16b | M42: Articulated | N42: =_xlfn.XLOOKUP(Fleet_Data[[#This Row],[Description]]&Fleet_Data[[#This Row],[Mass Scheme]]&Fleet_Data[[#This Row],[PBS Level]]&Fleet_Data[[#This Row],[Configuration Code]],Tare[Description]&Tare[Mass Scheme]&Tare[PBS Level]&Tare[Configuration Code],Tare[GCM (t) (100% load)],"",0) -> 44 | O42: =_xlfn.XLOOKUP(Fleet_Data[[#This Row],[Description]]&Fleet_Data[[#This Row],[Mass Scheme]]&Fleet_Data[[#This Row],[PBS Level]]&Fleet_Data[[#This Row],[Configuration Code]],Tare[Description]&Tare[Mass Scheme]&Tare[PBS Level]&Tare[Configuration Code],Tare[GCM (t) (75% load)],"",0) -> 37.50785487 | P42: =_xlfn.XLOOKUP(Fleet_Data[[#This Row],[Description]]&Fleet_Data[[#This Row],[Mass Scheme]]&Fleet_Data[[#This Row],[PBS Level]]&Fleet_Data[[#This Row],[Configuration Code]],Tare[Description]&Tare[Mass Scheme]&Tare[PBS Level]&Tare[Configuration Code],Tare[GCM (t) (50% load)],"",0) -> 31.01570974 | Q42: =_xlfn.XLOOKUP(Fleet_Data[[#This Row],[Description]]&Fleet_Data[[#This Row],[Mass Scheme]]&Fleet_Data[[#This Row],[PBS Level]]&Fleet_Data[[#This Row],[Configuration Code]],Tare[Description]&Tare[Mass Scheme]&Tare[PBS Level]&Tare[Configuration Code],Tare[Tare (t)],"",0) -> 18.03141949 | R42: =_xlfn.XLOOKUP(Fleet_Data[[#This Row],[Description]]&Fleet_Data[[#This Row],[Mass Scheme]]&Fleet_Data[[#This Row],[PBS Level]]&Fleet_Data[[#This Row],[Configuration Code]],Tare[Description]&Tare[Mass Scheme]&Tare[PBS Level]&Tare[Configuration Code],Tare[Payload (t)],"",0) -> 25.96858051 | S42: =_xlfn.XLOOKUP(Fleet_Data[[#This Row],[NTC Vehicle Equivalent]],NTC_Values[NTC vehicle],NTC_Values[Avg annual km],"",0) -> 200000
B43: =CONCATENATE(Fleet_Data[[#This Row],[Description]]," (",Fleet_Data[[#This Row],[Mass Scheme]],")",": ",Fleet_Data[[#This Row],[Fleet]],", ", Fleet_Data[[#This Row],[PBS Level]]) -> 3-axle prime mover and 3-axle semitrailer (HML): PBS, 1 | C43: 3-axle prime mover and 3-axle semitrailer | D43: HML | E43: PBS | F43: 1 | G43: 6 | H43: 20 | I43: A123 | J43: Class 9 | K43: Artic 6 Axle | L43: 16b | M43: Articulated | N43: =_xlfn.XLOOKUP(Fleet_Data[[#This Row],[Description]]&Fleet_Data[[#This Row],[Mass Scheme]]&Fleet_Data[[#This Row],[PBS Level]]&Fleet_Data[[#This Row],[Configuration Code]],Tare[Description]&Tare[Mass Scheme]&Tare[PBS Level]&Tare[Configuration Code],Tare[GCM (t) (100% load)],"",0) -> 46 | O43: =_xlfn.XLOOKUP(Fleet_Data[[#This Row],[Description]]&Fleet_Data[[#This Row],[Mass Scheme]]&Fleet_Data[[#This Row],[PBS Level]]&Fleet_Data[[#This Row],[Configuration Code]],Tare[Description]&Tare[Mass Scheme]&Tare[PBS Level]&Tare[Configuration Code],Tare[GCM (t) (75% load)],"",0) -> 39.00785487 | P43: =_xlfn.XLOOKUP(Fleet_Data[[#This Row],[Description]]&Fleet_Data[[#This Row],[Mass Scheme]]&Fleet_Data[[#This Row],[PBS Level]]&Fleet_Data[[#This Row],[Configuration Code]],Tare[Description]&Tare[Mass Scheme]&Tare[PBS Level]&Tare[Configuration Code],Tare[GCM (t) (50% load)],"",0) -> 32.01570974 | Q43: =_xlfn.XLOOKUP(Fleet_Data[[#This Row],[Description]]&Fleet_Data[[#This Row],[Mass Scheme]]&Fleet_Data[[#This Row],[PBS Level]]&Fleet_Data[[#This Row],[Configuration Code]],Tare[Description]&Tare[Mass Scheme]&Tare[PBS Level]&Tare[Configuration Code],Tare[Tare (t)],"",0) -> 18.03141949 | R43: =_xlfn.XLOOKUP(Fleet_Data[[#This Row],[Description]]&Fleet_Data[[#This Row],[Mass Scheme]]&Fleet_Data[[#This Row],[PBS Level]]&Fleet_Data[[#This Row],[Configuration Code]],Tare[Description]&Tare[Mass Scheme]&Tare[PBS Level]&Tare[Configuration Code],Tare[Payload (t)],"",0) -> 27.96858051 | S43: =_xlfn.XLOOKUP(Fleet_Data[[#This Row],[NTC Vehicle Equivalent]],NTC_Values[NTC vehicle],NTC_Values[Avg annual km],"",0) -> 200000
B44: =CONCATENATE(Fleet_Data[[#This Row],[Description]]," (",Fleet_Data[[#This Row],[Mass Scheme]],")",": ",Fleet_Data[[#This Row],[Fleet]],", ", Fleet_Data[[#This Row],[PBS Level]]) -> 4-axle prime mover and 3-axle semitrailer (GML): PBS, 1 | C44: 4-axle prime mover and 3-axle semitrailer | D44: GML | E44: PBS | F44: 1 | G44: 7 | H44: 20 | I44: A223 | J44: Class 9 | K44: Artic 6 Axle | L44: 16b | M44: Articulated | N44: =_xlfn.XLOOKUP(Fleet_Data[[#This Row],[Description]]&Fleet_Data[[#This Row],[Mass Scheme]]&Fleet_Data[[#This Row],[PBS Level]]&Fleet_Data[[#This Row],[Configuration Code]],Tare[Description]&Tare[Mass Scheme]&Tare[PBS Level]&Tare[Configuration Code],Tare[GCM (t) (100% load)],"",0) -> 47.5 | O44: =_xlfn.XLOOKUP(Fleet_Data[[#This Row],[Description]]&Fleet_Data[[#This Row],[Mass Scheme]]&Fleet_Data[[#This Row],[PBS Level]]&Fleet_Data[[#This Row],[Configuration Code]],Tare[Description]&Tare[Mass Scheme]&Tare[PBS Level]&Tare[Configuration Code],Tare[GCM (t) (75% load)],"",0) -> 42.64275758 | P44: =_xlfn.XLOOKUP(Fleet_Data[[#This Row],[Description]]&Fleet_Data[[#This Row],[Mass Scheme]]&Fleet_Data[[#This Row],[PBS Level]]&Fleet_Data[[#This Row],[Configuration Code]],Tare[Description]&Tare[Mass Scheme]&Tare[PBS Level]&Tare[Configuration Code],Tare[GCM (t) (50% load)],"",0) -> 37.78551515 | Q44: =_xlfn.XLOOKUP(Fleet_Data[[#This Row],[Description]]&Fleet_Data[[#This Row],[Mass Scheme]]&Fleet_Data[[#This Row],[PBS Level]]&Fleet_Data[[#This Row],[Configuration Code]],Tare[Description]&Tare[Mass Scheme]&Tare[PBS Level]&Tare[Configuration Code],Tare[Tare (t)],"",0) -> 28.0710303 | R44: =_xlfn.XLOOKUP(Fleet_Data[[#This Row],[Description]]&Fleet_Data[[#This Row],[Mass Scheme]]&Fleet_Data[[#This Row],[PBS Level]]&Fleet_Data[[#This Row],[Configuration Code]],Tare[Description]&Tare[Mass Scheme]&Tare[PBS Level]&Tare[Configuration Code],Tare[Payload (t)],"",0) -> 19.4289697 | S44: =_xlfn.XLOOKUP(Fleet_Data[[#This Row],[NTC Vehicle Equivalent]],NTC_Values[NTC vehicle],NTC_Values[Avg annual km],"",0) -> 200000
B45: =CONCATENATE(Fleet_Data[[#This Row],[Description]]," (",Fleet_Data[[#This Row],[Mass Scheme]],")",": ",Fleet_Data[[#This Row],[Fleet]],", ", Fleet_Data[[#This Row],[PBS Level]]) -> 4-axle prime mover and 3-axle semitrailer (CML): PBS, 1 | C45: 4-axle prime mover and 3-axle semitrailer | D45: CML | E45: PBS | F45: 1 | G45: 7 | H45: 20 | I45: A223 | J45: Class 9 | K45: Artic 6 Axle | L45: 16b | M45: Articulated | N45: =_xlfn.XLOOKUP(Fleet_Data[[#This Row],[Description]]&Fleet_Data[[#This Row],[Mass Scheme]]&Fleet_Data[[#This Row],[PBS Level]]&Fleet_Data[[#This Row],[Configuration Code]],Tare[Description]&Tare[Mass Scheme]&Tare[PBS Level]&Tare[Configuration Code],Tare[GCM (t) (100% load)],"",0) -> 48.5 | O45: =_xlfn.XLOOKUP(Fleet_Data[[#This Row],[Description]]&Fleet_Data[[#This Row],[Mass Scheme]]&Fleet_Data[[#This Row],[PBS Level]]&Fleet_Data[[#This Row],[Configuration Code]],Tare[Description]&Tare[Mass Scheme]&Tare[PBS Level]&Tare[Configuration Code],Tare[GCM (t) (75% load)],"",0) -> 43.39275758 | P45: =_xlfn.XLOOKUP(Fleet_Data[[#This Row],[Description]]&Fleet_Data[[#This Row],[Mass Scheme]]&Fleet_Data[[#This Row],[PBS Level]]&Fleet_Data[[#This Row],[Configuration Code]],Tare[Description]&Tare[Mass Scheme]&Tare[PBS Level]&Tare[Configuration Code],Tare[GCM (t) (50% load)],"",0) -> 38.28551515 | Q45: =_xlfn.XLOOKUP(Fleet_Data[[#This Row],[Description]]&Fleet_Data[[#This Row],[Mass Scheme]]&Fleet_Data[[#This Row],[PBS Level]]&Fleet_Data[[#This Row],[Configuration Code]],Tare[Description]&Tare[Mass Scheme]&Tare[PBS Level]&Tare[Configuration Code],Tare[Tare (t)],"",0) -> 28.0710303 | R45: =_xlfn.XLOOKUP(Fleet_Data[[#This Row],[Description]]&Fleet_Data[[#This Row],[Mass Scheme]]&Fleet_Data[[#This Row],[PBS Level]]&Fleet_Data[[#This Row],[Configuration Code]],Tare[Description]&Tare[Mass Scheme]&Tare[PBS Level]&Tare[Configuration Code],Tare[Payload (t)],"",0) -> 20.4289697 | S45: =_xlfn.XLOOKUP(Fleet_Data[[#This Row],[NTC Vehicle Equivalent]],NTC_Values[NTC vehicle],NTC_Values[Avg annual km],"",0) -> 200000
B46: =CONCATENATE(Fleet_Data[[#This Row],[Description]]," (",Fleet_Data[[#This Row],[Mass Scheme]],")",": ",Fleet_Data[[#This Row],[Fleet]],", ", Fleet_Data[[#This Row],[PBS Level]]) -> 4-axle prime mover and 3-axle semitrailer (HML): PBS, 1 | C46: 4-axle prime mover and 3-axle semitrailer | D46: HML | E46: PBS | F46: 1 | G46: 7 | H46: 20 | I46: A223 | J46: Class 9 | K46: Artic 6 Axle | L46: 16b | M46: Articulated | N46: =_xlfn.XLOOKUP(Fleet_Data[[#This Row],[Description]]&Fleet_Data[[#This Row],[Mass Scheme]]&Fleet_Data[[#This Row],[PBS Level]]&Fleet_Data[[#This Row],[Configuration Code]],Tare[Description]&Tare[Mass Scheme]&Tare[PBS Level]&Tare[Configuration Code],Tare[GCM (t) (100% load)],"",0) -> 50 | O46: =_xlfn.XLOOKUP(Fleet_Data[[#This Row],[Description]]&Fleet_Data[[#This Row],[Mass Scheme]]&Fleet_Data[[#This Row],[PBS Level]]&Fleet_Data[[#This Row],[Configuration Code]],Tare[Description]&Tare[Mass Scheme]&Tare[PBS Level]&Tare[Configuration Code],Tare[GCM (t) (75% load)],"",0) -> 44.51775758 | P46: =_xlfn.XLOOKUP(Fleet_Data[[#This Row],[Description]]&Fleet_Data[[#This Row],[Mass Scheme]]&Fleet_Data[[#This Row],[PBS Level]]&Fleet_Data[[#This Row],[Configuration Code]],Tare[Description]&Tare[Mass Scheme]&Tare[PBS Level]&Tare[Configuration Code],Tare[GCM (t) (50% load)],"",0) -> 39.03551515 | Q46: =_xlfn.XLOOKUP(Fleet_Data[[#This Row],[Description]]&Fleet_Data[[#This Row],[Mass Scheme]]&Fleet_Data[[#This Row],[PBS Level]]&Fleet_Data[[#This Row],[Configuration Code]],Tare[Description]&Tare[Mass Scheme]&Tare[PBS Level]&Tare[Configuration Code],Tare[Tare (t)],"",0) -> 28.0710303 | R46: =_xlfn.XLOOKUP(Fleet_Data[[#This Row],[Description]]&Fleet_Data[[#This Row],[Mass Scheme]]&Fleet_Data[[#This Row],[PBS Level]]&Fleet_Data[[#This Row],[Configuration Code]],Tare[Description]&Tare[Mass Scheme]&Tare[PBS Level]&Tare[Configuration Code],Tare[Payload (t)],"",0) -> 21.9289697 | S46: =_xlfn.XLOOKUP(Fleet_Data[[#This Row],[NTC Vehicle Equivalent]],NTC_Values[NTC vehicle],NTC_Values[Avg annual km],"",0) -> 200000
B47: =CONCATENATE(Fleet_Data[[#This Row],[Description]]," (",Fleet_Data[[#This Row],[Mass Scheme]],")",": ",Fleet_Data[[#This Row],[Fleet]],", ", Fleet_Data[[#This Row],[PBS Level]]) -> 3-axle prime mover and quad-axle semitrailer (GML): PBS, 1 | C47: 3-axle prime mover and quad-axle semitrailer | D47: GML | E47: PBS | F47: 1 | G47: 7 | H47: 20 | I47: A124 | J47: Class 9 | K47: Artic 6 Axle | L47: 16b | M47: Articulated | N47: =_xlfn.XLOOKUP(Fleet_Data[[#This Row],[Description]]&Fleet_Data[[#This Row],[Mass Scheme]]&Fleet_Data[[#This Row],[PBS Level]]&Fleet_Data[[#This Row],[Configuration Code]],Tare[Description]&Tare[Mass Scheme]&Tare[PBS Level]&Tare[Configuration Code],Tare[GCM (t) (100% load)],"",0) -> 43 | O47: =_xlfn.XLOOKUP(Fleet_Data[[#This Row],[Description]]&Fleet_Data[[#This Row],[Mass Scheme]]&Fleet_Data[[#This Row],[PBS Level]]&Fleet_Data[[#This Row],[Configuration Code]],Tare[Description]&Tare[Mass Scheme]&Tare[PBS Level]&Tare[Configuration Code],Tare[GCM (t) (75% load)],"",0) -> 37.73385814 | P47: =_xlfn.XLOOKUP(Fleet_Data[[#This Row],[Description]]&Fleet_Data[[#This Row],[Mass Scheme]]&Fleet_Data[[#This Row],[PBS Level]]&Fleet_Data[[#This Row],[Configuration Code]],Tare[Description]&Tare[Mass Scheme]&Tare[PBS Level]&Tare[Configuration Code],Tare[GCM (t) (50% load)],"",0) -> 32.46771628 | Q47: =_xlfn.XLOOKUP(Fleet_Data[[#This Row],[Description]]&Fleet_Data[[#This Row],[Mass Scheme]]&Fleet_Data[[#This Row],[PBS Level]]&Fleet_Data[[#This Row],[Configuration Code]],Tare[Description]&Tare[Mass Scheme]&Tare[PBS Level]&Tare[Configuration Code],Tare[Tare (t)],"",0) -> 21.93543256 | R47: =_xlfn.XLOOKUP(Fleet_Data[[#This Row],[Description]]&Fleet_Data[[#This Row],[Mass Scheme]]&Fleet_Data[[#This Row],[PBS Level]]&Fleet_Data[[#This Row],[Configuration Code]],Tare[Description]&Tare[Mass Scheme]&Tare[PBS Level]&Tare[Configuration Code],Tare[Payload (t)],"",0) -> 21.06456744 | S47: =_xlfn.XLOOKUP(Fleet_Data[[#This Row],[NTC Vehicle Equivalent]],NTC_Values[NTC vehicle],NTC_Values[Avg annual km],"",0) -> 200000
B48: =CONCATENATE(Fleet_Data[[#This Row],[Description]]," (",Fleet_Data[[#This Row],[Mass Scheme]],")",": ",Fleet_Data[[#This Row],[Fleet]],", ", Fleet_Data[[#This Row],[PBS Level]]) -> 3-axle prime mover and quad-axle semitrailer (CML): PBS, 1 | C48: 3-axle prime mover and quad-axle semitrailer | D48: CML | E48: PBS | F48: 1 | G48: 7 | H48: 20 | I48: A124 | J48: Class 9 | K48: Artic 6 Axle | L48: 16b | M48: Articulated | N48: =_xlfn.XLOOKUP(Fleet_Data[[#This Row],[Description]]&Fleet_Data[[#This Row],[Mass Scheme]]&Fleet_Data[[#This Row],[PBS Level]]&Fleet_Data[[#This Row],[Configuration Code]],Tare[Description]&Tare[Mass Scheme]&Tare[PBS Level]&Tare[Configuration Code],Tare[GCM (t) (100% load)],"",0) -> 44 | O48: =_xlfn.XLOOKUP(Fleet_Data[[#This Row],[Description]]&Fleet_Data[[#This Row],[Mass Scheme]]&Fleet_Data[[#This Row],[PBS Level]]&Fleet_Data[[#This Row],[Configuration Code]],Tare[Description]&Tare[Mass Scheme]&Tare[PBS Level]&Tare[Configuration Code],Tare[GCM (t) (75% load)],"",0) -> 38.48385814 | P48: =_xlfn.XLOOKUP(Fleet_Data[[#This Row],[Description]]&Fleet_Data[[#This Row],[Mass Scheme]]&Fleet_Data[[#This Row],[PBS Level]]&Fleet_Data[[#This Row],[Configuration Code]],Tare[Description]&Tare[Mass Scheme]&Tare[PBS Level]&Tare[Configuration Code],Tare[GCM (t) (50% load)],"",0) -> 32.96771628 | Q48: =_xlfn.XLOOKUP(Fleet_Data[[#This Row],[Description]]&Fleet_Data[[#This Row],[Mass Scheme]]&Fleet_Data[[#This Row],[PBS Level]]&Fleet_Data[[#This Row],[Configuration Code]],Tare[Description]&Tare[Mass Scheme]&Tare[PBS Level]&Tare[Configuration Code],Tare[Tare (t)],"",0) -> 21.93543256 | R48: =_xlfn.XLOOKUP(Fleet_Data[[#This Row],[Description]]&Fleet_Data[[#This Row],[Mass Scheme]]&Fleet_Data[[#This Row],[PBS Level]]&Fleet_Data[[#This Row],[Configuration Code]],Tare[Description]&Tare[Mass Scheme]&Tare[PBS Level]&Tare[Configuration Code],Tare[Payload (t)],"",0) -> 22.06456744 | S48: =_xlfn.XLOOKUP(Fleet_Data[[#This Row],[NTC Vehicle Equivalent]],NTC_Values[NTC vehicle],NTC_Values[Avg annual km],"",0) -> 200000
B49: =CONCATENATE(Fleet_Data[[#This Row],[Description]]," (",Fleet_Data[[#This Row],[Mass Scheme]],")",": ",Fleet_Data[[#This Row],[Fleet]],", ", Fleet_Data[[#This Row],[PBS Level]]) -> 3-axle prime mover and quad-axle semitrailer (HML): PBS, 1 | C49: 3-axle prime mover and quad-axle semitrailer | D49: HML | E49: PBS | F49: 1 | G49: 7 | H49: 20 | I49: A124 | J49: Class 9 | K49: Artic 6 Axle | L49: 16b | M49: Articulated | N49: =_xlfn.XLOOKUP(Fleet_Data[[#This Row],[Description]]&Fleet_Data[[#This Row],[Mass Scheme]]&Fleet_Data[[#This Row],[PBS Level]]&Fleet_Data[[#This Row],[Configuration Code]],Tare[Description]&Tare[Mass Scheme]&Tare[PBS Level]&Tare[Configuration Code],Tare[GCM (t) (100% load)],"",0) -> 50.5 | O49: =_xlfn.XLOOKUP(Fleet_Data[[#This Row],[Description]]&Fleet_Data[[#This Row],[Mass Scheme]]&Fleet_Data[[#This Row],[PBS Level]]&Fleet_Data[[#This Row],[Configuration Code]],Tare[Description]&Tare[Mass Scheme]&Tare[PBS Level]&Tare[Configuration Code],Tare[GCM (t) (75% load)],"",0) -> 43.35885814 | P49: =_xlfn.XLOOKUP(Fleet_Data[[#This Row],[Description]]&Fleet_Data[[#This Row],[Mass Scheme]]&Fleet_Data[[#This Row],[PBS Level]]&Fleet_Data[[#This Row],[Configuration Code]],Tare[Description]&Tare[Mass Scheme]&Tare[PBS Level]&Tare[Configuration Code],Tare[GCM (t) (50% load)],"",0) -> 36.21771628 | Q49: =_xlfn.XLOOKUP(Fleet_Data[[#This Row],[Description]]&Fleet_Data[[#This Row],[Mass Scheme]]&Fleet_Data[[#This Row],[PBS Level]]&Fleet_Data[[#This Row],[Configuration Code]],Tare[Description]&Tare[Mass Scheme]&Tare[PBS Level]&Tare[Configuration Code],Tare[Tare (t)],"",0) -> 21.93543256 | R49: =_xlfn.XLOOKUP(Fleet_Data[[#This Row],[Description]]&Fleet_Data[[#This Row],[Mass Scheme]]&Fleet_Data[[#This Row],[PBS Level]]&Fleet_Data[[#This Row],[Configuration Code]],Tare[Description]&Tare[Mass Scheme]&Tare[PBS Level]&Tare[Configuration Code],Tare[Payload (t)],"",0) -> 28.56456744 | S49: =_xlfn.XLOOKUP(Fleet_Data[[#This Row],[NTC Vehicle Equivalent]],NTC_Values[NTC vehicle],NTC_Values[Avg annual km],"",0) -> 200000
B50: =CONCATENATE(Fleet_Data[[#This Row],[Description]]," (",Fleet_Data[[#This Row],[Mass Scheme]],")",": ",Fleet_Data[[#This Row],[Fleet]],", ", Fleet_Data[[#This Row],[PBS Level]]) -> 4-axle prime mover and quad-axle semitrailer (GML): PBS, 1 | C50: 4-axle prime mover and quad-axle semitrailer | D50: GML | E50: PBS | F50: 1 | G50: 8 | H50: 20 | I50: A224 | J50: Class 9 | K50: Artic 6 Axle | L50: 16b | M50: Articulated | N50: =_xlfn.XLOOKUP(Fleet_Data[[#This Row],[Description]]&Fleet_Data[[#This Row],[Mass Scheme]]&Fleet_Data[[#This Row],[PBS Level]]&Fleet_Data[[#This Row],[Configuration Code]],Tare[Description]&Tare[Mass Scheme]&Tare[PBS Level]&Tare[Configuration Code],Tare[GCM (t) (100% load)],"",0) -> 47.5 | O50: =_xlfn.XLOOKUP(Fleet_Data[[#This Row],[Description]]&Fleet_Data[[#This Row],[Mass Scheme]]&Fleet_Data[[#This Row],[PBS Level]]&Fleet_Data[[#This Row],[Configuration Code]],Tare[Description]&Tare[Mass Scheme]&Tare[PBS Level]&Tare[Configuration Code],Tare[GCM (t) (75% load)],"",0) -> 43.61876084 | P50: =_xlfn.XLOOKUP(Fleet_Data[[#This Row],[Description]]&Fleet_Data[[#This Row],[Mass Scheme]]&Fleet_Data[[#This Row],[PBS Level]]&Fleet_Data[[#This Row],[Configuration Code]],Tare[Description]&Tare[Mass Scheme]&Tare[PBS Level]&Tare[Configuration Code],Tare[GCM (t) (50% load)],"",0) -> 39.73752169 | Q50: =_xlfn.XLOOKUP(Fleet_Data[[#This Row],[Description]]&Fleet_Data[[#This Row],[Mass Scheme]]&Fleet_Data[[#This Row],[PBS Level]]&Fleet_Data[[#This Row],[Configuration Code]],Tare[Description]&Tare[Mass Scheme]&Tare[PBS Level]&Tare[Configuration Code],Tare[Tare (t)],"",0) -> 31.97504337 | R50: =_xlfn.XLOOKUP(Fleet_Data[[#This Row],[Description]]&Fleet_Data[[#This Row],[Mass Scheme]]&Fleet_Data[[#This Row],[PBS Level]]&Fleet_Data[[#This Row],[Configuration Code]],Tare[Description]&Tare[Mass Scheme]&Tare[PBS Level]&Tare[Configuration Code],Tare[Payload (t)],"",0) -> 15.52495663 | S50: =_xlfn.XLOOKUP(Fleet_Data[[#This Row],[NTC Vehicle Equivalent]],NTC_Values[NTC vehicle],NTC_Values[Avg annual km],"",0) -> 200000
B51: =CONCATENATE(Fleet_Data[[#This Row],[Description]]," (",Fleet_Data[[#This Row],[Mass Scheme]],")",": ",Fleet_Data[[#This Row],[Fleet]],", ", Fleet_Data[[#This Row],[PBS Level]]) -> 4-axle prime mover and quad-axle semitrailer (CML): PBS, 1 | C51: 4-axle prime mover and quad-axle semitrailer | D51: CML | E51: PBS | F51: 1 | G51: 8 | H51: 20 | I51: A224 | J51: Class 9 | K51: Artic 6 Axle | L51: 16b | M51: Articulated | N51: =_xlfn.XLOOKUP(Fleet_Data[[#This Row],[Description]]&Fleet_Data[[#This Row],[Mass Scheme]]&Fleet_Data[[#This Row],[PBS Level]]&Fleet_Data[[#This Row],[Configuration Code]],Tare[Description]&Tare[Mass Scheme]&Tare[PBS Level]&Tare[Configuration Code],Tare[GCM (t) (100% load)],"",0) -> 48.5 | O51: =_xlfn.XLOOKUP(Fleet_Data[[#This Row],[Description]]&Fleet_Data[[#This Row],[Mass Scheme]]&Fleet_Data[[#This Row],[PBS Level]]&Fleet_Data[[#This Row],[Configuration Code]],Tare[Description]&Tare[Mass Scheme]&Tare[PBS Level]&Tare[Configuration Code],Tare[GCM (t) (75% load)],"",0) -> 44.36876084 | P51: =_xlfn.XLOOKUP(Fleet_Data[[#This Row],[Description]]&Fleet_Data[[#This Row],[Mass Scheme]]&Fleet_Data[[#This Row],[PBS Level]]&Fleet_Data[[#This Row],[Configuration Code]],Tare[Description]&Tare[Mass Scheme]&Tare[PBS Level]&Tare[Configuration Code],Tare[GCM (t) (50% load)],"",0) -> 40.23752169 | Q51: =_xlfn.XLOOKUP(Fleet_Data[[#This Row],[Description]]&Fleet_Data[[#This Row],[Mass Scheme]]&Fleet_Data[[#This Row],[PBS Level]]&Fleet_Data[[#This Row],[Configuration Code]],Tare[Description]&Tare[Mass Scheme]&Tare[PBS Level]&Tare[Configuration Code],Tare[Tare (t)],"",0) -> 31.97504337 | R51: =_xlfn.XLOOKUP(Fleet_Data[[#This Row],[Description]]&Fleet_Data[[#This Row],[Mass Scheme]]&Fleet_Data[[#This Row],[PBS Level]]&Fleet_Data[[#This Row],[Configuration Code]],Tare[Description]&Tare[Mass Scheme]&Tare[PBS Level]&Tare[Configuration Code],Tare[Payload (t)],"",0) -> 16.52495663 | S51: =_xlfn.XLOOKUP(Fleet_Data[[#This Row],[NTC Vehicle Equivalent]],NTC_Values[NTC vehicle],NTC_Values[Avg annual km],"",0) -> 200000
B52: =CONCATENATE(Fleet_Data[[#This Row],[Description]]," (",Fleet_Data[[#This Row],[Mass Scheme]],")",": ",Fleet_Data[[#This Row],[Fleet]],", ", Fleet_Data[[#This Row],[PBS Level]]) -> 4-axle prime mover and quad-axle semitrailer (HML): PBS, 1 | C52: 4-axle prime mover and quad-axle semitrailer | D52: HML | E52: PBS | F52: 1 | G52: 8 | H52: 20 | I52: A224 | J52: Class 9 | K52: Artic 6 Axle | L52: 16b | M52: Articulated | N52: =_xlfn.XLOOKUP(Fleet_Data[[#This Row],[Description]]&Fleet_Data[[#This Row],[Mass Scheme]]&Fleet_Data[[#This Row],[PBS Level]]&Fleet_Data[[#This Row],[Configuration Code]],Tare[Description]&Tare[Mass Scheme]&Tare[PBS Level]&Tare[Configuration Code],Tare[GCM (t) (100% load)],"",0) -> 50 | O52: =_xlfn.XLOOKUP(Fleet_Data[[#This Row],[Description]]&Fleet_Data[[#This Row],[Mass Scheme]]&Fleet_Data[[#This Row],[PBS Level]]&Fleet_Data[[#This Row],[Configuration Code]],Tare[Description]&Tare[Mass Scheme]&Tare[PBS Level]&Tare[Configuration Code],Tare[GCM (t) (75% load)],"",0) -> 45.49376084 | P52: =_xlfn.XLOOKUP(Fleet_Data[[#This Row],[Description]]&Fleet_Data[[#This Row],[Mass Scheme]]&Fleet_Data[[#This Row],[PBS Level]]&Fleet_Data[[#This Row],[Configuration Code]],Tare[Description]&Tare[Mass Scheme]&Tare[PBS Level]&Tare[Configuration Code],Tare[GCM (t) (50% load)],"",0) -> 40.98752169 | Q52: =_xlfn.XLOOKUP(Fleet_Data[[#This Row],[Description]]&Fleet_Data[[#This Row],[Mass Scheme]]&Fleet_Data[[#This Row],[PBS Level]]&Fleet_Data[[#This Row],[Configuration Code]],Tare[Description]&Tare[Mass Scheme]&Tare[PBS Level]&Tare[Configuration Code],Tare[Tare (t)],"",0) -> 31.97504337 | R52: =_xlfn.XLOOKUP(Fleet_Data[[#This Row],[Description]]&Fleet_Data[[#This Row],[Mass Scheme]]&Fleet_Data[[#This Row],[PBS Level]]&Fleet_Data[[#This Row],[Configuration Code]],Tare[Description]&Tare[Mass Scheme]&Tare[PBS Level]&Tare[Configuration Code],Tare[Payload (t)],"",0) -> 18.02495663 | S52: =_xlfn.XLOOKUP(Fleet_Data[[#This Row],[NTC Vehicle Equivalent]],NTC_Values[NTC vehicle],NTC_Values[Avg annual km],"",0) -> 200000
B53: =CONCATENATE(Fleet_Data[[#This Row],[Description]]," (",Fleet_Data[[#This Row],[Mass Scheme]],")",": ",Fleet_Data[[#This Row],[Fleet]],", ", Fleet_Data[[#This Row],[PBS Level]]) -> 4-axle prime mover and quad-axle semitrailer (GML): PBS, 2 | C53: 4-axle prime mover and quad-axle semitrailer | D53: GML | E53: PBS | F53: 2 | G53: 8 | H53: 21 | I53: A224 | J53: Class 9 | K53: Artic 6 Axle | L53: 16b | M53: Articulated | N53: =_xlfn.XLOOKUP(Fleet_Data[[#This Row],[Description]]&Fleet_Data[[#This Row],[Mass Scheme]]&Fleet_Data[[#This Row],[PBS Level]]&Fleet_Data[[#This Row],[Configuration Code]],Tare[Description]&Tare[Mass Scheme]&Tare[PBS Level]&Tare[Configuration Code],Tare[GCM (t) (100% load)],"",0) -> 47.5 | O53: =_xlfn.XLOOKUP(Fleet_Data[[#This Row],[Description]]&Fleet_Data[[#This Row],[Mass Scheme]]&Fleet_Data[[#This Row],[PBS Level]]&Fleet_Data[[#This Row],[Configuration Code]],Tare[Description]&Tare[Mass Scheme]&Tare[PBS Level]&Tare[Configuration Code],Tare[GCM (t) (75% load)],"",0) -> 43.61876084 | P53: =_xlfn.XLOOKUP(Fleet_Data[[#This Row],[Description]]&Fleet_Data[[#This Row],[Mass Scheme]]&Fleet_Data[[#This Row],[PBS Level]]&Fleet_Data[[#This Row],[Configuration Code]],Tare[Description]&Tare[Mass Scheme]&Tare[PBS Level]&Tare[Configuration Code],Tare[GCM (t) (50% load)],"",0) -> 39.73752169 | Q53: =_xlfn.XLOOKUP(Fleet_Data[[#This Row],[Description]]&Fleet_Data[[#This Row],[Mass Scheme]]&Fleet_Data[[#This Row],[PBS Level]]&Fleet_Data[[#This Row],[Configuration Code]],Tare[Description]&Tare[Mass Scheme]&Tare[PBS Level]&Tare[Configuration Code],Tare[Tare (t)],"",0) -> 31.97504337 | R53: =_xlfn.XLOOKUP(Fleet_Data[[#This Row],[Description]]&Fleet_Data[[#This Row],[Mass Scheme]]&Fleet_Data[[#This Row],[PBS Level]]&Fleet_Data[[#This Row],[Configuration Code]],Tare[Description]&Tare[Mass Scheme]&Tare[PBS Level]&Tare[Configuration Code],Tare[Payload (t)],"",0) -> 15.52495663 | S53: =_xlfn.XLOOKUP(Fleet_Data[[#This Row],[NTC Vehicle Equivalent]],NTC_Values[NTC vehicle],NTC_Values[Avg annual km],"",0) -> 200000
B54: =CONCATENATE(Fleet_Data[[#This Row],[Description]]," (",Fleet_Data[[#This Row],[Mass Scheme]],")",": ",Fleet_Data[[#This Row],[Fleet]],", ", Fleet_Data[[#This Row],[PBS Level]]) -> 4-axle prime mover and quad-axle semitrailer (CML): PBS, 2 | C54: 4-axle prime mover and quad-axle semitrailer | D54: CML | E54: PBS | F54: 2 | G54: 8 | H54: 21 | I54: A224 | J54: Class 9 | K54: Artic 6 Axle | L54: 16b | M54: Articulated | N54: =_xlfn.XLOOKUP(Fleet_Data[[#This Row],[Description]]&Fleet_Data[[#This Row],[Mass Scheme]]&Fleet_Data[[#This Row],[PBS Level]]&Fleet_Data[[#This Row],[Configuration Code]],Tare[Description]&Tare[Mass Scheme]&Tare[PBS Level]&Tare[Configuration Code],Tare[GCM (t) (100% load)],"",0) -> 48.5 | O54: =_xlfn.XLOOKUP(Fleet_Data[[#This Row],[Description]]&Fleet_Data[[#This Row],[Mass Scheme]]&Fleet_Data[[#This Row],[PBS Level]]&Fleet_Data[[#This Row],[Configuration Code]],Tare[Description]&Tare[Mass Scheme]&Tare[PBS Level]&Tare[Configuration Code],Tare[GCM (t) (75% load)],"",0) -> 44.36876084 | P54: =_xlfn.XLOOKUP(Fleet_Data[[#This Row],[Description]]&Fleet_Data[[#This Row],[Mass Scheme]]&Fleet_Data[[#This Row],[PBS Level]]&Fleet_Data[[#This Row],[Configuration Code]],Tare[Description]&Tare[Mass Scheme]&Tare[PBS Level]&Tare[Configuration Code],Tare[GCM (t) (50% load)],"",0) -> 40.23752169 | Q54: =_xlfn.XLOOKUP(Fleet_Data[[#This Row],[Description]]&Fleet_Data[[#This Row],[Mass Scheme]]&Fleet_Data[[#This Row],[PBS Level]]&Fleet_Data[[#This Row],[Configuration Code]],Tare[Description]&Tare[Mass Scheme]&Tare[PBS Level]&Tare[Configuration Code],Tare[Tare (t)],"",0) -> 31.97504337 | R54: =_xlfn.XLOOKUP(Fleet_Data[[#This Row],[Description]]&Fleet_Data[[#This Row],[Mass Scheme]]&Fleet_Data[[#This Row],[PBS Level]]&Fleet_Data[[#This Row],[Configuration Code]],Tare[Description]&Tare[Mass Scheme]&Tare[PBS Level]&Tare[Configuration Code],Tare[Payload (t)],"",0) -> 16.52495663 | S54: =_xlfn.XLOOKUP(Fleet_Data[[#This Row],[NTC Vehicle Equivalent]],NTC_Values[NTC vehicle],NTC_Values[Avg annual km],"",0) -> 200000
B55: =CONCATENATE(Fleet_Data[[#This Row],[Description]]," (",Fleet_Data[[#This Row],[Mass Scheme]],")",": ",Fleet_Data[[#This Row],[Fleet]],", ", Fleet_Data[[#This Row],[PBS Level]]) -> 4-axle prime mover and quad-axle semitrailer (HML): PBS, 2 | C55: 4-axle prime mover and quad-axle semitrailer | D55: HML | E55: PBS | F55: 2 | G55: 8 | H55: 21 | I55: A224 | J55: Class 9 | K55: Artic 6 Axle | L55: 16b | M55: Articulated | N55: =_xlfn.XLOOKUP(Fleet_Data[[#This Row],[Description]]&Fleet_Data[[#This Row],[Mass Scheme]]&Fleet_Data[[#This Row],[PBS Level]]&Fleet_Data[[#This Row],[Configuration Code]],Tare[Description]&Tare[Mass Scheme]&Tare[PBS Level]&Tare[Configuration Code],Tare[GCM (t) (100% load)],"",0) -> 55 | O55: =_xlfn.XLOOKUP(Fleet_Data[[#This Row],[Description]]&Fleet_Data[[#This Row],[Mass Scheme]]&Fleet_Data[[#This Row],[PBS Level]]&Fleet_Data[[#This Row],[Configuration Code]],Tare[Description]&Tare[Mass Scheme]&Tare[PBS Level]&Tare[Configuration Code],Tare[GCM (t) (75% load)],"",0) -> 49.24376084 | P55: =_xlfn.XLOOKUP(Fleet_Data[[#This Row],[Description]]&Fleet_Data[[#This Row],[Mass Scheme]]&Fleet_Data[[#This Row],[PBS Level]]&Fleet_Data[[#This Row],[Configuration Code]],Tare[Description]&Tare[Mass Scheme]&Tare[PBS Level]&Tare[Configuration Code],Tare[GCM (t) (50% load)],"",0) -> 43.48752169 | Q55: =_xlfn.XLOOKUP(Fleet_Data[[#This Row],[Description]]&Fleet_Data[[#This Row],[Mass Scheme]]&Fleet_Data[[#This Row],[PBS Level]]&Fleet_Data[[#This Row],[Configuration Code]],Tare[Description]&Tare[Mass Scheme]&Tare[PBS Level]&Tare[Configuration Code],Tare[Tare (t)],"",0) -> 31.97504337 | R55: =_xlfn.XLOOKUP(Fleet_Data[[#This Row],[Description]]&Fleet_Data[[#This Row],[Mass Scheme]]&Fleet_Data[[#This Row],[PBS Level]]&Fleet_Data[[#This Row],[Configuration Code]],Tare[Description]&Tare[Mass Scheme]&Tare[PBS Level]&Tare[Configuration Code],Tare[Payload (t)],"",0) -> 23.02495663 | S55: =_xlfn.XLOOKUP(Fleet_Data[[#This Row],[NTC Vehicle Equivalent]],NTC_Values[NTC vehicle],NTC_Values[Avg annual km],"",0) -> 200000
B56: =CONCATENATE(Fleet_Data[[#This Row],[Description]]," (",Fleet_Data[[#This Row],[Mass Scheme]],")",": ",Fleet_Data[[#This Row],[Fleet]],", ", Fleet_Data[[#This Row],[PBS Level]]) -> Prime mover and semitrailer with 2 axle groups (2-1) (GML): PBS, 1 | C56: Prime mover and semitrailer with 2 axle groups (2-1) | D56: GML | E56: PBS | F56: 1 | G56: 6 | H56: 20 | I56: A1221 | J56: Class 9 | K56: Artic 6 Axle | L56: 16b | M56: Articulated | N56: =_xlfn.XLOOKUP(Fleet_Data[[#This Row],[Description]]&Fleet_Data[[#This Row],[Mass Scheme]]&Fleet_Data[[#This Row],[PBS Level]]&Fleet_Data[[#This Row],[Configuration Code]],Tare[Description]&Tare[Mass Scheme]&Tare[PBS Level]&Tare[Configuration Code],Tare[GCM (t) (100% load)],"",0) -> 48 | O56: =_xlfn.XLOOKUP(Fleet_Data[[#This Row],[Description]]&Fleet_Data[[#This Row],[Mass Scheme]]&Fleet_Data[[#This Row],[PBS Level]]&Fleet_Data[[#This Row],[Configuration Code]],Tare[Description]&Tare[Mass Scheme]&Tare[PBS Level]&Tare[Configuration Code],Tare[GCM (t) (75% load)],"",0) -> 41.41952002 | P56: =_xlfn.XLOOKUP(Fleet_Data[[#This Row],[Description]]&Fleet_Data[[#This Row],[Mass Scheme]]&Fleet_Data[[#This Row],[PBS Level]]&Fleet_Data[[#This Row],[Configuration Code]],Tare[Description]&Tare[Mass Scheme]&Tare[PBS Level]&Tare[Configuration Code],Tare[GCM (t) (50% load)],"",0) -> 34.83904004 | Q56: =_xlfn.XLOOKUP(Fleet_Data[[#This Row],[Description]]&Fleet_Data[[#This Row],[Mass Scheme]]&Fleet_Data[[#This Row],[PBS Level]]&Fleet_Data[[#This Row],[Configuration Code]],Tare[Description]&Tare[Mass Scheme]&Tare[PBS Level]&Tare[Configuration Code],Tare[Tare (t)],"",0) -> 21.67808007 | R56: =_xlfn.XLOOKUP(Fleet_Data[[#This Row],[Description]]&Fleet_Data[[#This Row],[Mass Scheme]]&Fleet_Data[[#This Row],[PBS Level]]&Fleet_Data[[#This Row],[Configuration Code]],Tare[Description]&Tare[Mass Scheme]&Tare[PBS Level]&Tare[Configuration Code],Tare[Payload (t)],"",0) -> 26.32191993 | S56: =_xlfn.XLOOKUP(Fleet_Data[[#This Row],[NTC Vehicle Equivalent]],NTC_Values[NTC vehicle],NTC_Values[Avg annual km],"",0) -> 200000
B57: =CONCATENATE(Fleet_Data[[#This Row],[Description]]," (",Fleet_Data[[#This Row],[Mass Scheme]],")",": ",Fleet_Data[[#This Row],[Fleet]],", ", Fleet_Data[[#This Row],[PBS Level]]) -> Prime mover and semitrailer with 2 axle groups (2-1) (CML): PBS, 1 | C57: Prime mover and semitrailer with 2 axle groups (2-1) | D57: CML | E57: PBS | F57: 1 | G57: 6 | H57: 20 | I57: A1221 | J57: Class 9 | K57: Artic 6 Axle | L57: 16b | M57: Articulated | N57: =_xlfn.XLOOKUP(Fleet_Data[[#This Row],[Description]]&Fleet_Data[[#This Row],[Mass Scheme]]&Fleet_Data[[#This Row],[PBS Level]]&Fleet_Data[[#This Row],[Configuration Code]],Tare[Description]&Tare[Mass Scheme]&Tare[PBS Level]&Tare[Configuration Code],Tare[GCM (t) (100% load)],"",0) -> 49 | O57: =_xlfn.XLOOKUP(Fleet_Data[[#This Row],[Description]]&Fleet_Data[[#This Row],[Mass Scheme]]&Fleet_Data[[#This Row],[PBS Level]]&Fleet_Data[[#This Row],[Configuration Code]],Tare[Description]&Tare[Mass Scheme]&Tare[PBS Level]&Tare[Configuration Code],Tare[GCM (t) (75% load)],"",0) -> 42.16952002 | P57: =_xlfn.XLOOKUP(Fleet_Data[[#This Row],[Description]]&Fleet_Data[[#This Row],[Mass Scheme]]&Fleet_Data[[#This Row],[PBS Level]]&Fleet_Data[[#This Row],[Configuration Code]],Tare[Description]&Tare[Mass Scheme]&Tare[PBS Level]&Tare[Configuration Code],Tare[GCM (t) (50% load)],"",0) -> 35.33904004 | Q57: =_xlfn.XLOOKUP(Fleet_Data[[#This Row],[Description]]&Fleet_Data[[#This Row],[Mass Scheme]]&Fleet_Data[[#This Row],[PBS Level]]&Fleet_Data[[#This Row],[Configuration Code]],Tare[Description]&Tare[Mass Scheme]&Tare[PBS Level]&Tare[Configuration Code],Tare[Tare (t)],"",0) -> 21.67808007 | R57: =_xlfn.XLOOKUP(Fleet_Data[[#This Row],[Description]]&Fleet_Data[[#This Row],[Mass Scheme]]&Fleet_Data[[#This Row],[PBS Level]]&Fleet_Data[[#This Row],[Configuration Code]],Tare[Description]&Tare[Mass Scheme]&Tare[PBS Level]&Tare[Configuration Code],Tare[Payload (t)],"",0) -> 27.32191993 | S57: =_xlfn.XLOOKUP(Fleet_Data[[#This Row],[NTC Vehicle Equivalent]],NTC_Values[NTC vehicle],NTC_Values[Avg annual km],"",0) -> 200000
B58: =CONCATENATE(Fleet_Data[[#This Row],[Description]]," (",Fleet_Data[[#This Row],[Mass Scheme]],")",": ",Fleet_Data[[#This Row],[Fleet]],", ", Fleet_Data[[#This Row],[PBS Level]]) -> Prime mover and semitrailer with 2 axle groups (2-1) (HML): PBS, 1 | C58: Prime mover and semitrailer with 2 axle groups (2-1) | D58: HML | E58: PBS | F58: 1 | G58: 6 | H58: 20 | I58: A1221 | J58: Class 9 | K58: Artic 6 Axle | L58: 16b | M58: Articulated | N58: =_xlfn.XLOOKUP(Fleet_Data[[#This Row],[Description]]&Fleet_Data[[#This Row],[Mass Scheme]]&Fleet_Data[[#This Row],[PBS Level]]&Fleet_Data[[#This Row],[Configuration Code]],Tare[Description]&Tare[Mass Scheme]&Tare[PBS Level]&Tare[Configuration Code],Tare[GCM (t) (100% load)],"",0) -> 49 | O58: =_xlfn.XLOOKUP(Fleet_Data[[#This Row],[Description]]&Fleet_Data[[#This Row],[Mass Scheme]]&Fleet_Data[[#This Row],[PBS Level]]&Fleet_Data[[#This Row],[Configuration Code]],Tare[Description]&Tare[Mass Scheme]&Tare[PBS Level]&Tare[Configuration Code],Tare[GCM (t) (75% load)],"",0) -> 42.16952002 | P58: =_xlfn.XLOOKUP(Fleet_Data[[#This Row],[Description]]&Fleet_Data[[#This Row],[Mass Scheme]]&Fleet_Data[[#This Row],[PBS Level]]&Fleet_Data[[#This Row],[Configuration Code]],Tare[Description]&Tare[Mass Scheme]&Tare[PBS Level]&Tare[Configuration Code],Tare[GCM (t) (50% load)],"",0) -> 35.33904004 | Q58: =_xlfn.XLOOKUP(Fleet_Data[[#This Row],[Description]]&Fleet_Data[[#This Row],[Mass Scheme]]&Fleet_Data[[#This Row],[PBS Level]]&Fleet_Data[[#This Row],[Configuration Code]],Tare[Description]&Tare[Mass Scheme]&Tare[PBS Level]&Tare[Configuration Code],Tare[Tare (t)],"",0) -> 21.67808007 | R58: =_xlfn.XLOOKUP(Fleet_Data[[#This Row],[Description]]&Fleet_Data[[#This Row],[Mass Scheme]]&Fleet_Data[[#This Row],[PBS Level]]&Fleet_Data[[#This Row],[Configuration Code]],Tare[Description]&Tare[Mass Scheme]&Tare[PBS Level]&Tare[Configuration Code],Tare[Payload (t)],"",0) -> 27.32191993 | S58: =_xlfn.XLOOKUP(Fleet_Data[[#This Row],[NTC Vehicle Equivalent]],NTC_Values[NTC vehicle],NTC_Values[Avg annual km],"",0) -> 200000
B59: =CONCATENATE(Fleet_Data[[#This Row],[Description]]," (",Fleet_Data[[#This Row],[Mass Scheme]],")",": ",Fleet_Data[[#This Row],[Fleet]],", ", Fleet_Data[[#This Row],[PBS Level]]) -> Prime mover and semitrailer with 2 axle groups (1-3) (GML): PBS, 1 | C59: Prime mover and semitrailer with 2 axle groups (1-3) | D59: GML | E59: PBS | F59: 1 | G59: 7 | H59: 20 | I59: A1213 | J59: Class 9 | K59: Artic 6 Axle | L59: 16b | M59: Articulated | N59: =_xlfn.XLOOKUP(Fleet_Data[[#This Row],[Description]]&Fleet_Data[[#This Row],[Mass Scheme]]&Fleet_Data[[#This Row],[PBS Level]]&Fleet_Data[[#This Row],[Configuration Code]],Tare[Description]&Tare[Mass Scheme]&Tare[PBS Level]&Tare[Configuration Code],Tare[GCM (t) (100% load)],"",0) -> 49.7 | O59: =_xlfn.XLOOKUP(Fleet_Data[[#This Row],[Description]]&Fleet_Data[[#This Row],[Mass Scheme]]&Fleet_Data[[#This Row],[PBS Level]]&Fleet_Data[[#This Row],[Configuration Code]],Tare[Description]&Tare[Mass Scheme]&Tare[PBS Level]&Tare[Configuration Code],Tare[GCM (t) (75% load)],"",0) -> 42.69920904 | P59: =_xlfn.XLOOKUP(Fleet_Data[[#This Row],[Description]]&Fleet_Data[[#This Row],[Mass Scheme]]&Fleet_Data[[#This Row],[PBS Level]]&Fleet_Data[[#This Row],[Configuration Code]],Tare[Description]&Tare[Mass Scheme]&Tare[PBS Level]&Tare[Configuration Code],Tare[GCM (t) (50% load)],"",0) -> 35.69841808 | Q59: =_xlfn.XLOOKUP(Fleet_Data[[#This Row],[Description]]&Fleet_Data[[#This Row],[Mass Scheme]]&Fleet_Data[[#This Row],[PBS Level]]&Fleet_Data[[#This Row],[Configuration Code]],Tare[Description]&Tare[Mass Scheme]&Tare[PBS Level]&Tare[Configuration Code],Tare[Tare (t)],"",0) -> 21.69683616 | R59: =_xlfn.XLOOKUP(Fleet_Data[[#This Row],[Description]]&Fleet_Data[[#This Row],[Mass Scheme]]&Fleet_Data[[#This Row],[PBS Level]]&Fleet_Data[[#This Row],[Configuration Code]],Tare[Description]&Tare[Mass Scheme]&Tare[PBS Level]&Tare[Configuration Code],Tare[Payload (t)],"",0) -> 28.00316384 | S59: =_xlfn.XLOOKUP(Fleet_Data[[#This Row],[NTC Vehicle Equivalent]],NTC_Values[NTC vehicle],NTC_Values[Avg annual km],"",0) -> 200000
B60: =CONCATENATE(Fleet_Data[[#This Row],[Description]]," (",Fleet_Data[[#This Row],[Mass Scheme]],")",": ",Fleet_Data[[#This Row],[Fleet]],", ", Fleet_Data[[#This Row],[PBS Level]]) -> Prime mover and semitrailer with 2 axle groups (1-3) (CML): PBS, 1 | C60: Prime mover and semitrailer with 2 axle groups (1-3) | D60: CML | E60: PBS | F60: 1 | G60: 7 | H60: 20 | I60: A1213 | J60: Class 9 | K60: Artic 6 Axle | L60: 16b | M60: Articulated | N60: =_xlfn.XLOOKUP(Fleet_Data[[#This Row],[Description]]&Fleet_Data[[#This Row],[Mass Scheme]]&Fleet_Data[[#This Row],[PBS Level]]&Fleet_Data[[#This Row],[Configuration Code]],Tare[Description]&Tare[Mass Scheme]&Tare[PBS Level]&Tare[Configuration Code],Tare[GCM (t) (100% load)],"",0) -> 50.7 | O60: =_xlfn.XLOOKUP(Fleet_Data[[#This Row],[Description]]&Fleet_Data[[#This Row],[Mass Scheme]]&Fleet_Data[[#This Row],[PBS Level]]&Fleet_Data[[#This Row],[Configuration Code]],Tare[Description]&Tare[Mass Scheme]&Tare[PBS Level]&Tare[Configuration Code],Tare[GCM (t) (75% load)],"",0) -> 43.44920904 | P60: =_xlfn.XLOOKUP(Fleet_Data[[#This Row],[Description]]&Fleet_Data[[#This Row],[Mass Scheme]]&Fleet_Data[[#This Row],[PBS Level]]&Fleet_Data[[#This Row],[Configuration Code]],Tare[Description]&Tare[Mass Scheme]&Tare[PBS Level]&Tare[Configuration Code],Tare[GCM (t) (50% load)],"",0) -> 36.19841808 | Q60: =_xlfn.XLOOKUP(Fleet_Data[[#This Row],[Description]]&Fleet_Data[[#This Row],[Mass Scheme]]&Fleet_Data[[#This Row],[PBS Level]]&Fleet_Data[[#This Row],[Configuration Code]],Tare[Description]&Tare[Mass Scheme]&Tare[PBS Level]&Tare[Configuration Code],Tare[Tare (t)],"",0) -> 21.69683616 | R60: =_xlfn.XLOOKUP(Fleet_Data[[#This Row],[Description]]&Fleet_Data[[#This Row],[Mass Scheme]]&Fleet_Data[[#This Row],[PBS Level]]&Fleet_Data[[#This Row],[Configuration Code]],Tare[Description]&Tare[Mass Scheme]&Tare[PBS Level]&Tare[Configuration Code],Tare[Payload (t)],"",0) -> 29.00316384 | S60: =_xlfn.XLOOKUP(Fleet_Data[[#This Row],[NTC Vehicle Equivalent]],NTC_Values[NTC vehicle],NTC_Values[Avg annual km],"",0) -> 200000
B61: =CONCATENATE(Fleet_Data[[#This Row],[Description]]," (",Fleet_Data[[#This Row],[Mass Scheme]],")",": ",Fleet_Data[[#This Row],[Fleet]],", ", Fleet_Data[[#This Row],[PBS Level]]) -> Prime mover and semitrailer with 2 axle groups (1-3) (HML): PBS, 1 | C61: Prime mover and semitrailer with 2 axle groups (1-3) | D61: HML | E61: PBS | F61: 1 | G61: 7 | H61: 20 | I61: A1213 | J61: Class 9 | K61: Artic 6 Axle | L61: 16b | M61: Articulated | N61: =_xlfn.XLOOKUP(Fleet_Data[[#This Row],[Description]]&Fleet_Data[[#This Row],[Mass Scheme]]&Fleet_Data[[#This Row],[PBS Level]]&Fleet_Data[[#This Row],[Configuration Code]],Tare[Description]&Tare[Mass Scheme]&Tare[PBS Level]&Tare[Configuration Code],Tare[GCM (t) (100% load)],"",0) -> 53.5 | O61: =_xlfn.XLOOKUP(Fleet_Data[[#This Row],[Description]]&Fleet_Data[[#This Row],[Mass Scheme]]&Fleet_Data[[#This Row],[PBS Level]]&Fleet_Data[[#This Row],[Configuration Code]],Tare[Description]&Tare[Mass Scheme]&Tare[PBS Level]&Tare[Configuration Code],Tare[GCM (t) (75% load)],"",0) -> 45.54920904 | P61: =_xlfn.XLOOKUP(Fleet_Data[[#This Row],[Description]]&Fleet_Data[[#This Row],[Mass Scheme]]&Fleet_Data[[#This Row],[PBS Level]]&Fleet_Data[[#This Row],[Configuration Code]],Tare[Description]&Tare[Mass Scheme]&Tare[PBS Level]&Tare[Configuration Code],Tare[GCM (t) (50% load)],"",0) -> 37.59841808 | Q61: =_xlfn.XLOOKUP(Fleet_Data[[#This Row],[Description]]&Fleet_Data[[#This Row],[Mass Scheme]]&Fleet_Data[[#This Row],[PBS Level]]&Fleet_Data[[#This Row],[Configuration Code]],Tare[Description]&Tare[Mass Scheme]&Tare[PBS Level]&Tare[Configuration Code],Tare[Tare (t)],"",0) -> 21.69683616 | R61: =_xlfn.XLOOKUP(Fleet_Data[[#This Row],[Description]]&Fleet_Data[[#This Row],[Mass Scheme]]&Fleet_Data[[#This Row],[PBS Level]]&Fleet_Data[[#This Row],[Configuration Code]],Tare[Description]&Tare[Mass Scheme]&Tare[PBS Level]&Tare[Configuration Code],Tare[Payload (t)],"",0) -> 31.80316384 | S61: =_xlfn.XLOOKUP(Fleet_Data[[#This Row],[NTC Vehicle Equivalent]],NTC_Values[NTC vehicle],NTC_Values[Avg annual km],"",0) -> 200000
B62: =CONCATENATE(Fleet_Data[[#This Row],[Description]]," (",Fleet_Data[[#This Row],[Mass Scheme]],")",": ",Fleet_Data[[#This Row],[Fleet]],", ", Fleet_Data[[#This Row],[PBS Level]]) -> 3-axle prime mover B-double (2-2) (GML): PBS, 1 | C62: 3-axle prime mover B-double (2-2) | D62: GML | E62: PBS | F62: 1 | G62: 7 | H62: 20 | I62: B1222 | J62: Class 10 | K62: B-Double | L62: 17b | M62: Articulated | N62: =_xlfn.XLOOKUP(Fleet_Data[[#This Row],[Description]]&Fleet_Data[[#This Row],[Mass Scheme]]&Fleet_Data[[#This Row],[PBS Level]]&Fleet_Data[[#This Row],[Configuration Code]],Tare[Description]&Tare[Mass Scheme]&Tare[PBS Level]&Tare[Configuration Code],Tare[GCM (t) (100% load)],"",0) -> 50.5 | O62: =_xlfn.XLOOKUP(Fleet_Data[[#This Row],[Description]]&Fleet_Data[[#This Row],[Mass Scheme]]&Fleet_Data[[#This Row],[PBS Level]]&Fleet_Data[[#This Row],[Configuration Code]],Tare[Description]&Tare[Mass Scheme]&Tare[PBS Level]&Tare[Configuration Code],Tare[GCM (t) (75% load)],"",0) -> 43.81005429 | P62: =_xlfn.XLOOKUP(Fleet_Data[[#This Row],[Description]]&Fleet_Data[[#This Row],[Mass Scheme]]&Fleet_Data[[#This Row],[PBS Level]]&Fleet_Data[[#This Row],[Configuration Code]],Tare[Description]&Tare[Mass Scheme]&Tare[PBS Level]&Tare[Configuration Code],Tare[GCM (t) (50% load)],"",0) -> 37.12010858 | Q62: =_xlfn.XLOOKUP(Fleet_Data[[#This Row],[Description]]&Fleet_Data[[#This Row],[Mass Scheme]]&Fleet_Data[[#This Row],[PBS Level]]&Fleet_Data[[#This Row],[Configuration Code]],Tare[Description]&Tare[Mass Scheme]&Tare[PBS Level]&Tare[Configuration Code],Tare[Tare (t)],"",0) -> 23.74021717 | R62: =_xlfn.XLOOKUP(Fleet_Data[[#This Row],[Description]]&Fleet_Data[[#This Row],[Mass Scheme]]&Fleet_Data[[#This Row],[PBS Level]]&Fleet_Data[[#This Row],[Configuration Code]],Tare[Description]&Tare[Mass Scheme]&Tare[PBS Level]&Tare[Configuration Code],Tare[Payload (t)],"",0) -> 26.75978283 | S62: =_xlfn.XLOOKUP(Fleet_Data[[#This Row],[NTC Vehicle Equivalent]],NTC_Values[NTC vehicle],NTC_Values[Avg annual km],"",0) -> 200000
B63: =CONCATENATE(Fleet_Data[[#This Row],[Description]]," (",Fleet_Data[[#This Row],[Mass Scheme]],")",": ",Fleet_Data[[#This Row],[Fleet]],", ", Fleet_Data[[#This Row],[PBS Level]]) -> 3-axle prime mover B-double (2-2) (GML): PBS, 2 | C63: 3-axle prime mover B-double (2-2) | D63: GML | E63: PBS | F63: 2 | G63: 7 | H63: 26 | I63: B1222 | J63: Class 10 | K63: B-Double | L63: 17b | M63: Articulated | N63: =_xlfn.XLOOKUP(Fleet_Data[[#This Row],[Description]]&Fleet_Data[[#This Row],[Mass Scheme]]&Fleet_Data[[#This Row],[PBS Level]]&Fleet_Data[[#This Row],[Configuration Code]],Tare[Description]&Tare[Mass Scheme]&Tare[PBS Level]&Tare[Configuration Code],Tare[GCM (t) (100% load)],"",0) -> 56 | O63: =_xlfn.XLOOKUP(Fleet_Data[[#This Row],[Description]]&Fleet_Data[[#This Row],[Mass Scheme]]&Fleet_Data[[#This Row],[PBS Level]]&Fleet_Data[[#This Row],[Configuration Code]],Tare[Description]&Tare[Mass Scheme]&Tare[PBS Level]&Tare[Configuration Code],Tare[GCM (t) (75% load)],"",0) -> 47.93505429 | P63: =_xlfn.XLOOKUP(Fleet_Data[[#This Row],[Description]]&Fleet_Data[[#This Row],[Mass Scheme]]&Fleet_Data[[#This Row],[PBS Level]]&Fleet_Data[[#This Row],[Configuration Code]],Tare[Description]&Tare[Mass Scheme]&Tare[PBS Level]&Tare[Configuration Code],Tare[GCM (t) (50% load)],"",0) -> 39.87010858 | Q63: =_xlfn.XLOOKUP(Fleet_Data[[#This Row],[Description]]&Fleet_Data[[#This Row],[Mass Scheme]]&Fleet_Data[[#This Row],[PBS Level]]&Fleet_Data[[#This Row],[Configuration Code]],Tare[Description]&Tare[Mass Scheme]&Tare[PBS Level]&Tare[Configuration Code],Tare[Tare (t)],"",0) -> 23.74021717 | R63: =_xlfn.XLOOKUP(Fleet_Data[[#This Row],[Description]]&Fleet_Data[[#This Row],[Mass Scheme]]&Fleet_Data[[#This Row],[PBS Level]]&Fleet_Data[[#This Row],[Configuration Code]],Tare[Description]&Tare[Mass Scheme]&Tare[PBS Level]&Tare[Configuration Code],Tare[Payload (t)],"",0) -> 32.25978283 | S63: =_xlfn.XLOOKUP(Fleet_Data[[#This Row],[NTC Vehicle Equivalent]],NTC_Values[NTC vehicle],NTC_Values[Avg annual km],"",0) -> 200000
B64: =CONCATENATE(Fleet_Data[[#This Row],[Description]]," (",Fleet_Data[[#This Row],[Mass Scheme]],")",": ",Fleet_Data[[#This Row],[Fleet]],", ", Fleet_Data[[#This Row],[PBS Level]]) -> 3-axle prime mover B-double (2-2) (CML): PBS, 2 | C64: 3-axle prime mover B-double (2-2) | D64: CML | E64: PBS | F64: 2 | G64: 7 | H64: 26 | I64: B1222 | J64: Class 10 | K64: B-Double | L64: 17b | M64: Articulated | N64: =_xlfn.XLOOKUP(Fleet_Data[[#This Row],[Description]]&Fleet_Data[[#This Row],[Mass Scheme]]&Fleet_Data[[#This Row],[PBS Level]]&Fleet_Data[[#This Row],[Configuration Code]],Tare[Description]&Tare[Mass Scheme]&Tare[PBS Level]&Tare[Configuration Code],Tare[GCM (t) (100% load)],"",0) -> 57.5 | O64: =_xlfn.XLOOKUP(Fleet_Data[[#This Row],[Description]]&Fleet_Data[[#This Row],[Mass Scheme]]&Fleet_Data[[#This Row],[PBS Level]]&Fleet_Data[[#This Row],[Configuration Code]],Tare[Description]&Tare[Mass Scheme]&Tare[PBS Level]&Tare[Configuration Code],Tare[GCM (t) (75% load)],"",0) -> 49.06005429 | P64: =_xlfn.XLOOKUP(Fleet_Data[[#This Row],[Description]]&Fleet_Data[[#This Row],[Mass Scheme]]&Fleet_Data[[#This Row],[PBS Level]]&Fleet_Data[[#This Row],[Configuration Code]],Tare[Description]&Tare[Mass Scheme]&Tare[PBS Level]&Tare[Configuration Code],Tare[GCM (t) (50% load)],"",0) -> 40.62010858 | Q64: =_xlfn.XLOOKUP(Fleet_Data[[#This Row],[Description]]&Fleet_Data[[#This Row],[Mass Scheme]]&Fleet_Data[[#This Row],[PBS Level]]&Fleet_Data[[#This Row],[Configuration Code]],Tare[Description]&Tare[Mass Scheme]&Tare[PBS Level]&Tare[Configuration Code],Tare[Tare (t)],"",0) -> 23.74021717 | R64: =_xlfn.XLOOKUP(Fleet_Data[[#This Row],[Description]]&Fleet_Data[[#This Row],[Mass Scheme]]&Fleet_Data[[#This Row],[PBS Level]]&Fleet_Data[[#This Row],[Configuration Code]],Tare[Description]&Tare[Mass Scheme]&Tare[PBS Level]&Tare[Configuration Code],Tare[Payload (t)],"",0) -> 33.75978283 | S64: =_xlfn.XLOOKUP(Fleet_Data[[#This Row],[NTC Vehicle Equivalent]],NTC_Values[NTC vehicle],NTC_Values[Avg annual km],"",0) -> 200000
B65: =CONCATENATE(Fleet_Data[[#This Row],[Description]]," (",Fleet_Data[[#This Row],[Mass Scheme]],")",": ",Fleet_Data[[#This Row],[Fleet]],", ", Fleet_Data[[#This Row],[PBS Level]]) -> 3-axle prime mover B-double (2-2) (HML): PBS, 2 | C65: 3-axle prime mover B-double (2-2) | D65: HML | E65: PBS | F65: 2 | G65: 7 | H65: 26 | I65: B1222 | J65: Class 10 | K65: B-Double | L65: 17b | M65: Articulated | N65: =_xlfn.XLOOKUP(Fleet_Data[[#This Row],[Description]]&Fleet_Data[[#This Row],[Mass Scheme]]&Fleet_Data[[#This Row],[PBS Level]]&Fleet_Data[[#This Row],[Configuration Code]],Tare[Description]&Tare[Mass Scheme]&Tare[PBS Level]&Tare[Configuration Code],Tare[GCM (t) (100% load)],"",0) -> 57.5 | O65: =_xlfn.XLOOKUP(Fleet_Data[[#This Row],[Description]]&Fleet_Data[[#This Row],[Mass Scheme]]&Fleet_Data[[#This Row],[PBS Level]]&Fleet_Data[[#This Row],[Configuration Code]],Tare[Description]&Tare[Mass Scheme]&Tare[PBS Level]&Tare[Configuration Code],Tare[GCM (t) (75% load)],"",0) -> 49.06005429 | P65: =_xlfn.XLOOKUP(Fleet_Data[[#This Row],[Description]]&Fleet_Data[[#This Row],[Mass Scheme]]&Fleet_Data[[#This Row],[PBS Level]]&Fleet_Data[[#This Row],[Configuration Code]],Tare[Description]&Tare[Mass Scheme]&Tare[PBS Level]&Tare[Configuration Code],Tare[GCM (t) (50% load)],"",0) -> 40.62010858 | Q65: =_xlfn.XLOOKUP(Fleet_Data[[#This Row],[Description]]&Fleet_Data[[#This Row],[Mass Scheme]]&Fleet_Data[[#This Row],[PBS Level]]&Fleet_Data[[#This Row],[Configuration Code]],Tare[Description]&Tare[Mass Scheme]&Tare[PBS Level]&Tare[Configuration Code],Tare[Tare (t)],"",0) -> 23.74021717 | R65: =_xlfn.XLOOKUP(Fleet_Data[[#This Row],[Description]]&Fleet_Data[[#This Row],[Mass Scheme]]&Fleet_Data[[#This Row],[PBS Level]]&Fleet_Data[[#This Row],[Configuration Code]],Tare[Description]&Tare[Mass Scheme]&Tare[PBS Level]&Tare[Configuration Code],Tare[Payload (t)],"",0) -> 33.75978283 | S65: =_xlfn.XLOOKUP(Fleet_Data[[#This Row],[NTC Vehicle Equivalent]],NTC_Values[NTC vehicle],NTC_Values[Avg annual km],"",0) -> 200000
B66: =CONCATENATE(Fleet_Data[[#This Row],[Description]]," (",Fleet_Data[[#This Row],[Mass Scheme]],")",": ",Fleet_Data[[#This Row],[Fleet]],", ", Fleet_Data[[#This Row],[PBS Level]]) -> 3-axle prime mover B-double (2-2) (GML): PBS, 3 | C66: 3-axle prime mover B-double (2-2) | D66: GML | E66: PBS | F66: 3 | G66: 7 | H66: 30 | I66: B1222 | J66: Class 10 | K66: B-Double | L66: 17b | M66: Articulated | N66: =_xlfn.XLOOKUP(Fleet_Data[[#This Row],[Description]]&Fleet_Data[[#This Row],[Mass Scheme]]&Fleet_Data[[#This Row],[PBS Level]]&Fleet_Data[[#This Row],[Configuration Code]],Tare[Description]&Tare[Mass Scheme]&Tare[PBS Level]&Tare[Configuration Code],Tare[GCM (t) (100% load)],"",0) -> 56 | O66: =_xlfn.XLOOKUP(Fleet_Data[[#This Row],[Description]]&Fleet_Data[[#This Row],[Mass Scheme]]&Fleet_Data[[#This Row],[PBS Level]]&Fleet_Data[[#This Row],[Configuration Code]],Tare[Description]&Tare[Mass Scheme]&Tare[PBS Level]&Tare[Configuration Code],Tare[GCM (t) (75% load)],"",0) -> 47.93505429 | P66: =_xlfn.XLOOKUP(Fleet_Data[[#This Row],[Description]]&Fleet_Data[[#This Row],[Mass Scheme]]&Fleet_Data[[#This Row],[PBS Level]]&Fleet_Data[[#This Row],[Configuration Code]],Tare[Description]&Tare[Mass Scheme]&Tare[PBS Level]&Tare[Configuration Code],Tare[GCM (t) (50% load)],"",0) -> 39.87010858 | Q66: =_xlfn.XLOOKUP(Fleet_Data[[#This Row],[Description]]&Fleet_Data[[#This Row],[Mass Scheme]]&Fleet_Data[[#This Row],[PBS Level]]&Fleet_Data[[#This Row],[Configuration Code]],Tare[Description]&Tare[Mass Scheme]&Tare[PBS Level]&Tare[Configuration Code],Tare[Tare (t)],"",0) -> 23.74021717 | R66: =_xlfn.XLOOKUP(Fleet_Data[[#This Row],[Description]]&Fleet_Data[[#This Row],[Mass Scheme]]&Fleet_Data[[#This Row],[PBS Level]]&Fleet_Data[[#This Row],[Configuration Code]],Tare[Description]&Tare[Mass Scheme]&Tare[PBS Level]&Tare[Configuration Code],Tare[Payload (t)],"",0) -> 32.25978283 | S66: =_xlfn.XLOOKUP(Fleet_Data[[#This Row],[NTC Vehicle Equivalent]],NTC_Values[NTC vehicle],NTC_Values[Avg annual km],"",0) -> 200000
B67: =CONCATENATE(Fleet_Data[[#This Row],[Description]]," (",Fleet_Data[[#This Row],[Mass Scheme]],")",": ",Fleet_Data[[#This Row],[Fleet]],", ", Fleet_Data[[#This Row],[PBS Level]]) -> 3-axle prime mover B-double (2-2) (CML): PBS, 3 | C67: 3-axle prime mover B-double (2-2) | D67: CML | E67: PBS | F67: 3 | G67: 7 | H67: 30 | I67: B1222 | J67: Class 10 | K67: B-Double | L67: 17b | M67: Articulated | N67: =_xlfn.XLOOKUP(Fleet_Data[[#This Row],[Description]]&Fleet_Data[[#This Row],[Mass Scheme]]&Fleet_Data[[#This Row],[PBS Level]]&Fleet_Data[[#This Row],[Configuration Code]],Tare[Description]&Tare[Mass Scheme]&Tare[PBS Level]&Tare[Configuration Code],Tare[GCM (t) (100% load)],"",0) -> 57.5 | O67: =_xlfn.XLOOKUP(Fleet_Data[[#This Row],[Description]]&Fleet_Data[[#This Row],[Mass Scheme]]&Fleet_Data[[#This Row],[PBS Level]]&Fleet_Data[[#This Row],[Configuration Code]],Tare[Description]&Tare[Mass Scheme]&Tare[PBS Level]&Tare[Configuration Code],Tare[GCM (t) (75% load)],"",0) -> 49.06005429 | P67: =_xlfn.XLOOKUP(Fleet_Data[[#This Row],[Description]]&Fleet_Data[[#This Row],[Mass Scheme]]&Fleet_Data[[#This Row],[PBS Level]]&Fleet_Data[[#This Row],[Configuration Code]],Tare[Description]&Tare[Mass Scheme]&Tare[PBS Level]&Tare[Configuration Code],Tare[GCM (t) (50% load)],"",0) -> 40.62010858 | Q67: =_xlfn.XLOOKUP(Fleet_Data[[#This Row],[Description]]&Fleet_Data[[#This Row],[Mass Scheme]]&Fleet_Data[[#This Row],[PBS Level]]&Fleet_Data[[#This Row],[Configuration Code]],Tare[Description]&Tare[Mass Scheme]&Tare[PBS Level]&Tare[Configuration Code],Tare[Tare (t)],"",0) -> 23.74021717 | R67: =_xlfn.XLOOKUP(Fleet_Data[[#This Row],[Description]]&Fleet_Data[[#This Row],[Mass Scheme]]&Fleet_Data[[#This Row],[PBS Level]]&Fleet_Data[[#This Row],[Configuration Code]],Tare[Description]&Tare[Mass Scheme]&Tare[PBS Level]&Tare[Configuration Code],Tare[Payload (t)],"",0) -> 33.75978283 | S67: =_xlfn.XLOOKUP(Fleet_Data[[#This Row],[NTC Vehicle Equivalent]],NTC_Values[NTC vehicle],NTC_Values[Avg annual km],"",0) -> 200000
B68: =CONCATENATE(Fleet_Data[[#This Row],[Description]]," (",Fleet_Data[[#This Row],[Mass Scheme]],")",": ",Fleet_Data[[#This Row],[Fleet]],", ", Fleet_Data[[#This Row],[PBS Level]]) -> 3-axle prime mover B-double (2-2) (HML): PBS, 3 | C68: 3-axle prime mover B-double (2-2) | D68: HML | E68: PBS | F68: 3 | G68: 7 | H68: 30 | I68: B1222 | J68: Class 10 | K68: B-Double | L68: 17b | M68: Articulated | N68: =_xlfn.XLOOKUP(Fleet_Data[[#This Row],[Description]]&Fleet_Data[[#This Row],[Mass Scheme]]&Fleet_Data[[#This Row],[PBS Level]]&Fleet_Data[[#This Row],[Configuration Code]],Tare[Description]&Tare[Mass Scheme]&Tare[PBS Level]&Tare[Configuration Code],Tare[GCM (t) (100% load)],"",0) -> 57.5 | O68: =_xlfn.XLOOKUP(Fleet_Data[[#This Row],[Description]]&Fleet_Data[[#This Row],[Mass Scheme]]&Fleet_Data[[#This Row],[PBS Level]]&Fleet_Data[[#This Row],[Configuration Code]],Tare[Description]&Tare[Mass Scheme]&Tare[PBS Level]&Tare[Configuration Code],Tare[GCM (t) (75% load)],"",0) -> 49.06005429 | P68: =_xlfn.XLOOKUP(Fleet_Data[[#This Row],[Description]]&Fleet_Data[[#This Row],[Mass Scheme]]&Fleet_Data[[#This Row],[PBS Level]]&Fleet_Data[[#This Row],[Configuration Code]],Tare[Description]&Tare[Mass Scheme]&Tare[PBS Level]&Tare[Configuration Code],Tare[GCM (t) (50% load)],"",0) -> 40.62010858 | Q68: =_xlfn.XLOOKUP(Fleet_Data[[#This Row],[Description]]&Fleet_Data[[#This Row],[Mass Scheme]]&Fleet_Data[[#This Row],[PBS Level]]&Fleet_Data[[#This Row],[Configuration Code]],Tare[Description]&Tare[Mass Scheme]&Tare[PBS Level]&Tare[Configuration Code],Tare[Tare (t)],"",0) -> 23.74021717 | R68: =_xlfn.XLOOKUP(Fleet_Data[[#This Row],[Description]]&Fleet_Data[[#This Row],[Mass Scheme]]&Fleet_Data[[#This Row],[PBS Level]]&Fleet_Data[[#This Row],[Configuration Code]],Tare[Description]&Tare[Mass Scheme]&Tare[PBS Level]&Tare[Configuration Code],Tare[Payload (t)],"",0) -> 33.75978283 | S68: =_xlfn.XLOOKUP(Fleet_Data[[#This Row],[NTC Vehicle Equivalent]],NTC_Values[NTC vehicle],NTC_Values[Avg annual km],"",0) -> 200000
B69: =CONCATENATE(Fleet_Data[[#This Row],[Description]]," (",Fleet_Data[[#This Row],[Mass Scheme]],")",": ",Fleet_Data[[#This Row],[Fleet]],", ", Fleet_Data[[#This Row],[PBS Level]]) -> 3-axle prime mover B-double (3-2) (GML): PBS, 1 | C69: 3-axle prime mover B-double (3-2) | D69: GML | E69: PBS | F69: 1 | G69: 8 | H69: 20 | I69: B1232 | J69: Class 10 | K69: B-Double | L69: 18b | M69: Articulated | N69: =_xlfn.XLOOKUP(Fleet_Data[[#This Row],[Description]]&Fleet_Data[[#This Row],[Mass Scheme]]&Fleet_Data[[#This Row],[PBS Level]]&Fleet_Data[[#This Row],[Configuration Code]],Tare[Description]&Tare[Mass Scheme]&Tare[PBS Level]&Tare[Configuration Code],Tare[GCM (t) (100% load)],"",0) -> 50.5 | O69: =_xlfn.XLOOKUP(Fleet_Data[[#This Row],[Description]]&Fleet_Data[[#This Row],[Mass Scheme]]&Fleet_Data[[#This Row],[PBS Level]]&Fleet_Data[[#This Row],[Configuration Code]],Tare[Description]&Tare[Mass Scheme]&Tare[PBS Level]&Tare[Configuration Code],Tare[GCM (t) (75% load)],"",0) -> 44.17507673 | P69: =_xlfn.XLOOKUP(Fleet_Data[[#This Row],[Description]]&Fleet_Data[[#This Row],[Mass Scheme]]&Fleet_Data[[#This Row],[PBS Level]]&Fleet_Data[[#This Row],[Configuration Code]],Tare[Description]&Tare[Mass Scheme]&Tare[PBS Level]&Tare[Configuration Code],Tare[GCM (t) (50% load)],"",0) -> 37.85015346 | Q69: =_xlfn.XLOOKUP(Fleet_Data[[#This Row],[Description]]&Fleet_Data[[#This Row],[Mass Scheme]]&Fleet_Data[[#This Row],[PBS Level]]&Fleet_Data[[#This Row],[Configuration Code]],Tare[Description]&Tare[Mass Scheme]&Tare[PBS Level]&Tare[Configuration Code],Tare[Tare (t)],"",0) -> 25.20030692 | R69: =_xlfn.XLOOKUP(Fleet_Data[[#This Row],[Description]]&Fleet_Data[[#This Row],[Mass Scheme]]&Fleet_Data[[#This Row],[PBS Level]]&Fleet_Data[[#This Row],[Configuration Code]],Tare[Description]&Tare[Mass Scheme]&Tare[PBS Level]&Tare[Configuration Code],Tare[Payload (t)],"",0) -> 25.29969308 | S69: =_xlfn.XLOOKUP(Fleet_Data[[#This Row],[NTC Vehicle Equivalent]],NTC_Values[NTC vehicle],NTC_Values[Avg annual km],"",0) -> 250000
B70: =CONCATENATE(Fleet_Data[[#This Row],[Description]]," (",Fleet_Data[[#This Row],[Mass Scheme]],")",": ",Fleet_Data[[#This Row],[Fleet]],", ", Fleet_Data[[#This Row],[PBS Level]]) -> 3-axle prime mover B-double (3-2) (GML): PBS, 2 | C70: 3-axle prime mover B-double (3-2) | D70: GML | E70: PBS | F70: 2 | G70: 8 | H70: 26 | I70: B1232 | J70: Class 10 | K70: B-Double | L70: 18b | M70: Articulated | N70: =_xlfn.XLOOKUP(Fleet_Data[[#This Row],[Description]]&Fleet_Data[[#This Row],[Mass Scheme]]&Fleet_Data[[#This Row],[PBS Level]]&Fleet_Data[[#This Row],[Configuration Code]],Tare[Description]&Tare[Mass Scheme]&Tare[PBS Level]&Tare[Configuration Code],Tare[GCM (t) (100% load)],"",0) -> 59.5 | O70: =_xlfn.XLOOKUP(Fleet_Data[[#This Row],[Description]]&Fleet_Data[[#This Row],[Mass Scheme]]&Fleet_Data[[#This Row],[PBS Level]]&Fleet_Data[[#This Row],[Configuration Code]],Tare[Description]&Tare[Mass Scheme]&Tare[PBS Level]&Tare[Configuration Code],Tare[GCM (t) (75% load)],"",0) -> 50.92507673 | P70: =_xlfn.XLOOKUP(Fleet_Data[[#This Row],[Description]]&Fleet_Data[[#This Row],[Mass Scheme]]&Fleet_Data[[#This Row],[PBS Level]]&Fleet_Data[[#This Row],[Configuration Code]],Tare[Description]&Tare[Mass Scheme]&Tare[PBS Level]&Tare[Configuration Code],Tare[GCM (t) (50% load)],"",0) -> 42.35015346 | Q70: =_xlfn.XLOOKUP(Fleet_Data[[#This Row],[Description]]&Fleet_Data[[#This Row],[Mass Scheme]]&Fleet_Data[[#This Row],[PBS Level]]&Fleet_Data[[#This Row],[Configuration Code]],Tare[Description]&Tare[Mass Scheme]&Tare[PBS Level]&Tare[Configuration Code],Tare[Tare (t)],"",0) -> 25.20030692 | R70: =_xlfn.XLOOKUP(Fleet_Data[[#This Row],[Description]]&Fleet_Data[[#This Row],[Mass Scheme]]&Fleet_Data[[#This Row],[PBS Level]]&Fleet_Data[[#This Row],[Configuration Code]],Tare[Description]&Tare[Mass Scheme]&Tare[PBS Level]&Tare[Configuration Code],Tare[Payload (t)],"",0) -> 34.29969308 | S70: =_xlfn.XLOOKUP(Fleet_Data[[#This Row],[NTC Vehicle Equivalent]],NTC_Values[NTC vehicle],NTC_Values[Avg annual km],"",0) -> 250000
B71: =CONCATENATE(Fleet_Data[[#This Row],[Description]]," (",Fleet_Data[[#This Row],[Mass Scheme]],")",": ",Fleet_Data[[#This Row],[Fleet]],", ", Fleet_Data[[#This Row],[PBS Level]]) -> 3-axle prime mover B-double (3-2) (CML): PBS, 2 | C71: 3-axle prime mover B-double (3-2) | D71: CML | E71: PBS | F71: 2 | G71: 8 | H71: 26 | I71: B1232 | J71: Class 10 | K71: B-Double | L71: 18b | M71: Articulated | N71: =_xlfn.XLOOKUP(Fleet_Data[[#This Row],[Description]]&Fleet_Data[[#This Row],[Mass Scheme]]&Fleet_Data[[#This Row],[PBS Level]]&Fleet_Data[[#This Row],[Configuration Code]],Tare[Description]&Tare[Mass Scheme]&Tare[PBS Level]&Tare[Configuration Code],Tare[GCM (t) (100% load)],"",0) -> 61.5 | O71: =_xlfn.XLOOKUP(Fleet_Data[[#This Row],[Description]]&Fleet_Data[[#This Row],[Mass Scheme]]&Fleet_Data[[#This Row],[PBS Level]]&Fleet_Data[[#This Row],[Configuration Code]],Tare[Description]&Tare[Mass Scheme]&Tare[PBS Level]&Tare[Configuration Code],Tare[GCM (t) (75% load)],"",0) -> 52.42507673 | P71: =_xlfn.XLOOKUP(Fleet_Data[[#This Row],[Description]]&Fleet_Data[[#This Row],[Mass Scheme]]&Fleet_Data[[#This Row],[PBS Level]]&Fleet_Data[[#This Row],[Configuration Code]],Tare[Description]&Tare[Mass Scheme]&Tare[PBS Level]&Tare[Configuration Code],Tare[GCM (t) (50% load)],"",0) -> 43.35015346 | Q71: =_xlfn.XLOOKUP(Fleet_Data[[#This Row],[Description]]&Fleet_Data[[#This Row],[Mass Scheme]]&Fleet_Data[[#This Row],[PBS Level]]&Fleet_Data[[#This Row],[Configuration Code]],Tare[Description]&Tare[Mass Scheme]&Tare[PBS Level]&Tare[Configuration Code],Tare[Tare (t)],"",0) -> 25.20030692 | R71: =_xlfn.XLOOKUP(Fleet_Data[[#This Row],[Description]]&Fleet_Data[[#This Row],[Mass Scheme]]&Fleet_Data[[#This Row],[PBS Level]]&Fleet_Data[[#This Row],[Configuration Code]],Tare[Description]&Tare[Mass Scheme]&Tare[PBS Level]&Tare[Configuration Code],Tare[Payload (t)],"",0) -> 36.29969308 | S71: =_xlfn.XLOOKUP(Fleet_Data[[#This Row],[NTC Vehicle Equivalent]],NTC_Values[NTC vehicle],NTC_Values[Avg annual km],"",0) -> 250000
B72: =CONCATENATE(Fleet_Data[[#This Row],[Description]]," (",Fleet_Data[[#This Row],[Mass Scheme]],")",": ",Fleet_Data[[#This Row],[Fleet]],", ", Fleet_Data[[#This Row],[PBS Level]]) -> 3-axle prime mover B-double (3-2) (HML): PBS, 2 | C72: 3-axle prime mover B-double (3-2) | D72: HML | E72: PBS | F72: 2 | G72: 8 | H72: 26 | I72: B1232 | J72: Class 10 | K72: B-Double | L72: 18b | M72: Articulated | N72: =_xlfn.XLOOKUP(Fleet_Data[[#This Row],[Description]]&Fleet_Data[[#This Row],[Mass Scheme]]&Fleet_Data[[#This Row],[PBS Level]]&Fleet_Data[[#This Row],[Configuration Code]],Tare[Description]&Tare[Mass Scheme]&Tare[PBS Level]&Tare[Configuration Code],Tare[GCM (t) (100% load)],"",0) -> 63 | O72: =_xlfn.XLOOKUP(Fleet_Data[[#This Row],[Description]]&Fleet_Data[[#This Row],[Mass Scheme]]&Fleet_Data[[#This Row],[PBS Level]]&Fleet_Data[[#This Row],[Configuration Code]],Tare[Description]&Tare[Mass Scheme]&Tare[PBS Level]&Tare[Configuration Code],Tare[GCM (t) (75% load)],"",0) -> 53.55007673 | P72: =_xlfn.XLOOKUP(Fleet_Data[[#This Row],[Description]]&Fleet_Data[[#This Row],[Mass Scheme]]&Fleet_Data[[#This Row],[PBS Level]]&Fleet_Data[[#This Row],[Configuration Code]],Tare[Description]&Tare[Mass Scheme]&Tare[PBS Level]&Tare[Configuration Code],Tare[GCM (t) (50% load)],"",0) -> 44.10015346 | Q72: =_xlfn.XLOOKUP(Fleet_Data[[#This Row],[Description]]&Fleet_Data[[#This Row],[Mass Scheme]]&Fleet_Data[[#This Row],[PBS Level]]&Fleet_Data[[#This Row],[Configuration Code]],Tare[Description]&Tare[Mass Scheme]&Tare[PBS Level]&Tare[Configuration Code],Tare[Tare (t)],"",0) -> 25.20030692 | R72: =_xlfn.XLOOKUP(Fleet_Data[[#This Row],[Description]]&Fleet_Data[[#This Row],[Mass Scheme]]&Fleet_Data[[#This Row],[PBS Level]]&Fleet_Data[[#This Row],[Configuration Code]],Tare[Description]&Tare[Mass Scheme]&Tare[PBS Level]&Tare[Configuration Code],Tare[Payload (t)],"",0) -> 37.79969308 | S72: =_xlfn.XLOOKUP(Fleet_Data[[#This Row],[NTC Vehicle Equivalent]],NTC_Values[NTC vehicle],NTC_Values[Avg annual km],"",0) -> 250000
B73: =CONCATENATE(Fleet_Data[[#This Row],[Description]]," (",Fleet_Data[[#This Row],[Mass Scheme]],")",": ",Fleet_Data[[#This Row],[Fleet]],", ", Fleet_Data[[#This Row],[PBS Level]]) -> 3-axle prime mover B-double (3-3) (GML): PBS, 2 | C73: 3-axle prime mover B-double (3-3) | D73: GML | E73: PBS | F73: 2 | G73: 9 | H73: 26 | I73: B1233 | J73: Class 10 | K73: B-Double | L73: 18b | M73: Articulated | N73: =_xlfn.XLOOKUP(Fleet_Data[[#This Row],[Description]]&Fleet_Data[[#This Row],[Mass Scheme]]&Fleet_Data[[#This Row],[PBS Level]]&Fleet_Data[[#This Row],[Configuration Code]],Tare[Description]&Tare[Mass Scheme]&Tare[PBS Level]&Tare[Configuration Code],Tare[GCM (t) (100% load)],"",0) -> 63 | O73: =_xlfn.XLOOKUP(Fleet_Data[[#This Row],[Description]]&Fleet_Data[[#This Row],[Mass Scheme]]&Fleet_Data[[#This Row],[PBS Level]]&Fleet_Data[[#This Row],[Configuration Code]],Tare[Description]&Tare[Mass Scheme]&Tare[PBS Level]&Tare[Configuration Code],Tare[GCM (t) (75% load)],"",0) -> 53.55476575 | P73: =_xlfn.XLOOKUP(Fleet_Data[[#This Row],[Description]]&Fleet_Data[[#This Row],[Mass Scheme]]&Fleet_Data[[#This Row],[PBS Level]]&Fleet_Data[[#This Row],[Configuration Code]],Tare[Description]&Tare[Mass Scheme]&Tare[PBS Level]&Tare[Configuration Code],Tare[GCM (t) (50% load)],"",0) -> 44.1095315 | Q73: =_xlfn.XLOOKUP(Fleet_Data[[#This Row],[Description]]&Fleet_Data[[#This Row],[Mass Scheme]]&Fleet_Data[[#This Row],[PBS Level]]&Fleet_Data[[#This Row],[Configuration Code]],Tare[Description]&Tare[Mass Scheme]&Tare[PBS Level]&Tare[Configuration Code],Tare[Tare (t)],"",0) -> 25.21906301 | R73: =_xlfn.XLOOKUP(Fleet_Data[[#This Row],[Description]]&Fleet_Data[[#This Row],[Mass Scheme]]&Fleet_Data[[#This Row],[PBS Level]]&Fleet_Data[[#This Row],[Configuration Code]],Tare[Description]&Tare[Mass Scheme]&Tare[PBS Level]&Tare[Configuration Code],Tare[Payload (t)],"",0) -> 37.78093699 | S73: =_xlfn.XLOOKUP(Fleet_Data[[#This Row],[NTC Vehicle Equivalent]],NTC_Values[NTC vehicle],NTC_Values[Avg annual km],"",0) -> 250000
B74: =CONCATENATE(Fleet_Data[[#This Row],[Description]]," (",Fleet_Data[[#This Row],[Mass Scheme]],")",": ",Fleet_Data[[#This Row],[Fleet]],", ", Fleet_Data[[#This Row],[PBS Level]]) -> 3-axle prime mover B-double (3-3) (CML): PBS, 2 | C74: 3-axle prime mover B-double (3-3) | D74: CML | E74: PBS | F74: 2 | G74: 9 | H74: 26 | I74: B1233 | J74: Class 10 | K74: B-Double | L74: 18b | M74: Articulated | N74: =_xlfn.XLOOKUP(Fleet_Data[[#This Row],[Description]]&Fleet_Data[[#This Row],[Mass Scheme]]&Fleet_Data[[#This Row],[PBS Level]]&Fleet_Data[[#This Row],[Configuration Code]],Tare[Description]&Tare[Mass Scheme]&Tare[PBS Level]&Tare[Configuration Code],Tare[GCM (t) (100% load)],"",0) -> 65 | O74: =_xlfn.XLOOKUP(Fleet_Data[[#This Row],[Description]]&Fleet_Data[[#This Row],[Mass Scheme]]&Fleet_Data[[#This Row],[PBS Level]]&Fleet_Data[[#This Row],[Configuration Code]],Tare[Description]&Tare[Mass Scheme]&Tare[PBS Level]&Tare[Configuration Code],Tare[GCM (t) (75% load)],"",0) -> 55.05476575 | P74: =_xlfn.XLOOKUP(Fleet_Data[[#This Row],[Description]]&Fleet_Data[[#This Row],[Mass Scheme]]&Fleet_Data[[#This Row],[PBS Level]]&Fleet_Data[[#This Row],[Configuration Code]],Tare[Description]&Tare[Mass Scheme]&Tare[PBS Level]&Tare[Configuration Code],Tare[GCM (t) (50% load)],"",0) -> 45.1095315 | Q74: =_xlfn.XLOOKUP(Fleet_Data[[#This Row],[Description]]&Fleet_Data[[#This Row],[Mass Scheme]]&Fleet_Data[[#This Row],[PBS Level]]&Fleet_Data[[#This Row],[Configuration Code]],Tare[Description]&Tare[Mass Scheme]&Tare[PBS Level]&Tare[Configuration Code],Tare[Tare (t)],"",0) -> 25.21906301 | R74: =_xlfn.XLOOKUP(Fleet_Data[[#This Row],[Description]]&Fleet_Data[[#This Row],[Mass Scheme]]&Fleet_Data[[#This Row],[PBS Level]]&Fleet_Data[[#This Row],[Configuration Code]],Tare[Description]&Tare[Mass Scheme]&Tare[PBS Level]&Tare[Configuration Code],Tare[Payload (t)],"",0) -> 39.78093699 | S74: =_xlfn.XLOOKUP(Fleet_Data[[#This Row],[NTC Vehicle Equivalent]],NTC_Values[NTC vehicle],NTC_Values[Avg annual km],"",0) -> 250000
B75: =CONCATENATE(Fleet_Data[[#This Row],[Description]]," (",Fleet_Data[[#This Row],[Mass Scheme]],")",": ",Fleet_Data[[#This Row],[Fleet]],", ", Fleet_Data[[#This Row],[PBS Level]]) -> 3-axle prime mover B-double (3-3) (HML): PBS, 2 | C75: 3-axle prime mover B-double (3-3) | D75: HML | E75: PBS | F75: 2 | G75: 9 | H75: 26 | I75: B1233 | J75: Class 10 | K75: B-Double | L75: 18b | M75: Articulated | N75: =_xlfn.XLOOKUP(Fleet_Data[[#This Row],[Description]]&Fleet_Data[[#This Row],[Mass Scheme]]&Fleet_Data[[#This Row],[PBS Level]]&Fleet_Data[[#This Row],[Configuration Code]],Tare[Description]&Tare[Mass Scheme]&Tare[PBS Level]&Tare[Configuration Code],Tare[GCM (t) (100% load)],"",0) -> 68.5 | O75: =_xlfn.XLOOKUP(Fleet_Data[[#This Row],[Description]]&Fleet_Data[[#This Row],[Mass Scheme]]&Fleet_Data[[#This Row],[PBS Level]]&Fleet_Data[[#This Row],[Configuration Code]],Tare[Description]&Tare[Mass Scheme]&Tare[PBS Level]&Tare[Configuration Code],Tare[GCM (t) (75% load)],"",0) -> 57.67976575 | P75: =_xlfn.XLOOKUP(Fleet_Data[[#This Row],[Description]]&Fleet_Data[[#This Row],[Mass Scheme]]&Fleet_Data[[#This Row],[PBS Level]]&Fleet_Data[[#This Row],[Configuration Code]],Tare[Description]&Tare[Mass Scheme]&Tare[PBS Level]&Tare[Configuration Code],Tare[GCM (t) (50% load)],"",0) -> 46.8595315 | Q75: =_xlfn.XLOOKUP(Fleet_Data[[#This Row],[Description]]&Fleet_Data[[#This Row],[Mass Scheme]]&Fleet_Data[[#This Row],[PBS Level]]&Fleet_Data[[#This Row],[Configuration Code]],Tare[Description]&Tare[Mass Scheme]&Tare[PBS Level]&Tare[Configuration Code],Tare[Tare (t)],"",0) -> 25.21906301 | R75: =_xlfn.XLOOKUP(Fleet_Data[[#This Row],[Description]]&Fleet_Data[[#This Row],[Mass Scheme]]&Fleet_Data[[#This Row],[PBS Level]]&Fleet_Data[[#This Row],[Configuration Code]],Tare[Description]&Tare[Mass Scheme]&Tare[PBS Level]&Tare[Configuration Code],Tare[Payload (t)],"",0) -> 43.28093699 | S75: =_xlfn.XLOOKUP(Fleet_Data[[#This Row],[NTC Vehicle Equivalent]],NTC_Values[NTC vehicle],NTC_Values[Avg annual km],"",0) -> 250000
B76: =CONCATENATE(Fleet_Data[[#This Row],[Description]]," (",Fleet_Data[[#This Row],[Mass Scheme]],")",": ",Fleet_Data[[#This Row],[Fleet]],", ", Fleet_Data[[#This Row],[PBS Level]]) -> 3-axle prime mover B-double (3-3) (GML): PBS, 3 | C76: 3-axle prime mover B-double (3-3) | D76: GML | E76: PBS | F76: 3 | G76: 9 | H76: 30 | I76: B1233 | J76: Class 10 | K76: B-Double | L76: 18b | M76: Articulated | N76: =_xlfn.XLOOKUP(Fleet_Data[[#This Row],[Description]]&Fleet_Data[[#This Row],[Mass Scheme]]&Fleet_Data[[#This Row],[PBS Level]]&Fleet_Data[[#This Row],[Configuration Code]],Tare[Description]&Tare[Mass Scheme]&Tare[PBS Level]&Tare[Configuration Code],Tare[GCM (t) (100% load)],"",0) -> 63 | O76: =_xlfn.XLOOKUP(Fleet_Data[[#This Row],[Description]]&Fleet_Data[[#This Row],[Mass Scheme]]&Fleet_Data[[#This Row],[PBS Level]]&Fleet_Data[[#This Row],[Configuration Code]],Tare[Description]&Tare[Mass Scheme]&Tare[PBS Level]&Tare[Configuration Code],Tare[GCM (t) (75% load)],"",0) -> 53.55476575 | P76: =_xlfn.XLOOKUP(Fleet_Data[[#This Row],[Description]]&Fleet_Data[[#This Row],[Mass Scheme]]&Fleet_Data[[#This Row],[PBS Level]]&Fleet_Data[[#This Row],[Configuration Code]],Tare[Description]&Tare[Mass Scheme]&Tare[PBS Level]&Tare[Configuration Code],Tare[GCM (t) (50% load)],"",0) -> 44.1095315 | Q76: =_xlfn.XLOOKUP(Fleet_Data[[#This Row],[Description]]&Fleet_Data[[#This Row],[Mass Scheme]]&Fleet_Data[[#This Row],[PBS Level]]&Fleet_Data[[#This Row],[Configuration Code]],Tare[Description]&Tare[Mass Scheme]&Tare[PBS Level]&Tare[Configuration Code],Tare[Tare (t)],"",0) -> 25.21906301 | R76: =_xlfn.XLOOKUP(Fleet_Data[[#This Row],[Description]]&Fleet_Data[[#This Row],[Mass Scheme]]&Fleet_Data[[#This Row],[PBS Level]]&Fleet_Data[[#This Row],[Configuration Code]],Tare[Description]&Tare[Mass Scheme]&Tare[PBS Level]&Tare[Configuration Code],Tare[Payload (t)],"",0) -> 37.78093699 | S76: =_xlfn.XLOOKUP(Fleet_Data[[#This Row],[NTC Vehicle Equivalent]],NTC_Values[NTC vehicle],NTC_Values[Avg annual km],"",0) -> 250000
B77: =CONCATENATE(Fleet_Data[[#This Row],[Description]]," (",Fleet_Data[[#This Row],[Mass Scheme]],")",": ",Fleet_Data[[#This Row],[Fleet]],", ", Fleet_Data[[#This Row],[PBS Level]]) -> 3-axle prime mover B-double (3-3) (CML): PBS, 3 | C77: 3-axle prime mover B-double (3-3) | D77: CML | E77: PBS | F77: 3 | G77: 9 | H77: 30 | I77: B1233 | J77: Class 10 | K77: B-Double | L77: 18b | M77: Articulated | N77: =_xlfn.XLOOKUP(Fleet_Data[[#This Row],[Description]]&Fleet_Data[[#This Row],[Mass Scheme]]&Fleet_Data[[#This Row],[PBS Level]]&Fleet_Data[[#This Row],[Configuration Code]],Tare[Description]&Tare[Mass Scheme]&Tare[PBS Level]&Tare[Configuration Code],Tare[GCM (t) (100% load)],"",0) -> 65 | O77: =_xlfn.XLOOKUP(Fleet_Data[[#This Row],[Description]]&Fleet_Data[[#This Row],[Mass Scheme]]&Fleet_Data[[#This Row],[PBS Level]]&Fleet_Data[[#This Row],[Configuration Code]],Tare[Description]&Tare[Mass Scheme]&Tare[PBS Level]&Tare[Configuration Code],Tare[GCM (t) (75% load)],"",0) -> 55.05476575 | P77: =_xlfn.XLOOKUP(Fleet_Data[[#This Row],[Description]]&Fleet_Data[[#This Row],[Mass Scheme]]&Fleet_Data[[#This Row],[PBS Level]]&Fleet_Data[[#This Row],[Configuration Code]],Tare[Description]&Tare[Mass Scheme]&Tare[PBS Level]&Tare[Configuration Code],Tare[GCM (t) (50% load)],"",0) -> 45.1095315 | Q77: =_xlfn.XLOOKUP(Fleet_Data[[#This Row],[Description]]&Fleet_Data[[#This Row],[Mass Scheme]]&Fleet_Data[[#This Row],[PBS Level]]&Fleet_Data[[#This Row],[Configuration Code]],Tare[Description]&Tare[Mass Scheme]&Tare[PBS Level]&Tare[Configuration Code],Tare[Tare (t)],"",0) -> 25.21906301 | R77: =_xlfn.XLOOKUP(Fleet_Data[[#This Row],[Description]]&Fleet_Data[[#This Row],[Mass Scheme]]&Fleet_Data[[#This Row],[PBS Level]]&Fleet_Data[[#This Row],[Configuration Code]],Tare[Description]&Tare[Mass Scheme]&Tare[PBS Level]&Tare[Configuration Code],Tare[Payload (t)],"",0) -> 39.78093699 | S77: =_xlfn.XLOOKUP(Fleet_Data[[#This Row],[NTC Vehicle Equivalent]],NTC_Values[NTC vehicle],NTC_Values[Avg annual km],"",0) -> 250000
B78: =CONCATENATE(Fleet_Data[[#This Row],[Description]]," (",Fleet_Data[[#This Row],[Mass Scheme]],")",": ",Fleet_Data[[#This Row],[Fleet]],", ", Fleet_Data[[#This Row],[PBS Level]]) -> 3-axle prime mover B-double (3-3) (HML): PBS, 3 | C78: 3-axle prime mover B-double (3-3) | D78: HML | E78: PBS | F78: 3 | G78: 9 | H78: 30 | I78: B1233 | J78: Class 10 | K78: B-Double | L78: 18b | M78: Articulated | N78: =_xlfn.XLOOKUP(Fleet_Data[[#This Row],[Description]]&Fleet_Data[[#This Row],[Mass Scheme]]&Fleet_Data[[#This Row],[PBS Level]]&Fleet_Data[[#This Row],[Configuration Code]],Tare[Description]&Tare[Mass Scheme]&Tare[PBS Level]&Tare[Configuration Code],Tare[GCM (t) (100% load)],"",0) -> 68.5 | O78: =_xlfn.XLOOKUP(Fleet_Data[[#This Row],[Description]]&Fleet_Data[[#This Row],[Mass Scheme]]&Fleet_Data[[#This Row],[PBS Level]]&Fleet_Data[[#This Row],[Configuration Code]],Tare[Description]&Tare[Mass Scheme]&Tare[PBS Level]&Tare[Configuration Code],Tare[GCM (t) (75% load)],"",0) -> 57.67976575 | P78: =_xlfn.XLOOKUP(Fleet_Data[[#This Row],[Description]]&Fleet_Data[[#This Row],[Mass Scheme]]&Fleet_Data[[#This Row],[PBS Level]]&Fleet_Data[[#This Row],[Configuration Code]],Tare[Description]&Tare[Mass Scheme]&Tare[PBS Level]&Tare[Configuration Code],Tare[GCM (t) (50% load)],"",0) -> 46.8595315 | Q78: =_xlfn.XLOOKUP(Fleet_Data[[#This Row],[Description]]&Fleet_Data[[#This Row],[Mass Scheme]]&Fleet_Data[[#This Row],[PBS Level]]&Fleet_Data[[#This Row],[Configuration Code]],Tare[Description]&Tare[Mass Scheme]&Tare[PBS Level]&Tare[Configuration Code],Tare[Tare (t)],"",0) -> 25.21906301 | R78: =_xlfn.XLOOKUP(Fleet_Data[[#This Row],[Description]]&Fleet_Data[[#This Row],[Mass Scheme]]&Fleet_Data[[#This Row],[PBS Level]]&Fleet_Data[[#This Row],[Configuration Code]],Tare[Description]&Tare[Mass Scheme]&Tare[PBS Level]&Tare[Configuration Code],Tare[Payload (t)],"",0) -> 43.28093699 | S78: =_xlfn.XLOOKUP(Fleet_Data[[#This Row],[NTC Vehicle Equivalent]],NTC_Values[NTC vehicle],NTC_Values[Avg annual km],"",0) -> 250000
B79: =CONCATENATE(Fleet_Data[[#This Row],[Description]]," (",Fleet_Data[[#This Row],[Mass Scheme]],")",": ",Fleet_Data[[#This Row],[Fleet]],", ", Fleet_Data[[#This Row],[PBS Level]]) -> 3-axle prime mover B-double (4-3) (GML): PBS, 2 | C79: 3-axle prime mover B-double (4-3) | D79: GML | E79: PBS | F79: 2 | G79: 10 | H79: 26 | I79: B1243 | J79: Class 10 | K79: B-Double | L79: 18b | M79: Articulated | N79: =_xlfn.XLOOKUP(Fleet_Data[[#This Row],[Description]]&Fleet_Data[[#This Row],[Mass Scheme]]&Fleet_Data[[#This Row],[PBS Level]]&Fleet_Data[[#This Row],[Configuration Code]],Tare[Description]&Tare[Mass Scheme]&Tare[PBS Level]&Tare[Configuration Code],Tare[GCM (t) (100% load)],"",0) -> 63 | O79: =_xlfn.XLOOKUP(Fleet_Data[[#This Row],[Description]]&Fleet_Data[[#This Row],[Mass Scheme]]&Fleet_Data[[#This Row],[PBS Level]]&Fleet_Data[[#This Row],[Configuration Code]],Tare[Description]&Tare[Mass Scheme]&Tare[PBS Level]&Tare[Configuration Code],Tare[GCM (t) (75% load)],"",0) -> 53.79210203 | P79: =_xlfn.XLOOKUP(Fleet_Data[[#This Row],[Description]]&Fleet_Data[[#This Row],[Mass Scheme]]&Fleet_Data[[#This Row],[PBS Level]]&Fleet_Data[[#This Row],[Configuration Code]],Tare[Description]&Tare[Mass Scheme]&Tare[PBS Level]&Tare[Configuration Code],Tare[GCM (t) (50% load)],"",0) -> 44.58420406 | Q79: =_xlfn.XLOOKUP(Fleet_Data[[#This Row],[Description]]&Fleet_Data[[#This Row],[Mass Scheme]]&Fleet_Data[[#This Row],[PBS Level]]&Fleet_Data[[#This Row],[Configuration Code]],Tare[Description]&Tare[Mass Scheme]&Tare[PBS Level]&Tare[Configuration Code],Tare[Tare (t)],"",0) -> 26.16840811 | R79: =_xlfn.XLOOKUP(Fleet_Data[[#This Row],[Description]]&Fleet_Data[[#This Row],[Mass Scheme]]&Fleet_Data[[#This Row],[PBS Level]]&Fleet_Data[[#This Row],[Configuration Code]],Tare[Description]&Tare[Mass Scheme]&Tare[PBS Level]&Tare[Configuration Code],Tare[Payload (t)],"",0) -> 36.83159189 | S79: =_xlfn.XLOOKUP(Fleet_Data[[#This Row],[NTC Vehicle Equivalent]],NTC_Values[NTC vehicle],NTC_Values[Avg annual km],"",0) -> 250000
B80: =CONCATENATE(Fleet_Data[[#This Row],[Description]]," (",Fleet_Data[[#This Row],[Mass Scheme]],")",": ",Fleet_Data[[#This Row],[Fleet]],", ", Fleet_Data[[#This Row],[PBS Level]]) -> 3-axle prime mover B-double (4-3) (CML): PBS, 2 | C80: 3-axle prime mover B-double (4-3) | D80: CML | E80: PBS | F80: 2 | G80: 10 | H80: 26 | I80: B1243 | J80: Class 10 | K80: B-Double | L80: 18b | M80: Articulated | N80: =_xlfn.XLOOKUP(Fleet_Data[[#This Row],[Description]]&Fleet_Data[[#This Row],[Mass Scheme]]&Fleet_Data[[#This Row],[PBS Level]]&Fleet_Data[[#This Row],[Configuration Code]],Tare[Description]&Tare[Mass Scheme]&Tare[PBS Level]&Tare[Configuration Code],Tare[GCM (t) (100% load)],"",0) -> 65 | O80: =_xlfn.XLOOKUP(Fleet_Data[[#This Row],[Description]]&Fleet_Data[[#This Row],[Mass Scheme]]&Fleet_Data[[#This Row],[PBS Level]]&Fleet_Data[[#This Row],[Configuration Code]],Tare[Description]&Tare[Mass Scheme]&Tare[PBS Level]&Tare[Configuration Code],Tare[GCM (t) (75% load)],"",0) -> 55.29210203 | P80: =_xlfn.XLOOKUP(Fleet_Data[[#This Row],[Description]]&Fleet_Data[[#This Row],[Mass Scheme]]&Fleet_Data[[#This Row],[PBS Level]]&Fleet_Data[[#This Row],[Configuration Code]],Tare[Description]&Tare[Mass Scheme]&Tare[PBS Level]&Tare[Configuration Code],Tare[GCM (t) (50% load)],"",0) -> 45.58420406 | Q80: =_xlfn.XLOOKUP(Fleet_Data[[#This Row],[Description]]&Fleet_Data[[#This Row],[Mass Scheme]]&Fleet_Data[[#This Row],[PBS Level]]&Fleet_Data[[#This Row],[Configuration Code]],Tare[Description]&Tare[Mass Scheme]&Tare[PBS Level]&Tare[Configuration Code],Tare[Tare (t)],"",0) -> 26.16840811 | R80: =_xlfn.XLOOKUP(Fleet_Data[[#This Row],[Description]]&Fleet_Data[[#This Row],[Mass Scheme]]&Fleet_Data[[#This Row],[PBS Level]]&Fleet_Data[[#This Row],[Configuration Code]],Tare[Description]&Tare[Mass Scheme]&Tare[PBS Level]&Tare[Configuration Code],Tare[Payload (t)],"",0) -> 38.83159189 | S80: =_xlfn.XLOOKUP(Fleet_Data[[#This Row],[NTC Vehicle Equivalent]],NTC_Values[NTC vehicle],NTC_Values[Avg annual km],"",0) -> 250000
B81: =CONCATENATE(Fleet_Data[[#This Row],[Description]]," (",Fleet_Data[[#This Row],[Mass Scheme]],")",": ",Fleet_Data[[#This Row],[Fleet]],", ", Fleet_Data[[#This Row],[PBS Level]]) -> 3-axle prime mover B-double (4-3) (HML): PBS, 2 | C81: 3-axle prime mover B-double (4-3) | D81: HML | E81: PBS | F81: 2 | G81: 10 | H81: 26 | I81: B1243 | J81: Class 10 | K81: B-Double | L81: 18b | M81: Articulated | N81: =_xlfn.XLOOKUP(Fleet_Data[[#This Row],[Description]]&Fleet_Data[[#This Row],[Mass Scheme]]&Fleet_Data[[#This Row],[PBS Level]]&Fleet_Data[[#This Row],[Configuration Code]],Tare[Description]&Tare[Mass Scheme]&Tare[PBS Level]&Tare[Configuration Code],Tare[GCM (t) (100% load)],"",0) -> 73 | O81: =_xlfn.XLOOKUP(Fleet_Data[[#This Row],[Description]]&Fleet_Data[[#This Row],[Mass Scheme]]&Fleet_Data[[#This Row],[PBS Level]]&Fleet_Data[[#This Row],[Configuration Code]],Tare[Description]&Tare[Mass Scheme]&Tare[PBS Level]&Tare[Configuration Code],Tare[GCM (t) (75% load)],"",0) -> 61.29210203 | P81: =_xlfn.XLOOKUP(Fleet_Data[[#This Row],[Description]]&Fleet_Data[[#This Row],[Mass Scheme]]&Fleet_Data[[#This Row],[PBS Level]]&Fleet_Data[[#This Row],[Configuration Code]],Tare[Description]&Tare[Mass Scheme]&Tare[PBS Level]&Tare[Configuration Code],Tare[GCM (t) (50% load)],"",0) -> 49.58420406 | Q81: =_xlfn.XLOOKUP(Fleet_Data[[#This Row],[Description]]&Fleet_Data[[#This Row],[Mass Scheme]]&Fleet_Data[[#This Row],[PBS Level]]&Fleet_Data[[#This Row],[Configuration Code]],Tare[Description]&Tare[Mass Scheme]&Tare[PBS Level]&Tare[Configuration Code],Tare[Tare (t)],"",0) -> 26.16840811 | R81: =_xlfn.XLOOKUP(Fleet_Data[[#This Row],[Description]]&Fleet_Data[[#This Row],[Mass Scheme]]&Fleet_Data[[#This Row],[PBS Level]]&Fleet_Data[[#This Row],[Configuration Code]],Tare[Description]&Tare[Mass Scheme]&Tare[PBS Level]&Tare[Configuration Code],Tare[Payload (t)],"",0) -> 46.83159189 | S81: =_xlfn.XLOOKUP(Fleet_Data[[#This Row],[NTC Vehicle Equivalent]],NTC_Values[NTC vehicle],NTC_Values[Avg annual km],"",0) -> 250000
B82: =CONCATENATE(Fleet_Data[[#This Row],[Description]]," (",Fleet_Data[[#This Row],[Mass Scheme]],")",": ",Fleet_Data[[#This Row],[Fleet]],", ", Fleet_Data[[#This Row],[PBS Level]]) -> 3-axle prime mover B-double (4-3) (GML): PBS, 3 | C82: 3-axle prime mover B-double (4-3) | D82: GML | E82: PBS | F82: 3 | G82: 10 | H82: 30 | I82: B1243 | J82: Class 10 | K82: B-Double | L82: 18b | M82: Articulated | N82: =_xlfn.XLOOKUP(Fleet_Data[[#This Row],[Description]]&Fleet_Data[[#This Row],[Mass Scheme]]&Fleet_Data[[#This Row],[PBS Level]]&Fleet_Data[[#This Row],[Configuration Code]],Tare[Description]&Tare[Mass Scheme]&Tare[PBS Level]&Tare[Configuration Code],Tare[GCM (t) (100% load)],"",0) -> 63 | O82: =_xlfn.XLOOKUP(Fleet_Data[[#This Row],[Description]]&Fleet_Data[[#This Row],[Mass Scheme]]&Fleet_Data[[#This Row],[PBS Level]]&Fleet_Data[[#This Row],[Configuration Code]],Tare[Description]&Tare[Mass Scheme]&Tare[PBS Level]&Tare[Configuration Code],Tare[GCM (t) (75% load)],"",0) -> 53.79210203 | P82: =_xlfn.XLOOKUP(Fleet_Data[[#This Row],[Description]]&Fleet_Data[[#This Row],[Mass Scheme]]&Fleet_Data[[#This Row],[PBS Level]]&Fleet_Data[[#This Row],[Configuration Code]],Tare[Description]&Tare[Mass Scheme]&Tare[PBS Level]&Tare[Configuration Code],Tare[GCM (t) (50% load)],"",0) -> 44.58420406 | Q82: =_xlfn.XLOOKUP(Fleet_Data[[#This Row],[Description]]&Fleet_Data[[#This Row],[Mass Scheme]]&Fleet_Data[[#This Row],[PBS Level]]&Fleet_Data[[#This Row],[Configuration Code]],Tare[Description]&Tare[Mass Scheme]&Tare[PBS Level]&Tare[Configuration Code],Tare[Tare (t)],"",0) -> 26.16840811 | R82: =_xlfn.XLOOKUP(Fleet_Data[[#This Row],[Description]]&Fleet_Data[[#This Row],[Mass Scheme]]&Fleet_Data[[#This Row],[PBS Level]]&Fleet_Data[[#This Row],[Configuration Code]],Tare[Description]&Tare[Mass Scheme]&Tare[PBS Level]&Tare[Configuration Code],Tare[Payload (t)],"",0) -> 36.83159189 | S82: =_xlfn.XLOOKUP(Fleet_Data[[#This Row],[NTC Vehicle Equivalent]],NTC_Values[NTC vehicle],NTC_Values[Avg annual km],"",0) -> 250000
B83: =CONCATENATE(Fleet_Data[[#This Row],[Description]]," (",Fleet_Data[[#This Row],[Mass Scheme]],")",": ",Fleet_Data[[#This Row],[Fleet]],", ", Fleet_Data[[#This Row],[PBS Level]]) -> 3-axle prime mover B-double (4-3) (CML): PBS, 3 | C83: 3-axle prime mover B-double (4-3) | D83: CML | E83: PBS | F83: 3 | G83: 10 | H83: 30 | I83: B1243 | J83: Class 10 | K83: B-Double | L83: 18b | M83: Articulated | N83: =_xlfn.XLOOKUP(Fleet_Data[[#This Row],[Description]]&Fleet_Data[[#This Row],[Mass Scheme]]&Fleet_Data[[#This Row],[PBS Level]]&Fleet_Data[[#This Row],[Configuration Code]],Tare[Description]&Tare[Mass Scheme]&Tare[PBS Level]&Tare[Configuration Code],Tare[GCM (t) (100% load)],"",0) -> 65 | O83: =_xlfn.XLOOKUP(Fleet_Data[[#This Row],[Description]]&Fleet_Data[[#This Row],[Mass Scheme]]&Fleet_Data[[#This Row],[PBS Level]]&Fleet_Data[[#This Row],[Configuration Code]],Tare[Description]&Tare[Mass Scheme]&Tare[PBS Level]&Tare[Configuration Code],Tare[GCM (t) (75% load)],"",0) -> 55.29210203 | P83: =_xlfn.XLOOKUP(Fleet_Data[[#This Row],[Description]]&Fleet_Data[[#This Row],[Mass Scheme]]&Fleet_Data[[#This Row],[PBS Level]]&Fleet_Data[[#This Row],[Configuration Code]],Tare[Description]&Tare[Mass Scheme]&Tare[PBS Level]&Tare[Configuration Code],Tare[GCM (t) (50% load)],"",0) -> 45.58420406 | Q83: =_xlfn.XLOOKUP(Fleet_Data[[#This Row],[Description]]&Fleet_Data[[#This Row],[Mass Scheme]]&Fleet_Data[[#This Row],[PBS Level]]&Fleet_Data[[#This Row],[Configuration Code]],Tare[Description]&Tare[Mass Scheme]&Tare[PBS Level]&Tare[Configuration Code],Tare[Tare (t)],"",0) -> 26.16840811 | R83: =_xlfn.XLOOKUP(Fleet_Data[[#This Row],[Description]]&Fleet_Data[[#This Row],[Mass Scheme]]&Fleet_Data[[#This Row],[PBS Level]]&Fleet_Data[[#This Row],[Configuration Code]],Tare[Description]&Tare[Mass Scheme]&Tare[PBS Level]&Tare[Configuration Code],Tare[Payload (t)],"",0) -> 38.83159189 | S83: =_xlfn.XLOOKUP(Fleet_Data[[#This Row],[NTC Vehicle Equivalent]],NTC_Values[NTC vehicle],NTC_Values[Avg annual km],"",0) -> 250000
B84: =CONCATENATE(Fleet_Data[[#This Row],[Description]]," (",Fleet_Data[[#This Row],[Mass Scheme]],")",": ",Fleet_Data[[#This Row],[Fleet]],", ", Fleet_Data[[#This Row],[PBS Level]]) -> 3-axle prime mover B-double (4-3) (HML): PBS, 3 | C84: 3-axle prime mover B-double (4-3) | D84: HML | E84: PBS | F84: 3 | G84: 10 | H84: 30 | I84: B1243 | J84: Class 10 | K84: B-Double | L84: 18b | M84: Articulated | N84: =_xlfn.XLOOKUP(Fleet_Data[[#This Row],[Description]]&Fleet_Data[[#This Row],[Mass Scheme]]&Fleet_Data[[#This Row],[PBS Level]]&Fleet_Data[[#This Row],[Configuration Code]],Tare[Description]&Tare[Mass Scheme]&Tare[PBS Level]&Tare[Configuration Code],Tare[GCM (t) (100% load)],"",0) -> 73 | O84: =_xlfn.XLOOKUP(Fleet_Data[[#This Row],[Description]]&Fleet_Data[[#This Row],[Mass Scheme]]&Fleet_Data[[#This Row],[PBS Level]]&Fleet_Data[[#This Row],[Configuration Code]],Tare[Description]&Tare[Mass Scheme]&Tare[PBS Level]&Tare[Configuration Code],Tare[GCM (t) (75% load)],"",0) -> 61.29210203 | P84: =_xlfn.XLOOKUP(Fleet_Data[[#This Row],[Description]]&Fleet_Data[[#This Row],[Mass Scheme]]&Fleet_Data[[#This Row],[PBS Level]]&Fleet_Data[[#This Row],[Configuration Code]],Tare[Description]&Tare[Mass Scheme]&Tare[PBS Level]&Tare[Configuration Code],Tare[GCM (t) (50% load)],"",0) -> 49.58420406 | Q84: =_xlfn.XLOOKUP(Fleet_Data[[#This Row],[Description]]&Fleet_Data[[#This Row],[Mass Scheme]]&Fleet_Data[[#This Row],[PBS Level]]&Fleet_Data[[#This Row],[Configuration Code]],Tare[Description]&Tare[Mass Scheme]&Tare[PBS Level]&Tare[Configuration Code],Tare[Tare (t)],"",0) -> 26.16840811 | R84: =_xlfn.XLOOKUP(Fleet_Data[[#This Row],[Description]]&Fleet_Data[[#This Row],[Mass Scheme]]&Fleet_Data[[#This Row],[PBS Level]]&Fleet_Data[[#This Row],[Configuration Code]],Tare[Description]&Tare[Mass Scheme]&Tare[PBS Level]&Tare[Configuration Code],Tare[Payload (t)],"",0) -> 46.83159189 | S84: =_xlfn.XLOOKUP(Fleet_Data[[#This Row],[NTC Vehicle Equivalent]],NTC_Values[NTC vehicle],NTC_Values[Avg annual km],"",0) -> 250000
B85: =CONCATENATE(Fleet_Data[[#This Row],[Description]]," (",Fleet_Data[[#This Row],[Mass Scheme]],")",": ",Fleet_Data[[#This Row],[Fleet]],", ", Fleet_Data[[#This Row],[PBS Level]]) -> 3-axle prime mover B-double (4-4) (GML): PBS, 2 | C85: 3-axle prime mover B-double (4-4) | D85: GML | E85: PBS | F85: 2 | G85: 11 | H85: 26 | I85: B1244 | J85: Class 10 | K85: B-Double | L85: 18b | M85: Articulated | N85: =_xlfn.XLOOKUP(Fleet_Data[[#This Row],[Description]]&Fleet_Data[[#This Row],[Mass Scheme]]&Fleet_Data[[#This Row],[PBS Level]]&Fleet_Data[[#This Row],[Configuration Code]],Tare[Description]&Tare[Mass Scheme]&Tare[PBS Level]&Tare[Configuration Code],Tare[GCM (t) (100% load)],"",0) -> 63 | O85: =_xlfn.XLOOKUP(Fleet_Data[[#This Row],[Description]]&Fleet_Data[[#This Row],[Mass Scheme]]&Fleet_Data[[#This Row],[PBS Level]]&Fleet_Data[[#This Row],[Configuration Code]],Tare[Description]&Tare[Mass Scheme]&Tare[PBS Level]&Tare[Configuration Code],Tare[GCM (t) (75% load)],"",0) -> 54.7681053 | P85: =_xlfn.XLOOKUP(Fleet_Data[[#This Row],[Description]]&Fleet_Data[[#This Row],[Mass Scheme]]&Fleet_Data[[#This Row],[PBS Level]]&Fleet_Data[[#This Row],[Configuration Code]],Tare[Description]&Tare[Mass Scheme]&Tare[PBS Level]&Tare[Configuration Code],Tare[GCM (t) (50% load)],"",0) -> 46.53621059 | Q85: =_xlfn.XLOOKUP(Fleet_Data[[#This Row],[Description]]&Fleet_Data[[#This Row],[Mass Scheme]]&Fleet_Data[[#This Row],[PBS Level]]&Fleet_Data[[#This Row],[Configuration Code]],Tare[Description]&Tare[Mass Scheme]&Tare[PBS Level]&Tare[Configuration Code],Tare[Tare (t)],"",0) -> 30.07242118 | R85: =_xlfn.XLOOKUP(Fleet_Data[[#This Row],[Description]]&Fleet_Data[[#This Row],[Mass Scheme]]&Fleet_Data[[#This Row],[PBS Level]]&Fleet_Data[[#This Row],[Configuration Code]],Tare[Description]&Tare[Mass Scheme]&Tare[PBS Level]&Tare[Configuration Code],Tare[Payload (t)],"",0) -> 32.92757882 | S85: =_xlfn.XLOOKUP(Fleet_Data[[#This Row],[NTC Vehicle Equivalent]],NTC_Values[NTC vehicle],NTC_Values[Avg annual km],"",0) -> 250000
B86: =CONCATENATE(Fleet_Data[[#This Row],[Description]]," (",Fleet_Data[[#This Row],[Mass Scheme]],")",": ",Fleet_Data[[#This Row],[Fleet]],", ", Fleet_Data[[#This Row],[PBS Level]]) -> 3-axle prime mover B-double (4-4) (CML): PBS, 2 | C86: 3-axle prime mover B-double (4-4) | D86: CML | E86: PBS | F86: 2 | G86: 11 | H86: 26 | I86: B1244 | J86: Class 10 | K86: B-Double | L86: 18b | M86: Articulated | N86: =_xlfn.XLOOKUP(Fleet_Data[[#This Row],[Description]]&Fleet_Data[[#This Row],[Mass Scheme]]&Fleet_Data[[#This Row],[PBS Level]]&Fleet_Data[[#This Row],[Configuration Code]],Tare[Description]&Tare[Mass Scheme]&Tare[PBS Level]&Tare[Configuration Code],Tare[GCM (t) (100% load)],"",0) -> 65 | O86: =_xlfn.XLOOKUP(Fleet_Data[[#This Row],[Description]]&Fleet_Data[[#This Row],[Mass Scheme]]&Fleet_Data[[#This Row],[PBS Level]]&Fleet_Data[[#This Row],[Configuration Code]],Tare[Description]&Tare[Mass Scheme]&Tare[PBS Level]&Tare[Configuration Code],Tare[GCM (t) (75% load)],"",0) -> 56.2681053 | P86: =_xlfn.XLOOKUP(Fleet_Data[[#This Row],[Description]]&Fleet_Data[[#This Row],[Mass Scheme]]&Fleet_Data[[#This Row],[PBS Level]]&Fleet_Data[[#This Row],[Configuration Code]],Tare[Description]&Tare[Mass Scheme]&Tare[PBS Level]&Tare[Configuration Code],Tare[GCM (t) (50% load)],"",0) -> 47.53621059 | Q86: =_xlfn.XLOOKUP(Fleet_Data[[#This Row],[Description]]&Fleet_Data[[#This Row],[Mass Scheme]]&Fleet_Data[[#This Row],[PBS Level]]&Fleet_Data[[#This Row],[Configuration Code]],Tare[Description]&Tare[Mass Scheme]&Tare[PBS Level]&Tare[Configuration Code],Tare[Tare (t)],"",0) -> 30.07242118 | R86: =_xlfn.XLOOKUP(Fleet_Data[[#This Row],[Description]]&Fleet_Data[[#This Row],[Mass Scheme]]&Fleet_Data[[#This Row],[PBS Level]]&Fleet_Data[[#This Row],[Configuration Code]],Tare[Description]&Tare[Mass Scheme]&Tare[PBS Level]&Tare[Configuration Code],Tare[Payload (t)],"",0) -> 34.92757882 | S86: =_xlfn.XLOOKUP(Fleet_Data[[#This Row],[NTC Vehicle Equivalent]],NTC_Values[NTC vehicle],NTC_Values[Avg annual km],"",0) -> 250000
B87: =CONCATENATE(Fleet_Data[[#This Row],[Description]]," (",Fleet_Data[[#This Row],[Mass Scheme]],")",": ",Fleet_Data[[#This Row],[Fleet]],", ", Fleet_Data[[#This Row],[PBS Level]]) -> 3-axle prime mover B-double (4-4) (HML): PBS, 2 | C87: 3-axle prime mover B-double (4-4) | D87: HML | E87: PBS | F87: 2 | G87: 11 | H87: 26 | I87: B1244 | J87: Class 10 | K87: B-Double | L87: 18b | M87: Articulated | N87: =_xlfn.XLOOKUP(Fleet_Data[[#This Row],[Description]]&Fleet_Data[[#This Row],[Mass Scheme]]&Fleet_Data[[#This Row],[PBS Level]]&Fleet_Data[[#This Row],[Configuration Code]],Tare[Description]&Tare[Mass Scheme]&Tare[PBS Level]&Tare[Configuration Code],Tare[GCM (t) (100% load)],"",0) -> 77.5 | O87: =_xlfn.XLOOKUP(Fleet_Data[[#This Row],[Description]]&Fleet_Data[[#This Row],[Mass Scheme]]&Fleet_Data[[#This Row],[PBS Level]]&Fleet_Data[[#This Row],[Configuration Code]],Tare[Description]&Tare[Mass Scheme]&Tare[PBS Level]&Tare[Configuration Code],Tare[GCM (t) (75% load)],"",0) -> 65.6431053 | P87: =_xlfn.XLOOKUP(Fleet_Data[[#This Row],[Description]]&Fleet_Data[[#This Row],[Mass Scheme]]&Fleet_Data[[#This Row],[PBS Level]]&Fleet_Data[[#This Row],[Configuration Code]],Tare[Description]&Tare[Mass Scheme]&Tare[PBS Level]&Tare[Configuration Code],Tare[GCM (t) (50% load)],"",0) -> 53.78621059 | Q87: =_xlfn.XLOOKUP(Fleet_Data[[#This Row],[Description]]&Fleet_Data[[#This Row],[Mass Scheme]]&Fleet_Data[[#This Row],[PBS Level]]&Fleet_Data[[#This Row],[Configuration Code]],Tare[Description]&Tare[Mass Scheme]&Tare[PBS Level]&Tare[Configuration Code],Tare[Tare (t)],"",0) -> 30.07242118 | R87: =_xlfn.XLOOKUP(Fleet_Data[[#This Row],[Description]]&Fleet_Data[[#This Row],[Mass Scheme]]&Fleet_Data[[#This Row],[PBS Level]]&Fleet_Data[[#This Row],[Configuration Code]],Tare[Description]&Tare[Mass Scheme]&Tare[PBS Level]&Tare[Configuration Code],Tare[Payload (t)],"",0) -> 47.42757882 | S87: =_xlfn.XLOOKUP(Fleet_Data[[#This Row],[NTC Vehicle Equivalent]],NTC_Values[NTC vehicle],NTC_Values[Avg annual km],"",0) -> 250000
B88: =CONCATENATE(Fleet_Data[[#This Row],[Description]]," (",Fleet_Data[[#This Row],[Mass Scheme]],")",": ",Fleet_Data[[#This Row],[Fleet]],", ", Fleet_Data[[#This Row],[PBS Level]]) -> 3-axle prime mover B-double (4-4) (GML): PBS, 3 | C88: 3-axle prime mover B-double (4-4) | D88: GML | E88: PBS | F88: 3 | G88: 11 | H88: 30 | I88: B1244 | J88: Class 10 | K88: B-Double | L88: 18b | M88: Articulated | N88: =_xlfn.XLOOKUP(Fleet_Data[[#This Row],[Description]]&Fleet_Data[[#This Row],[Mass Scheme]]&Fleet_Data[[#This Row],[PBS Level]]&Fleet_Data[[#This Row],[Configuration Code]],Tare[Description]&Tare[Mass Scheme]&Tare[PBS Level]&Tare[Configuration Code],Tare[GCM (t) (100% load)],"",0) -> 63 | O88: =_xlfn.XLOOKUP(Fleet_Data[[#This Row],[Description]]&Fleet_Data[[#This Row],[Mass Scheme]]&Fleet_Data[[#This Row],[PBS Level]]&Fleet_Data[[#This Row],[Configuration Code]],Tare[Description]&Tare[Mass Scheme]&Tare[PBS Level]&Tare[Configuration Code],Tare[GCM (t) (75% load)],"",0) -> 54.7681053 | P88: =_xlfn.XLOOKUP(Fleet_Data[[#This Row],[Description]]&Fleet_Data[[#This Row],[Mass Scheme]]&Fleet_Data[[#This Row],[PBS Level]]&Fleet_Data[[#This Row],[Configuration Code]],Tare[Description]&Tare[Mass Scheme]&Tare[PBS Level]&Tare[Configuration Code],Tare[GCM (t) (50% load)],"",0) -> 46.53621059 | Q88: =_xlfn.XLOOKUP(Fleet_Data[[#This Row],[Description]]&Fleet_Data[[#This Row],[Mass Scheme]]&Fleet_Data[[#This Row],[PBS Level]]&Fleet_Data[[#This Row],[Configuration Code]],Tare[Description]&Tare[Mass Scheme]&Tare[PBS Level]&Tare[Configuration Code],Tare[Tare (t)],"",0) -> 30.07242118 | R88: =_xlfn.XLOOKUP(Fleet_Data[[#This Row],[Description]]&Fleet_Data[[#This Row],[Mass Scheme]]&Fleet_Data[[#This Row],[PBS Level]]&Fleet_Data[[#This Row],[Configuration Code]],Tare[Description]&Tare[Mass Scheme]&Tare[PBS Level]&Tare[Configuration Code],Tare[Payload (t)],"",0) -> 32.92757882 | S88: =_xlfn.XLOOKUP(Fleet_Data[[#This Row],[NTC Vehicle Equivalent]],NTC_Values[NTC vehicle],NTC_Values[Avg annual km],"",0) -> 250000
B89: =CONCATENATE(Fleet_Data[[#This Row],[Description]]," (",Fleet_Data[[#This Row],[Mass Scheme]],")",": ",Fleet_Data[[#This Row],[Fleet]],", ", Fleet_Data[[#This Row],[PBS Level]]) -> 3-axle prime mover B-double (4-4) (CML): PBS, 3 | C89: 3-axle prime mover B-double (4-4) | D89: CML | E89: PBS | F89: 3 | G89: 11 | H89: 30 | I89: B1244 | J89: Class 10 | K89: B-Double | L89: 18b | M89: Articulated | N89: =_xlfn.XLOOKUP(Fleet_Data[[#This Row],[Description]]&Fleet_Data[[#This Row],[Mass Scheme]]&Fleet_Data[[#This Row],[PBS Level]]&Fleet_Data[[#This Row],[Configuration Code]],Tare[Description]&Tare[Mass Scheme]&Tare[PBS Level]&Tare[Configuration Code],Tare[GCM (t) (100% load)],"",0) -> 65 | O89: =_xlfn.XLOOKUP(Fleet_Data[[#This Row],[Description]]&Fleet_Data[[#This Row],[Mass Scheme]]&Fleet_Data[[#This Row],[PBS Level]]&Fleet_Data[[#This Row],[Configuration Code]],Tare[Description]&Tare[Mass Scheme]&Tare[PBS Level]&Tare[Configuration Code],Tare[GCM (t) (75% load)],"",0) -> 56.2681053 | P89: =_xlfn.XLOOKUP(Fleet_Data[[#This Row],[Description]]&Fleet_Data[[#This Row],[Mass Scheme]]&Fleet_Data[[#This Row],[PBS Level]]&Fleet_Data[[#This Row],[Configuration Code]],Tare[Description]&Tare[Mass Scheme]&Tare[PBS Level]&Tare[Configuration Code],Tare[GCM (t) (50% load)],"",0) -> 47.53621059 | Q89: =_xlfn.XLOOKUP(Fleet_Data[[#This Row],[Description]]&Fleet_Data[[#This Row],[Mass Scheme]]&Fleet_Data[[#This Row],[PBS Level]]&Fleet_Data[[#This Row],[Configuration Code]],Tare[Description]&Tare[Mass Scheme]&Tare[PBS Level]&Tare[Configuration Code],Tare[Tare (t)],"",0) -> 30.07242118 | R89: =_xlfn.XLOOKUP(Fleet_Data[[#This Row],[Description]]&Fleet_Data[[#This Row],[Mass Scheme]]&Fleet_Data[[#This Row],[PBS Level]]&Fleet_Data[[#This Row],[Configuration Code]],Tare[Description]&Tare[Mass Scheme]&Tare[PBS Level]&Tare[Configuration Code],Tare[Payload (t)],"",0) -> 34.92757882 | S89: =_xlfn.XLOOKUP(Fleet_Data[[#This Row],[NTC Vehicle Equivalent]],NTC_Values[NTC vehicle],NTC_Values[Avg annual km],"",0) -> 250000
B90: =CONCATENATE(Fleet_Data[[#This Row],[Description]]," (",Fleet_Data[[#This Row],[Mass Scheme]],")",": ",Fleet_Data[[#This Row],[Fleet]],", ", Fleet_Data[[#This Row],[PBS Level]]) -> 3-axle prime mover B-double (4-4) (HML): PBS, 3 | C90: 3-axle prime mover B-double (4-4) | D90: HML | E90: PBS | F90: 3 | G90: 11 | H90: 30 | I90: B1244 | J90: Class 10 | K90: B-Double | L90: 18b | M90: Articulated | N90: =_xlfn.XLOOKUP(Fleet_Data[[#This Row],[Description]]&Fleet_Data[[#This Row],[Mass Scheme]]&Fleet_Data[[#This Row],[PBS Level]]&Fleet_Data[[#This Row],[Configuration Code]],Tare[Description]&Tare[Mass Scheme]&Tare[PBS Level]&Tare[Configuration Code],Tare[GCM (t) (100% load)],"",0) -> 77.5 | O90: =_xlfn.XLOOKUP(Fleet_Data[[#This Row],[Description]]&Fleet_Data[[#This Row],[Mass Scheme]]&Fleet_Data[[#This Row],[PBS Level]]&Fleet_Data[[#This Row],[Configuration Code]],Tare[Description]&Tare[Mass Scheme]&Tare[PBS Level]&Tare[Configuration Code],Tare[GCM (t) (75% load)],"",0) -> 65.6431053 | P90: =_xlfn.XLOOKUP(Fleet_Data[[#This Row],[Description]]&Fleet_Data[[#This Row],[Mass Scheme]]&Fleet_Data[[#This Row],[PBS Level]]&Fleet_Data[[#This Row],[Configuration Code]],Tare[Description]&Tare[Mass Scheme]&Tare[PBS Level]&Tare[Configuration Code],Tare[GCM (t) (50% load)],"",0) -> 53.78621059 | Q90: =_xlfn.XLOOKUP(Fleet_Data[[#This Row],[Description]]&Fleet_Data[[#This Row],[Mass Scheme]]&Fleet_Data[[#This Row],[PBS Level]]&Fleet_Data[[#This Row],[Configuration Code]],Tare[Description]&Tare[Mass Scheme]&Tare[PBS Level]&Tare[Configuration Code],Tare[Tare (t)],"",0) -> 30.07242118 | R90: =_xlfn.XLOOKUP(Fleet_Data[[#This Row],[Description]]&Fleet_Data[[#This Row],[Mass Scheme]]&Fleet_Data[[#This Row],[PBS Level]]&Fleet_Data[[#This Row],[Configuration Code]],Tare[Description]&Tare[Mass Scheme]&Tare[PBS Level]&Tare[Configuration Code],Tare[Payload (t)],"",0) -> 47.42757882 | S90: =_xlfn.XLOOKUP(Fleet_Data[[#This Row],[NTC Vehicle Equivalent]],NTC_Values[NTC vehicle],NTC_Values[Avg annual km],"",0) -> 250000
B91: =CONCATENATE(Fleet_Data[[#This Row],[Description]]," (",Fleet_Data[[#This Row],[Mass Scheme]],")",": ",Fleet_Data[[#This Row],[Fleet]],", ", Fleet_Data[[#This Row],[PBS Level]]) -> 3-axle prime mover A-double (2-2-2) (GML): PBS, 2 | C91: 3-axle prime mover A-double (2-2-2) | D91: GML | E91: PBS | F91: 2 | G91: 9 | H91: 30 | I91: A122T22 | J91: Class 11 | K91: A-Double | L91: 20 | M91: Articulated | N91: =_xlfn.XLOOKUP(Fleet_Data[[#This Row],[Description]]&Fleet_Data[[#This Row],[Mass Scheme]]&Fleet_Data[[#This Row],[PBS Level]]&Fleet_Data[[#This Row],[Configuration Code]],Tare[Description]&Tare[Mass Scheme]&Tare[PBS Level]&Tare[Configuration Code],Tare[GCM (t) (100% load)],"",0) -> 72.5 | O91: =_xlfn.XLOOKUP(Fleet_Data[[#This Row],[Description]]&Fleet_Data[[#This Row],[Mass Scheme]]&Fleet_Data[[#This Row],[PBS Level]]&Fleet_Data[[#This Row],[Configuration Code]],Tare[Description]&Tare[Mass Scheme]&Tare[PBS Level]&Tare[Configuration Code],Tare[GCM (t) (75% load)],"",0) -> 61.59281606 | P91: =_xlfn.XLOOKUP(Fleet_Data[[#This Row],[Description]]&Fleet_Data[[#This Row],[Mass Scheme]]&Fleet_Data[[#This Row],[PBS Level]]&Fleet_Data[[#This Row],[Configuration Code]],Tare[Description]&Tare[Mass Scheme]&Tare[PBS Level]&Tare[Configuration Code],Tare[GCM (t) (50% load)],"",0) -> 50.68563213 | Q91: =_xlfn.XLOOKUP(Fleet_Data[[#This Row],[Description]]&Fleet_Data[[#This Row],[Mass Scheme]]&Fleet_Data[[#This Row],[PBS Level]]&Fleet_Data[[#This Row],[Configuration Code]],Tare[Description]&Tare[Mass Scheme]&Tare[PBS Level]&Tare[Configuration Code],Tare[Tare (t)],"",0) -> 28.87126425 | R91: =_xlfn.XLOOKUP(Fleet_Data[[#This Row],[Description]]&Fleet_Data[[#This Row],[Mass Scheme]]&Fleet_Data[[#This Row],[PBS Level]]&Fleet_Data[[#This Row],[Configuration Code]],Tare[Description]&Tare[Mass Scheme]&Tare[PBS Level]&Tare[Configuration Code],Tare[Payload (t)],"",0) -> 43.62873575 | S91: =_xlfn.XLOOKUP(Fleet_Data[[#This Row],[NTC Vehicle Equivalent]],NTC_Values[NTC vehicle],NTC_Values[Avg annual km],"",0) -> 250000
B92: =CONCATENATE(Fleet_Data[[#This Row],[Description]]," (",Fleet_Data[[#This Row],[Mass Scheme]],")",": ",Fleet_Data[[#This Row],[Fleet]],", ", Fleet_Data[[#This Row],[PBS Level]]) -> 3-axle prime mover A-double (2-2-2) (CML): PBS, 2 | C92: 3-axle prime mover A-double (2-2-2) | D92: CML | E92: PBS | F92: 2 | G92: 9 | H92: 30 | I92: A122T22 | J92: Class 11 | K92: A-Double | L92: 20 | M92: Articulated | N92: =_xlfn.XLOOKUP(Fleet_Data[[#This Row],[Description]]&Fleet_Data[[#This Row],[Mass Scheme]]&Fleet_Data[[#This Row],[PBS Level]]&Fleet_Data[[#This Row],[Configuration Code]],Tare[Description]&Tare[Mass Scheme]&Tare[PBS Level]&Tare[Configuration Code],Tare[GCM (t) (100% load)],"",0) -> 74.5 | O92: =_xlfn.XLOOKUP(Fleet_Data[[#This Row],[Description]]&Fleet_Data[[#This Row],[Mass Scheme]]&Fleet_Data[[#This Row],[PBS Level]]&Fleet_Data[[#This Row],[Configuration Code]],Tare[Description]&Tare[Mass Scheme]&Tare[PBS Level]&Tare[Configuration Code],Tare[GCM (t) (75% load)],"",0) -> 63.09281606 | P92: =_xlfn.XLOOKUP(Fleet_Data[[#This Row],[Description]]&Fleet_Data[[#This Row],[Mass Scheme]]&Fleet_Data[[#This Row],[PBS Level]]&Fleet_Data[[#This Row],[Configuration Code]],Tare[Description]&Tare[Mass Scheme]&Tare[PBS Level]&Tare[Configuration Code],Tare[GCM (t) (50% load)],"",0) -> 51.68563213 | Q92: =_xlfn.XLOOKUP(Fleet_Data[[#This Row],[Description]]&Fleet_Data[[#This Row],[Mass Scheme]]&Fleet_Data[[#This Row],[PBS Level]]&Fleet_Data[[#This Row],[Configuration Code]],Tare[Description]&Tare[Mass Scheme]&Tare[PBS Level]&Tare[Configuration Code],Tare[Tare (t)],"",0) -> 28.87126425 | R92: =_xlfn.XLOOKUP(Fleet_Data[[#This Row],[Description]]&Fleet_Data[[#This Row],[Mass Scheme]]&Fleet_Data[[#This Row],[PBS Level]]&Fleet_Data[[#This Row],[Configuration Code]],Tare[Description]&Tare[Mass Scheme]&Tare[PBS Level]&Tare[Configuration Code],Tare[Payload (t)],"",0) -> 45.62873575 | S92: =_xlfn.XLOOKUP(Fleet_Data[[#This Row],[NTC Vehicle Equivalent]],NTC_Values[NTC vehicle],NTC_Values[Avg annual km],"",0) -> 250000
B93: =CONCATENATE(Fleet_Data[[#This Row],[Description]]," (",Fleet_Data[[#This Row],[Mass Scheme]],")",": ",Fleet_Data[[#This Row],[Fleet]],", ", Fleet_Data[[#This Row],[PBS Level]]) -> 3-axle prime mover A-double (2-2-2) (HML): PBS, 2 | C93: 3-axle prime mover A-double (2-2-2) | D93: HML | E93: PBS | F93: 2 | G93: 9 | H93: 30 | I93: A122T22 | J93: Class 11 | K93: A-Double | L93: 20 | M93: Articulated | N93: =_xlfn.XLOOKUP(Fleet_Data[[#This Row],[Description]]&Fleet_Data[[#This Row],[Mass Scheme]]&Fleet_Data[[#This Row],[PBS Level]]&Fleet_Data[[#This Row],[Configuration Code]],Tare[Description]&Tare[Mass Scheme]&Tare[PBS Level]&Tare[Configuration Code],Tare[GCM (t) (100% load)],"",0) -> 74.5 | O93: =_xlfn.XLOOKUP(Fleet_Data[[#This Row],[Description]]&Fleet_Data[[#This Row],[Mass Scheme]]&Fleet_Data[[#This Row],[PBS Level]]&Fleet_Data[[#This Row],[Configuration Code]],Tare[Description]&Tare[Mass Scheme]&Tare[PBS Level]&Tare[Configuration Code],Tare[GCM (t) (75% load)],"",0) -> 63.09281606 | P93: =_xlfn.XLOOKUP(Fleet_Data[[#This Row],[Description]]&Fleet_Data[[#This Row],[Mass Scheme]]&Fleet_Data[[#This Row],[PBS Level]]&Fleet_Data[[#This Row],[Configuration Code]],Tare[Description]&Tare[Mass Scheme]&Tare[PBS Level]&Tare[Configuration Code],Tare[GCM (t) (50% load)],"",0) -> 51.68563213 | Q93: =_xlfn.XLOOKUP(Fleet_Data[[#This Row],[Description]]&Fleet_Data[[#This Row],[Mass Scheme]]&Fleet_Data[[#This Row],[PBS Level]]&Fleet_Data[[#This Row],[Configuration Code]],Tare[Description]&Tare[Mass Scheme]&Tare[PBS Level]&Tare[Configuration Code],Tare[Tare (t)],"",0) -> 28.87126425 | R93: =_xlfn.XLOOKUP(Fleet_Data[[#This Row],[Description]]&Fleet_Data[[#This Row],[Mass Scheme]]&Fleet_Data[[#This Row],[PBS Level]]&Fleet_Data[[#This Row],[Configuration Code]],Tare[Description]&Tare[Mass Scheme]&Tare[PBS Level]&Tare[Configuration Code],Tare[Payload (t)],"",0) -> 45.62873575 | S93: =_xlfn.XLOOKUP(Fleet_Data[[#This Row],[NTC Vehicle Equivalent]],NTC_Values[NTC vehicle],NTC_Values[Avg annual km],"",0) -> 250000
B94: =CONCATENATE(Fleet_Data[[#This Row],[Description]]," (",Fleet_Data[[#This Row],[Mass Scheme]],")",": ",Fleet_Data[[#This Row],[Fleet]],", ", Fleet_Data[[#This Row],[PBS Level]]) -> 3-axle prime mover A-double (3-2-3) (GML): PBS, 2 | C94: 3-axle prime mover A-double (3-2-3) | D94: GML | E94: PBS | F94: 2 | G94: 11 | H94: 30 | I94: A123T23 | J94: Class 11 | K94: A-Double | L94: 20 | M94: Articulated | N94: =_xlfn.XLOOKUP(Fleet_Data[[#This Row],[Description]]&Fleet_Data[[#This Row],[Mass Scheme]]&Fleet_Data[[#This Row],[PBS Level]]&Fleet_Data[[#This Row],[Configuration Code]],Tare[Description]&Tare[Mass Scheme]&Tare[PBS Level]&Tare[Configuration Code],Tare[GCM (t) (100% load)],"",0) -> 79.5 | O94: =_xlfn.XLOOKUP(Fleet_Data[[#This Row],[Description]]&Fleet_Data[[#This Row],[Mass Scheme]]&Fleet_Data[[#This Row],[PBS Level]]&Fleet_Data[[#This Row],[Configuration Code]],Tare[Description]&Tare[Mass Scheme]&Tare[PBS Level]&Tare[Configuration Code],Tare[GCM (t) (75% load)],"",0) -> 66.8521941 | P94: =_xlfn.XLOOKUP(Fleet_Data[[#This Row],[Description]]&Fleet_Data[[#This Row],[Mass Scheme]]&Fleet_Data[[#This Row],[PBS Level]]&Fleet_Data[[#This Row],[Configuration Code]],Tare[Description]&Tare[Mass Scheme]&Tare[PBS Level]&Tare[Configuration Code],Tare[GCM (t) (50% load)],"",0) -> 54.20438821 | Q94: =_xlfn.XLOOKUP(Fleet_Data[[#This Row],[Description]]&Fleet_Data[[#This Row],[Mass Scheme]]&Fleet_Data[[#This Row],[PBS Level]]&Fleet_Data[[#This Row],[Configuration Code]],Tare[Description]&Tare[Mass Scheme]&Tare[PBS Level]&Tare[Configuration Code],Tare[Tare (t)],"",0) -> 28.90877642 | R94: =_xlfn.XLOOKUP(Fleet_Data[[#This Row],[Description]]&Fleet_Data[[#This Row],[Mass Scheme]]&Fleet_Data[[#This Row],[PBS Level]]&Fleet_Data[[#This Row],[Configuration Code]],Tare[Description]&Tare[Mass Scheme]&Tare[PBS Level]&Tare[Configuration Code],Tare[Payload (t)],"",0) -> 50.59122358 | S94: =_xlfn.XLOOKUP(Fleet_Data[[#This Row],[NTC Vehicle Equivalent]],NTC_Values[NTC vehicle],NTC_Values[Avg annual km],"",0) -> 250000
B95: =CONCATENATE(Fleet_Data[[#This Row],[Description]]," (",Fleet_Data[[#This Row],[Mass Scheme]],")",": ",Fleet_Data[[#This Row],[Fleet]],", ", Fleet_Data[[#This Row],[PBS Level]]) -> 3-axle prime mover A-double (3-2-3) (CML): PBS, 2 | C95: 3-axle prime mover A-double (3-2-3) | D95: CML | E95: PBS | F95: 2 | G95: 11 | H95: 30 | I95: A123T23 | J95: Class 11 | K95: A-Double | L95: 20 | M95: Articulated | N95: =_xlfn.XLOOKUP(Fleet_Data[[#This Row],[Description]]&Fleet_Data[[#This Row],[Mass Scheme]]&Fleet_Data[[#This Row],[PBS Level]]&Fleet_Data[[#This Row],[Configuration Code]],Tare[Description]&Tare[Mass Scheme]&Tare[PBS Level]&Tare[Configuration Code],Tare[GCM (t) (100% load)],"",0) -> 81.5 | O95: =_xlfn.XLOOKUP(Fleet_Data[[#This Row],[Description]]&Fleet_Data[[#This Row],[Mass Scheme]]&Fleet_Data[[#This Row],[PBS Level]]&Fleet_Data[[#This Row],[Configuration Code]],Tare[Description]&Tare[Mass Scheme]&Tare[PBS Level]&Tare[Configuration Code],Tare[GCM (t) (75% load)],"",0) -> 68.3521941 | P95: =_xlfn.XLOOKUP(Fleet_Data[[#This Row],[Description]]&Fleet_Data[[#This Row],[Mass Scheme]]&Fleet_Data[[#This Row],[PBS Level]]&Fleet_Data[[#This Row],[Configuration Code]],Tare[Description]&Tare[Mass Scheme]&Tare[PBS Level]&Tare[Configuration Code],Tare[GCM (t) (50% load)],"",0) -> 55.20438821 | Q95: =_xlfn.XLOOKUP(Fleet_Data[[#This Row],[Description]]&Fleet_Data[[#This Row],[Mass Scheme]]&Fleet_Data[[#This Row],[PBS Level]]&Fleet_Data[[#This Row],[Configuration Code]],Tare[Description]&Tare[Mass Scheme]&Tare[PBS Level]&Tare[Configuration Code],Tare[Tare (t)],"",0) -> 28.90877642 | R95: =_xlfn.XLOOKUP(Fleet_Data[[#This Row],[Description]]&Fleet_Data[[#This Row],[Mass Scheme]]&Fleet_Data[[#This Row],[PBS Level]]&Fleet_Data[[#This Row],[Configuration Code]],Tare[Description]&Tare[Mass Scheme]&Tare[PBS Level]&Tare[Configuration Code],Tare[Payload (t)],"",0) -> 52.59122358 | S95: =_xlfn.XLOOKUP(Fleet_Data[[#This Row],[NTC Vehicle Equivalent]],NTC_Values[NTC vehicle],NTC_Values[Avg annual km],"",0) -> 250000
B96: =CONCATENATE(Fleet_Data[[#This Row],[Description]]," (",Fleet_Data[[#This Row],[Mass Scheme]],")",": ",Fleet_Data[[#This Row],[Fleet]],", ", Fleet_Data[[#This Row],[PBS Level]]) -> 3-axle prime mover A-double (3-2-3) (HML): PBS, 2 | C96: 3-axle prime mover A-double (3-2-3) | D96: HML | E96: PBS | F96: 2 | G96: 11 | H96: 30 | I96: A123T23 | J96: Class 11 | K96: A-Double | L96: 20 | M96: Articulated | N96: =_xlfn.XLOOKUP(Fleet_Data[[#This Row],[Description]]&Fleet_Data[[#This Row],[Mass Scheme]]&Fleet_Data[[#This Row],[PBS Level]]&Fleet_Data[[#This Row],[Configuration Code]],Tare[Description]&Tare[Mass Scheme]&Tare[PBS Level]&Tare[Configuration Code],Tare[GCM (t) (100% load)],"",0) -> 85 | O96: =_xlfn.XLOOKUP(Fleet_Data[[#This Row],[Description]]&Fleet_Data[[#This Row],[Mass Scheme]]&Fleet_Data[[#This Row],[PBS Level]]&Fleet_Data[[#This Row],[Configuration Code]],Tare[Description]&Tare[Mass Scheme]&Tare[PBS Level]&Tare[Configuration Code],Tare[GCM (t) (75% load)],"",0) -> 70.9771941 | P96: =_xlfn.XLOOKUP(Fleet_Data[[#This Row],[Description]]&Fleet_Data[[#This Row],[Mass Scheme]]&Fleet_Data[[#This Row],[PBS Level]]&Fleet_Data[[#This Row],[Configuration Code]],Tare[Description]&Tare[Mass Scheme]&Tare[PBS Level]&Tare[Configuration Code],Tare[GCM (t) (50% load)],"",0) -> 56.95438821 | Q96: =_xlfn.XLOOKUP(Fleet_Data[[#This Row],[Description]]&Fleet_Data[[#This Row],[Mass Scheme]]&Fleet_Data[[#This Row],[PBS Level]]&Fleet_Data[[#This Row],[Configuration Code]],Tare[Description]&Tare[Mass Scheme]&Tare[PBS Level]&Tare[Configuration Code],Tare[Tare (t)],"",0) -> 28.90877642 | R96: =_xlfn.XLOOKUP(Fleet_Data[[#This Row],[Description]]&Fleet_Data[[#This Row],[Mass Scheme]]&Fleet_Data[[#This Row],[PBS Level]]&Fleet_Data[[#This Row],[Configuration Code]],Tare[Description]&Tare[Mass Scheme]&Tare[PBS Level]&Tare[Configuration Code],Tare[Payload (t)],"",0) -> 56.09122358 | S96: =_xlfn.XLOOKUP(Fleet_Data[[#This Row],[NTC Vehicle Equivalent]],NTC_Values[NTC vehicle],NTC_Values[Avg annual km],"",0) -> 250000
B97: =CONCATENATE(Fleet_Data[[#This Row],[Description]]," (",Fleet_Data[[#This Row],[Mass Scheme]],")",": ",Fleet_Data[[#This Row],[Fleet]],", ", Fleet_Data[[#This Row],[PBS Level]]) -> 3-axle prime mover A-double (3-2-3) (GML): PBS, 3 | C97: 3-axle prime mover A-double (3-2-3) | D97: GML | E97: PBS | F97: 3 | G97: 11 | H97: 36.5 | I97: A123T23 | J97: Class 11 | K97: A-Double | L97: 20 | M97: Articulated | N97: =_xlfn.XLOOKUP(Fleet_Data[[#This Row],[Description]]&Fleet_Data[[#This Row],[Mass Scheme]]&Fleet_Data[[#This Row],[PBS Level]]&Fleet_Data[[#This Row],[Configuration Code]],Tare[Description]&Tare[Mass Scheme]&Tare[PBS Level]&Tare[Configuration Code],Tare[GCM (t) (100% load)],"",0) -> 79.5 | O97: =_xlfn.XLOOKUP(Fleet_Data[[#This Row],[Description]]&Fleet_Data[[#This Row],[Mass Scheme]]&Fleet_Data[[#This Row],[PBS Level]]&Fleet_Data[[#This Row],[Configuration Code]],Tare[Description]&Tare[Mass Scheme]&Tare[PBS Level]&Tare[Configuration Code],Tare[GCM (t) (75% load)],"",0) -> 66.8521941 | P97: =_xlfn.XLOOKUP(Fleet_Data[[#This Row],[Description]]&Fleet_Data[[#This Row],[Mass Scheme]]&Fleet_Data[[#This Row],[PBS Level]]&Fleet_Data[[#This Row],[Configuration Code]],Tare[Description]&Tare[Mass Scheme]&Tare[PBS Level]&Tare[Configuration Code],Tare[GCM (t) (50% load)],"",0) -> 54.20438821 | Q97: =_xlfn.XLOOKUP(Fleet_Data[[#This Row],[Description]]&Fleet_Data[[#This Row],[Mass Scheme]]&Fleet_Data[[#This Row],[PBS Level]]&Fleet_Data[[#This Row],[Configuration Code]],Tare[Description]&Tare[Mass Scheme]&Tare[PBS Level]&Tare[Configuration Code],Tare[Tare (t)],"",0) -> 28.90877642 | R97: =_xlfn.XLOOKUP(Fleet_Data[[#This Row],[Description]]&Fleet_Data[[#This Row],[Mass Scheme]]&Fleet_Data[[#This Row],[PBS Level]]&Fleet_Data[[#This Row],[Configuration Code]],Tare[Description]&Tare[Mass Scheme]&Tare[PBS Level]&Tare[Configuration Code],Tare[Payload (t)],"",0) -> 50.59122358 | S97: =_xlfn.XLOOKUP(Fleet_Data[[#This Row],[NTC Vehicle Equivalent]],NTC_Values[NTC vehicle],NTC_Values[Avg annual km],"",0) -> 250000
B98: =CONCATENATE(Fleet_Data[[#This Row],[Description]]," (",Fleet_Data[[#This Row],[Mass Scheme]],")",": ",Fleet_Data[[#This Row],[Fleet]],", ", Fleet_Data[[#This Row],[PBS Level]]) -> 3-axle prime mover A-double (3-2-3) (CML): PBS, 3 | C98: 3-axle prime mover A-double (3-2-3) | D98: CML | E98: PBS | F98: 3 | G98: 11 | H98: 36.5 | I98: A123T23 | J98: Class 11 | K98: A-Double | L98: 20 | M98: Articulated | N98: =_xlfn.XLOOKUP(Fleet_Data[[#This Row],[Description]]&Fleet_Data[[#This Row],[Mass Scheme]]&Fleet_Data[[#This Row],[PBS Level]]&Fleet_Data[[#This Row],[Configuration Code]],Tare[Description]&Tare[Mass Scheme]&Tare[PBS Level]&Tare[Configuration Code],Tare[GCM (t) (100% load)],"",0) -> 81.5 | O98: =_xlfn.XLOOKUP(Fleet_Data[[#This Row],[Description]]&Fleet_Data[[#This Row],[Mass Scheme]]&Fleet_Data[[#This Row],[PBS Level]]&Fleet_Data[[#This Row],[Configuration Code]],Tare[Description]&Tare[Mass Scheme]&Tare[PBS Level]&Tare[Configuration Code],Tare[GCM (t) (75% load)],"",0) -> 68.3521941 | P98: =_xlfn.XLOOKUP(Fleet_Data[[#This Row],[Description]]&Fleet_Data[[#This Row],[Mass Scheme]]&Fleet_Data[[#This Row],[PBS Level]]&Fleet_Data[[#This Row],[Configuration Code]],Tare[Description]&Tare[Mass Scheme]&Tare[PBS Level]&Tare[Configuration Code],Tare[GCM (t) (50% load)],"",0) -> 55.20438821 | Q98: =_xlfn.XLOOKUP(Fleet_Data[[#This Row],[Description]]&Fleet_Data[[#This Row],[Mass Scheme]]&Fleet_Data[[#This Row],[PBS Level]]&Fleet_Data[[#This Row],[Configuration Code]],Tare[Description]&Tare[Mass Scheme]&Tare[PBS Level]&Tare[Configuration Code],Tare[Tare (t)],"",0) -> 28.90877642 | R98: =_xlfn.XLOOKUP(Fleet_Data[[#This Row],[Description]]&Fleet_Data[[#This Row],[Mass Scheme]]&Fleet_Data[[#This Row],[PBS Level]]&Fleet_Data[[#This Row],[Configuration Code]],Tare[Description]&Tare[Mass Scheme]&Tare[PBS Level]&Tare[Configuration Code],Tare[Payload (t)],"",0) -> 52.59122358 | S98: =_xlfn.XLOOKUP(Fleet_Data[[#This Row],[NTC Vehicle Equivalent]],NTC_Values[NTC vehicle],NTC_Values[Avg annual km],"",0) -> 250000
B99: =CONCATENATE(Fleet_Data[[#This Row],[Description]]," (",Fleet_Data[[#This Row],[Mass Scheme]],")",": ",Fleet_Data[[#This Row],[Fleet]],", ", Fleet_Data[[#This Row],[PBS Level]]) -> 3-axle prime mover A-double (3-2-3) (HML): PBS, 3 | C99: 3-axle prime mover A-double (3-2-3) | D99: HML | E99: PBS | F99: 3 | G99: 11 | H99: 36.5 | I99: A123T23 | J99: Class 11 | K99: A-Double | L99: 20 | M99: Articulated | N99: =_xlfn.XLOOKUP(Fleet_Data[[#This Row],[Description]]&Fleet_Data[[#This Row],[Mass Scheme]]&Fleet_Data[[#This Row],[PBS Level]]&Fleet_Data[[#This Row],[Configuration Code]],Tare[Description]&Tare[Mass Scheme]&Tare[PBS Level]&Tare[Configuration Code],Tare[GCM (t) (100% load)],"",0) -> 85.5 | O99: =_xlfn.XLOOKUP(Fleet_Data[[#This Row],[Description]]&Fleet_Data[[#This Row],[Mass Scheme]]&Fleet_Data[[#This Row],[PBS Level]]&Fleet_Data[[#This Row],[Configuration Code]],Tare[Description]&Tare[Mass Scheme]&Tare[PBS Level]&Tare[Configuration Code],Tare[GCM (t) (75% load)],"",0) -> 71.3521941 | P99: =_xlfn.XLOOKUP(Fleet_Data[[#This Row],[Description]]&Fleet_Data[[#This Row],[Mass Scheme]]&Fleet_Data[[#This Row],[PBS Level]]&Fleet_Data[[#This Row],[Configuration Code]],Tare[Description]&Tare[Mass Scheme]&Tare[PBS Level]&Tare[Configuration Code],Tare[GCM (t) (50% load)],"",0) -> 57.20438821 | Q99: =_xlfn.XLOOKUP(Fleet_Data[[#This Row],[Description]]&Fleet_Data[[#This Row],[Mass Scheme]]&Fleet_Data[[#This Row],[PBS Level]]&Fleet_Data[[#This Row],[Configuration Code]],Tare[Description]&Tare[Mass Scheme]&Tare[PBS Level]&Tare[Configuration Code],Tare[Tare (t)],"",0) -> 28.90877642 | R99: =_xlfn.XLOOKUP(Fleet_Data[[#This Row],[Description]]&Fleet_Data[[#This Row],[Mass Scheme]]&Fleet_Data[[#This Row],[PBS Level]]&Fleet_Data[[#This Row],[Configuration Code]],Tare[Description]&Tare[Mass Scheme]&Tare[PBS Level]&Tare[Configuration Code],Tare[Payload (t)],"",0) -> 56.59122358 | S99: =_xlfn.XLOOKUP(Fleet_Data[[#This Row],[NTC Vehicle Equivalent]],NTC_Values[NTC vehicle],NTC_Values[Avg annual km],"",0) -> 250000
B100: =CONCATENATE(Fleet_Data[[#This Row],[Description]]," (",Fleet_Data[[#This Row],[Mass Scheme]],")",": ",Fleet_Data[[#This Row],[Fleet]],", ", Fleet_Data[[#This Row],[PBS Level]]) -> 3-axle prime mover A-double (3-3-3) (GML): PBS, 2 | C100: 3-axle prime mover A-double (3-3-3) | D100: GML | E100: PBS | F100: 2 | G100: 12 | H100: 30 | I100: A123T33 | J100: Class 11 | K100: A-Double | L100: 20 | M100: Articulated | N100: =_xlfn.XLOOKUP(Fleet_Data[[#This Row],[Description]]&Fleet_Data[[#This Row],[Mass Scheme]]&Fleet_Data[[#This Row],[PBS Level]]&Fleet_Data[[#This Row],[Configuration Code]],Tare[Description]&Tare[Mass Scheme]&Tare[PBS Level]&Tare[Configuration Code],Tare[GCM (t) (100% load)],"",0) -> 83 | O100: =_xlfn.XLOOKUP(Fleet_Data[[#This Row],[Description]]&Fleet_Data[[#This Row],[Mass Scheme]]&Fleet_Data[[#This Row],[PBS Level]]&Fleet_Data[[#This Row],[Configuration Code]],Tare[Description]&Tare[Mass Scheme]&Tare[PBS Level]&Tare[Configuration Code],Tare[GCM (t) (75% load)],"",0) -> 69.73340335 | P100: =_xlfn.XLOOKUP(Fleet_Data[[#This Row],[Description]]&Fleet_Data[[#This Row],[Mass Scheme]]&Fleet_Data[[#This Row],[PBS Level]]&Fleet_Data[[#This Row],[Configuration Code]],Tare[Description]&Tare[Mass Scheme]&Tare[PBS Level]&Tare[Configuration Code],Tare[GCM (t) (50% load)],"",0) -> 56.46680671 | Q100: =_xlfn.XLOOKUP(Fleet_Data[[#This Row],[Description]]&Fleet_Data[[#This Row],[Mass Scheme]]&Fleet_Data[[#This Row],[PBS Level]]&Fleet_Data[[#This Row],[Configuration Code]],Tare[Description]&Tare[Mass Scheme]&Tare[PBS Level]&Tare[Configuration Code],Tare[Tare (t)],"",0) -> 29.93361341 | R100: =_xlfn.XLOOKUP(Fleet_Data[[#This Row],[Description]]&Fleet_Data[[#This Row],[Mass Scheme]]&Fleet_Data[[#This Row],[PBS Level]]&Fleet_Data[[#This Row],[Configuration Code]],Tare[Description]&Tare[Mass Scheme]&Tare[PBS Level]&Tare[Configuration Code],Tare[Payload (t)],"",0) -> 53.06638659 | S100: =_xlfn.XLOOKUP(Fleet_Data[[#This Row],[NTC Vehicle Equivalent]],NTC_Values[NTC vehicle],NTC_Values[Avg annual km],"",0) -> 250000
B101: =CONCATENATE(Fleet_Data[[#This Row],[Description]]," (",Fleet_Data[[#This Row],[Mass Scheme]],")",": ",Fleet_Data[[#This Row],[Fleet]],", ", Fleet_Data[[#This Row],[PBS Level]]) -> 3-axle prime mover A-double (3-3-3) (CML): PBS, 2 | C101: 3-axle prime mover A-double (3-3-3) | D101: CML | E101: PBS | F101: 2 | G101: 12 | H101: 30 | I101: A123T33 | J101: Class 11 | K101: A-Double | L101: 20 | M101: Articulated | N101: =_xlfn.XLOOKUP(Fleet_Data[[#This Row],[Description]]&Fleet_Data[[#This Row],[Mass Scheme]]&Fleet_Data[[#This Row],[PBS Level]]&Fleet_Data[[#This Row],[Configuration Code]],Tare[Description]&Tare[Mass Scheme]&Tare[PBS Level]&Tare[Configuration Code],Tare[GCM (t) (100% load)],"",0) -> 85 | O101: =_xlfn.XLOOKUP(Fleet_Data[[#This Row],[Description]]&Fleet_Data[[#This Row],[Mass Scheme]]&Fleet_Data[[#This Row],[PBS Level]]&Fleet_Data[[#This Row],[Configuration Code]],Tare[Description]&Tare[Mass Scheme]&Tare[PBS Level]&Tare[Configuration Code],Tare[GCM (t) (75% load)],"",0) -> 71.23340335 | P101: =_xlfn.XLOOKUP(Fleet_Data[[#This Row],[Description]]&Fleet_Data[[#This Row],[Mass Scheme]]&Fleet_Data[[#This Row],[PBS Level]]&Fleet_Data[[#This Row],[Configuration Code]],Tare[Description]&Tare[Mass Scheme]&Tare[PBS Level]&Tare[Configuration Code],Tare[GCM (t) (50% load)],"",0) -> 57.46680671 | Q101: =_xlfn.XLOOKUP(Fleet_Data[[#This Row],[Description]]&Fleet_Data[[#This Row],[Mass Scheme]]&Fleet_Data[[#This Row],[PBS Level]]&Fleet_Data[[#This Row],[Configuration Code]],Tare[Description]&Tare[Mass Scheme]&Tare[PBS Level]&Tare[Configuration Code],Tare[Tare (t)],"",0) -> 29.93361341 | R101: =_xlfn.XLOOKUP(Fleet_Data[[#This Row],[Description]]&Fleet_Data[[#This Row],[Mass Scheme]]&Fleet_Data[[#This Row],[PBS Level]]&Fleet_Data[[#This Row],[Configuration Code]],Tare[Description]&Tare[Mass Scheme]&Tare[PBS Level]&Tare[Configuration Code],Tare[Payload (t)],"",0) -> 55.06638659 | S101: =_xlfn.XLOOKUP(Fleet_Data[[#This Row],[NTC Vehicle Equivalent]],NTC_Values[NTC vehicle],NTC_Values[Avg annual km],"",0) -> 250000
B102: =CONCATENATE(Fleet_Data[[#This Row],[Description]]," (",Fleet_Data[[#This Row],[Mass Scheme]],")",": ",Fleet_Data[[#This Row],[Fleet]],", ", Fleet_Data[[#This Row],[PBS Level]]) -> 3-axle prime mover A-double (3-3-3) (HML): PBS, 2 | C102: 3-axle prime mover A-double (3-3-3) | D102: HML | E102: PBS | F102: 2 | G102: 12 | H102: 30 | I102: A123T33 | J102: Class 11 | K102: A-Double | L102: 20 | M102: Articulated | N102: =_xlfn.XLOOKUP(Fleet_Data[[#This Row],[Description]]&Fleet_Data[[#This Row],[Mass Scheme]]&Fleet_Data[[#This Row],[PBS Level]]&Fleet_Data[[#This Row],[Configuration Code]],Tare[Description]&Tare[Mass Scheme]&Tare[PBS Level]&Tare[Configuration Code],Tare[GCM (t) (100% load)],"",0) -> 85 | O102: =_xlfn.XLOOKUP(Fleet_Data[[#This Row],[Description]]&Fleet_Data[[#This Row],[Mass Scheme]]&Fleet_Data[[#This Row],[PBS Level]]&Fleet_Data[[#This Row],[Configuration Code]],Tare[Description]&Tare[Mass Scheme]&Tare[PBS Level]&Tare[Configuration Code],Tare[GCM (t) (75% load)],"",0) -> 71.23340335 | P102: =_xlfn.XLOOKUP(Fleet_Data[[#This Row],[Description]]&Fleet_Data[[#This Row],[Mass Scheme]]&Fleet_Data[[#This Row],[PBS Level]]&Fleet_Data[[#This Row],[Configuration Code]],Tare[Description]&Tare[Mass Scheme]&Tare[PBS Level]&Tare[Configuration Code],Tare[GCM (t) (50% load)],"",0) -> 57.46680671 | Q102: =_xlfn.XLOOKUP(Fleet_Data[[#This Row],[Description]]&Fleet_Data[[#This Row],[Mass Scheme]]&Fleet_Data[[#This Row],[PBS Level]]&Fleet_Data[[#This Row],[Configuration Code]],Tare[Description]&Tare[Mass Scheme]&Tare[PBS Level]&Tare[Configuration Code],Tare[Tare (t)],"",0) -> 29.93361341 | R102: =_xlfn.XLOOKUP(Fleet_Data[[#This Row],[Description]]&Fleet_Data[[#This Row],[Mass Scheme]]&Fleet_Data[[#This Row],[PBS Level]]&Fleet_Data[[#This Row],[Configuration Code]],Tare[Description]&Tare[Mass Scheme]&Tare[PBS Level]&Tare[Configuration Code],Tare[Payload (t)],"",0) -> 55.06638659 | S102: =_xlfn.XLOOKUP(Fleet_Data[[#This Row],[NTC Vehicle Equivalent]],NTC_Values[NTC vehicle],NTC_Values[Avg annual km],"",0) -> 250000
B103: =CONCATENATE(Fleet_Data[[#This Row],[Description]]," (",Fleet_Data[[#This Row],[Mass Scheme]],")",": ",Fleet_Data[[#This Row],[Fleet]],", ", Fleet_Data[[#This Row],[PBS Level]]) -> 3-axle prime mover A-double (3-3-3) (GML): PBS, 3 | C103: 3-axle prime mover A-double (3-3-3) | D103: GML | E103: PBS | F103: 3 | G103: 12 | H103: 36.5 | I103: A123T33 | J103: Class 11 | K103: A-Double | L103: 20 | M103: Articulated | N103: =_xlfn.XLOOKUP(Fleet_Data[[#This Row],[Description]]&Fleet_Data[[#This Row],[Mass Scheme]]&Fleet_Data[[#This Row],[PBS Level]]&Fleet_Data[[#This Row],[Configuration Code]],Tare[Description]&Tare[Mass Scheme]&Tare[PBS Level]&Tare[Configuration Code],Tare[GCM (t) (100% load)],"",0) -> 83 | O103: =_xlfn.XLOOKUP(Fleet_Data[[#This Row],[Description]]&Fleet_Data[[#This Row],[Mass Scheme]]&Fleet_Data[[#This Row],[PBS Level]]&Fleet_Data[[#This Row],[Configuration Code]],Tare[Description]&Tare[Mass Scheme]&Tare[PBS Level]&Tare[Configuration Code],Tare[GCM (t) (75% load)],"",0) -> 69.73340335 | P103: =_xlfn.XLOOKUP(Fleet_Data[[#This Row],[Description]]&Fleet_Data[[#This Row],[Mass Scheme]]&Fleet_Data[[#This Row],[PBS Level]]&Fleet_Data[[#This Row],[Configuration Code]],Tare[Description]&Tare[Mass Scheme]&Tare[PBS Level]&Tare[Configuration Code],Tare[GCM (t) (50% load)],"",0) -> 56.46680671 | Q103: =_xlfn.XLOOKUP(Fleet_Data[[#This Row],[Description]]&Fleet_Data[[#This Row],[Mass Scheme]]&Fleet_Data[[#This Row],[PBS Level]]&Fleet_Data[[#This Row],[Configuration Code]],Tare[Description]&Tare[Mass Scheme]&Tare[PBS Level]&Tare[Configuration Code],Tare[Tare (t)],"",0) -> 29.93361341 | R103: =_xlfn.XLOOKUP(Fleet_Data[[#This Row],[Description]]&Fleet_Data[[#This Row],[Mass Scheme]]&Fleet_Data[[#This Row],[PBS Level]]&Fleet_Data[[#This Row],[Configuration Code]],Tare[Description]&Tare[Mass Scheme]&Tare[PBS Level]&Tare[Configuration Code],Tare[Payload (t)],"",0) -> 53.06638659 | S103: =_xlfn.XLOOKUP(Fleet_Data[[#This Row],[NTC Vehicle Equivalent]],NTC_Values[NTC vehicle],NTC_Values[Avg annual km],"",0) -> 250000
B104: =CONCATENATE(Fleet_Data[[#This Row],[Description]]," (",Fleet_Data[[#This Row],[Mass Scheme]],")",": ",Fleet_Data[[#This Row],[Fleet]],", ", Fleet_Data[[#This Row],[PBS Level]]) -> 3-axle prime mover A-double (3-3-3) (CML): PBS, 3 | C104: 3-axle prime mover A-double (3-3-3) | D104: CML | E104: PBS | F104: 3 | G104: 12 | H104: 36.5 | I104: A123T33 | J104: Class 11 | K104: A-Double | L104: 20 | M104: Articulated | N104: =_xlfn.XLOOKUP(Fleet_Data[[#This Row],[Description]]&Fleet_Data[[#This Row],[Mass Scheme]]&Fleet_Data[[#This Row],[PBS Level]]&Fleet_Data[[#This Row],[Configuration Code]],Tare[Description]&Tare[Mass Scheme]&Tare[PBS Level]&Tare[Configuration Code],Tare[GCM (t) (100% load)],"",0) -> 85 | O104: =_xlfn.XLOOKUP(Fleet_Data[[#This Row],[Description]]&Fleet_Data[[#This Row],[Mass Scheme]]&Fleet_Data[[#This Row],[PBS Level]]&Fleet_Data[[#This Row],[Configuration Code]],Tare[Description]&Tare[Mass Scheme]&Tare[PBS Level]&Tare[Configuration Code],Tare[GCM (t) (75% load)],"",0) -> 71.23340335 | P104: =_xlfn.XLOOKUP(Fleet_Data[[#This Row],[Description]]&Fleet_Data[[#This Row],[Mass Scheme]]&Fleet_Data[[#This Row],[PBS Level]]&Fleet_Data[[#This Row],[Configuration Code]],Tare[Description]&Tare[Mass Scheme]&Tare[PBS Level]&Tare[Configuration Code],Tare[GCM (t) (50% load)],"",0) -> 57.46680671 | Q104: =_xlfn.XLOOKUP(Fleet_Data[[#This Row],[Description]]&Fleet_Data[[#This Row],[Mass Scheme]]&Fleet_Data[[#This Row],[PBS Level]]&Fleet_Data[[#This Row],[Configuration Code]],Tare[Description]&Tare[Mass Scheme]&Tare[PBS Level]&Tare[Configuration Code],Tare[Tare (t)],"",0) -> 29.93361341 | R104: =_xlfn.XLOOKUP(Fleet_Data[[#This Row],[Description]]&Fleet_Data[[#This Row],[Mass Scheme]]&Fleet_Data[[#This Row],[PBS Level]]&Fleet_Data[[#This Row],[Configuration Code]],Tare[Description]&Tare[Mass Scheme]&Tare[PBS Level]&Tare[Configuration Code],Tare[Payload (t)],"",0) -> 55.06638659 | S104: =_xlfn.XLOOKUP(Fleet_Data[[#This Row],[NTC Vehicle Equivalent]],NTC_Values[NTC vehicle],NTC_Values[Avg annual km],"",0) -> 250000
B105: =CONCATENATE(Fleet_Data[[#This Row],[Description]]," (",Fleet_Data[[#This Row],[Mass Scheme]],")",": ",Fleet_Data[[#This Row],[Fleet]],", ", Fleet_Data[[#This Row],[PBS Level]]) -> 3-axle prime mover A-double (3-3-3) (HML): PBS, 3 | C105: 3-axle prime mover A-double (3-3-3) | D105: HML | E105: PBS | F105: 3 | G105: 12 | H105: 36.5 | I105: A123T33 | J105: Class 11 | K105: A-Double | L105: 20 | M105: Articulated | N105: =_xlfn.XLOOKUP(Fleet_Data[[#This Row],[Description]]&Fleet_Data[[#This Row],[Mass Scheme]]&Fleet_Data[[#This Row],[PBS Level]]&Fleet_Data[[#This Row],[Configuration Code]],Tare[Description]&Tare[Mass Scheme]&Tare[PBS Level]&Tare[Configuration Code],Tare[GCM (t) (100% load)],"",0) -> 91 | O105: =_xlfn.XLOOKUP(Fleet_Data[[#This Row],[Description]]&Fleet_Data[[#This Row],[Mass Scheme]]&Fleet_Data[[#This Row],[PBS Level]]&Fleet_Data[[#This Row],[Configuration Code]],Tare[Description]&Tare[Mass Scheme]&Tare[PBS Level]&Tare[Configuration Code],Tare[GCM (t) (75% load)],"",0) -> 75.73340335 | P105: =_xlfn.XLOOKUP(Fleet_Data[[#This Row],[Description]]&Fleet_Data[[#This Row],[Mass Scheme]]&Fleet_Data[[#This Row],[PBS Level]]&Fleet_Data[[#This Row],[Configuration Code]],Tare[Description]&Tare[Mass Scheme]&Tare[PBS Level]&Tare[Configuration Code],Tare[GCM (t) (50% load)],"",0) -> 60.46680671 | Q105: =_xlfn.XLOOKUP(Fleet_Data[[#This Row],[Description]]&Fleet_Data[[#This Row],[Mass Scheme]]&Fleet_Data[[#This Row],[PBS Level]]&Fleet_Data[[#This Row],[Configuration Code]],Tare[Description]&Tare[Mass Scheme]&Tare[PBS Level]&Tare[Configuration Code],Tare[Tare (t)],"",0) -> 29.93361341 | R105: =_xlfn.XLOOKUP(Fleet_Data[[#This Row],[Description]]&Fleet_Data[[#This Row],[Mass Scheme]]&Fleet_Data[[#This Row],[PBS Level]]&Fleet_Data[[#This Row],[Configuration Code]],Tare[Description]&Tare[Mass Scheme]&Tare[PBS Level]&Tare[Configuration Code],Tare[Payload (t)],"",0) -> 61.06638659 | S105: =_xlfn.XLOOKUP(Fleet_Data[[#This Row],[NTC Vehicle Equivalent]],NTC_Values[NTC vehicle],NTC_Values[Avg annual km],"",0) -> 250000
B106: =CONCATENATE(Fleet_Data[[#This Row],[Description]]," (",Fleet_Data[[#This Row],[Mass Scheme]],")",": ",Fleet_Data[[#This Row],[Fleet]],", ", Fleet_Data[[#This Row],[PBS Level]]) -> A-triple (3-3-3-3-3) (GML): PBS, 4 | C106: A-triple (3-3-3-3-3) | D106: GML | E106: PBS | F106: 4 | G106: 19 | H106: 42.5 | I106: A1333333 | J106: Class 12 | K106: A-Triple | L106: 21 | M106: Articulated | N106: =_xlfn.XLOOKUP(Fleet_Data[[#This Row],[Description]]&Fleet_Data[[#This Row],[Mass Scheme]]&Fleet_Data[[#This Row],[PBS Level]]&Fleet_Data[[#This Row],[Configuration Code]],Tare[Description]&Tare[Mass Scheme]&Tare[PBS Level]&Tare[Configuration Code],Tare[GCM (t) (100% load)],"",0) -> 126.5 | O106: =_xlfn.XLOOKUP(Fleet_Data[[#This Row],[Description]]&Fleet_Data[[#This Row],[Mass Scheme]]&Fleet_Data[[#This Row],[PBS Level]]&Fleet_Data[[#This Row],[Configuration Code]],Tare[Description]&Tare[Mass Scheme]&Tare[PBS Level]&Tare[Configuration Code],Tare[GCM (t) (75% load)],"",0) -> 106.7922061 | P106: =_xlfn.XLOOKUP(Fleet_Data[[#This Row],[Description]]&Fleet_Data[[#This Row],[Mass Scheme]]&Fleet_Data[[#This Row],[PBS Level]]&Fleet_Data[[#This Row],[Configuration Code]],Tare[Description]&Tare[Mass Scheme]&Tare[PBS Level]&Tare[Configuration Code],Tare[GCM (t) (50% load)],"",0) -> 87.08441212 | Q106: =_xlfn.XLOOKUP(Fleet_Data[[#This Row],[Description]]&Fleet_Data[[#This Row],[Mass Scheme]]&Fleet_Data[[#This Row],[PBS Level]]&Fleet_Data[[#This Row],[Configuration Code]],Tare[Description]&Tare[Mass Scheme]&Tare[PBS Level]&Tare[Configuration Code],Tare[Tare (t)],"",0) -> 47.66882424 | R106: =_xlfn.XLOOKUP(Fleet_Data[[#This Row],[Description]]&Fleet_Data[[#This Row],[Mass Scheme]]&Fleet_Data[[#This Row],[PBS Level]]&Fleet_Data[[#This Row],[Configuration Code]],Tare[Description]&Tare[Mass Scheme]&Tare[PBS Level]&Tare[Configuration Code],Tare[Payload (t)],"",0) -> 78.83117576 | S106: =_xlfn.XLOOKUP(Fleet_Data[[#This Row],[NTC Vehicle Equivalent]],NTC_Values[NTC vehicle],NTC_Values[Avg annual km],"",0) -> 275000
B107: =CONCATENATE(Fleet_Data[[#This Row],[Description]]," (",Fleet_Data[[#This Row],[Mass Scheme]],")",": ",Fleet_Data[[#This Row],[Fleet]],", ", Fleet_Data[[#This Row],[PBS Level]]) -> A-triple (3-3-3-3-3) (CML): PBS, 4 | C107: A-triple (3-3-3-3-3) | D107: CML | E107: PBS | F107: 4 | G107: 19 | H107: 42.5 | I107: A1333333 | J107: Class 12 | K107: A-Triple | L107: 21 | M107: Articulated | N107: =_xlfn.XLOOKUP(Fleet_Data[[#This Row],[Description]]&Fleet_Data[[#This Row],[Mass Scheme]]&Fleet_Data[[#This Row],[PBS Level]]&Fleet_Data[[#This Row],[Configuration Code]],Tare[Description]&Tare[Mass Scheme]&Tare[PBS Level]&Tare[Configuration Code],Tare[GCM (t) (100% load)],"",0) -> 128.5 | O107: =_xlfn.XLOOKUP(Fleet_Data[[#This Row],[Description]]&Fleet_Data[[#This Row],[Mass Scheme]]&Fleet_Data[[#This Row],[PBS Level]]&Fleet_Data[[#This Row],[Configuration Code]],Tare[Description]&Tare[Mass Scheme]&Tare[PBS Level]&Tare[Configuration Code],Tare[GCM (t) (75% load)],"",0) -> 108.2922061 | P107: =_xlfn.XLOOKUP(Fleet_Data[[#This Row],[Description]]&Fleet_Data[[#This Row],[Mass Scheme]]&Fleet_Data[[#This Row],[PBS Level]]&Fleet_Data[[#This Row],[Configuration Code]],Tare[Description]&Tare[Mass Scheme]&Tare[PBS Level]&Tare[Configuration Code],Tare[GCM (t) (50% load)],"",0) -> 88.08441212 | Q107: =_xlfn.XLOOKUP(Fleet_Data[[#This Row],[Description]]&Fleet_Data[[#This Row],[Mass Scheme]]&Fleet_Data[[#This Row],[PBS Level]]&Fleet_Data[[#This Row],[Configuration Code]],Tare[Description]&Tare[Mass Scheme]&Tare[PBS Level]&Tare[Configuration Code],Tare[Tare (t)],"",0) -> 47.66882424 | R107: =_xlfn.XLOOKUP(Fleet_Data[[#This Row],[Description]]&Fleet_Data[[#This Row],[Mass Scheme]]&Fleet_Data[[#This Row],[PBS Level]]&Fleet_Data[[#This Row],[Configuration Code]],Tare[Description]&Tare[Mass Scheme]&Tare[PBS Level]&Tare[Configuration Code],Tare[Payload (t)],"",0) -> 80.83117576 | S107: =_xlfn.XLOOKUP(Fleet_Data[[#This Row],[NTC Vehicle Equivalent]],NTC_Values[NTC vehicle],NTC_Values[Avg annual km],"",0) -> 275000
B108: =CONCATENATE(Fleet_Data[[#This Row],[Description]]," (",Fleet_Data[[#This Row],[Mass Scheme]],")",": ",Fleet_Data[[#This Row],[Fleet]],", ", Fleet_Data[[#This Row],[PBS Level]]) -> A-triple (3-3-3-3-3) (HML): PBS, 4 | C108: A-triple (3-3-3-3-3) | D108: HML | E108: PBS | F108: 4 | G108: 19 | H108: 42.5 | I108: A1333333 | J108: Class 12 | K108: A-Triple | L108: 21 | M108: Articulated | N108: =_xlfn.XLOOKUP(Fleet_Data[[#This Row],[Description]]&Fleet_Data[[#This Row],[Mass Scheme]]&Fleet_Data[[#This Row],[PBS Level]]&Fleet_Data[[#This Row],[Configuration Code]],Tare[Description]&Tare[Mass Scheme]&Tare[PBS Level]&Tare[Configuration Code],Tare[GCM (t) (100% load)],"",0) -> 141.5 | O108: =_xlfn.XLOOKUP(Fleet_Data[[#This Row],[Description]]&Fleet_Data[[#This Row],[Mass Scheme]]&Fleet_Data[[#This Row],[PBS Level]]&Fleet_Data[[#This Row],[Configuration Code]],Tare[Description]&Tare[Mass Scheme]&Tare[PBS Level]&Tare[Configuration Code],Tare[GCM (t) (75% load)],"",0) -> 118.0422061 | P108: =_xlfn.XLOOKUP(Fleet_Data[[#This Row],[Description]]&Fleet_Data[[#This Row],[Mass Scheme]]&Fleet_Data[[#This Row],[PBS Level]]&Fleet_Data[[#This Row],[Configuration Code]],Tare[Description]&Tare[Mass Scheme]&Tare[PBS Level]&Tare[Configuration Code],Tare[GCM (t) (50% load)],"",0) -> 94.58441212 | Q108: =_xlfn.XLOOKUP(Fleet_Data[[#This Row],[Description]]&Fleet_Data[[#This Row],[Mass Scheme]]&Fleet_Data[[#This Row],[PBS Level]]&Fleet_Data[[#This Row],[Configuration Code]],Tare[Description]&Tare[Mass Scheme]&Tare[PBS Level]&Tare[Configuration Code],Tare[Tare (t)],"",0) -> 47.66882424 | R108: =_xlfn.XLOOKUP(Fleet_Data[[#This Row],[Description]]&Fleet_Data[[#This Row],[Mass Scheme]]&Fleet_Data[[#This Row],[PBS Level]]&Fleet_Data[[#This Row],[Configuration Code]],Tare[Description]&Tare[Mass Scheme]&Tare[PBS Level]&Tare[Configuration Code],Tare[Payload (t)],"",0) -> 93.83117576 | S108: =_xlfn.XLOOKUP(Fleet_Data[[#This Row],[NTC Vehicle Equivalent]],NTC_Values[NTC vehicle],NTC_Values[Avg annual km],"",0) -> 275000
B109: =CONCATENATE(Fleet_Data[[#This Row],[Description]]," (",Fleet_Data[[#This Row],[Mass Scheme]],")",": ",Fleet_Data[[#This Row],[Fleet]],", ", Fleet_Data[[#This Row],[PBS Level]]) -> B-triple (3-3-3) (GML): PBS, 3 | C109: B-triple (3-3-3) | D109: GML | E109: PBS | F109: 3 | G109: 12 | H109: 36.5 | I109: B12333 | J109: Class 12 | K109: B Triple | L109: 19 | M109: Articulated | N109: =_xlfn.XLOOKUP(Fleet_Data[[#This Row],[Description]]&Fleet_Data[[#This Row],[Mass Scheme]]&Fleet_Data[[#This Row],[PBS Level]]&Fleet_Data[[#This Row],[Configuration Code]],Tare[Description]&Tare[Mass Scheme]&Tare[PBS Level]&Tare[Configuration Code],Tare[GCM (t) (100% load)],"",0) -> 83 | O109: =_xlfn.XLOOKUP(Fleet_Data[[#This Row],[Description]]&Fleet_Data[[#This Row],[Mass Scheme]]&Fleet_Data[[#This Row],[PBS Level]]&Fleet_Data[[#This Row],[Configuration Code]],Tare[Description]&Tare[Mass Scheme]&Tare[PBS Level]&Tare[Configuration Code],Tare[GCM (t) (75% load)],"",0) -> 70.42146073 | P109: =_xlfn.XLOOKUP(Fleet_Data[[#This Row],[Description]]&Fleet_Data[[#This Row],[Mass Scheme]]&Fleet_Data[[#This Row],[PBS Level]]&Fleet_Data[[#This Row],[Configuration Code]],Tare[Description]&Tare[Mass Scheme]&Tare[PBS Level]&Tare[Configuration Code],Tare[GCM (t) (50% load)],"",0) -> 57.84292145 | Q109: =_xlfn.XLOOKUP(Fleet_Data[[#This Row],[Description]]&Fleet_Data[[#This Row],[Mass Scheme]]&Fleet_Data[[#This Row],[PBS Level]]&Fleet_Data[[#This Row],[Configuration Code]],Tare[Description]&Tare[Mass Scheme]&Tare[PBS Level]&Tare[Configuration Code],Tare[Tare (t)],"",0) -> 32.6858429 | R109: =_xlfn.XLOOKUP(Fleet_Data[[#This Row],[Description]]&Fleet_Data[[#This Row],[Mass Scheme]]&Fleet_Data[[#This Row],[PBS Level]]&Fleet_Data[[#This Row],[Configuration Code]],Tare[Description]&Tare[Mass Scheme]&Tare[PBS Level]&Tare[Configuration Code],Tare[Payload (t)],"",0) -> 50.3141571 | S109: =_xlfn.XLOOKUP(Fleet_Data[[#This Row],[NTC Vehicle Equivalent]],NTC_Values[NTC vehicle],NTC_Values[Avg annual km],"",0) -> 250000
B110: =CONCATENATE(Fleet_Data[[#This Row],[Description]]," (",Fleet_Data[[#This Row],[Mass Scheme]],")",": ",Fleet_Data[[#This Row],[Fleet]],", ", Fleet_Data[[#This Row],[PBS Level]]) -> B-triple (3-3-3) (CML): PBS, 3 | C110: B-triple (3-3-3) | D110: CML | E110: PBS | F110: 3 | G110: 12 | H110: 36.5 | I110: B12333 | J110: Class 12 | K110: B Triple | L110: 19 | M110: Articulated | N110: =_xlfn.XLOOKUP(Fleet_Data[[#This Row],[Description]]&Fleet_Data[[#This Row],[Mass Scheme]]&Fleet_Data[[#This Row],[PBS Level]]&Fleet_Data[[#This Row],[Configuration Code]],Tare[Description]&Tare[Mass Scheme]&Tare[PBS Level]&Tare[Configuration Code],Tare[GCM (t) (100% load)],"",0) -> 85 | O110: =_xlfn.XLOOKUP(Fleet_Data[[#This Row],[Description]]&Fleet_Data[[#This Row],[Mass Scheme]]&Fleet_Data[[#This Row],[PBS Level]]&Fleet_Data[[#This Row],[Configuration Code]],Tare[Description]&Tare[Mass Scheme]&Tare[PBS Level]&Tare[Configuration Code],Tare[GCM (t) (75% load)],"",0) -> 71.92146073 | P110: =_xlfn.XLOOKUP(Fleet_Data[[#This Row],[Description]]&Fleet_Data[[#This Row],[Mass Scheme]]&Fleet_Data[[#This Row],[PBS Level]]&Fleet_Data[[#This Row],[Configuration Code]],Tare[Description]&Tare[Mass Scheme]&Tare[PBS Level]&Tare[Configuration Code],Tare[GCM (t) (50% load)],"",0) -> 58.84292145 | Q110: =_xlfn.XLOOKUP(Fleet_Data[[#This Row],[Description]]&Fleet_Data[[#This Row],[Mass Scheme]]&Fleet_Data[[#This Row],[PBS Level]]&Fleet_Data[[#This Row],[Configuration Code]],Tare[Description]&Tare[Mass Scheme]&Tare[PBS Level]&Tare[Configuration Code],Tare[Tare (t)],"",0) -> 32.6858429 | R110: =_xlfn.XLOOKUP(Fleet_Data[[#This Row],[Description]]&Fleet_Data[[#This Row],[Mass Scheme]]&Fleet_Data[[#This Row],[PBS Level]]&Fleet_Data[[#This Row],[Configuration Code]],Tare[Description]&Tare[Mass Scheme]&Tare[PBS Level]&Tare[Configuration Code],Tare[Payload (t)],"",0) -> 52.3141571 | S110: =_xlfn.XLOOKUP(Fleet_Data[[#This Row],[NTC Vehicle Equivalent]],NTC_Values[NTC vehicle],NTC_Values[Avg annual km],"",0) -> 250000
B111: =CONCATENATE(Fleet_Data[[#This Row],[Description]]," (",Fleet_Data[[#This Row],[Mass Scheme]],")",": ",Fleet_Data[[#This Row],[Fleet]],", ", Fleet_Data[[#This Row],[PBS Level]]) -> B-triple (3-3-3) (HML): PBS, 3 | C111: B-triple (3-3-3) | D111: HML | E111: PBS | F111: 3 | G111: 12 | H111: 36.5 | I111: B12333 | J111: Class 12 | K111: B Triple | L111: 19 | M111: Articulated | N111: =_xlfn.XLOOKUP(Fleet_Data[[#This Row],[Description]]&Fleet_Data[[#This Row],[Mass Scheme]]&Fleet_Data[[#This Row],[PBS Level]]&Fleet_Data[[#This Row],[Configuration Code]],Tare[Description]&Tare[Mass Scheme]&Tare[PBS Level]&Tare[Configuration Code],Tare[GCM (t) (100% load)],"",0) -> 91 | O111: =_xlfn.XLOOKUP(Fleet_Data[[#This Row],[Description]]&Fleet_Data[[#This Row],[Mass Scheme]]&Fleet_Data[[#This Row],[PBS Level]]&Fleet_Data[[#This Row],[Configuration Code]],Tare[Description]&Tare[Mass Scheme]&Tare[PBS Level]&Tare[Configuration Code],Tare[GCM (t) (75% load)],"",0) -> 76.42146073 | P111: =_xlfn.XLOOKUP(Fleet_Data[[#This Row],[Description]]&Fleet_Data[[#This Row],[Mass Scheme]]&Fleet_Data[[#This Row],[PBS Level]]&Fleet_Data[[#This Row],[Configuration Code]],Tare[Description]&Tare[Mass Scheme]&Tare[PBS Level]&Tare[Configuration Code],Tare[GCM (t) (50% load)],"",0) -> 61.84292145 | Q111: =_xlfn.XLOOKUP(Fleet_Data[[#This Row],[Description]]&Fleet_Data[[#This Row],[Mass Scheme]]&Fleet_Data[[#This Row],[PBS Level]]&Fleet_Data[[#This Row],[Configuration Code]],Tare[Description]&Tare[Mass Scheme]&Tare[PBS Level]&Tare[Configuration Code],Tare[Tare (t)],"",0) -> 32.6858429 | R111: =_xlfn.XLOOKUP(Fleet_Data[[#This Row],[Description]]&Fleet_Data[[#This Row],[Mass Scheme]]&Fleet_Data[[#This Row],[PBS Level]]&Fleet_Data[[#This Row],[Configuration Code]],Tare[Description]&Tare[Mass Scheme]&Tare[PBS Level]&Tare[Configuration Code],Tare[Payload (t)],"",0) -> 58.3141571 | S111: =_xlfn.XLOOKUP(Fleet_Data[[#This Row],[NTC Vehicle Equivalent]],NTC_Values[NTC vehicle],NTC_Values[Avg annual km],"",0) -> 250000
B112: =CONCATENATE(Fleet_Data[[#This Row],[Description]]," (",Fleet_Data[[#This Row],[Mass Scheme]],")",": ",Fleet_Data[[#This Row],[Fleet]],", ", Fleet_Data[[#This Row],[PBS Level]]) -> AB-triple (3-3-3-3) (GML): PBS, 3 | C112: AB-triple (3-3-3-3) | D112: GML | E112: PBS | F112: 3 | G112: 15 | H112: 36.5 | I112: A123T3B33 | J112: Class 12 | K112: A B Combination | L112: 21 | M112: Articulated | N112: =_xlfn.XLOOKUP(Fleet_Data[[#This Row],[Description]]&Fleet_Data[[#This Row],[Mass Scheme]]&Fleet_Data[[#This Row],[PBS Level]]&Fleet_Data[[#This Row],[Configuration Code]],Tare[Description]&Tare[Mass Scheme]&Tare[PBS Level]&Tare[Configuration Code],Tare[GCM (t) (100% load)],"",0) -> 103 | O112: =_xlfn.XLOOKUP(Fleet_Data[[#This Row],[Description]]&Fleet_Data[[#This Row],[Mass Scheme]]&Fleet_Data[[#This Row],[PBS Level]]&Fleet_Data[[#This Row],[Configuration Code]],Tare[Description]&Tare[Mass Scheme]&Tare[PBS Level]&Tare[Configuration Code],Tare[GCM (t) (75% load)],"",0) -> 86.60009833 | P112: =_xlfn.XLOOKUP(Fleet_Data[[#This Row],[Description]]&Fleet_Data[[#This Row],[Mass Scheme]]&Fleet_Data[[#This Row],[PBS Level]]&Fleet_Data[[#This Row],[Configuration Code]],Tare[Description]&Tare[Mass Scheme]&Tare[PBS Level]&Tare[Configuration Code],Tare[GCM (t) (50% load)],"",0) -> 70.20019665 | Q112: =_xlfn.XLOOKUP(Fleet_Data[[#This Row],[Description]]&Fleet_Data[[#This Row],[Mass Scheme]]&Fleet_Data[[#This Row],[PBS Level]]&Fleet_Data[[#This Row],[Configuration Code]],Tare[Description]&Tare[Mass Scheme]&Tare[PBS Level]&Tare[Configuration Code],Tare[Tare (t)],"",0) -> 37.40039331 | R112: =_xlfn.XLOOKUP(Fleet_Data[[#This Row],[Description]]&Fleet_Data[[#This Row],[Mass Scheme]]&Fleet_Data[[#This Row],[PBS Level]]&Fleet_Data[[#This Row],[Configuration Code]],Tare[Description]&Tare[Mass Scheme]&Tare[PBS Level]&Tare[Configuration Code],Tare[Payload (t)],"",0) -> 65.59960669 | S112: =_xlfn.XLOOKUP(Fleet_Data[[#This Row],[NTC Vehicle Equivalent]],NTC_Values[NTC vehicle],NTC_Values[Avg annual km],"",0) -> 275000
B113: =CONCATENATE(Fleet_Data[[#This Row],[Description]]," (",Fleet_Data[[#This Row],[Mass Scheme]],")",": ",Fleet_Data[[#This Row],[Fleet]],", ", Fleet_Data[[#This Row],[PBS Level]]) -> AB-triple (3-3-3-3) (CML): PBS, 3 | C113: AB-triple (3-3-3-3) | D113: CML | E113: PBS | F113: 3 | G113: 15 | H113: 36.5 | I113: A123T3B33 | J113: Class 12 | K113: A B Combination | L113: 21 | M113: Articulated | N113: =_xlfn.XLOOKUP(Fleet_Data[[#This Row],[Description]]&Fleet_Data[[#This Row],[Mass Scheme]]&Fleet_Data[[#This Row],[PBS Level]]&Fleet_Data[[#This Row],[Configuration Code]],Tare[Description]&Tare[Mass Scheme]&Tare[PBS Level]&Tare[Configuration Code],Tare[GCM (t) (100% load)],"",0) -> 105 | O113: =_xlfn.XLOOKUP(Fleet_Data[[#This Row],[Description]]&Fleet_Data[[#This Row],[Mass Scheme]]&Fleet_Data[[#This Row],[PBS Level]]&Fleet_Data[[#This Row],[Configuration Code]],Tare[Description]&Tare[Mass Scheme]&Tare[PBS Level]&Tare[Configuration Code],Tare[GCM (t) (75% load)],"",0) -> 88.10009833 | P113: =_xlfn.XLOOKUP(Fleet_Data[[#This Row],[Description]]&Fleet_Data[[#This Row],[Mass Scheme]]&Fleet_Data[[#This Row],[PBS Level]]&Fleet_Data[[#This Row],[Configuration Code]],Tare[Description]&Tare[Mass Scheme]&Tare[PBS Level]&Tare[Configuration Code],Tare[GCM (t) (50% load)],"",0) -> 71.20019665 | Q113: =_xlfn.XLOOKUP(Fleet_Data[[#This Row],[Description]]&Fleet_Data[[#This Row],[Mass Scheme]]&Fleet_Data[[#This Row],[PBS Level]]&Fleet_Data[[#This Row],[Configuration Code]],Tare[Description]&Tare[Mass Scheme]&Tare[PBS Level]&Tare[Configuration Code],Tare[Tare (t)],"",0) -> 37.40039331 | R113: =_xlfn.XLOOKUP(Fleet_Data[[#This Row],[Description]]&Fleet_Data[[#This Row],[Mass Scheme]]&Fleet_Data[[#This Row],[PBS Level]]&Fleet_Data[[#This Row],[Configuration Code]],Tare[Description]&Tare[Mass Scheme]&Tare[PBS Level]&Tare[Configuration Code],Tare[Payload (t)],"",0) -> 67.59960669 | S113: =_xlfn.XLOOKUP(Fleet_Data[[#This Row],[NTC Vehicle Equivalent]],NTC_Values[NTC vehicle],NTC_Values[Avg annual km],"",0) -> 275000
B114: =CONCATENATE(Fleet_Data[[#This Row],[Description]]," (",Fleet_Data[[#This Row],[Mass Scheme]],")",": ",Fleet_Data[[#This Row],[Fleet]],", ", Fleet_Data[[#This Row],[PBS Level]]) -> AB-triple (3-3-3-3) (HML): PBS, 3 | C114: AB-triple (3-3-3-3) | D114: HML | E114: PBS | F114: 3 | G114: 15 | H114: 36.5 | I114: A123T3B33 | J114: Class 12 | K114: A B Combination | L114: 21 | M114: Articulated | N114: =_xlfn.XLOOKUP(Fleet_Data[[#This Row],[Description]]&Fleet_Data[[#This Row],[Mass Scheme]]&Fleet_Data[[#This Row],[PBS Level]]&Fleet_Data[[#This Row],[Configuration Code]],Tare[Description]&Tare[Mass Scheme]&Tare[PBS Level]&Tare[Configuration Code],Tare[GCM (t) (100% load)],"",0) -> 110 | O114: =_xlfn.XLOOKUP(Fleet_Data[[#This Row],[Description]]&Fleet_Data[[#This Row],[Mass Scheme]]&Fleet_Data[[#This Row],[PBS Level]]&Fleet_Data[[#This Row],[Configuration Code]],Tare[Description]&Tare[Mass Scheme]&Tare[PBS Level]&Tare[Configuration Code],Tare[GCM (t) (75% load)],"",0) -> 91.85009833 | P114: =_xlfn.XLOOKUP(Fleet_Data[[#This Row],[Description]]&Fleet_Data[[#This Row],[Mass Scheme]]&Fleet_Data[[#This Row],[PBS Level]]&Fleet_Data[[#This Row],[Configuration Code]],Tare[Description]&Tare[Mass Scheme]&Tare[PBS Level]&Tare[Configuration Code],Tare[GCM (t) (50% load)],"",0) -> 73.70019665 | Q114: =_xlfn.XLOOKUP(Fleet_Data[[#This Row],[Description]]&Fleet_Data[[#This Row],[Mass Scheme]]&Fleet_Data[[#This Row],[PBS Level]]&Fleet_Data[[#This Row],[Configuration Code]],Tare[Description]&Tare[Mass Scheme]&Tare[PBS Level]&Tare[Configuration Code],Tare[Tare (t)],"",0) -> 37.40039331 | R114: =_xlfn.XLOOKUP(Fleet_Data[[#This Row],[Description]]&Fleet_Data[[#This Row],[Mass Scheme]]&Fleet_Data[[#This Row],[PBS Level]]&Fleet_Data[[#This Row],[Configuration Code]],Tare[Description]&Tare[Mass Scheme]&Tare[PBS Level]&Tare[Configuration Code],Tare[Payload (t)],"",0) -> 72.59960669 | S114: =_xlfn.XLOOKUP(Fleet_Data[[#This Row],[NTC Vehicle Equivalent]],NTC_Values[NTC vehicle],NTC_Values[Avg annual km],"",0) -> 275000
B115: =CONCATENATE(Fleet_Data[[#This Row],[Description]]," (",Fleet_Data[[#This Row],[Mass Scheme]],")",": ",Fleet_Data[[#This Row],[Fleet]],", ", Fleet_Data[[#This Row],[PBS Level]]) -> BA-triple (3-3-3-3) (GML): PBS, 3 | C115: BA-triple (3-3-3-3) | D115: GML | E115: PBS | F115: 3 | G115: 15 | H115: 36.5 | I115: B123A3T33 | J115: Class 12 | K115: A B Combination | L115: 21 | M115: Articulated | N115: =_xlfn.XLOOKUP(Fleet_Data[[#This Row],[Description]]&Fleet_Data[[#This Row],[Mass Scheme]]&Fleet_Data[[#This Row],[PBS Level]]&Fleet_Data[[#This Row],[Configuration Code]],Tare[Description]&Tare[Mass Scheme]&Tare[PBS Level]&Tare[Configuration Code],Tare[GCM (t) (100% load)],"",0) -> 103 | O115: =_xlfn.XLOOKUP(Fleet_Data[[#This Row],[Description]]&Fleet_Data[[#This Row],[Mass Scheme]]&Fleet_Data[[#This Row],[PBS Level]]&Fleet_Data[[#This Row],[Configuration Code]],Tare[Description]&Tare[Mass Scheme]&Tare[PBS Level]&Tare[Configuration Code],Tare[GCM (t) (75% load)],"",0) -> 86.60009833 | P115: =_xlfn.XLOOKUP(Fleet_Data[[#This Row],[Description]]&Fleet_Data[[#This Row],[Mass Scheme]]&Fleet_Data[[#This Row],[PBS Level]]&Fleet_Data[[#This Row],[Configuration Code]],Tare[Description]&Tare[Mass Scheme]&Tare[PBS Level]&Tare[Configuration Code],Tare[GCM (t) (50% load)],"",0) -> 70.20019665 | Q115: =_xlfn.XLOOKUP(Fleet_Data[[#This Row],[Description]]&Fleet_Data[[#This Row],[Mass Scheme]]&Fleet_Data[[#This Row],[PBS Level]]&Fleet_Data[[#This Row],[Configuration Code]],Tare[Description]&Tare[Mass Scheme]&Tare[PBS Level]&Tare[Configuration Code],Tare[Tare (t)],"",0) -> 37.40039331 | R115: =_xlfn.XLOOKUP(Fleet_Data[[#This Row],[Description]]&Fleet_Data[[#This Row],[Mass Scheme]]&Fleet_Data[[#This Row],[PBS Level]]&Fleet_Data[[#This Row],[Configuration Code]],Tare[Description]&Tare[Mass Scheme]&Tare[PBS Level]&Tare[Configuration Code],Tare[Payload (t)],"",0) -> 65.59960669 | S115: =_xlfn.XLOOKUP(Fleet_Data[[#This Row],[NTC Vehicle Equivalent]],NTC_Values[NTC vehicle],NTC_Values[Avg annual km],"",0) -> 275000
B116: =CONCATENATE(Fleet_Data[[#This Row],[Description]]," (",Fleet_Data[[#This Row],[Mass Scheme]],")",": ",Fleet_Data[[#This Row],[Fleet]],", ", Fleet_Data[[#This Row],[PBS Level]]) -> BA-triple (3-3-3-3) (CML): PBS, 3 | C116: BA-triple (3-3-3-3) | D116: CML | E116: PBS | F116: 3 | G116: 15 | H116: 36.5 | I116: B123A3T33 | J116: Class 12 | K116: A B Combination | L116: 21 | M116: Articulated | N116: =_xlfn.XLOOKUP(Fleet_Data[[#This Row],[Description]]&Fleet_Data[[#This Row],[Mass Scheme]]&Fleet_Data[[#This Row],[PBS Level]]&Fleet_Data[[#This Row],[Configuration Code]],Tare[Description]&Tare[Mass Scheme]&Tare[PBS Level]&Tare[Configuration Code],Tare[GCM (t) (100% load)],"",0) -> 105 | O116: =_xlfn.XLOOKUP(Fleet_Data[[#This Row],[Description]]&Fleet_Data[[#This Row],[Mass Scheme]]&Fleet_Data[[#This Row],[PBS Level]]&Fleet_Data[[#This Row],[Configuration Code]],Tare[Description]&Tare[Mass Scheme]&Tare[PBS Level]&Tare[Configuration Code],Tare[GCM (t) (75% load)],"",0) -> 88.10009833 | P116: =_xlfn.XLOOKUP(Fleet_Data[[#This Row],[Description]]&Fleet_Data[[#This Row],[Mass Scheme]]&Fleet_Data[[#This Row],[PBS Level]]&Fleet_Data[[#This Row],[Configuration Code]],Tare[Description]&Tare[Mass Scheme]&Tare[PBS Level]&Tare[Configuration Code],Tare[GCM (t) (50% load)],"",0) -> 71.20019665 | Q116: =_xlfn.XLOOKUP(Fleet_Data[[#This Row],[Description]]&Fleet_Data[[#This Row],[Mass Scheme]]&Fleet_Data[[#This Row],[PBS Level]]&Fleet_Data[[#This Row],[Configuration Code]],Tare[Description]&Tare[Mass Scheme]&Tare[PBS Level]&Tare[Configuration Code],Tare[Tare (t)],"",0) -> 37.40039331 | R116: =_xlfn.XLOOKUP(Fleet_Data[[#This Row],[Description]]&Fleet_Data[[#This Row],[Mass Scheme]]&Fleet_Data[[#This Row],[PBS Level]]&Fleet_Data[[#This Row],[Configuration Code]],Tare[Description]&Tare[Mass Scheme]&Tare[PBS Level]&Tare[Configuration Code],Tare[Payload (t)],"",0) -> 67.59960669 | S116: =_xlfn.XLOOKUP(Fleet_Data[[#This Row],[NTC Vehicle Equivalent]],NTC_Values[NTC vehicle],NTC_Values[Avg annual km],"",0) -> 275000
B117: =CONCATENATE(Fleet_Data[[#This Row],[Description]]," (",Fleet_Data[[#This Row],[Mass Scheme]],")",": ",Fleet_Data[[#This Row],[Fleet]],", ", Fleet_Data[[#This Row],[PBS Level]]) -> BA-triple (3-3-3-3) (HML): PBS, 3 | C117: BA-triple (3-3-3-3) | D117: HML | E117: PBS | F117: 3 | G117: 15 | H117: 36.5 | I117: B123A3T33 | J117: Class 12 | K117: A B Combination | L117: 21 | M117: Articulated | N117: =_xlfn.XLOOKUP(Fleet_Data[[#This Row],[Description]]&Fleet_Data[[#This Row],[Mass Scheme]]&Fleet_Data[[#This Row],[PBS Level]]&Fleet_Data[[#This Row],[Configuration Code]],Tare[Description]&Tare[Mass Scheme]&Tare[PBS Level]&Tare[Configuration Code],Tare[GCM (t) (100% load)],"",0) -> 110 | O117: =_xlfn.XLOOKUP(Fleet_Data[[#This Row],[Description]]&Fleet_Data[[#This Row],[Mass Scheme]]&Fleet_Data[[#This Row],[PBS Level]]&Fleet_Data[[#This Row],[Configuration Code]],Tare[Description]&Tare[Mass Scheme]&Tare[PBS Level]&Tare[Configuration Code],Tare[GCM (t) (75% load)],"",0) -> 91.85009833 | P117: =_xlfn.XLOOKUP(Fleet_Data[[#This Row],[Description]]&Fleet_Data[[#This Row],[Mass Scheme]]&Fleet_Data[[#This Row],[PBS Level]]&Fleet_Data[[#This Row],[Configuration Code]],Tare[Description]&Tare[Mass Scheme]&Tare[PBS Level]&Tare[Configuration Code],Tare[GCM (t) (50% load)],"",0) -> 73.70019665 | Q117: =_xlfn.XLOOKUP(Fleet_Data[[#This Row],[Description]]&Fleet_Data[[#This Row],[Mass Scheme]]&Fleet_Data[[#This Row],[PBS Level]]&Fleet_Data[[#This Row],[Configuration Code]],Tare[Description]&Tare[Mass Scheme]&Tare[PBS Level]&Tare[Configuration Code],Tare[Tare (t)],"",0) -> 37.40039331 | R117: =_xlfn.XLOOKUP(Fleet_Data[[#This Row],[Description]]&Fleet_Data[[#This Row],[Mass Scheme]]&Fleet_Data[[#This Row],[PBS Level]]&Fleet_Data[[#This Row],[Configuration Code]],Tare[Description]&Tare[Mass Scheme]&Tare[PBS Level]&Tare[Configuration Code],Tare[Payload (t)],"",0) -> 72.59960669 | S117: =_xlfn.XLOOKUP(Fleet_Data[[#This Row],[NTC Vehicle Equivalent]],NTC_Values[NTC vehicle],NTC_Values[Avg annual km],"",0) -> 275000
B118: =CONCATENATE(Fleet_Data[[#This Row],[Description]]," (",Fleet_Data[[#This Row],[Mass Scheme]],")",": ",Fleet_Data[[#This Row],[Fleet]],", ", Fleet_Data[[#This Row],[PBS Level]]) -> AB-double (1-2-1) (GML): PBS, 1 | C118: AB-double (1-2-1) | D118: GML | E118: PBS | F118: 1 | G118: 7 | H118: 20 | I118: A121B21 | J118: Class 10 | K118: B-Double | L118: 17b | M118: Articulated | N118: =_xlfn.XLOOKUP(Fleet_Data[[#This Row],[Description]]&Fleet_Data[[#This Row],[Mass Scheme]]&Fleet_Data[[#This Row],[PBS Level]]&Fleet_Data[[#This Row],[Configuration Code]],Tare[Description]&Tare[Mass Scheme]&Tare[PBS Level]&Tare[Configuration Code],Tare[GCM (t) (100% load)],"",0) -> 50.5 | O118: =_xlfn.XLOOKUP(Fleet_Data[[#This Row],[Description]]&Fleet_Data[[#This Row],[Mass Scheme]]&Fleet_Data[[#This Row],[PBS Level]]&Fleet_Data[[#This Row],[Configuration Code]],Tare[Description]&Tare[Mass Scheme]&Tare[PBS Level]&Tare[Configuration Code],Tare[GCM (t) (75% load)],"",0) -> 42.89848729 | P118: =_xlfn.XLOOKUP(Fleet_Data[[#This Row],[Description]]&Fleet_Data[[#This Row],[Mass Scheme]]&Fleet_Data[[#This Row],[PBS Level]]&Fleet_Data[[#This Row],[Configuration Code]],Tare[Description]&Tare[Mass Scheme]&Tare[PBS Level]&Tare[Configuration Code],Tare[GCM (t) (50% load)],"",0) -> 35.29697457 | Q118: =_xlfn.XLOOKUP(Fleet_Data[[#This Row],[Description]]&Fleet_Data[[#This Row],[Mass Scheme]]&Fleet_Data[[#This Row],[PBS Level]]&Fleet_Data[[#This Row],[Configuration Code]],Tare[Description]&Tare[Mass Scheme]&Tare[PBS Level]&Tare[Configuration Code],Tare[Tare (t)],"",0) -> 20.09394915 | R118: =_xlfn.XLOOKUP(Fleet_Data[[#This Row],[Description]]&Fleet_Data[[#This Row],[Mass Scheme]]&Fleet_Data[[#This Row],[PBS Level]]&Fleet_Data[[#This Row],[Configuration Code]],Tare[Description]&Tare[Mass Scheme]&Tare[PBS Level]&Tare[Configuration Code],Tare[Payload (t)],"",0) -> 30.40605085 | S118: =_xlfn.XLOOKUP(Fleet_Data[[#This Row],[NTC Vehicle Equivalent]],NTC_Values[NTC vehicle],NTC_Values[Avg annual km],"",0) -> 200000
B119: =CONCATENATE(Fleet_Data[[#This Row],[Description]]," (",Fleet_Data[[#This Row],[Mass Scheme]],")",": ",Fleet_Data[[#This Row],[Fleet]],", ", Fleet_Data[[#This Row],[PBS Level]]) -> AB-double (1-2-1) (GML): PBS, 2 | C119: AB-double (1-2-1) | D119: GML | E119: PBS | F119: 2 | G119: 7 | H119: 20 | I119: A121B21 | J119: Class 10 | K119: B-Double | L119: 17b | M119: Articulated | N119: =_xlfn.XLOOKUP(Fleet_Data[[#This Row],[Description]]&Fleet_Data[[#This Row],[Mass Scheme]]&Fleet_Data[[#This Row],[PBS Level]]&Fleet_Data[[#This Row],[Configuration Code]],Tare[Description]&Tare[Mass Scheme]&Tare[PBS Level]&Tare[Configuration Code],Tare[GCM (t) (100% load)],"",0) -> 59 | O119: =_xlfn.XLOOKUP(Fleet_Data[[#This Row],[Description]]&Fleet_Data[[#This Row],[Mass Scheme]]&Fleet_Data[[#This Row],[PBS Level]]&Fleet_Data[[#This Row],[Configuration Code]],Tare[Description]&Tare[Mass Scheme]&Tare[PBS Level]&Tare[Configuration Code],Tare[GCM (t) (75% load)],"",0) -> 49.27348729 | P119: =_xlfn.XLOOKUP(Fleet_Data[[#This Row],[Description]]&Fleet_Data[[#This Row],[Mass Scheme]]&Fleet_Data[[#This Row],[PBS Level]]&Fleet_Data[[#This Row],[Configuration Code]],Tare[Description]&Tare[Mass Scheme]&Tare[PBS Level]&Tare[Configuration Code],Tare[GCM (t) (50% load)],"",0) -> 39.54697457 | Q119: =_xlfn.XLOOKUP(Fleet_Data[[#This Row],[Description]]&Fleet_Data[[#This Row],[Mass Scheme]]&Fleet_Data[[#This Row],[PBS Level]]&Fleet_Data[[#This Row],[Configuration Code]],Tare[Description]&Tare[Mass Scheme]&Tare[PBS Level]&Tare[Configuration Code],Tare[Tare (t)],"",0) -> 20.09394915 | R119: =_xlfn.XLOOKUP(Fleet_Data[[#This Row],[Description]]&Fleet_Data[[#This Row],[Mass Scheme]]&Fleet_Data[[#This Row],[PBS Level]]&Fleet_Data[[#This Row],[Configuration Code]],Tare[Description]&Tare[Mass Scheme]&Tare[PBS Level]&Tare[Configuration Code],Tare[Payload (t)],"",0) -> 38.90605085 | S119: =_xlfn.XLOOKUP(Fleet_Data[[#This Row],[NTC Vehicle Equivalent]],NTC_Values[NTC vehicle],NTC_Values[Avg annual km],"",0) -> 200000
B120: =CONCATENATE(Fleet_Data[[#This Row],[Description]]," (",Fleet_Data[[#This Row],[Mass Scheme]],")",": ",Fleet_Data[[#This Row],[Fleet]],", ", Fleet_Data[[#This Row],[PBS Level]]) -> AB-double (1-2-1) (CML): PBS, 2 | C120: AB-double (1-2-1) | D120: CML | E120: PBS | F120: 2 | G120: 7 | H120: 20 | I120: A121B21 | J120: Class 10 | K120: B-Double | L120: 17b | M120: Articulated | N120: =_xlfn.XLOOKUP(Fleet_Data[[#This Row],[Description]]&Fleet_Data[[#This Row],[Mass Scheme]]&Fleet_Data[[#This Row],[PBS Level]]&Fleet_Data[[#This Row],[Configuration Code]],Tare[Description]&Tare[Mass Scheme]&Tare[PBS Level]&Tare[Configuration Code],Tare[GCM (t) (100% load)],"",0) -> 59.5 | O120: =_xlfn.XLOOKUP(Fleet_Data[[#This Row],[Description]]&Fleet_Data[[#This Row],[Mass Scheme]]&Fleet_Data[[#This Row],[PBS Level]]&Fleet_Data[[#This Row],[Configuration Code]],Tare[Description]&Tare[Mass Scheme]&Tare[PBS Level]&Tare[Configuration Code],Tare[GCM (t) (75% load)],"",0) -> 49.64848729 | P120: =_xlfn.XLOOKUP(Fleet_Data[[#This Row],[Description]]&Fleet_Data[[#This Row],[Mass Scheme]]&Fleet_Data[[#This Row],[PBS Level]]&Fleet_Data[[#This Row],[Configuration Code]],Tare[Description]&Tare[Mass Scheme]&Tare[PBS Level]&Tare[Configuration Code],Tare[GCM (t) (50% load)],"",0) -> 39.79697457 | Q120: =_xlfn.XLOOKUP(Fleet_Data[[#This Row],[Description]]&Fleet_Data[[#This Row],[Mass Scheme]]&Fleet_Data[[#This Row],[PBS Level]]&Fleet_Data[[#This Row],[Configuration Code]],Tare[Description]&Tare[Mass Scheme]&Tare[PBS Level]&Tare[Configuration Code],Tare[Tare (t)],"",0) -> 20.09394915 | R120: =_xlfn.XLOOKUP(Fleet_Data[[#This Row],[Description]]&Fleet_Data[[#This Row],[Mass Scheme]]&Fleet_Data[[#This Row],[PBS Level]]&Fleet_Data[[#This Row],[Configuration Code]],Tare[Description]&Tare[Mass Scheme]&Tare[PBS Level]&Tare[Configuration Code],Tare[Payload (t)],"",0) -> 39.40605085 | S120: =_xlfn.XLOOKUP(Fleet_Data[[#This Row],[NTC Vehicle Equivalent]],NTC_Values[NTC vehicle],NTC_Values[Avg annual km],"",0) -> 200000
B121: =CONCATENATE(Fleet_Data[[#This Row],[Description]]," (",Fleet_Data[[#This Row],[Mass Scheme]],")",": ",Fleet_Data[[#This Row],[Fleet]],", ", Fleet_Data[[#This Row],[PBS Level]]) -> AB-double (1-2-1) (HML): PBS, 2 | C121: AB-double (1-2-1) | D121: HML | E121: PBS | F121: 2 | G121: 7 | H121: 20 | I121: A121B21 | J121: Class 10 | K121: B-Double | L121: 17b | M121: Articulated | N121: =_xlfn.XLOOKUP(Fleet_Data[[#This Row],[Description]]&Fleet_Data[[#This Row],[Mass Scheme]]&Fleet_Data[[#This Row],[PBS Level]]&Fleet_Data[[#This Row],[Configuration Code]],Tare[Description]&Tare[Mass Scheme]&Tare[PBS Level]&Tare[Configuration Code],Tare[GCM (t) (100% load)],"",0) -> 59.5 | O121: =_xlfn.XLOOKUP(Fleet_Data[[#This Row],[Description]]&Fleet_Data[[#This Row],[Mass Scheme]]&Fleet_Data[[#This Row],[PBS Level]]&Fleet_Data[[#This Row],[Configuration Code]],Tare[Description]&Tare[Mass Scheme]&Tare[PBS Level]&Tare[Configuration Code],Tare[GCM (t) (75% load)],"",0) -> 49.64848729 | P121: =_xlfn.XLOOKUP(Fleet_Data[[#This Row],[Description]]&Fleet_Data[[#This Row],[Mass Scheme]]&Fleet_Data[[#This Row],[PBS Level]]&Fleet_Data[[#This Row],[Configuration Code]],Tare[Description]&Tare[Mass Scheme]&Tare[PBS Level]&Tare[Configuration Code],Tare[GCM (t) (50% load)],"",0) -> 39.79697457 | Q121: =_xlfn.XLOOKUP(Fleet_Data[[#This Row],[Description]]&Fleet_Data[[#This Row],[Mass Scheme]]&Fleet_Data[[#This Row],[PBS Level]]&Fleet_Data[[#This Row],[Configuration Code]],Tare[Description]&Tare[Mass Scheme]&Tare[PBS Level]&Tare[Configuration Code],Tare[Tare (t)],"",0) -> 20.09394915 | R121: =_xlfn.XLOOKUP(Fleet_Data[[#This Row],[Description]]&Fleet_Data[[#This Row],[Mass Scheme]]&Fleet_Data[[#This Row],[PBS Level]]&Fleet_Data[[#This Row],[Configuration Code]],Tare[Description]&Tare[Mass Scheme]&Tare[PBS Level]&Tare[Configuration Code],Tare[Payload (t)],"",0) -> 39.40605085 | S121: =_xlfn.XLOOKUP(Fleet_Data[[#This Row],[NTC Vehicle Equivalent]],NTC_Values[NTC vehicle],NTC_Values[Avg annual km],"",0) -> 200000
B122: =CONCATENATE(Fleet_Data[[#This Row],[Description]]," (",Fleet_Data[[#This Row],[Mass Scheme]],")",": ",Fleet_Data[[#This Row],[Fleet]],", ", Fleet_Data[[#This Row],[PBS Level]]) -> 3-axle truck and 2-axle pig trailer (GML): PBS, 1 | C122: 3-axle truck and 2-axle pig trailer | D122: GML | E122: PBS | F122: 1 | G122: 5 | H122: 20 | I122: R12T2 | J122: Class 8 | K122: Artic 5 Axle | L122: 11 | M122: Rigid | N122: =_xlfn.XLOOKUP(Fleet_Data[[#This Row],[Description]]&Fleet_Data[[#This Row],[Mass Scheme]]&Fleet_Data[[#This Row],[PBS Level]]&Fleet_Data[[#This Row],[Configuration Code]],Tare[Description]&Tare[Mass Scheme]&Tare[PBS Level]&Tare[Configuration Code],Tare[GCM (t) (100% load)],"",0) -> 38 | O122: =_xlfn.XLOOKUP(Fleet_Data[[#This Row],[Description]]&Fleet_Data[[#This Row],[Mass Scheme]]&Fleet_Data[[#This Row],[PBS Level]]&Fleet_Data[[#This Row],[Configuration Code]],Tare[Description]&Tare[Mass Scheme]&Tare[PBS Level]&Tare[Configuration Code],Tare[GCM (t) (75% load)],"",0) -> 32.55847442 | P122: =_xlfn.XLOOKUP(Fleet_Data[[#This Row],[Description]]&Fleet_Data[[#This Row],[Mass Scheme]]&Fleet_Data[[#This Row],[PBS Level]]&Fleet_Data[[#This Row],[Configuration Code]],Tare[Description]&Tare[Mass Scheme]&Tare[PBS Level]&Tare[Configuration Code],Tare[GCM (t) (50% load)],"",0) -> 27.11694883 | Q122: =_xlfn.XLOOKUP(Fleet_Data[[#This Row],[Description]]&Fleet_Data[[#This Row],[Mass Scheme]]&Fleet_Data[[#This Row],[PBS Level]]&Fleet_Data[[#This Row],[Configuration Code]],Tare[Description]&Tare[Mass Scheme]&Tare[PBS Level]&Tare[Configuration Code],Tare[Tare (t)],"",0) -> 16.23389766 | R122: =_xlfn.XLOOKUP(Fleet_Data[[#This Row],[Description]]&Fleet_Data[[#This Row],[Mass Scheme]]&Fleet_Data[[#This Row],[PBS Level]]&Fleet_Data[[#This Row],[Configuration Code]],Tare[Description]&Tare[Mass Scheme]&Tare[PBS Level]&Tare[Configuration Code],Tare[Payload (t)],"",0) -> 21.76610234 | S122: =_xlfn.XLOOKUP(Fleet_Data[[#This Row],[NTC Vehicle Equivalent]],NTC_Values[NTC vehicle],NTC_Values[Avg annual km],"",0) -> 75000
B123: =CONCATENATE(Fleet_Data[[#This Row],[Description]]," (",Fleet_Data[[#This Row],[Mass Scheme]],")",": ",Fleet_Data[[#This Row],[Fleet]],", ", Fleet_Data[[#This Row],[PBS Level]]) -> 3-axle truck and 2-axle pig trailer (CML): PBS, 1 | C123: 3-axle truck and 2-axle pig trailer | D123: CML | E123: PBS | F123: 1 | G123: 5 | H123: 20 | I123: R12T2 | J123: Class 8 | K123: Artic 5 Axle | L123: 11 | M123: Rigid | N123: =_xlfn.XLOOKUP(Fleet_Data[[#This Row],[Description]]&Fleet_Data[[#This Row],[Mass Scheme]]&Fleet_Data[[#This Row],[PBS Level]]&Fleet_Data[[#This Row],[Configuration Code]],Tare[Description]&Tare[Mass Scheme]&Tare[PBS Level]&Tare[Configuration Code],Tare[GCM (t) (100% load)],"",0) -> 38.5 | O123: =_xlfn.XLOOKUP(Fleet_Data[[#This Row],[Description]]&Fleet_Data[[#This Row],[Mass Scheme]]&Fleet_Data[[#This Row],[PBS Level]]&Fleet_Data[[#This Row],[Configuration Code]],Tare[Description]&Tare[Mass Scheme]&Tare[PBS Level]&Tare[Configuration Code],Tare[GCM (t) (75% load)],"",0) -> 32.93347442 | P123: =_xlfn.XLOOKUP(Fleet_Data[[#This Row],[Description]]&Fleet_Data[[#This Row],[Mass Scheme]]&Fleet_Data[[#This Row],[PBS Level]]&Fleet_Data[[#This Row],[Configuration Code]],Tare[Description]&Tare[Mass Scheme]&Tare[PBS Level]&Tare[Configuration Code],Tare[GCM (t) (50% load)],"",0) -> 27.36694883 | Q123: =_xlfn.XLOOKUP(Fleet_Data[[#This Row],[Description]]&Fleet_Data[[#This Row],[Mass Scheme]]&Fleet_Data[[#This Row],[PBS Level]]&Fleet_Data[[#This Row],[Configuration Code]],Tare[Description]&Tare[Mass Scheme]&Tare[PBS Level]&Tare[Configuration Code],Tare[Tare (t)],"",0) -> 16.23389766 | R123: =_xlfn.XLOOKUP(Fleet_Data[[#This Row],[Description]]&Fleet_Data[[#This Row],[Mass Scheme]]&Fleet_Data[[#This Row],[PBS Level]]&Fleet_Data[[#This Row],[Configuration Code]],Tare[Description]&Tare[Mass Scheme]&Tare[PBS Level]&Tare[Configuration Code],Tare[Payload (t)],"",0) -> 22.26610234 | S123: =_xlfn.XLOOKUP(Fleet_Data[[#This Row],[NTC Vehicle Equivalent]],NTC_Values[NTC vehicle],NTC_Values[Avg annual km],"",0) -> 75000
B124: =CONCATENATE(Fleet_Data[[#This Row],[Description]]," (",Fleet_Data[[#This Row],[Mass Scheme]],")",": ",Fleet_Data[[#This Row],[Fleet]],", ", Fleet_Data[[#This Row],[PBS Level]]) -> 3-axle truck and 2-axle pig trailer (HML): PBS, 1 | C124: 3-axle truck and 2-axle pig trailer | D124: HML | E124: PBS | F124: 1 | G124: 5 | H124: 20 | I124: R12T2 | J124: Class 8 | K124: Artic 5 Axle | L124: 11 | M124: Rigid | N124: =_xlfn.XLOOKUP(Fleet_Data[[#This Row],[Description]]&Fleet_Data[[#This Row],[Mass Scheme]]&Fleet_Data[[#This Row],[PBS Level]]&Fleet_Data[[#This Row],[Configuration Code]],Tare[Description]&Tare[Mass Scheme]&Tare[PBS Level]&Tare[Configuration Code],Tare[GCM (t) (100% load)],"",0) -> 38.5 | O124: =_xlfn.XLOOKUP(Fleet_Data[[#This Row],[Description]]&Fleet_Data[[#This Row],[Mass Scheme]]&Fleet_Data[[#This Row],[PBS Level]]&Fleet_Data[[#This Row],[Configuration Code]],Tare[Description]&Tare[Mass Scheme]&Tare[PBS Level]&Tare[Configuration Code],Tare[GCM (t) (75% load)],"",0) -> 32.93347442 | P124: =_xlfn.XLOOKUP(Fleet_Data[[#This Row],[Description]]&Fleet_Data[[#This Row],[Mass Scheme]]&Fleet_Data[[#This Row],[PBS Level]]&Fleet_Data[[#This Row],[Configuration Code]],Tare[Description]&Tare[Mass Scheme]&Tare[PBS Level]&Tare[Configuration Code],Tare[GCM (t) (50% load)],"",0) -> 27.36694883 | Q124: =_xlfn.XLOOKUP(Fleet_Data[[#This Row],[Description]]&Fleet_Data[[#This Row],[Mass Scheme]]&Fleet_Data[[#This Row],[PBS Level]]&Fleet_Data[[#This Row],[Configuration Code]],Tare[Description]&Tare[Mass Scheme]&Tare[PBS Level]&Tare[Configuration Code],Tare[Tare (t)],"",0) -> 16.23389766 | R124: =_xlfn.XLOOKUP(Fleet_Data[[#This Row],[Description]]&Fleet_Data[[#This Row],[Mass Scheme]]&Fleet_Data[[#This Row],[PBS Level]]&Fleet_Data[[#This Row],[Configuration Code]],Tare[Description]&Tare[Mass Scheme]&Tare[PBS Level]&Tare[Configuration Code],Tare[Payload (t)],"",0) -> 22.26610234 | S124: =_xlfn.XLOOKUP(Fleet_Data[[#This Row],[NTC Vehicle Equivalent]],NTC_Values[NTC vehicle],NTC_Values[Avg annual km],"",0) -> 75000
B125: =CONCATENATE(Fleet_Data[[#This Row],[Description]]," (",Fleet_Data[[#This Row],[Mass Scheme]],")",": ",Fleet_Data[[#This Row],[Fleet]],", ", Fleet_Data[[#This Row],[PBS Level]]) -> 4-axle truck and 2-axle pig trailer (GML): PBS, 1 | C125: 4-axle truck and 2-axle pig trailer | D125: GML | E125: PBS | F125: 1 | G125: 6 | H125: 20 | I125: R22T2 | J125: Class 9 | K125: Artic 6 Axle | L125: 11 | M125: Rigid | N125: =_xlfn.XLOOKUP(Fleet_Data[[#This Row],[Description]]&Fleet_Data[[#This Row],[Mass Scheme]]&Fleet_Data[[#This Row],[PBS Level]]&Fleet_Data[[#This Row],[Configuration Code]],Tare[Description]&Tare[Mass Scheme]&Tare[PBS Level]&Tare[Configuration Code],Tare[GCM (t) (100% load)],"",0) -> 42.5 | O125: =_xlfn.XLOOKUP(Fleet_Data[[#This Row],[Description]]&Fleet_Data[[#This Row],[Mass Scheme]]&Fleet_Data[[#This Row],[PBS Level]]&Fleet_Data[[#This Row],[Configuration Code]],Tare[Description]&Tare[Mass Scheme]&Tare[PBS Level]&Tare[Configuration Code],Tare[GCM (t) (75% load)],"",0) -> 36.62913889 | P125: =_xlfn.XLOOKUP(Fleet_Data[[#This Row],[Description]]&Fleet_Data[[#This Row],[Mass Scheme]]&Fleet_Data[[#This Row],[PBS Level]]&Fleet_Data[[#This Row],[Configuration Code]],Tare[Description]&Tare[Mass Scheme]&Tare[PBS Level]&Tare[Configuration Code],Tare[GCM (t) (50% load)],"",0) -> 30.75827778 | Q125: =_xlfn.XLOOKUP(Fleet_Data[[#This Row],[Description]]&Fleet_Data[[#This Row],[Mass Scheme]]&Fleet_Data[[#This Row],[PBS Level]]&Fleet_Data[[#This Row],[Configuration Code]],Tare[Description]&Tare[Mass Scheme]&Tare[PBS Level]&Tare[Configuration Code],Tare[Tare (t)],"",0) -> 19.01655556 | R125: =_xlfn.XLOOKUP(Fleet_Data[[#This Row],[Description]]&Fleet_Data[[#This Row],[Mass Scheme]]&Fleet_Data[[#This Row],[PBS Level]]&Fleet_Data[[#This Row],[Configuration Code]],Tare[Description]&Tare[Mass Scheme]&Tare[PBS Level]&Tare[Configuration Code],Tare[Payload (t)],"",0) -> 23.48344444 | S125: =_xlfn.XLOOKUP(Fleet_Data[[#This Row],[NTC Vehicle Equivalent]],NTC_Values[NTC vehicle],NTC_Values[Avg annual km],"",0) -> 75000
B126: =CONCATENATE(Fleet_Data[[#This Row],[Description]]," (",Fleet_Data[[#This Row],[Mass Scheme]],")",": ",Fleet_Data[[#This Row],[Fleet]],", ", Fleet_Data[[#This Row],[PBS Level]]) -> 4-axle truck and 2-axle pig trailer (CML): PBS, 1 | C126: 4-axle truck and 2-axle pig trailer | D126: CML | E126: PBS | F126: 1 | G126: 6 | H126: 20 | I126: R22T2 | J126: Class 9 | K126: Artic 6 Axle | L126: 11 | M126: Rigid | N126: =_xlfn.XLOOKUP(Fleet_Data[[#This Row],[Description]]&Fleet_Data[[#This Row],[Mass Scheme]]&Fleet_Data[[#This Row],[PBS Level]]&Fleet_Data[[#This Row],[Configuration Code]],Tare[Description]&Tare[Mass Scheme]&Tare[PBS Level]&Tare[Configuration Code],Tare[GCM (t) (100% load)],"",0) -> 43 | O126: =_xlfn.XLOOKUP(Fleet_Data[[#This Row],[Description]]&Fleet_Data[[#This Row],[Mass Scheme]]&Fleet_Data[[#This Row],[PBS Level]]&Fleet_Data[[#This Row],[Configuration Code]],Tare[Description]&Tare[Mass Scheme]&Tare[PBS Level]&Tare[Configuration Code],Tare[GCM (t) (75% load)],"",0) -> 37.00413889 | P126: =_xlfn.XLOOKUP(Fleet_Data[[#This Row],[Description]]&Fleet_Data[[#This Row],[Mass Scheme]]&Fleet_Data[[#This Row],[PBS Level]]&Fleet_Data[[#This Row],[Configuration Code]],Tare[Description]&Tare[Mass Scheme]&Tare[PBS Level]&Tare[Configuration Code],Tare[GCM (t) (50% load)],"",0) -> 31.00827778 | Q126: =_xlfn.XLOOKUP(Fleet_Data[[#This Row],[Description]]&Fleet_Data[[#This Row],[Mass Scheme]]&Fleet_Data[[#This Row],[PBS Level]]&Fleet_Data[[#This Row],[Configuration Code]],Tare[Description]&Tare[Mass Scheme]&Tare[PBS Level]&Tare[Configuration Code],Tare[Tare (t)],"",0) -> 19.01655556 | R126: =_xlfn.XLOOKUP(Fleet_Data[[#This Row],[Description]]&Fleet_Data[[#This Row],[Mass Scheme]]&Fleet_Data[[#This Row],[PBS Level]]&Fleet_Data[[#This Row],[Configuration Code]],Tare[Description]&Tare[Mass Scheme]&Tare[PBS Level]&Tare[Configuration Code],Tare[Payload (t)],"",0) -> 23.98344444 | S126: =_xlfn.XLOOKUP(Fleet_Data[[#This Row],[NTC Vehicle Equivalent]],NTC_Values[NTC vehicle],NTC_Values[Avg annual km],"",0) -> 75000
B127: =CONCATENATE(Fleet_Data[[#This Row],[Description]]," (",Fleet_Data[[#This Row],[Mass Scheme]],")",": ",Fleet_Data[[#This Row],[Fleet]],", ", Fleet_Data[[#This Row],[PBS Level]]) -> 4-axle truck and 2-axle pig trailer (HML): PBS, 1 | C127: 4-axle truck and 2-axle pig trailer | D127: HML | E127: PBS | F127: 1 | G127: 6 | H127: 20 | I127: R22T2 | J127: Class 9 | K127: Artic 6 Axle | L127: 11 | M127: Rigid | N127: =_xlfn.XLOOKUP(Fleet_Data[[#This Row],[Description]]&Fleet_Data[[#This Row],[Mass Scheme]]&Fleet_Data[[#This Row],[PBS Level]]&Fleet_Data[[#This Row],[Configuration Code]],Tare[Description]&Tare[Mass Scheme]&Tare[PBS Level]&Tare[Configuration Code],Tare[GCM (t) (100% load)],"",0) -> 43 | O127: =_xlfn.XLOOKUP(Fleet_Data[[#This Row],[Description]]&Fleet_Data[[#This Row],[Mass Scheme]]&Fleet_Data[[#This Row],[PBS Level]]&Fleet_Data[[#This Row],[Configuration Code]],Tare[Description]&Tare[Mass Scheme]&Tare[PBS Level]&Tare[Configuration Code],Tare[GCM (t) (75% load)],"",0) -> 37.00413889 | P127: =_xlfn.XLOOKUP(Fleet_Data[[#This Row],[Description]]&Fleet_Data[[#This Row],[Mass Scheme]]&Fleet_Data[[#This Row],[PBS Level]]&Fleet_Data[[#This Row],[Configuration Code]],Tare[Description]&Tare[Mass Scheme]&Tare[PBS Level]&Tare[Configuration Code],Tare[GCM (t) (50% load)],"",0) -> 31.00827778 | Q127: =_xlfn.XLOOKUP(Fleet_Data[[#This Row],[Description]]&Fleet_Data[[#This Row],[Mass Scheme]]&Fleet_Data[[#This Row],[PBS Level]]&Fleet_Data[[#This Row],[Configuration Code]],Tare[Description]&Tare[Mass Scheme]&Tare[PBS Level]&Tare[Configuration Code],Tare[Tare (t)],"",0) -> 19.01655556 | R127: =_xlfn.XLOOKUP(Fleet_Data[[#This Row],[Description]]&Fleet_Data[[#This Row],[Mass Scheme]]&Fleet_Data[[#This Row],[PBS Level]]&Fleet_Data[[#This Row],[Configuration Code]],Tare[Description]&Tare[Mass Scheme]&Tare[PBS Level]&Tare[Configuration Code],Tare[Payload (t)],"",0) -> 23.98344444 | S127: =_xlfn.XLOOKUP(Fleet_Data[[#This Row],[NTC Vehicle Equivalent]],NTC_Values[NTC vehicle],NTC_Values[Avg annual km],"",0) -> 75000
B128: =CONCATENATE(Fleet_Data[[#This Row],[Description]]," (",Fleet_Data[[#This Row],[Mass Scheme]],")",": ",Fleet_Data[[#This Row],[Fleet]],", ", Fleet_Data[[#This Row],[PBS Level]]) -> 2-Axle Rigid (GML): Conventional, n/a | C128: 2-Axle Rigid | D128: GML | E128: Conventional | F128: n/a | G128: 2 | H128: 12.5 | I128: R11 | J128: Class 3 | K128: Medium Rigid | L128: 3 | M128: Rigid | N128: =_xlfn.XLOOKUP(Fleet_Data[[#This Row],[Description]]&Fleet_Data[[#This Row],[Mass Scheme]]&Fleet_Data[[#This Row],[PBS Level]]&Fleet_Data[[#This Row],[Configuration Code]],Tare[Description]&Tare[Mass Scheme]&Tare[PBS Level]&Tare[Configuration Code],Tare[GCM (t) (100% load)],"",0) -> 15 | O128: =_xlfn.XLOOKUP(Fleet_Data[[#This Row],[Description]]&Fleet_Data[[#This Row],[Mass Scheme]]&Fleet_Data[[#This Row],[PBS Level]]&Fleet_Data[[#This Row],[Configuration Code]],Tare[Description]&Tare[Mass Scheme]&Tare[PBS Level]&Tare[Configuration Code],Tare[GCM (t) (75% load)],"",0) -> 13.2764001 | P128: =_xlfn.XLOOKUP(Fleet_Data[[#This Row],[Description]]&Fleet_Data[[#This Row],[Mass Scheme]]&Fleet_Data[[#This Row],[PBS Level]]&Fleet_Data[[#This Row],[Configuration Code]],Tare[Description]&Tare[Mass Scheme]&Tare[PBS Level]&Tare[Configuration Code],Tare[GCM (t) (50% load)],"",0) -> 11.55280021 | Q128: =_xlfn.XLOOKUP(Fleet_Data[[#This Row],[Description]]&Fleet_Data[[#This Row],[Mass Scheme]]&Fleet_Data[[#This Row],[PBS Level]]&Fleet_Data[[#This Row],[Configuration Code]],Tare[Description]&Tare[Mass Scheme]&Tare[PBS Level]&Tare[Configuration Code],Tare[Tare (t)],"",0) -> 8.105600418 | R128: =_xlfn.XLOOKUP(Fleet_Data[[#This Row],[Description]]&Fleet_Data[[#This Row],[Mass Scheme]]&Fleet_Data[[#This Row],[PBS Level]]&Fleet_Data[[#This Row],[Configuration Code]],Tare[Description]&Tare[Mass Scheme]&Tare[PBS Level]&Tare[Configuration Code],Tare[Payload (t)],"",0) -> 6.894399582 | S128: =_xlfn.XLOOKUP(Fleet_Data[[#This Row],[NTC Vehicle Equivalent]],NTC_Values[NTC vehicle],NTC_Values[Avg annual km],"",0) -> 35000
B129: =CONCATENATE(Fleet_Data[[#This Row],[Description]]," (",Fleet_Data[[#This Row],[Mass Scheme]],")",": ",Fleet_Data[[#This Row],[Fleet]],", ", Fleet_Data[[#This Row],[PBS Level]]) -> 3-Axle Rigid (GML): Conventional, n/a | C129: 3-Axle Rigid | D129: GML | E129: Conventional | F129: n/a | G129: 3 | H129: 12.5 | I129: R12 | J129: Class 4 | K129: Heavy Rigid | L129: 6 | M129: Rigid | N129: =_xlfn.XLOOKUP(Fleet_Data[[#This Row],[Description]]&Fleet_Data[[#This Row],[Mass Scheme]]&Fleet_Data[[#This Row],[PBS Level]]&Fleet_Data[[#This Row],[Configuration Code]],Tare[Description]&Tare[Mass Scheme]&Tare[PBS Level]&Tare[Configuration Code],Tare[GCM (t) (100% load)],"",0) -> 22.5 | O129: =_xlfn.XLOOKUP(Fleet_Data[[#This Row],[Description]]&Fleet_Data[[#This Row],[Mass Scheme]]&Fleet_Data[[#This Row],[PBS Level]]&Fleet_Data[[#This Row],[Configuration Code]],Tare[Description]&Tare[Mass Scheme]&Tare[PBS Level]&Tare[Configuration Code],Tare[GCM (t) (75% load)],"",0) -> 19.52847781 | P129: =_xlfn.XLOOKUP(Fleet_Data[[#This Row],[Description]]&Fleet_Data[[#This Row],[Mass Scheme]]&Fleet_Data[[#This Row],[PBS Level]]&Fleet_Data[[#This Row],[Configuration Code]],Tare[Description]&Tare[Mass Scheme]&Tare[PBS Level]&Tare[Configuration Code],Tare[GCM (t) (50% load)],"",0) -> 16.55695562 | Q129: =_xlfn.XLOOKUP(Fleet_Data[[#This Row],[Description]]&Fleet_Data[[#This Row],[Mass Scheme]]&Fleet_Data[[#This Row],[PBS Level]]&Fleet_Data[[#This Row],[Configuration Code]],Tare[Description]&Tare[Mass Scheme]&Tare[PBS Level]&Tare[Configuration Code],Tare[Tare (t)],"",0) -> 10.61391123 | R129: =_xlfn.XLOOKUP(Fleet_Data[[#This Row],[Description]]&Fleet_Data[[#This Row],[Mass Scheme]]&Fleet_Data[[#This Row],[PBS Level]]&Fleet_Data[[#This Row],[Configuration Code]],Tare[Description]&Tare[Mass Scheme]&Tare[PBS Level]&Tare[Configuration Code],Tare[Payload (t)],"",0) -> 11.88608877 | S129: =_xlfn.XLOOKUP(Fleet_Data[[#This Row],[NTC Vehicle Equivalent]],NTC_Values[NTC vehicle],NTC_Values[Avg annual km],"",0) -> 40000
B130: =CONCATENATE(Fleet_Data[[#This Row],[Description]]," (",Fleet_Data[[#This Row],[Mass Scheme]],")",": ",Fleet_Data[[#This Row],[Fleet]],", ", Fleet_Data[[#This Row],[PBS Level]]) -> 3-Axle Rigid (CML): Conventional, n/a | C130: 3-Axle Rigid | D130: CML | E130: Conventional | F130: n/a | G130: 3 | H130: 12.5 | I130: R12 | J130: Class 4 | K130: Heavy Rigid | L130: 6 | M130: Rigid | N130: =_xlfn.XLOOKUP(Fleet_Data[[#This Row],[Description]]&Fleet_Data[[#This Row],[Mass Scheme]]&Fleet_Data[[#This Row],[PBS Level]]&Fleet_Data[[#This Row],[Configuration Code]],Tare[Description]&Tare[Mass Scheme]&Tare[PBS Level]&Tare[Configuration Code],Tare[GCM (t) (100% load)],"",0) -> 23 | O130: =_xlfn.XLOOKUP(Fleet_Data[[#This Row],[Description]]&Fleet_Data[[#This Row],[Mass Scheme]]&Fleet_Data[[#This Row],[PBS Level]]&Fleet_Data[[#This Row],[Configuration Code]],Tare[Description]&Tare[Mass Scheme]&Tare[PBS Level]&Tare[Configuration Code],Tare[GCM (t) (75% load)],"",0) -> 19.90347781 | P130: =_xlfn.XLOOKUP(Fleet_Data[[#This Row],[Description]]&Fleet_Data[[#This Row],[Mass Scheme]]&Fleet_Data[[#This Row],[PBS Level]]&Fleet_Data[[#This Row],[Configuration Code]],Tare[Description]&Tare[Mass Scheme]&Tare[PBS Level]&Tare[Configuration Code],Tare[GCM (t) (50% load)],"",0) -> 16.80695562 | Q130: =_xlfn.XLOOKUP(Fleet_Data[[#This Row],[Description]]&Fleet_Data[[#This Row],[Mass Scheme]]&Fleet_Data[[#This Row],[PBS Level]]&Fleet_Data[[#This Row],[Configuration Code]],Tare[Description]&Tare[Mass Scheme]&Tare[PBS Level]&Tare[Configuration Code],Tare[Tare (t)],"",0) -> 10.61391123 | R130: =_xlfn.XLOOKUP(Fleet_Data[[#This Row],[Description]]&Fleet_Data[[#This Row],[Mass Scheme]]&Fleet_Data[[#This Row],[PBS Level]]&Fleet_Data[[#This Row],[Configuration Code]],Tare[Description]&Tare[Mass Scheme]&Tare[PBS Level]&Tare[Configuration Code],Tare[Payload (t)],"",0) -> 12.38608877 | S130: =_xlfn.XLOOKUP(Fleet_Data[[#This Row],[NTC Vehicle Equivalent]],NTC_Values[NTC vehicle],NTC_Values[Avg annual km],"",0) -> 40000
B131: =CONCATENATE(Fleet_Data[[#This Row],[Description]]," (",Fleet_Data[[#This Row],[Mass Scheme]],")",": ",Fleet_Data[[#This Row],[Fleet]],", ", Fleet_Data[[#This Row],[PBS Level]]) -> 4-Axle Rigid (GML): Conventional, n/a | C131: 4-Axle Rigid | D131: GML | E131: Conventional | F131: n/a | G131: 4 | H131: 12.5 | I131: R13 | J131: Class 5 | K131: Heavy Rigid | L131: 9 | M131: Rigid | N131: =_xlfn.XLOOKUP(Fleet_Data[[#This Row],[Description]]&Fleet_Data[[#This Row],[Mass Scheme]]&Fleet_Data[[#This Row],[PBS Level]]&Fleet_Data[[#This Row],[Configuration Code]],Tare[Description]&Tare[Mass Scheme]&Tare[PBS Level]&Tare[Configuration Code],Tare[GCM (t) (100% load)],"",0) -> 26 | O131: =_xlfn.XLOOKUP(Fleet_Data[[#This Row],[Description]]&Fleet_Data[[#This Row],[Mass Scheme]]&Fleet_Data[[#This Row],[PBS Level]]&Fleet_Data[[#This Row],[Configuration Code]],Tare[Description]&Tare[Mass Scheme]&Tare[PBS Level]&Tare[Configuration Code],Tare[GCM (t) (75% load)],"",0) -> 22.66861463 | P131: =_xlfn.XLOOKUP(Fleet_Data[[#This Row],[Description]]&Fleet_Data[[#This Row],[Mass Scheme]]&Fleet_Data[[#This Row],[PBS Level]]&Fleet_Data[[#This Row],[Configuration Code]],Tare[Description]&Tare[Mass Scheme]&Tare[PBS Level]&Tare[Configuration Code],Tare[GCM (t) (50% load)],"",0) -> 19.33722927 | Q131: =_xlfn.XLOOKUP(Fleet_Data[[#This Row],[Description]]&Fleet_Data[[#This Row],[Mass Scheme]]&Fleet_Data[[#This Row],[PBS Level]]&Fleet_Data[[#This Row],[Configuration Code]],Tare[Description]&Tare[Mass Scheme]&Tare[PBS Level]&Tare[Configuration Code],Tare[Tare (t)],"",0) -> 12.67445854 | R131: =_xlfn.XLOOKUP(Fleet_Data[[#This Row],[Description]]&Fleet_Data[[#This Row],[Mass Scheme]]&Fleet_Data[[#This Row],[PBS Level]]&Fleet_Data[[#This Row],[Configuration Code]],Tare[Description]&Tare[Mass Scheme]&Tare[PBS Level]&Tare[Configuration Code],Tare[Payload (t)],"",0) -> 13.32554146 | S131: =_xlfn.XLOOKUP(Fleet_Data[[#This Row],[NTC Vehicle Equivalent]],NTC_Values[NTC vehicle],NTC_Values[Avg annual km],"",0) -> 45000
B132: =CONCATENATE(Fleet_Data[[#This Row],[Description]]," (",Fleet_Data[[#This Row],[Mass Scheme]],")",": ",Fleet_Data[[#This Row],[Fleet]],", ", Fleet_Data[[#This Row],[PBS Level]]) -> 4-Axle Rigid (CML): Conventional, n/a | C132: 4-Axle Rigid | D132: CML | E132: Conventional | F132: n/a | G132: 4 | H132: 12.5 | I132: R13 | J132: Class 5 | K132: Heavy Rigid | L132: 9 | M132: Rigid | N132: =_xlfn.XLOOKUP(Fleet_Data[[#This Row],[Description]]&Fleet_Data[[#This Row],[Mass Scheme]]&Fleet_Data[[#This Row],[PBS Level]]&Fleet_Data[[#This Row],[Configuration Code]],Tare[Description]&Tare[Mass Scheme]&Tare[PBS Level]&Tare[Configuration Code],Tare[GCM (t) (100% load)],"",0) -> 27 | O132: =_xlfn.XLOOKUP(Fleet_Data[[#This Row],[Description]]&Fleet_Data[[#This Row],[Mass Scheme]]&Fleet_Data[[#This Row],[PBS Level]]&Fleet_Data[[#This Row],[Configuration Code]],Tare[Description]&Tare[Mass Scheme]&Tare[PBS Level]&Tare[Configuration Code],Tare[GCM (t) (75% load)],"",0) -> 23.41861463 | P132: =_xlfn.XLOOKUP(Fleet_Data[[#This Row],[Description]]&Fleet_Data[[#This Row],[Mass Scheme]]&Fleet_Data[[#This Row],[PBS Level]]&Fleet_Data[[#This Row],[Configuration Code]],Tare[Description]&Tare[Mass Scheme]&Tare[PBS Level]&Tare[Configuration Code],Tare[GCM (t) (50% load)],"",0) -> 19.83722927 | Q132: =_xlfn.XLOOKUP(Fleet_Data[[#This Row],[Description]]&Fleet_Data[[#This Row],[Mass Scheme]]&Fleet_Data[[#This Row],[PBS Level]]&Fleet_Data[[#This Row],[Configuration Code]],Tare[Description]&Tare[Mass Scheme]&Tare[PBS Level]&Tare[Configuration Code],Tare[Tare (t)],"",0) -> 12.67445854 | R132: =_xlfn.XLOOKUP(Fleet_Data[[#This Row],[Description]]&Fleet_Data[[#This Row],[Mass Scheme]]&Fleet_Data[[#This Row],[PBS Level]]&Fleet_Data[[#This Row],[Configuration Code]],Tare[Description]&Tare[Mass Scheme]&Tare[PBS Level]&Tare[Configuration Code],Tare[Payload (t)],"",0) -> 14.32554146 | S132: =_xlfn.XLOOKUP(Fleet_Data[[#This Row],[NTC Vehicle Equivalent]],NTC_Values[NTC vehicle],NTC_Values[Avg annual km],"",0) -> 45000
B133: =CONCATENATE(Fleet_Data[[#This Row],[Description]]," (",Fleet_Data[[#This Row],[Mass Scheme]],")",": ",Fleet_Data[[#This Row],[Fleet]],", ", Fleet_Data[[#This Row],[PBS Level]]) -> 4-Axle Twinsteer Rigid Truck (GML): Conventional, n/a | C133: 4-Axle Twinsteer Rigid Truck | D133: GML | E133: Conventional | F133: n/a | G133: 4 | H133: 12.5 | I133: R22 | J133: Class 5 | K133: Heavy Rigid | L133: 9 | M133: Rigid | N133: =_xlfn.XLOOKUP(Fleet_Data[[#This Row],[Description]]&Fleet_Data[[#This Row],[Mass Scheme]]&Fleet_Data[[#This Row],[PBS Level]]&Fleet_Data[[#This Row],[Configuration Code]],Tare[Description]&Tare[Mass Scheme]&Tare[PBS Level]&Tare[Configuration Code],Tare[GCM (t) (100% load)],"",0) -> 26.5 | O133: =_xlfn.XLOOKUP(Fleet_Data[[#This Row],[Description]]&Fleet_Data[[#This Row],[Mass Scheme]]&Fleet_Data[[#This Row],[PBS Level]]&Fleet_Data[[#This Row],[Configuration Code]],Tare[Description]&Tare[Mass Scheme]&Tare[PBS Level]&Tare[Configuration Code],Tare[GCM (t) (75% load)],"",0) -> 23.04361463 | P133: =_xlfn.XLOOKUP(Fleet_Data[[#This Row],[Description]]&Fleet_Data[[#This Row],[Mass Scheme]]&Fleet_Data[[#This Row],[PBS Level]]&Fleet_Data[[#This Row],[Configuration Code]],Tare[Description]&Tare[Mass Scheme]&Tare[PBS Level]&Tare[Configuration Code],Tare[GCM (t) (50% load)],"",0) -> 19.58722927 | Q133: =_xlfn.XLOOKUP(Fleet_Data[[#This Row],[Description]]&Fleet_Data[[#This Row],[Mass Scheme]]&Fleet_Data[[#This Row],[PBS Level]]&Fleet_Data[[#This Row],[Configuration Code]],Tare[Description]&Tare[Mass Scheme]&Tare[PBS Level]&Tare[Configuration Code],Tare[Tare (t)],"",0) -> 12.67445854 | R133: =_xlfn.XLOOKUP(Fleet_Data[[#This Row],[Description]]&Fleet_Data[[#This Row],[Mass Scheme]]&Fleet_Data[[#This Row],[PBS Level]]&Fleet_Data[[#This Row],[Configuration Code]],Tare[Description]&Tare[Mass Scheme]&Tare[PBS Level]&Tare[Configuration Code],Tare[Payload (t)],"",0) -> 13.82554146 | S133: =_xlfn.XLOOKUP(Fleet_Data[[#This Row],[NTC Vehicle Equivalent]],NTC_Values[NTC vehicle],NTC_Values[Avg annual km],"",0) -> 45000
B134: =CONCATENATE(Fleet_Data[[#This Row],[Description]]," (",Fleet_Data[[#This Row],[Mass Scheme]],")",": ",Fleet_Data[[#This Row],[Fleet]],", ", Fleet_Data[[#This Row],[PBS Level]]) -> 4-Axle Twinsteer Rigid Truck (CML): Conventional, n/a | C134: 4-Axle Twinsteer Rigid Truck | D134: CML | E134: Conventional | F134: n/a | G134: 4 | H134: 12.5 | I134: R22 | J134: Class 5 | K134: Heavy Rigid | L134: 9 | M134: Rigid | N134: =_xlfn.XLOOKUP(Fleet_Data[[#This Row],[Description]]&Fleet_Data[[#This Row],[Mass Scheme]]&Fleet_Data[[#This Row],[PBS Level]]&Fleet_Data[[#This Row],[Configuration Code]],Tare[Description]&Tare[Mass Scheme]&Tare[PBS Level]&Tare[Configuration Code],Tare[GCM (t) (100% load)],"",0) -> 27 | O134: =_xlfn.XLOOKUP(Fleet_Data[[#This Row],[Description]]&Fleet_Data[[#This Row],[Mass Scheme]]&Fleet_Data[[#This Row],[PBS Level]]&Fleet_Data[[#This Row],[Configuration Code]],Tare[Description]&Tare[Mass Scheme]&Tare[PBS Level]&Tare[Configuration Code],Tare[GCM (t) (75% load)],"",0) -> 23.41861463 | P134: =_xlfn.XLOOKUP(Fleet_Data[[#This Row],[Description]]&Fleet_Data[[#This Row],[Mass Scheme]]&Fleet_Data[[#This Row],[PBS Level]]&Fleet_Data[[#This Row],[Configuration Code]],Tare[Description]&Tare[Mass Scheme]&Tare[PBS Level]&Tare[Configuration Code],Tare[GCM (t) (50% load)],"",0) -> 19.83722927 | Q134: =_xlfn.XLOOKUP(Fleet_Data[[#This Row],[Description]]&Fleet_Data[[#This Row],[Mass Scheme]]&Fleet_Data[[#This Row],[PBS Level]]&Fleet_Data[[#This Row],[Configuration Code]],Tare[Description]&Tare[Mass Scheme]&Tare[PBS Level]&Tare[Configuration Code],Tare[Tare (t)],"",0) -> 12.67445854 | R134: =_xlfn.XLOOKUP(Fleet_Data[[#This Row],[Description]]&Fleet_Data[[#This Row],[Mass Scheme]]&Fleet_Data[[#This Row],[PBS Level]]&Fleet_Data[[#This Row],[Configuration Code]],Tare[Description]&Tare[Mass Scheme]&Tare[PBS Level]&Tare[Configuration Code],Tare[Payload (t)],"",0) -> 14.32554146 | S134: =_xlfn.XLOOKUP(Fleet_Data[[#This Row],[NTC Vehicle Equivalent]],NTC_Values[NTC vehicle],NTC_Values[Avg annual km],"",0) -> 45000
B135: =CONCATENATE(Fleet_Data[[#This Row],[Description]]," (",Fleet_Data[[#This Row],[Mass Scheme]],")",": ",Fleet_Data[[#This Row],[Fleet]],", ", Fleet_Data[[#This Row],[PBS Level]]) -> 5-Axle Twinsteer Rigid Truck (GML): Conventional, n/a | C135: 5-Axle Twinsteer Rigid Truck | D135: GML | E135: Conventional | F135: n/a | G135: 5 | H135: 12.5 | I135: R23 | J135: Class 5 | K135: Heavy Rigid | L135: 9 | M135: Rigid | N135: =_xlfn.XLOOKUP(Fleet_Data[[#This Row],[Description]]&Fleet_Data[[#This Row],[Mass Scheme]]&Fleet_Data[[#This Row],[PBS Level]]&Fleet_Data[[#This Row],[Configuration Code]],Tare[Description]&Tare[Mass Scheme]&Tare[PBS Level]&Tare[Configuration Code],Tare[GCM (t) (100% load)],"",0) -> 30 | O135: =_xlfn.XLOOKUP(Fleet_Data[[#This Row],[Description]]&Fleet_Data[[#This Row],[Mass Scheme]]&Fleet_Data[[#This Row],[PBS Level]]&Fleet_Data[[#This Row],[Configuration Code]],Tare[Description]&Tare[Mass Scheme]&Tare[PBS Level]&Tare[Configuration Code],Tare[GCM (t) (75% load)],"",0) -> 25.57791667 | P135: =_xlfn.XLOOKUP(Fleet_Data[[#This Row],[Description]]&Fleet_Data[[#This Row],[Mass Scheme]]&Fleet_Data[[#This Row],[PBS Level]]&Fleet_Data[[#This Row],[Configuration Code]],Tare[Description]&Tare[Mass Scheme]&Tare[PBS Level]&Tare[Configuration Code],Tare[GCM (t) (50% load)],"",0) -> 21.15583333 | Q135: =_xlfn.XLOOKUP(Fleet_Data[[#This Row],[Description]]&Fleet_Data[[#This Row],[Mass Scheme]]&Fleet_Data[[#This Row],[PBS Level]]&Fleet_Data[[#This Row],[Configuration Code]],Tare[Description]&Tare[Mass Scheme]&Tare[PBS Level]&Tare[Configuration Code],Tare[Tare (t)],"",0) -> 12.31166667 | R135: =_xlfn.XLOOKUP(Fleet_Data[[#This Row],[Description]]&Fleet_Data[[#This Row],[Mass Scheme]]&Fleet_Data[[#This Row],[PBS Level]]&Fleet_Data[[#This Row],[Configuration Code]],Tare[Description]&Tare[Mass Scheme]&Tare[PBS Level]&Tare[Configuration Code],Tare[Payload (t)],"",0) -> 17.68833333 | S135: =_xlfn.XLOOKUP(Fleet_Data[[#This Row],[NTC Vehicle Equivalent]],NTC_Values[NTC vehicle],NTC_Values[Avg annual km],"",0) -> 45000
B136: =CONCATENATE(Fleet_Data[[#This Row],[Description]]," (",Fleet_Data[[#This Row],[Mass Scheme]],")",": ",Fleet_Data[[#This Row],[Fleet]],", ", Fleet_Data[[#This Row],[PBS Level]]) -> 5-Axle Twinsteer Rigid Truck (CML): Conventional, n/a | C136: 5-Axle Twinsteer Rigid Truck | D136: CML | E136: Conventional | F136: n/a | G136: 5 | H136: 12.5 | I136: R23 | J136: Class 5 | K136: Heavy Rigid | L136: 9 | M136: Rigid | N136: =_xlfn.XLOOKUP(Fleet_Data[[#This Row],[Description]]&Fleet_Data[[#This Row],[Mass Scheme]]&Fleet_Data[[#This Row],[PBS Level]]&Fleet_Data[[#This Row],[Configuration Code]],Tare[Description]&Tare[Mass Scheme]&Tare[PBS Level]&Tare[Configuration Code],Tare[GCM (t) (100% load)],"",0) -> 31 | O136: =_xlfn.XLOOKUP(Fleet_Data[[#This Row],[Description]]&Fleet_Data[[#This Row],[Mass Scheme]]&Fleet_Data[[#This Row],[PBS Level]]&Fleet_Data[[#This Row],[Configuration Code]],Tare[Description]&Tare[Mass Scheme]&Tare[PBS Level]&Tare[Configuration Code],Tare[GCM (t) (75% load)],"",0) -> 26.32791667 | P136: =_xlfn.XLOOKUP(Fleet_Data[[#This Row],[Description]]&Fleet_Data[[#This Row],[Mass Scheme]]&Fleet_Data[[#This Row],[PBS Level]]&Fleet_Data[[#This Row],[Configuration Code]],Tare[Description]&Tare[Mass Scheme]&Tare[PBS Level]&Tare[Configuration Code],Tare[GCM (t) (50% load)],"",0) -> 21.65583333 | Q136: =_xlfn.XLOOKUP(Fleet_Data[[#This Row],[Description]]&Fleet_Data[[#This Row],[Mass Scheme]]&Fleet_Data[[#This Row],[PBS Level]]&Fleet_Data[[#This Row],[Configuration Code]],Tare[Description]&Tare[Mass Scheme]&Tare[PBS Level]&Tare[Configuration Code],Tare[Tare (t)],"",0) -> 12.31166667 | R136: =_xlfn.XLOOKUP(Fleet_Data[[#This Row],[Description]]&Fleet_Data[[#This Row],[Mass Scheme]]&Fleet_Data[[#This Row],[PBS Level]]&Fleet_Data[[#This Row],[Configuration Code]],Tare[Description]&Tare[Mass Scheme]&Tare[PBS Level]&Tare[Configuration Code],Tare[Payload (t)],"",0) -> 18.68833333 | S136: =_xlfn.XLOOKUP(Fleet_Data[[#This Row],[NTC Vehicle Equivalent]],NTC_Values[NTC vehicle],NTC_Values[Avg annual km],"",0) -> 45000
B137: =CONCATENATE(Fleet_Data[[#This Row],[Description]]," (",Fleet_Data[[#This Row],[Mass Scheme]],")",": ",Fleet_Data[[#This Row],[Fleet]],", ", Fleet_Data[[#This Row],[PBS Level]]) -> 3-Axle Semitrailer (GML): Conventional, n/a | C137: 3-Axle Semitrailer | D137: GML | E137: Conventional | F137: n/a | G137: 3 | H137: 19 | I137: A111 | J137: Class 6 | K137: Artic 4 Axle | L137: 12 | M137: Articulated | N137: =_xlfn.XLOOKUP(Fleet_Data[[#This Row],[Description]]&Fleet_Data[[#This Row],[Mass Scheme]]&Fleet_Data[[#This Row],[PBS Level]]&Fleet_Data[[#This Row],[Configuration Code]],Tare[Description]&Tare[Mass Scheme]&Tare[PBS Level]&Tare[Configuration Code],Tare[GCM (t) (100% load)],"",0) -> 24 | O137: =_xlfn.XLOOKUP(Fleet_Data[[#This Row],[Description]]&Fleet_Data[[#This Row],[Mass Scheme]]&Fleet_Data[[#This Row],[PBS Level]]&Fleet_Data[[#This Row],[Configuration Code]],Tare[Description]&Tare[Mass Scheme]&Tare[PBS Level]&Tare[Configuration Code],Tare[GCM (t) (75% load)],"",0) -> 20.58741964 | P137: =_xlfn.XLOOKUP(Fleet_Data[[#This Row],[Description]]&Fleet_Data[[#This Row],[Mass Scheme]]&Fleet_Data[[#This Row],[PBS Level]]&Fleet_Data[[#This Row],[Configuration Code]],Tare[Description]&Tare[Mass Scheme]&Tare[PBS Level]&Tare[Configuration Code],Tare[GCM (t) (50% load)],"",0) -> 17.17483929 | Q137: =_xlfn.XLOOKUP(Fleet_Data[[#This Row],[Description]]&Fleet_Data[[#This Row],[Mass Scheme]]&Fleet_Data[[#This Row],[PBS Level]]&Fleet_Data[[#This Row],[Configuration Code]],Tare[Description]&Tare[Mass Scheme]&Tare[PBS Level]&Tare[Configuration Code],Tare[Tare (t)],"",0) -> 10.34967857 | R137: =_xlfn.XLOOKUP(Fleet_Data[[#This Row],[Description]]&Fleet_Data[[#This Row],[Mass Scheme]]&Fleet_Data[[#This Row],[PBS Level]]&Fleet_Data[[#This Row],[Configuration Code]],Tare[Description]&Tare[Mass Scheme]&Tare[PBS Level]&Tare[Configuration Code],Tare[Payload (t)],"",0) -> 13.65032143 | S137: =_xlfn.XLOOKUP(Fleet_Data[[#This Row],[NTC Vehicle Equivalent]],NTC_Values[NTC vehicle],NTC_Values[Avg annual km],"",0) -> 75000
